Workbook

Sheet Notes
B2: Interactive mid-year population estimate toolkit | M2: Version date: January 2025
B4: This file enables users to see how the population of Kent and individual Kent districts looks according to the Office for National Statistics Mid-Year Population Estimates.
B5: The summary allows users to:-
B6: see a chart of male, female and total population by age between 2003 and 2023 for you chosen area
B7: see the number and percentage change in male, female and total population for any timeframe between the years 2003 and 2023 for a single selected area.
B8: see change in population for any timeframe between the years 2003 and 2023 for up to 3 selected areas.
B9: Summary
B10: Click on the animated population pyramid to see the full age profile by 5 year age group change each year between 2003 and 2023 for your selected area.
B11: Population Pyramid
B12: The data are taken from the Mid-Year Population Estimates as published by the Office for National Statistics (ONS).
B13: Estimates for 2003 to 2010 are revised and were released 30 April 2013
B14: Estimates for 2012 to 2021 are revised and were released 23 November 2023
B15: 2022 estimates were released 23 November 2023 and revised 15 July 2024
B16: 2023 estimates were released 15 July 2024
B17: 2024 estimates are due for release in Summer 2025
B20: Enquiries or requests for further information should be directed to:
B21: Kent Analytics
B22: Kent County Council
B23: Tel: 03000 41 74 44
B24: Email: research@kent.gov.uk

Sheet Summary
A2: Interactive mid-year population estimate toolkit | H2: Click here to view a population pyramid
A3: Source: Office for National Statistics Mid Year Estimates.
A4: Presented by: Kent Analytics, Kent County Council. Email: research@kent.gov.uk
A5: =Notes!M2 -> Version date: January 2025
A7: Select District | G7: Select district 2 | M7: Select district 3
B10: Start age | D10: End Age
O15: =Index!E7&" in "&Index!C11&", "&Index!C16&" - "&Index!C19 -> Change in population aged 0-90+ in Ashford, 2003 - 2023
N17: Start Year | P17: End Year
N21: Year | O21: Males | P21: Females | Q21: Total
N22: =Index!C16 -> 2003 | O22: =INDEX('All Districts Rounded Data'!AI12:AI29,Index!B11) -> 51300 | P22: =INDEX('All Districts Rounded Data'!AI33:AI50,Index!B11) -> 54300 | Q22: =INDEX('All Districts Rounded Data'!AI54:AI71,Index!B11) -> 105600
N23: =Index!C19 -> 2023 | O23: =INDEX('All Districts Rounded Data'!AJ12:AJ29,Index!B11) -> 67300 | P23: =INDEX('All Districts Rounded Data'!AJ33:AJ50,Index!B11) -> 71000 | Q23: =INDEX('All Districts Rounded Data'!AJ54:AJ71,Index!B11) -> 138300
N24: Change | O24: =IF(O22=0,0,INDEX('All Districts Rounded Data'!AK12:AK29,Index!B11)) -> 16000 | P24: =IF(P22=0,0,INDEX('All Districts Rounded Data'!AK33:AK50,Index!B11)) -> 16700 | Q24: =IF(Q22=0,0,INDEX('All Districts Rounded Data'!AK54:AK71,Index!B11)) -> 32600
N25: % change | O25: =INDEX('All Districts Rounded Data'!AL12:AL29,Index!B11) -> 0.3117776608 | P25: =INDEX('All Districts Rounded Data'!AL33:AL50,Index!B11) -> 0.3064774422 | Q25: =INDEX('All Districts Rounded Data'!AL54:AL71,Index!B11) -> 0.3090518384
N26: Source: Office for National Statistics. Kent Analytics, Kent County Council
N27: All figures have been individually rounded to the nearest one hundred and therefore may not sum
N28: Percentages have been calculated using unrounded numbers
A31: =Index!C11&" estimated population aged "&Index!C4&" - "&Index!C9 -> Ashford estimated population aged 0 - 90+
B32: 2003 | C32: 2004 | D32: 2005 | E32: 2006 | F32: 2007 | G32: 2008 | H32: 2009 | I32: 2010 | J32: 2011 | K32: 2012 | L32: 2013 | M32: 2014 | N32: 2015 | O32: 2016 | P32: 2017 | Q32: 2018 | R32: 2019 | S32: 2020 | T32: 2021 | U32: 2022 | V32: 2023
A33: Males | B33: =INDEX('All Districts Rounded Data'!M$12:M$29,Index!$B$11) -> 51300 | C33: =INDEX('All Districts Rounded Data'!N$12:N$29,Index!$B$11) -> 52000 | D33: =INDEX('All Districts Rounded Data'!O$12:O$29,Index!$B$11) -> 53000 | E33: =INDEX('All Districts Rounded Data'!P$12:P$29,Index!$B$11) -> 54000 | F33: =INDEX('All Districts Rounded Data'!Q$12:Q$29,Index!$B$11) -> 55000 | G33: =INDEX('All Districts Rounded Data'!R$12:R$29,Index!$B$11) -> 55600 | H33: =INDEX('All Districts Rounded Data'!S$12:S$29,Index!$B$11) -> 56200 | I33: =INDEX('All Districts Rounded Data'!T$12:T$29,Index!$B$11) -> 56700 | J33: =INDEX('All Districts Rounded Data'!U$12:U$29,Index!$B$11) -> 57400 | K33: =INDEX('All Districts Rounded Data'!V$12:V$29,Index!$B$11) -> 58300 | L33: =INDEX('All Districts Rounded Data'!W$12:W$29,Index!$B$11) -> 59100 | M33: =INDEX('All Districts Rounded Data'!X$12:X$29,Index!$B$11) -> 60000 | N33: =INDEX('All Districts Rounded Data'!Y$12:Y$29,Index!$B$11) -> 60500 | O33: =INDEX('All Districts Rounded Data'!Z$12:Z$29,Index!$B$11) -> 61300 | P33: =INDEX('All Districts Rounded Data'!AA$12:AA$29,Index!$B$11) -> 62200 | Q33: =INDEX('All Districts Rounded Data'!AB$12:AB$29,Index!$B$11) -> 63000 | R33: =INDEX('All Districts Rounded Data'!AC$12:AC$29,Index!$B$11) -> 63400 | S33: =INDEX('All Districts Rounded Data'!AD$12:AD$29,Index!$B$11) -> 63900 | T33: =INDEX('All Districts Rounded Data'!AE$12:AE$29,Index!$B$11) -> 64800 | U33: =INDEX('All Districts Rounded Data'!AF$12:AF$29,Index!$B$11) -> 66100 | V33: =INDEX('All Districts Rounded Data'!AG$12:AG$29,Index!$B$11) -> 67300
A34: Females | B34: =INDEX('All Districts Rounded Data'!M$33:M$50,Index!$B$11) -> 54300 | C34: =INDEX('All Districts Rounded Data'!N$33:N$50,Index!$B$11) -> 55200 | D34: =INDEX('All Districts Rounded Data'!O$33:O$50,Index!$B$11) -> 56400 | E34: =INDEX('All Districts Rounded Data'!P$33:P$50,Index!$B$11) -> 57400 | F34: =INDEX('All Districts Rounded Data'!Q$33:Q$50,Index!$B$11) -> 58300 | G34: =INDEX('All Districts Rounded Data'!R$33:R$50,Index!$B$11) -> 59000 | H34: =INDEX('All Districts Rounded Data'!S$33:S$50,Index!$B$11) -> 59500 | I34: =INDEX('All Districts Rounded Data'!T$33:T$50,Index!$B$11) -> 60200 | J34: =INDEX('All Districts Rounded Data'!U$33:U$50,Index!$B$11) -> 61000 | K34: =INDEX('All Districts Rounded Data'!V$33:V$50,Index!$B$11) -> 61900 | L34: =INDEX('All Districts Rounded Data'!W$33:W$50,Index!$B$11) -> 62800 | M34: =INDEX('All Districts Rounded Data'!X$33:X$50,Index!$B$11) -> 63700 | N34: =INDEX('All Districts Rounded Data'!Y$33:Y$50,Index!$B$11) -> 64100 | O34: =INDEX('All Districts Rounded Data'!Z$33:Z$50,Index!$B$11) -> 65000 | P34: =INDEX('All Districts Rounded Data'!AA$33:AA$50,Index!$B$11) -> 65800 | Q34: =INDEX('All Districts Rounded Data'!AB$33:AB$50,Index!$B$11) -> 66700 | R34: =INDEX('All Districts Rounded Data'!AC$33:AC$50,Index!$B$11) -> 67000 | S34: =INDEX('All Districts Rounded Data'!AD$33:AD$50,Index!$B$11) -> 67500 | T34: =INDEX('All Districts Rounded Data'!AE$33:AE$50,Index!$B$11) -> 68400 | U34: =INDEX('All Districts Rounded Data'!AF$33:AF$50,Index!$B$11) -> 69700 | V34: =INDEX('All Districts Rounded Data'!AG$33:AG$50,Index!$B$11) -> 71000
A35: Total | B35: =INDEX('All Districts Rounded Data'!M$54:M$71,Index!$B$11) -> 105600 | C35: =INDEX('All Districts Rounded Data'!N$54:N$71,Index!$B$11) -> 107300 | D35: =INDEX('All Districts Rounded Data'!O$54:O$71,Index!$B$11) -> 109400 | E35: =INDEX('All Districts Rounded Data'!P$54:P$71,Index!$B$11) -> 111500 | F35: =INDEX('All Districts Rounded Data'!Q$54:Q$71,Index!$B$11) -> 113300 | G35: =INDEX('All Districts Rounded Data'!R$54:R$71,Index!$B$11) -> 114600 | H35: =INDEX('All Districts Rounded Data'!S$54:S$71,Index!$B$11) -> 115700 | I35: =INDEX('All Districts Rounded Data'!T$54:T$71,Index!$B$11) -> 117000 | J35: =INDEX('All Districts Rounded Data'!U$54:U$71,Index!$B$11) -> 118400 | K35: =INDEX('All Districts Rounded Data'!V$54:V$71,Index!$B$11) -> 120200 | L35: =INDEX('All Districts Rounded Data'!W$54:W$71,Index!$B$11) -> 121900 | M35: =INDEX('All Districts Rounded Data'!X$54:X$71,Index!$B$11) -> 123700 | N35: =INDEX('All Districts Rounded Data'!Y$54:Y$71,Index!$B$11) -> 124600 | O35: =INDEX('All Districts Rounded Data'!Z$54:Z$71,Index!$B$11) -> 126300 | P35: =INDEX('All Districts Rounded Data'!AA$54:AA$71,Index!$B$11) -> 128000 | Q35: =INDEX('All Districts Rounded Data'!AB$54:AB$71,Index!$B$11) -> 129700 | R35: =INDEX('All Districts Rounded Data'!AC$54:AC$71,Index!$B$11) -> 130500 | S35: =INDEX('All Districts Rounded Data'!AD$54:AD$71,Index!$B$11) -> 131400 | T35: =INDEX('All Districts Rounded Data'!AE$54:AE$71,Index!$B$11) -> 133200 | U35: =INDEX('All Districts Rounded Data'!AF$54:AF$71,Index!$B$11) -> 135700 | V35: =INDEX('All Districts Rounded Data'!AG$54:AG$71,Index!$B$11) -> 138300
A36: Source: Office for National Statistics. Presented by: Kent Analytics, Kent County Council
A37: All figures have been individually rounded to the nearest one hundred and therefore may not sum
A38: =Index!C12&" estimated population aged "&Index!C4&" - "&Index!C9 -> - estimated population aged 0 - 90+
B39: 2003 | C39: 2004 | D39: 2005 | E39: 2006 | F39: 2007 | G39: 2008 | H39: 2009 | I39: 2010 | J39: 2011 | K39: 2012 | L39: 2013 | M39: 2014 | N39: 2015 | O39: 2016 | P39: 2017 | Q39: 2018 | R39: 2019 | S39: 2020 | T39: 2021 | U39: 2022 | V39: 2023
A40: Males | B40: =INDEX('All Districts Rounded Data'!L$12:L$29,Index!$B$12) -> 0 | C40: =INDEX('All Districts Rounded Data'!M$12:M$29,Index!$B$12) -> 0 | D40: =INDEX('All Districts Rounded Data'!N$12:N$29,Index!$B$12) -> 0 | E40: =INDEX('All Districts Rounded Data'!O$12:O$29,Index!$B$12) -> 0 | F40: =INDEX('All Districts Rounded Data'!P$12:P$29,Index!$B$12) -> 0 | G40: =INDEX('All Districts Rounded Data'!Q$12:Q$29,Index!$B$12) -> 0 | H40: =INDEX('All Districts Rounded Data'!R$12:R$29,Index!$B$12) -> 0 | I40: =INDEX('All Districts Rounded Data'!S$12:S$29,Index!$B$12) -> 0 | J40: =INDEX('All Districts Rounded Data'!T$12:T$29,Index!$B$12) -> 0 | K40: =INDEX('All Districts Rounded Data'!U$12:U$29,Index!$B$12) -> 0 | L40: =INDEX('All Districts Rounded Data'!V$12:V$29,Index!$B$12) -> 0 | M40: =INDEX('All Districts Rounded Data'!W$12:W$29,Index!$B$12) -> 0 | N40: =INDEX('All Districts Rounded Data'!X$12:X$29,Index!$B$12) -> 0 | O40: =INDEX('All Districts Rounded Data'!Y$12:Y$29,Index!$B$12) -> 0 | P40: =INDEX('All Districts Rounded Data'!Z$12:Z$29,Index!$B$12) -> 0 | Q40: =INDEX('All Districts Rounded Data'!AA$12:AA$29,Index!$B$12) -> 0 | R40: =INDEX('All Districts Rounded Data'!AB$12:AB$29,Index!$B$12) -> 0 | S40: =INDEX('All Districts Rounded Data'!AC$12:AC$29,Index!$B$12) -> 0 | T40: =INDEX('All Districts Rounded Data'!AD$12:AD$29,Index!$B$12) -> 0 | U40: =INDEX('All Districts Rounded Data'!AE$12:AE$29,Index!$B$12) -> 0 | V40: =INDEX('All Districts Rounded Data'!AF$12:AF$29,Index!$B$12) -> 0
A41: Females | B41: =INDEX('All Districts Rounded Data'!L$33:L$50,Index!$B$12) -> 0 | C41: =INDEX('All Districts Rounded Data'!M$33:M$50,Index!$B$12) -> 0 | D41: =INDEX('All Districts Rounded Data'!N$33:N$50,Index!$B$12) -> 0 | E41: =INDEX('All Districts Rounded Data'!O$33:O$50,Index!$B$12) -> 0 | F41: =INDEX('All Districts Rounded Data'!P$33:P$50,Index!$B$12) -> 0 | G41: =INDEX('All Districts Rounded Data'!Q$33:Q$50,Index!$B$12) -> 0 | H41: =INDEX('All Districts Rounded Data'!R$33:R$50,Index!$B$12) -> 0 | I41: =INDEX('All Districts Rounded Data'!S$33:S$50,Index!$B$12) -> 0 | J41: =INDEX('All Districts Rounded Data'!T$33:T$50,Index!$B$12) -> 0 | K41: =INDEX('All Districts Rounded Data'!U$33:U$50,Index!$B$12) -> 0 | L41: =INDEX('All Districts Rounded Data'!V$33:V$50,Index!$B$12) -> 0 | M41: =INDEX('All Districts Rounded Data'!W$33:W$50,Index!$B$12) -> 0 | N41: =INDEX('All Districts Rounded Data'!X$33:X$50,Index!$B$12) -> 0 | O41: =INDEX('All Districts Rounded Data'!Y$33:Y$50,Index!$B$12) -> 0 | P41: =INDEX('All Districts Rounded Data'!Z$33:Z$50,Index!$B$12) -> 0 | Q41: =INDEX('All Districts Rounded Data'!AA$33:AA$50,Index!$B$12) -> 0 | R41: =INDEX('All Districts Rounded Data'!AB$33:AB$50,Index!$B$12) -> 0 | S41: =INDEX('All Districts Rounded Data'!AC$33:AC$50,Index!$B$12) -> 0 | T41: =INDEX('All Districts Rounded Data'!AD$33:AD$50,Index!$B$12) -> 0 | U41: =INDEX('All Districts Rounded Data'!AE$33:AE$50,Index!$B$12) -> 0 | V41: =INDEX('All Districts Rounded Data'!AF$33:AF$50,Index!$B$12) -> 0
A42: Total | B42: =INDEX('All Districts Rounded Data'!L$54:L$71,Index!$B$12) -> 0 | C42: =INDEX('All Districts Rounded Data'!M$54:M$71,Index!$B$12) -> 0 | D42: =INDEX('All Districts Rounded Data'!N$54:N$71,Index!$B$12) -> 0 | E42: =INDEX('All Districts Rounded Data'!O$54:O$71,Index!$B$12) -> 0 | F42: =INDEX('All Districts Rounded Data'!P$54:P$71,Index!$B$12) -> 0 | G42: =INDEX('All Districts Rounded Data'!Q$54:Q$71,Index!$B$12) -> 0 | H42: =INDEX('All Districts Rounded Data'!R$54:R$71,Index!$B$12) -> 0 | I42: =INDEX('All Districts Rounded Data'!S$54:S$71,Index!$B$12) -> 0 | J42: =INDEX('All Districts Rounded Data'!T$54:T$71,Index!$B$12) -> 0 | K42: =INDEX('All Districts Rounded Data'!U$54:U$71,Index!$B$12) -> 0 | L42: =INDEX('All Districts Rounded Data'!V$54:V$71,Index!$B$12) -> 0 | M42: =INDEX('All Districts Rounded Data'!W$54:W$71,Index!$B$12) -> 0 | N42: =INDEX('All Districts Rounded Data'!X$54:X$71,Index!$B$12) -> 0 | O42: =INDEX('All Districts Rounded Data'!Y$54:Y$71,Index!$B$12) -> 0 | P42: =INDEX('All Districts Rounded Data'!Z$54:Z$71,Index!$B$12) -> 0 | Q42: =INDEX('All Districts Rounded Data'!AA$54:AA$71,Index!$B$12) -> 0 | R42: =INDEX('All Districts Rounded Data'!AB$54:AB$71,Index!$B$12) -> 0 | S42: =INDEX('All Districts Rounded Data'!AC$54:AC$71,Index!$B$12) -> 0 | T42: =INDEX('All Districts Rounded Data'!AD$54:AD$71,Index!$B$12) -> 0 | U42: =INDEX('All Districts Rounded Data'!AE$54:AE$71,Index!$B$12) -> 0 | V42: =INDEX('All Districts Rounded Data'!AF$54:AF$71,Index!$B$12) -> 0
A43: Source: Office for National Statistics. Presented by Kent Analytics, Kent County Council
A44: All figures have been individually rounded to the nearest one hundred and therefore may not sum
A45: =Index!C13&" estimated population aged "&Index!C4&" - "&Index!C9 -> - estimated population aged 0 - 90+
B46: 2003 | C46: 2004 | D46: 2005 | E46: 2006 | F46: 2007 | G46: 2008 | H46: 2009 | I46: 2010 | J46: 2011 | K46: 2012 | L46: 2013 | M46: 2014 | N46: 2015 | O46: 2016 | P46: 2017 | Q46: 2018 | R46: 2019 | S46: 2020 | T46: 2021 | U46: 2022 | V46: 2023
A47: Males | B47: =INDEX('All Districts Rounded Data'!L$12:L$29,Index!$B$13) -> 0 | C47: =INDEX('All Districts Rounded Data'!M$12:M$29,Index!$B$13) -> 0 | D47: =INDEX('All Districts Rounded Data'!N$12:N$29,Index!$B$13) -> 0 | E47: =INDEX('All Districts Rounded Data'!O$12:O$29,Index!$B$13) -> 0 | F47: =INDEX('All Districts Rounded Data'!P$12:P$29,Index!$B$13) -> 0 | G47: =INDEX('All Districts Rounded Data'!Q$12:Q$29,Index!$B$13) -> 0 | H47: =INDEX('All Districts Rounded Data'!R$12:R$29,Index!$B$13) -> 0 | I47: =INDEX('All Districts Rounded Data'!S$12:S$29,Index!$B$13) -> 0 | J47: =INDEX('All Districts Rounded Data'!T$12:T$29,Index!$B$13) -> 0 | K47: =INDEX('All Districts Rounded Data'!U$12:U$29,Index!$B$13) -> 0 | L47: =INDEX('All Districts Rounded Data'!V$12:V$29,Index!$B$13) -> 0 | M47: =INDEX('All Districts Rounded Data'!W$12:W$29,Index!$B$13) -> 0 | N47: =INDEX('All Districts Rounded Data'!X$12:X$29,Index!$B$13) -> 0 | O47: =INDEX('All Districts Rounded Data'!Y$12:Y$29,Index!$B$13) -> 0 | P47: =INDEX('All Districts Rounded Data'!Z$12:Z$29,Index!$B$13) -> 0 | Q47: =INDEX('All Districts Rounded Data'!AA$12:AA$29,Index!$B$13) -> 0 | R47: =INDEX('All Districts Rounded Data'!AB$12:AB$29,Index!$B$13) -> 0 | S47: =INDEX('All Districts Rounded Data'!AC$12:AC$29,Index!$B$13) -> 0 | T47: =INDEX('All Districts Rounded Data'!AD$12:AD$29,Index!$B$13) -> 0 | U47: =INDEX('All Districts Rounded Data'!AE$12:AE$29,Index!$B$13) -> 0 | V47: =INDEX('All Districts Rounded Data'!AF$12:AF$29,Index!$B$13) -> 0
A48: Females | B48: =INDEX('All Districts Rounded Data'!L$33:L$50,Index!$B$13) -> 0 | C48: =INDEX('All Districts Rounded Data'!M$33:M$50,Index!$B$13) -> 0 | D48: =INDEX('All Districts Rounded Data'!N$33:N$50,Index!$B$13) -> 0 | E48: =INDEX('All Districts Rounded Data'!O$33:O$50,Index!$B$13) -> 0 | F48: =INDEX('All Districts Rounded Data'!P$33:P$50,Index!$B$13) -> 0 | G48: =INDEX('All Districts Rounded Data'!Q$33:Q$50,Index!$B$13) -> 0 | H48: =INDEX('All Districts Rounded Data'!R$33:R$50,Index!$B$13) -> 0 | I48: =INDEX('All Districts Rounded Data'!S$33:S$50,Index!$B$13) -> 0 | J48: =INDEX('All Districts Rounded Data'!T$33:T$50,Index!$B$13) -> 0 | K48: =INDEX('All Districts Rounded Data'!U$33:U$50,Index!$B$13) -> 0 | L48: =INDEX('All Districts Rounded Data'!V$33:V$50,Index!$B$13) -> 0 | M48: =INDEX('All Districts Rounded Data'!W$33:W$50,Index!$B$13) -> 0 | N48: =INDEX('All Districts Rounded Data'!X$33:X$50,Index!$B$13) -> 0 | O48: =INDEX('All Districts Rounded Data'!Y$33:Y$50,Index!$B$13) -> 0 | P48: =INDEX('All Districts Rounded Data'!Z$33:Z$50,Index!$B$13) -> 0 | Q48: =INDEX('All Districts Rounded Data'!AA$33:AA$50,Index!$B$13) -> 0 | R48: =INDEX('All Districts Rounded Data'!AB$33:AB$50,Index!$B$13) -> 0 | S48: =INDEX('All Districts Rounded Data'!AC$33:AC$50,Index!$B$13) -> 0 | T48: =INDEX('All Districts Rounded Data'!AD$33:AD$50,Index!$B$13) -> 0 | U48: =INDEX('All Districts Rounded Data'!AE$33:AE$50,Index!$B$13) -> 0 | V48: =INDEX('All Districts Rounded Data'!AF$33:AF$50,Index!$B$13) -> 0
A49: Total | B49: =INDEX('All Districts Rounded Data'!L$54:L$71,Index!$B$13) -> 0 | C49: =INDEX('All Districts Rounded Data'!M$54:M$71,Index!$B$13) -> 0 | D49: =INDEX('All Districts Rounded Data'!N$54:N$71,Index!$B$13) -> 0 | E49: =INDEX('All Districts Rounded Data'!O$54:O$71,Index!$B$13) -> 0 | F49: =INDEX('All Districts Rounded Data'!P$54:P$71,Index!$B$13) -> 0 | G49: =INDEX('All Districts Rounded Data'!Q$54:Q$71,Index!$B$13) -> 0 | H49: =INDEX('All Districts Rounded Data'!R$54:R$71,Index!$B$13) -> 0 | I49: =INDEX('All Districts Rounded Data'!S$54:S$71,Index!$B$13) -> 0 | J49: =INDEX('All Districts Rounded Data'!T$54:T$71,Index!$B$13) -> 0 | K49: =INDEX('All Districts Rounded Data'!U$54:U$71,Index!$B$13) -> 0 | L49: =INDEX('All Districts Rounded Data'!V$54:V$71,Index!$B$13) -> 0 | M49: =INDEX('All Districts Rounded Data'!W$54:W$71,Index!$B$13) -> 0 | N49: =INDEX('All Districts Rounded Data'!X$54:X$71,Index!$B$13) -> 0 | O49: =INDEX('All Districts Rounded Data'!Y$54:Y$71,Index!$B$13) -> 0 | P49: =INDEX('All Districts Rounded Data'!Z$54:Z$71,Index!$B$13) -> 0 | Q49: =INDEX('All Districts Rounded Data'!AA$54:AA$71,Index!$B$13) -> 0 | R49: =INDEX('All Districts Rounded Data'!AB$54:AB$71,Index!$B$13) -> 0 | S49: =INDEX('All Districts Rounded Data'!AC$54:AC$71,Index!$B$13) -> 0 | T49: =INDEX('All Districts Rounded Data'!AD$54:AD$71,Index!$B$13) -> 0 | U49: =INDEX('All Districts Rounded Data'!AE$54:AE$71,Index!$B$13) -> 0 | V49: =INDEX('All Districts Rounded Data'!AF$54:AF$71,Index!$B$13) -> 0
A50: Source: Office for National Statistics. Presented by Kent Analytics, Kent County Council
A51: All figures have been individually rounded to the nearest one hundred and therefore may not sum

Sheet Population Pyramid
L1: 21
C3: Interactive mid-year population estimate toolkit | I3: Click here to return to the population summary page
C4: Source: Office for National Statistics Mid Year Estimates.
C5: Presented by: Kent Analytics, Kent County Council. Email: research@kent.gov.uk
C6: =Notes!M2 -> Version date: January 2025
F7: Select district
F9: Select year
C12: ='All Districts unrounded'!A120&", "&'All Districts unrounded'!A121 -> Ashford, 2023
D13: Total | E13: % of total population | F13: Males | G13: % of total population | H13: Females | I13: % of total population
C14: All Ages | D14: =ROUND('All Districts unrounded'!B122+'All Districts unrounded'!E122,-2) -> 131400 | E14: =('All Districts unrounded'!B122+'All Districts unrounded'!E122)/'All Districts unrounded'!$C$120 -> 1 | F14: =ROUND('All Districts unrounded'!B122,-2) -> 63900 | G14: ='All Districts unrounded'!C122 -> 0.4862855795 | H14: =ROUND('All Districts unrounded'!E122,-2) -> 67500 | I14: ='All Districts unrounded'!F122 -> 0.5137144205
C15: 0-4 | D15: =ROUND('All Districts unrounded'!B123+'All Districts unrounded'!E123,-2) -> 7600 | E15: =('All Districts unrounded'!B123+'All Districts unrounded'!E123)/'All Districts unrounded'!$C$120 -> 0.05786306123 | F15: =ROUND('All Districts unrounded'!B123,-2) -> 3900 | G15: ='All Districts unrounded'!C123 -> 0.02957445352 | H15: =ROUND('All Districts unrounded'!E123,-2) -> 3700 | I15: ='All Districts unrounded'!F123 -> 0.02828860771
C16: 5-9 | D16: =ROUND('All Districts unrounded'!B124+'All Districts unrounded'!E124,-2) -> 8300 | E16: =('All Districts unrounded'!B124+'All Districts unrounded'!E124)/'All Districts unrounded'!$C$120 -> 0.06322709254 | F16: =ROUND('All Districts unrounded'!B124,-2) -> 4200 | G16: ='All Districts unrounded'!C124 -> 0.03229070767 | H16: =ROUND('All Districts unrounded'!E124,-2) -> 4100 | I16: ='All Districts unrounded'!F124 -> 0.03093638487
C17: 10-14 | D17: =ROUND('All Districts unrounded'!B125+'All Districts unrounded'!E125,-2) -> 8300 | E17: =('All Districts unrounded'!B125+'All Districts unrounded'!E125)/'All Districts unrounded'!$C$120 -> 0.06344013208 | F17: =ROUND('All Districts unrounded'!B125,-2) -> 4200 | G17: ='All Districts unrounded'!C125 -> 0.03213853657 | H17: =ROUND('All Districts unrounded'!E125,-2) -> 4100 | I17: ='All Districts unrounded'!F125 -> 0.03130159551
C18: 15-19 | D18: =ROUND('All Districts unrounded'!B126+'All Districts unrounded'!E126,-2) -> 7500 | E18: =('All Districts unrounded'!B126+'All Districts unrounded'!E126)/'All Districts unrounded'!$C$120 -> 0.05690438329 | F18: =ROUND('All Districts unrounded'!B126,-2) -> 3900 | G18: ='All Districts unrounded'!C126 -> 0.0294755423 | H18: =ROUND('All Districts unrounded'!E126,-2) -> 3600 | I18: ='All Districts unrounded'!F126 -> 0.02742884099
C19: 20-24 | D19: =ROUND('All Districts unrounded'!B127+'All Districts unrounded'!E127,-2) -> 6400 | E19: =('All Districts unrounded'!B127+'All Districts unrounded'!E127)/'All Districts unrounded'!$C$120 -> 0.04893061759 | F19: =ROUND('All Districts unrounded'!B127,-2) -> 3200 | G19: ='All Districts unrounded'!C127 -> 0.02443867885 | H19: =ROUND('All Districts unrounded'!E127,-2) -> 3200 | I19: ='All Districts unrounded'!F127 -> 0.02449193874
C20: 25-29 | D20: =ROUND('All Districts unrounded'!B128+'All Districts unrounded'!E128,-2) -> 7900 | E20: =('All Districts unrounded'!B128+'All Districts unrounded'!E128)/'All Districts unrounded'!$C$120 -> 0.06038149295 | F20: =ROUND('All Districts unrounded'!B128,-2) -> 3800 | G20: ='All Districts unrounded'!C128 -> 0.02892011778 | H20: =ROUND('All Districts unrounded'!E128,-2) -> 4100 | I20: ='All Districts unrounded'!F128 -> 0.03146137517
C21: 30-34 | D21: =ROUND('All Districts unrounded'!B129+'All Districts unrounded'!E129,-2) -> 8600 | E21: =('All Districts unrounded'!B129+'All Districts unrounded'!E129)/'All Districts unrounded'!$C$120 -> 0.06524335963 | F21: =ROUND('All Districts unrounded'!B129,-2) -> 4000 | G21: ='All Districts unrounded'!C129 -> 0.03040378602 | H21: =ROUND('All Districts unrounded'!E129,-2) -> 4600 | I21: ='All Districts unrounded'!F129 -> 0.03483957362
C22: 35-39 | D22: =ROUND('All Districts unrounded'!B130+'All Districts unrounded'!E130,-2) -> 8000 | E22: =('All Districts unrounded'!B130+'All Districts unrounded'!E130)/'All Districts unrounded'!$C$120 -> 0.06118039123 | F22: =ROUND('All Districts unrounded'!B130,-2) -> 3800 | G22: ='All Districts unrounded'!C130 -> 0.02901142044 | H22: =ROUND('All Districts unrounded'!E130,-2) -> 4200 | I22: ='All Districts unrounded'!F130 -> 0.03216897079
C23: 40-44 | D23: =ROUND('All Districts unrounded'!B131+'All Districts unrounded'!E131,-2) -> 8100 | E23: =('All Districts unrounded'!B131+'All Districts unrounded'!E131)/'All Districts unrounded'!$C$120 -> 0.06134017089 | F23: =ROUND('All Districts unrounded'!B131,-2) -> 3900 | G23: ='All Districts unrounded'!C131 -> 0.02971140751 | H23: =ROUND('All Districts unrounded'!E131,-2) -> 4200 | I23: ='All Districts unrounded'!F131 -> 0.03162876338
C24: 45-49 | D24: =ROUND('All Districts unrounded'!B132+'All Districts unrounded'!E132,-2) -> 8700 | E24: =('All Districts unrounded'!B132+'All Districts unrounded'!E132)/'All Districts unrounded'!$C$120 -> 0.06643790278 | F24: =ROUND('All Districts unrounded'!B132,-2) -> 4200 | G24: ='All Districts unrounded'!C132 -> 0.03159832916 | H24: =ROUND('All Districts unrounded'!E132,-2) -> 4600 | I24: ='All Districts unrounded'!F132 -> 0.03483957362
C25: 50-54 | D25: =ROUND('All Districts unrounded'!B133+'All Districts unrounded'!E133,-2) -> 9900 | E25: =('All Districts unrounded'!B133+'All Districts unrounded'!E133)/'All Districts unrounded'!$C$120 -> 0.07530186942 | F25: =ROUND('All Districts unrounded'!B133,-2) -> 4900 | G25: ='All Districts unrounded'!C133 -> 0.03709931447 | H25: =ROUND('All Districts unrounded'!E133,-2) -> 5000 | I25: ='All Districts unrounded'!F133 -> 0.03820255495
C26: 55-59 | D26: =ROUND('All Districts unrounded'!B134+'All Districts unrounded'!E134,-2) -> 9100 | E26: =('All Districts unrounded'!B134+'All Districts unrounded'!E134)/'All Districts unrounded'!$C$120 -> 0.06915415693 | F26: =ROUND('All Districts unrounded'!B134,-2) -> 4500 | G26: ='All Districts unrounded'!C134 -> 0.03459609985 | H26: =ROUND('All Districts unrounded'!E134,-2) -> 4500 | I26: ='All Districts unrounded'!F134 -> 0.03455805708
C27: 60-64 | D27: =ROUND('All Districts unrounded'!B135+'All Districts unrounded'!E135,-2) -> 7300 | E27: =('All Districts unrounded'!B135+'All Districts unrounded'!E135)/'All Districts unrounded'!$C$120 -> 0.05545114927 | F27: =ROUND('All Districts unrounded'!B135,-2) -> 3600 | G27: ='All Districts unrounded'!C135 -> 0.02716254156 | H27: =ROUND('All Districts unrounded'!E135,-2) -> 3700 | I27: ='All Districts unrounded'!F135 -> 0.02828860771
C28: 65-69 | D28: =ROUND('All Districts unrounded'!B136+'All Districts unrounded'!E136,-2) -> 6600 | E28: =('All Districts unrounded'!B136+'All Districts unrounded'!E136)/'All Districts unrounded'!$C$120 -> 0.04994255541 | F28: =ROUND('All Districts unrounded'!B136,-2) -> 3200 | G28: ='All Districts unrounded'!C136 -> 0.02399738266 | H28: =ROUND('All Districts unrounded'!E136,-2) -> 3400 | I28: ='All Districts unrounded'!F136 -> 0.02594517275
C29: 70-74 | D29: =ROUND('All Districts unrounded'!B137+'All Districts unrounded'!E137,-2) -> 7200 | E29: =('All Districts unrounded'!B137+'All Districts unrounded'!E137)/'All Districts unrounded'!$C$120 -> 0.05505550441 | F29: =ROUND('All Districts unrounded'!B137,-2) -> 3400 | G29: ='All Districts unrounded'!C137 -> 0.02589191287 | H29: =ROUND('All Districts unrounded'!E137,-2) -> 3800 | I29: ='All Districts unrounded'!F137 -> 0.02916359154
C30: 75-79 | D30: =ROUND('All Districts unrounded'!B138+'All Districts unrounded'!E138,-2) -> 5200 | E30: =('All Districts unrounded'!B138+'All Districts unrounded'!E138)/'All Districts unrounded'!$C$120 -> 0.03984600285 | F30: =ROUND('All Districts unrounded'!B138,-2) -> 2500 | G30: ='All Districts unrounded'!C138 -> 0.018724654 | H30: =ROUND('All Districts unrounded'!E138,-2) -> 2800 | I30: ='All Districts unrounded'!F138 -> 0.02112134884
C31: 80-84 | D31: =ROUND('All Districts unrounded'!B139+'All Districts unrounded'!E139,-2) -> 3500 | E31: =('All Districts unrounded'!B139+'All Districts unrounded'!E139)/'All Districts unrounded'!$C$120 -> 0.02637125184 | F31: =ROUND('All Districts unrounded'!B139,-2) -> 1600 | G31: ='All Districts unrounded'!C139 -> 0.01208999399 | H31: =ROUND('All Districts unrounded'!E139,-2) -> 1900 | I31: ='All Districts unrounded'!F139 -> 0.01428125785
C32: 85+ | D32: =ROUND('All Districts unrounded'!B140+'All Districts unrounded'!E140,-2) -> 3100 | E32: =('All Districts unrounded'!B140+'All Districts unrounded'!E140)/'All Districts unrounded'!$C$120 -> 0.02392890566 | F32: =ROUND('All Districts unrounded'!B140,-2) -> 1200 | G32: ='All Districts unrounded'!C140 -> 0.009160700291 | H32: =ROUND('All Districts unrounded'!E140,-2) -> 1900 | I32: ='All Districts unrounded'!F140 -> 0.01476820537
C33: Source: Office for National Statistics. Presented by: Kent Analytics, Kent County Council
C34: All figures have been individually rounded to the nearest one hundred and therefore may not sum
C35: Percentages have been calculated using unrounded numbers

Sheet Workbook Methodology (hidden)
A1: Created by: Jeanette Forster, Strategic Commissioning - Analytics, Kent County Council
A2: 29th September 2011
A4: All drop down boxes in this workbook are operated using Index functions
A6: Viewing additional districts using the additional district drop down boxes operates via a macro.
A7: This macro hides and unhides the rows in which the comparitor districts is situated
A8: Additional rows should not be added above row 50 as this will disrupt the macro
A10: New data can be pasted into the yellow sections of each district data worksheet
A12: Columns AG to BJ in each district worksheet contains calculations which adds the single year data to create a cummulative age
A13: This cummulative age data is used to calculate the selectable ages
A15: The All Districts Rounded Data worksheet rounds the selected age group data calculated on each of the district sheets
A17: All Indexes and drop down lists can be found in the Index worksheet

Sheet Index (hidden)
A1: Index | E1: Chart Formatting
A3: Start age index | C3: Selected start age | E3: Chart Title
A4: Index 1 | B4: 1 | C4: =INDEX($B$30:$B$120,B4) -> 0 | E4: ="Population aged "&C5&"-"&C9&", 2003-2023" -> Population aged 0-90+, 2003-2023
C5: =IF($B$4=91,"90+",INDEX(A$30:A$120,$B$4)) -> 0
A6: End age index | C6: Selected end age | E6: Table title
A7: Index 2 | B7: 91 | C7: =INDEX(B$30:B$120,$B$7) -> 90 | E7: ="Change in population aged "&C5&"-"&C9 -> Change in population aged 0-90+
C8: =(B7-1)-C4 -> 90 | E8: ="Population change aged: "&C5&"-"&C9&" - "&C16&"-"&C19 -> Population change aged: 0-90+ - 2003-2023
A9: District Select | C9: =IF($B$7=91,"90+",INDEX(A$30:A$120,$B$7)) -> 90+ | E9: Chart Labels
A10: Index 3 | C10: Selected district | E10: =C11&" males" -> Ashford males
A11: District 1 | B11: 2 | C11: =INDEX($C$30:$C$47,$B11) -> Ashford | E11: =C11&" females" -> Ashford females
A12: District 2 | B12: 1 | C12: =INDEX($C$30:$C$47,$B12) -> - | E12: =C11&" total" -> Ashford total
A13: District 3 | B13: 1 | C13: =INDEX($C$30:$C$47,$B13) -> - | E13: =C12&" males" -> - males
E14: =C12&" females" -> - females
A15: Start year select | C15: Selected start year | E15: =C12&" total" -> - total
A16: Index 4 | B16: 1 | C16: =INDEX(D41:D61,B16) -> 2003 | E16: =C13&" males" -> - males
C17: =C16-C19 -> -20 | E17: =C13&" females" -> - females
A18: End year select | C18: Selected end year | E18: =C13&" total" -> - total
A19: Index 5 | B19: 21 | C19: =INDEX(D41:D61,B19) -> 2023
A21: Pop Pyramid year select | C21: Selected pyramid year
A22: Index 6 | B22: 19 | C22: =INDEX(D41:D61,'Population Pyramid'!$L$1) -> 2023
A27: Drop Downs
A28: Drop down 1 | C28: Drop Down 2 | D28: Drop Down 3
A29: Age selection | B29: age for calculation | C29: District slection | D29: Year selection
A30: 0 | B30: 0 | C30: - | D30: 1992
A31: 1 | B31: 1 | C31: Ashford | D31: 1993
A32: 2 | B32: 2 | C32: Canterbury | D32: 1994
A33: 3 | B33: 3 | C33: Dartford | D33: 1995
A34: 4 | B34: 4 | C34: Dover | D34: 1996
A35: 5 | B35: 5 | C35: Gravesham | D35: 1997
A36: 6 | B36: 6 | C36: Maidstone | D36: 1998
A37: 7 | B37: 7 | C37: Medway | D37: 1999
A38: 8 | B38: 8 | C38: Sevenoaks | D38: 2000
A39: 9 | B39: 9 | C39: Folkestone & Hythe | D39: 2001
A40: 10 | B40: 10 | C40: Swale | D40: 2002
A41: 11 | B41: 11 | C41: Thanet | D41: 2003
A42: 12 | B42: 12 | C42: Tonbridge & Malling | D42: 2004
A43: 13 | B43: 13 | C43: Tunbridge Wells | D43: 2005
A44: 14 | B44: 14 | C44: Kent | D44: 2006
A45: 15 | B45: 15 | C45: Kent + Medway | D45: 2007
A46: 16 | B46: 16 | C46: South East Region | D46: 2008
A47: 17 | B47: 17 | C47: England & Wales | D47: 2009
A48: 18 | B48: 18 | D48: 2010
A49: 19 | B49: 19 | D49: 2011
A50: 20 | B50: 20 | D50: 2012
A51: 21 | B51: 21 | D51: 2013
A52: 22 | B52: 22 | D52: 2014
A53: 23 | B53: 23 | D53: 2015
A54: 24 | B54: 24 | D54: 2016
A55: 25 | B55: 25 | D55: 2017
A56: 26 | B56: 26 | D56: 2018
A57: 27 | B57: 27 | D57: 2019
A58: 28 | B58: 28 | D58: 2020
A59: 29 | B59: 29 | D59: 2021
A60: 30 | B60: 30 | D60: 2022
A61: 31 | B61: 31 | D61: 2023
A62: 32 | B62: 32
A63: 33 | B63: 33
A64: 34 | B64: 34
A65: 35 | B65: 35
A66: 36 | B66: 36
A67: 37 | B67: 37
A68: 38 | B68: 38
A69: 39 | B69: 39
A70: 40 | B70: 40
A71: 41 | B71: 41
A72: 42 | B72: 42
A73: 43 | B73: 43
A74: 44 | B74: 44
A75: 45 | B75: 45
A76: 46 | B76: 46
A77: 47 | B77: 47
A78: 48 | B78: 48
A79: 49 | B79: 49
A80: 50 | B80: 50
A81: 51 | B81: 51
A82: 52 | B82: 52
A83: 53 | B83: 53
A84: 54 | B84: 54
A85: 55 | B85: 55
A86: 56 | B86: 56
A87: 57 | B87: 57
A88: 58 | B88: 58
A89: 59 | B89: 59
A90: 60 | B90: 60
A91: 61 | B91: 61
A92: 62 | B92: 62
A93: 63 | B93: 63
A94: 64 | B94: 64
A95: 65 | B95: 65
A96: 66 | B96: 66
A97: 67 | B97: 67
A98: 68 | B98: 68
A99: 69 | B99: 69
A100: 70 | B100: 70
A101: 71 | B101: 71
A102: 72 | B102: 72
A103: 73 | B103: 73
A104: 74 | B104: 74
A105: 75 | B105: 75
A106: 76 | B106: 76
A107: 77 | B107: 77
A108: 78 | B108: 78
A109: 79 | B109: 79
A110: 80 | B110: 80
A111: 81 | B111: 81
A112: 82 | B112: 82
A113: 83 | B113: 83
A114: 84 | B114: 84
A115: 85 | B115: 85
A116: 86 | B116: 86
A117: 87 | B117: 87
A118: 88 | B118: 88
A119: 89 | B119: 89
A120: 90+ | B120: 90

Sheet All Districts Rounded Data (hidden)
A1: All data on this sheet is rounded from each of the district worksheets | AH1: Insert column here before extending the table
A8: Selected Ages: | C8: =Index!$C$4&" : "&Index!$C$7 -> 0 : 90
A10: Males | AI10: Change
B11: ='All Districts unrounded'!B11 -> 1992 | C11: ='All Districts unrounded'!C11 -> 1993 | D11: ='All Districts unrounded'!D11 -> 1994 | E11: ='All Districts unrounded'!E11 -> 1995 | F11: ='All Districts unrounded'!F11 -> 1996 | G11: ='All Districts unrounded'!G11 -> 1997 | H11: ='All Districts unrounded'!H11 -> 1998 | I11: ='All Districts unrounded'!I11 -> 1999 | J11: ='All Districts unrounded'!J11 -> 2000 | K11: ='All Districts unrounded'!K11 -> 2001 | L11: ='All Districts unrounded'!L11 -> 2002 | M11: ='All Districts unrounded'!M11 -> 2003 | N11: ='All Districts unrounded'!N11 -> 2004 | O11: ='All Districts unrounded'!O11 -> 2005 | P11: ='All Districts unrounded'!P11 -> 2006 | Q11: ='All Districts unrounded'!Q11 -> 2007 | R11: ='All Districts unrounded'!R11 -> 2008 | S11: ='All Districts unrounded'!S11 -> 2009 | T11: ='All Districts unrounded'!T11 -> 2010 | U11: ='All Districts unrounded'!U11 -> 2011 | V11: ='All Districts unrounded'!V11 -> 2012 | W11: ='All Districts unrounded'!W11 -> 2013 | X11: ='All Districts unrounded'!X11 -> 2014 | Y11: ='All Districts unrounded'!Y11 -> 2015 | Z11: ='All Districts unrounded'!Z11 -> 2016 | AA11: ='All Districts unrounded'!AA11 -> 2017 | AB11: ='All Districts unrounded'!AB11 -> 2018 | AC11: ='All Districts unrounded'!AC11 -> 2019 | AD11: ='All Districts unrounded'!AD11 -> 2020 | AE11: ='All Districts unrounded'!AE11 -> 2021 | AF11: ='All Districts unrounded'!AF11 -> 2022 | AG11: ='All Districts unrounded'!AG11 -> 2023 | AI11: =Index!$C$16 -> 2003 | AJ11: =Index!$C$19 -> 2023 | AK11: Number change | AL11: % change
A12: -
A13: Ashford | B13: =ROUND(ASH!AK$8,-2) -> 45200 | C13: =ROUND(ASH!AL$8,-2) -> 45200 | D13: =ROUND(ASH!AM$8,-2) -> 45600 | E13: =ROUND(ASH!AN$8,-2) -> 46300 | F13: =ROUND(ASH!AO$8,-2) -> 47100 | G13: =ROUND(ASH!AP$8,-2) -> 47600 | H13: =ROUND(ASH!AQ$8,-2) -> 47800 | I13: =ROUND(ASH!AR$8,-2) -> 48700 | J13: =ROUND(ASH!AS$8,-2) -> 49300 | K13: =ROUND(ASH!AT$8,-2) -> 50100 | L13: =ROUND(ASH!AU$8,-2) -> 50800 | M13: =ROUND(ASH!AV$8,-2) -> 51300 | N13: =ROUND(ASH!AW$8,-2) -> 52000 | O13: =ROUND(ASH!AX$8,-2) -> 53000 | P13: =ROUND(ASH!AY$8,-2) -> 54000 | Q13: =ROUND(ASH!AZ$8,-2) -> 55000 | R13: =ROUND(ASH!BA$8,-2) -> 55600 | S13: =ROUND(ASH!BB$8,-2) -> 56200 | T13: =ROUND(ASH!BC$8,-2) -> 56700 | U13: =ROUND(ASH!BD$8,-2) -> 57400 | V13: =ROUND(ASH!BE$8,-2) -> 58300 | W13: =ROUND(ASH!BF$8,-2) -> 59100 | X13: =ROUND(ASH!BG$8,-2) -> 60000 | Y13: =ROUND(ASH!BH$8,-2) -> 60500 | Z13: =ROUND(ASH!BI$8,-2) -> 61300 | AA13: =ROUND(ASH!BJ$8,-2) -> 62200 | AB13: =ROUND(ASH!BK$8,-2) -> 63000 | AC13: =ROUND(ASH!BL$8,-2) -> 63400 | AD13: =ROUND(ASH!BM$8,-2) -> 63900 | AE13: =ROUND(ASH!BN$8,-2) -> 64800 | AF13: =ROUND(ASH!BO$8,-2) -> 66100 | AG13: =ROUND(ASH!BP$8,-2) -> 67300 | AI13: =INDEX($M13:$AH13,Index!$B$16) -> 51300 | AJ13: =INDEX($M13:$AH13,Index!$B$19) -> 67300 | AK13: =ROUND('All Districts unrounded'!AK13,-2) -> 16000 | AL13: ='All Districts unrounded'!AL13 -> 0.3117776608
A14: Canterbury | B14: =ROUND(CAN!AK$8,-2) -> 60900 | C14: =ROUND(CAN!AL$8,-2) -> 61800 | D14: =ROUND(CAN!AM$8,-2) -> 62200 | E14: =ROUND(CAN!AN$8,-2) -> 62300 | F14: =ROUND(CAN!AO$8,-2) -> 62600 | G14: =ROUND(CAN!AP$8,-2) -> 63300 | H14: =ROUND(CAN!AQ$8,-2) -> 63400 | I14: =ROUND(CAN!AR$8,-2) -> 63600 | J14: =ROUND(CAN!AS$8,-2) -> 64000 | K14: =ROUND(CAN!AT$8,-2) -> 64200 | L14: =ROUND(CAN!AU$8,-2) -> 64700 | M14: =ROUND(CAN!AV$8,-2) -> 66000 | N14: =ROUND(CAN!AW$8,-2) -> 67100 | O14: =ROUND(CAN!AX$8,-2) -> 67500 | P14: =ROUND(CAN!AY$8,-2) -> 68300 | Q14: =ROUND(CAN!AZ$8,-2) -> 69300 | R14: =ROUND(CAN!BA$8,-2) -> 69800 | S14: =ROUND(CAN!BB$8,-2) -> 70100 | T14: =ROUND(CAN!BC$8,-2) -> 71300 | U14: =ROUND(CAN!BD$8,-2) -> 72600 | V14: =ROUND(CAN!BE$8,-2) -> 73100 | W14: =ROUND(CAN!BF$8,-2) -> 74000 | X14: =ROUND(CAN!BG$8,-2) -> 74700 | Y14: =ROUND(CAN!BH$8,-2) -> 75300 | Z14: =ROUND(CAN!BI$8,-2) -> 76000 | AA14: =ROUND(CAN!BJ$8,-2) -> 76300 | AB14: =ROUND(CAN!BK$8,-2) -> 75700 | AC14: =ROUND(CAN!BL$8,-2) -> 75500 | AD14: =ROUND(CAN!BM$8,-2) -> 75500 | AE14: =ROUND(CAN!BN$8,-2) -> 75200 | AF14: =ROUND(CAN!BO$8,-2) -> 76200 | AG14: =ROUND(CAN!BP$8,-2) -> 77100 | AI14: =INDEX($M14:$AH14,Index!$B$16) -> 66000 | AJ14: =INDEX($M14:$AH14,Index!$B$19) -> 77100 | AK14: =ROUND('All Districts unrounded'!AK14,-2) -> 11000 | AL14: ='All Districts unrounded'!AL14 -> 0.1670856554
A15: Dartford | B15: =ROUND(DAR!AK$8,-2) -> 39600 | C15: =ROUND(DAR!AL$8,-2) -> 40000 | D15: =ROUND(DAR!AM$8,-2) -> 40300 | E15: =ROUND(DAR!AN$8,-2) -> 40500 | F15: =ROUND(DAR!AO$8,-2) -> 40700 | G15: =ROUND(DAR!AP$8,-2) -> 41000 | H15: =ROUND(DAR!AQ$8,-2) -> 41500 | I15: =ROUND(DAR!AR$8,-2) -> 41700 | J15: =ROUND(DAR!AS$8,-2) -> 41900 | K15: =ROUND(DAR!AT$8,-2) -> 42200 | L15: =ROUND(DAR!AU$8,-2) -> 42500 | M15: =ROUND(DAR!AV$8,-2) -> 42900 | N15: =ROUND(DAR!AW$8,-2) -> 43400 | O15: =ROUND(DAR!AX$8,-2) -> 44200 | P15: =ROUND(DAR!AY$8,-2) -> 44800 | Q15: =ROUND(DAR!AZ$8,-2) -> 45400 | R15: =ROUND(DAR!BA$8,-2) -> 46200 | S15: =ROUND(DAR!BB$8,-2) -> 46900 | T15: =ROUND(DAR!BC$8,-2) -> 47500 | U15: =ROUND(DAR!BD$8,-2) -> 48200 | V15: =ROUND(DAR!BE$8,-2) -> 48900 | W15: =ROUND(DAR!BF$8,-2) -> 49700 | X15: =ROUND(DAR!BG$8,-2) -> 50500 | Y15: =ROUND(DAR!BH$8,-2) -> 51200 | Z15: =ROUND(DAR!BI$8,-2) -> 51800 | AA15: =ROUND(DAR!BJ$8,-2) -> 53100 | AB15: =ROUND(DAR!BK$8,-2) -> 54200 | AC15: =ROUND(DAR!BL$8,-2) -> 55700 | AD15: =ROUND(DAR!BM$8,-2) -> 56600 | AE15: =ROUND(DAR!BN$8,-2) -> 57100 | AF15: =ROUND(DAR!BO$8,-2) -> 58100 | AG15: =ROUND(DAR!BP$8,-2) -> 58900 | AI15: =INDEX($M15:$AH15,Index!$B$16) -> 42900 | AJ15: =INDEX($M15:$AH15,Index!$B$19) -> 58900 | AK15: =ROUND('All Districts unrounded'!AK15,-2) -> 16000 | AL15: ='All Districts unrounded'!AL15 -> 0.3732913459
A16: Dover | B16: =ROUND(DOV!AK$8,-2) -> 50800 | C16: =ROUND(DOV!AL$8,-2) -> 50500 | D16: =ROUND(DOV!AM$8,-2) -> 50600 | E16: =ROUND(DOV!AN$8,-2) -> 50300 | F16: =ROUND(DOV!AO$8,-2) -> 49900 | G16: =ROUND(DOV!AP$8,-2) -> 49600 | H16: =ROUND(DOV!AQ$8,-2) -> 50000 | I16: =ROUND(DOV!AR$8,-2) -> 49900 | J16: =ROUND(DOV!AS$8,-2) -> 50300 | K16: =ROUND(DOV!AT$8,-2) -> 50400 | L16: =ROUND(DOV!AU$8,-2) -> 50500 | M16: =ROUND(DOV!AV$8,-2) -> 51000 | N16: =ROUND(DOV!AW$8,-2) -> 51600 | O16: =ROUND(DOV!AX$8,-2) -> 51900 | P16: =ROUND(DOV!AY$8,-2) -> 52300 | Q16: =ROUND(DOV!AZ$8,-2) -> 53000 | R16: =ROUND(DOV!BA$8,-2) -> 53500 | S16: =ROUND(DOV!BB$8,-2) -> 53700 | T16: =ROUND(DOV!BC$8,-2) -> 54300 | U16: =ROUND(DOV!BD$8,-2) -> 54800 | V16: =ROUND(DOV!BE$8,-2) -> 54700 | W16: =ROUND(DOV!BF$8,-2) -> 54800 | X16: =ROUND(DOV!BG$8,-2) -> 55200 | Y16: =ROUND(DOV!BH$8,-2) -> 55000 | Z16: =ROUND(DOV!BI$8,-2) -> 55500 | AA16: =ROUND(DOV!BJ$8,-2) -> 55900 | AB16: =ROUND(DOV!BK$8,-2) -> 56500 | AC16: =ROUND(DOV!BL$8,-2) -> 56700 | AD16: =ROUND(DOV!BM$8,-2) -> 56700 | AE16: =ROUND(DOV!BN$8,-2) -> 56900 | AF16: =ROUND(DOV!BO$8,-2) -> 57200 | AG16: =ROUND(DOV!BP$8,-2) -> 57700 | AI16: =INDEX($M16:$AH16,Index!$B$16) -> 51000 | AJ16: =INDEX($M16:$AH16,Index!$B$19) -> 57700 | AK16: =ROUND('All Districts unrounded'!AK16,-2) -> 6700 | AL16: ='All Districts unrounded'!AL16 -> 0.130946081
A17: Gravesham | B17: =ROUND(GRA!AK$8,-2) -> 45600 | C17: =ROUND(GRA!AL$8,-2) -> 45600 | D17: =ROUND(GRA!AM$8,-2) -> 45700 | E17: =ROUND(GRA!AN$8,-2) -> 45600 | F17: =ROUND(GRA!AO$8,-2) -> 45400 | G17: =ROUND(GRA!AP$8,-2) -> 45500 | H17: =ROUND(GRA!AQ$8,-2) -> 45900 | I17: =ROUND(GRA!AR$8,-2) -> 46200 | J17: =ROUND(GRA!AS$8,-2) -> 46500 | K17: =ROUND(GRA!AT$8,-2) -> 46900 | L17: =ROUND(GRA!AU$8,-2) -> 46900 | M17: =ROUND(GRA!AV$8,-2) -> 47000 | N17: =ROUND(GRA!AW$8,-2) -> 47200 | O17: =ROUND(GRA!AX$8,-2) -> 47600 | P17: =ROUND(GRA!AY$8,-2) -> 48000 | Q17: =ROUND(GRA!AZ$8,-2) -> 48500 | R17: =ROUND(GRA!BA$8,-2) -> 48900 | S17: =ROUND(GRA!BB$8,-2) -> 49300 | T17: =ROUND(GRA!BC$8,-2) -> 49800 | U17: =ROUND(GRA!BD$8,-2) -> 50200 | V17: =ROUND(GRA!BE$8,-2) -> 50900 | W17: =ROUND(GRA!BF$8,-2) -> 51200 | X17: =ROUND(GRA!BG$8,-2) -> 52000 | Y17: =ROUND(GRA!BH$8,-2) -> 52500 | Z17: =ROUND(GRA!BI$8,-2) -> 52600 | AA17: =ROUND(GRA!BJ$8,-2) -> 52300 | AB17: =ROUND(GRA!BK$8,-2) -> 52300 | AC17: =ROUND(GRA!BL$8,-2) -> 52600 | AD17: =ROUND(GRA!BM$8,-2) -> 52400 | AE17: =ROUND(GRA!BN$8,-2) -> 52200 | AF17: =ROUND(GRA!BO$8,-2) -> 52100 | AG17: =ROUND(GRA!BP$8,-2) -> 52500 | AI17: =INDEX($M17:$AH17,Index!$B$16) -> 47000 | AJ17: =INDEX($M17:$AH17,Index!$B$19) -> 52500 | AK17: =ROUND('All Districts unrounded'!AK17,-2) -> 5400 | AL17: ='All Districts unrounded'!AL17 -> 0.1153396407
A18: Maidstone | B18: =ROUND(MAI!AK$8,-2) -> 67200 | C18: =ROUND(MAI!AL$8,-2) -> 67300 | D18: =ROUND(MAI!AM$8,-2) -> 67100 | E18: =ROUND(MAI!AN$8,-2) -> 67400 | F18: =ROUND(MAI!AO$8,-2) -> 68000 | G18: =ROUND(MAI!AP$8,-2) -> 68000 | H18: =ROUND(MAI!AQ$8,-2) -> 67700 | I18: =ROUND(MAI!AR$8,-2) -> 67700 | J18: =ROUND(MAI!AS$8,-2) -> 68200 | K18: =ROUND(MAI!AT$8,-2) -> 68500 | L18: =ROUND(MAI!AU$8,-2) -> 69000 | M18: =ROUND(MAI!AV$8,-2) -> 69500 | N18: =ROUND(MAI!AW$8,-2) -> 69900 | O18: =ROUND(MAI!AX$8,-2) -> 70500 | P18: =ROUND(MAI!AY$8,-2) -> 71500 | Q18: =ROUND(MAI!AZ$8,-2) -> 72800 | R18: =ROUND(MAI!BA$8,-2) -> 73900 | S18: =ROUND(MAI!BB$8,-2) -> 74800 | T18: =ROUND(MAI!BC$8,-2) -> 75900 | U18: =ROUND(MAI!BD$8,-2) -> 76900 | V18: =ROUND(MAI!BE$8,-2) -> 77600 | W18: =ROUND(MAI!BF$8,-2) -> 78600 | X18: =ROUND(MAI!BG$8,-2) -> 79900 | Y18: =ROUND(MAI!BH$8,-2) -> 81300 | Z18: =ROUND(MAI!BI$8,-2) -> 82300 | AA18: =ROUND(MAI!BJ$8,-2) -> 83400 | AB18: =ROUND(MAI!BK$8,-2) -> 84300 | AC18: =ROUND(MAI!BL$8,-2) -> 85000 | AD18: =ROUND(MAI!BM$8,-2) -> 85700 | AE18: =ROUND(MAI!BN$8,-2) -> 87300 | AF18: =ROUND(MAI!BO$8,-2) -> 89100 | AG18: =ROUND(MAI!BP$8,-2) -> 90800 | AI18: =INDEX($M18:$AH18,Index!$B$16) -> 69500 | AJ18: =INDEX($M18:$AH18,Index!$B$19) -> 90800 | AK18: =ROUND('All Districts unrounded'!AK18,-2) -> 21300 | AL18: ='All Districts unrounded'!AL18 -> 0.3067349611
A19: Medway | B19: =ROUND(MED!AK$8,-2) -> 120600 | C19: =ROUND(MED!AL$8,-2) -> 119900 | D19: =ROUND(MED!AM$8,-2) -> 119700 | E19: =ROUND(MED!AN$8,-2) -> 118800 | F19: =ROUND(MED!AO$8,-2) -> 118800 | G19: =ROUND(MED!AP$8,-2) -> 119300 | H19: =ROUND(MED!AQ$8,-2) -> 120800 | I19: =ROUND(MED!AR$8,-2) -> 121400 | J19: =ROUND(MED!AS$8,-2) -> 122500 | K19: =ROUND(MED!AT$8,-2) -> 123000 | L19: =ROUND(MED!AU$8,-2) -> 123400 | M19: =ROUND(MED!AV$8,-2) -> 123800 | N19: =ROUND(MED!AW$8,-2) -> 123900 | O19: =ROUND(MED!AX$8,-2) -> 124200 | P19: =ROUND(MED!AY$8,-2) -> 124900 | Q19: =ROUND(MED!AZ$8,-2) -> 126300 | R19: =ROUND(MED!BA$8,-2) -> 127600 | S19: =ROUND(MED!BB$8,-2) -> 128800 | T19: =ROUND(MED!BC$8,-2) -> 130300 | U19: =ROUND(MED!BD$8,-2) -> 131400 | V19: =ROUND(MED!BE$8,-2) -> 132700 | W19: =ROUND(MED!BF$8,-2) -> 134100 | X19: =ROUND(MED!BG$8,-2) -> 135400 | Y19: =ROUND(MED!BH$8,-2) -> 136400 | Z19: =ROUND(MED!BI$8,-2) -> 136900 | AA19: =ROUND(MED!BJ$8,-2) -> 137400 | AB19: =ROUND(MED!BK$8,-2) -> 137100 | AC19: =ROUND(MED!BL$8,-2) -> 137500 | AD19: =ROUND(MED!BM$8,-2) -> 137800 | AE19: =ROUND(MED!BN$8,-2) -> 137200 | AF19: =ROUND(MED!BO$8,-2) -> 138500 | AG19: =ROUND(MED!BP$8,-2) -> 140300 | AI19: =INDEX($M19:$AH19,Index!$B$16) -> 123800 | AJ19: =INDEX($M19:$AH19,Index!$B$19) -> 140300 | AK19: =ROUND('All Districts unrounded'!AK19,-2) -> 16500 | AL19: ='All Districts unrounded'!AL19 -> 0.1331147859
A20: Sevenoaks | B20: =ROUND(SEV!AK$8,-2) -> 53000 | C20: =ROUND(SEV!AL$8,-2) -> 52900 | D20: =ROUND(SEV!AM$8,-2) -> 52800 | E20: =ROUND(SEV!AN$8,-2) -> 52600 | F20: =ROUND(SEV!AO$8,-2) -> 52700 | G20: =ROUND(SEV!AP$8,-2) -> 53100 | H20: =ROUND(SEV!AQ$8,-2) -> 52900 | I20: =ROUND(SEV!AR$8,-2) -> 53100 | J20: =ROUND(SEV!AS$8,-2) -> 53000 | K20: =ROUND(SEV!AT$8,-2) -> 52900 | L20: =ROUND(SEV!AU$8,-2) -> 52800 | M20: =ROUND(SEV!AV$8,-2) -> 52900 | N20: =ROUND(SEV!AW$8,-2) -> 53200 | O20: =ROUND(SEV!AX$8,-2) -> 53700 | P20: =ROUND(SEV!AY$8,-2) -> 54300 | Q20: =ROUND(SEV!AZ$8,-2) -> 54700 | R20: =ROUND(SEV!BA$8,-2) -> 54800 | S20: =ROUND(SEV!BB$8,-2) -> 55100 | T20: =ROUND(SEV!BC$8,-2) -> 55500 | U20: =ROUND(SEV!BD$8,-2) -> 56000 | V20: =ROUND(SEV!BE$8,-2) -> 56300 | W20: =ROUND(SEV!BF$8,-2) -> 56600 | X20: =ROUND(SEV!BG$8,-2) -> 56800 | Y20: =ROUND(SEV!BH$8,-2) -> 57000 | Z20: =ROUND(SEV!BI$8,-2) -> 57200 | AA20: =ROUND(SEV!BJ$8,-2) -> 57400 | AB20: =ROUND(SEV!BK$8,-2) -> 57700 | AC20: =ROUND(SEV!BL$8,-2) -> 57800 | AD20: =ROUND(SEV!BM$8,-2) -> 58000 | AE20: =ROUND(SEV!BN$8,-2) -> 58400 | AF20: =ROUND(SEV!BO$8,-2) -> 58400 | AG20: =ROUND(SEV!BP$8,-2) -> 58300 | AI20: =INDEX($M20:$AH20,Index!$B$16) -> 52900 | AJ20: =INDEX($M20:$AH20,Index!$B$19) -> 58300 | AK20: =ROUND('All Districts unrounded'!AK20,-2) -> 5400 | AL20: ='All Districts unrounded'!AL20 -> 0.1022102059
A21: Folkestone & Hythe | B21: =ROUND('F&H'!AK$8,-2) -> 44400 | C21: =ROUND('F&H'!AL$8,-2) -> 44200 | D21: =ROUND('F&H'!AM$8,-2) -> 44900 | E21: =ROUND('F&H'!AN$8,-2) -> 44500 | F21: =ROUND('F&H'!AO$8,-2) -> 45100 | G21: =ROUND('F&H'!AP$8,-2) -> 45100 | H21: =ROUND('F&H'!AQ$8,-2) -> 45100 | I21: =ROUND('F&H'!AR$8,-2) -> 45600 | J21: =ROUND('F&H'!AS$8,-2) -> 46100 | K21: =ROUND('F&H'!AT$8,-2) -> 46100 | L21: =ROUND('F&H'!AU$8,-2) -> 46700 | M21: =ROUND('F&H'!AV$8,-2) -> 47500 | N21: =ROUND('F&H'!AW$8,-2) -> 48300 | O21: =ROUND('F&H'!AX$8,-2) -> 49100 | P21: =ROUND('F&H'!AY$8,-2) -> 49900 | Q21: =ROUND('F&H'!AZ$8,-2) -> 50700 | R21: =ROUND('F&H'!BA$8,-2) -> 51300 | S21: =ROUND('F&H'!BB$8,-2) -> 51900 | T21: =ROUND('F&H'!BC$8,-2) -> 52600 | U21: =ROUND('F&H'!BD$8,-2) -> 53300 | V21: =ROUND('F&H'!BE$8,-2) -> 53200 | W21: =ROUND('F&H'!BF$8,-2) -> 53100 | X21: =ROUND('F&H'!BG$8,-2) -> 53100 | Y21: =ROUND('F&H'!BH$8,-2) -> 53000 | Z21: =ROUND('F&H'!BI$8,-2) -> 53400 | AA21: =ROUND('F&H'!BJ$8,-2) -> 53400 | AB21: =ROUND('F&H'!BK$8,-2) -> 53700 | AC21: =ROUND('F&H'!BL$8,-2) -> 53600 | AD21: =ROUND('F&H'!BM$8,-2) -> 53500 | AE21: =ROUND('F&H'!BN$8,-2) -> 53700 | AF21: =ROUND('F&H'!BO$8,-2) -> 53800 | AG21: =ROUND('F&H'!BP$8,-2) -> 54100 | AI21: =INDEX($M21:$AH21,Index!$B$16) -> 47500 | AJ21: =INDEX($M21:$AH21,Index!$B$19) -> 54100 | AK21: =ROUND('All Districts unrounded'!AK21,-2) -> 6600 | AL21: ='All Districts unrounded'!AL21 -> 0.1392351752
A22: Swale | B22: =ROUND(SWA!AK$8,-2) -> 57300 | C22: =ROUND(SWA!AL$8,-2) -> 57500 | D22: =ROUND(SWA!AM$8,-2) -> 57700 | E22: =ROUND(SWA!AN$8,-2) -> 58100 | F22: =ROUND(SWA!AO$8,-2) -> 57900 | G22: =ROUND(SWA!AP$8,-2) -> 58400 | H22: =ROUND(SWA!AQ$8,-2) -> 58800 | I22: =ROUND(SWA!AR$8,-2) -> 59200 | J22: =ROUND(SWA!AS$8,-2) -> 60000 | K22: =ROUND(SWA!AT$8,-2) -> 60700 | L22: =ROUND(SWA!AU$8,-2) -> 61200 | M22: =ROUND(SWA!AV$8,-2) -> 61700 | N22: =ROUND(SWA!AW$8,-2) -> 61900 | O22: =ROUND(SWA!AX$8,-2) -> 62100 | P22: =ROUND(SWA!AY$8,-2) -> 62800 | Q22: =ROUND(SWA!AZ$8,-2) -> 63900 | R22: =ROUND(SWA!BA$8,-2) -> 65000 | S22: =ROUND(SWA!BB$8,-2) -> 65600 | T22: =ROUND(SWA!BC$8,-2) -> 66700 | U22: =ROUND(SWA!BD$8,-2) -> 67400 | V22: =ROUND(SWA!BE$8,-2) -> 68300 | W22: =ROUND(SWA!BF$8,-2) -> 69000 | X22: =ROUND(SWA!BG$8,-2) -> 70000 | Y22: =ROUND(SWA!BH$8,-2) -> 70900 | Z22: =ROUND(SWA!BI$8,-2) -> 72300 | AA22: =ROUND(SWA!BJ$8,-2) -> 73200 | AB22: =ROUND(SWA!BK$8,-2) -> 73900 | AC22: =ROUND(SWA!BL$8,-2) -> 74700 | AD22: =ROUND(SWA!BM$8,-2) -> 74900 | AE22: =ROUND(SWA!BN$8,-2) -> 75500 | AF22: =ROUND(SWA!BO$8,-2) -> 76700 | AG22: =ROUND(SWA!BP$8,-2) -> 77200 | AI22: =INDEX($M22:$AH22,Index!$B$16) -> 61700 | AJ22: =INDEX($M22:$AH22,Index!$B$19) -> 77200 | AK22: =ROUND('All Districts unrounded'!AK22,-2) -> 15500 | AL22: ='All Districts unrounded'!AL22 -> 0.2511422183
A23: Thanet | B23: =ROUND(THA!AK$8,-2) -> 59000 | C23: =ROUND(THA!AL$8,-2) -> 58700 | D23: =ROUND(THA!AM$8,-2) -> 58500 | E23: =ROUND(THA!AN$8,-2) -> 58600 | F23: =ROUND(THA!AO$8,-2) -> 58700 | G23: =ROUND(THA!AP$8,-2) -> 59300 | H23: =ROUND(THA!AQ$8,-2) -> 59400 | I23: =ROUND(THA!AR$8,-2) -> 59900 | J23: =ROUND(THA!AS$8,-2) -> 59900 | K23: =ROUND(THA!AT$8,-2) -> 60000 | L23: =ROUND(THA!AU$8,-2) -> 60600 | M23: =ROUND(THA!AV$8,-2) -> 61000 | N23: =ROUND(THA!AW$8,-2) -> 61400 | O23: =ROUND(THA!AX$8,-2) -> 61700 | P23: =ROUND(THA!AY$8,-2) -> 62000 | Q23: =ROUND(THA!AZ$8,-2) -> 62600 | R23: =ROUND(THA!BA$8,-2) -> 63200 | S23: =ROUND(THA!BB$8,-2) -> 63500 | T23: =ROUND(THA!BC$8,-2) -> 64100 | U23: =ROUND(THA!BD$8,-2) -> 64700 | V23: =ROUND(THA!BE$8,-2) -> 65200 | W23: =ROUND(THA!BF$8,-2) -> 65800 | X23: =ROUND(THA!BG$8,-2) -> 66600 | Y23: =ROUND(THA!BH$8,-2) -> 67200 | Z23: =ROUND(THA!BI$8,-2) -> 67500 | AA23: =ROUND(THA!BJ$8,-2) -> 67800 | AB23: =ROUND(THA!BK$8,-2) -> 67800 | AC23: =ROUND(THA!BL$8,-2) -> 67600 | AD23: =ROUND(THA!BM$8,-2) -> 67300 | AE23: =ROUND(THA!BN$8,-2) -> 67700 | AF23: =ROUND(THA!BO$8,-2) -> 67700 | AG23: =ROUND(THA!BP$8,-2) -> 67600 | AI23: =INDEX($M23:$AH23,Index!$B$16) -> 61000 | AJ23: =INDEX($M23:$AH23,Index!$B$19) -> 67600 | AK23: =ROUND('All Districts unrounded'!AK23,-2) -> 6600 | AL23: ='All Districts unrounded'!AL23 -> 0.1082038747
A24: Tonbridge & Malling | B24: =ROUND(TON!AK$8,-2) -> 50100 | C24: =ROUND(TON!AL$8,-2) -> 50100 | D24: =ROUND(TON!AM$8,-2) -> 50300 | E24: =ROUND(TON!AN$8,-2) -> 50900 | F24: =ROUND(TON!AO$8,-2) -> 51300 | G24: =ROUND(TON!AP$8,-2) -> 51500 | H24: =ROUND(TON!AQ$8,-2) -> 51700 | I24: =ROUND(TON!AR$8,-2) -> 52200 | J24: =ROUND(TON!AS$8,-2) -> 52300 | K24: =ROUND(TON!AT$8,-2) -> 52800 | L24: =ROUND(TON!AU$8,-2) -> 53100 | M24: =ROUND(TON!AV$8,-2) -> 53600 | N24: =ROUND(TON!AW$8,-2) -> 54100 | O24: =ROUND(TON!AX$8,-2) -> 54800 | P24: =ROUND(TON!AY$8,-2) -> 55700 | Q24: =ROUND(TON!AZ$8,-2) -> 56500 | R24: =ROUND(TON!BA$8,-2) -> 57200 | S24: =ROUND(TON!BB$8,-2) -> 58000 | T24: =ROUND(TON!BC$8,-2) -> 58800 | U24: =ROUND(TON!BD$8,-2) -> 59300 | V24: =ROUND(TON!BE$8,-2) -> 59900 | W24: =ROUND(TON!BF$8,-2) -> 60300 | X24: =ROUND(TON!BG$8,-2) -> 61000 | Y24: =ROUND(TON!BH$8,-2) -> 61500 | Z24: =ROUND(TON!BI$8,-2) -> 62100 | AA24: =ROUND(TON!BJ$8,-2) -> 62800 | AB24: =ROUND(TON!BK$8,-2) -> 63500 | AC24: =ROUND(TON!BL$8,-2) -> 64100 | AD24: =ROUND(TON!BM$8,-2) -> 64200 | AE24: =ROUND(TON!BN$8,-2) -> 64400 | AF24: =ROUND(TON!BO$8,-2) -> 64900 | AG24: =ROUND(TON!BP$8,-2) -> 65600 | AI24: =INDEX($M24:$AH24,Index!$B$16) -> 53600 | AJ24: =INDEX($M24:$AH24,Index!$B$19) -> 65600 | AK24: =ROUND('All Districts unrounded'!AK24,-2) -> 12100 | AL24: ='All Districts unrounded'!AL24 -> 0.2254631013
A25: Tunbridge Wells | B25: =ROUND(TUN!AK$8,-2) -> 48200 | C25: =ROUND(TUN!AL$8,-2) -> 48300 | D25: =ROUND(TUN!AM$8,-2) -> 48800 | E25: =ROUND(TUN!AN$8,-2) -> 49200 | F25: =ROUND(TUN!AO$8,-2) -> 49000 | G25: =ROUND(TUN!AP$8,-2) -> 48800 | H25: =ROUND(TUN!AQ$8,-2) -> 49200 | I25: =ROUND(TUN!AR$8,-2) -> 49500 | J25: =ROUND(TUN!AS$8,-2) -> 49900 | K25: =ROUND(TUN!AT$8,-2) -> 50100 | L25: =ROUND(TUN!AU$8,-2) -> 50300 | M25: =ROUND(TUN!AV$8,-2) -> 50500 | N25: =ROUND(TUN!AW$8,-2) -> 50900 | O25: =ROUND(TUN!AX$8,-2) -> 51300 | P25: =ROUND(TUN!AY$8,-2) -> 51900 | Q25: =ROUND(TUN!AZ$8,-2) -> 53000 | R25: =ROUND(TUN!BA$8,-2) -> 54300 | S25: =ROUND(TUN!BB$8,-2) -> 55200 | T25: =ROUND(TUN!BC$8,-2) -> 56000 | U25: =ROUND(TUN!BD$8,-2) -> 56600 | V25: =ROUND(TUN!BE$8,-2) -> 56500 | W25: =ROUND(TUN!BF$8,-2) -> 56400 | X25: =ROUND(TUN!BG$8,-2) -> 56500 | Y25: =ROUND(TUN!BH$8,-2) -> 56200 | Z25: =ROUND(TUN!BI$8,-2) -> 56400 | AA25: =ROUND(TUN!BJ$8,-2) -> 56500 | AB25: =ROUND(TUN!BK$8,-2) -> 56000 | AC25: =ROUND(TUN!BL$8,-2) -> 56000 | AD25: =ROUND(TUN!BM$8,-2) -> 56000 | AE25: =ROUND(TUN!BN$8,-2) -> 56100 | AF25: =ROUND(TUN!BO$8,-2) -> 56500 | AG25: =ROUND(TUN!BP$8,-2) -> 57000 | AI25: =INDEX($M25:$AH25,Index!$B$16) -> 50500 | AJ25: =INDEX($M25:$AH25,Index!$B$19) -> 57000 | AK25: =ROUND('All Districts unrounded'!AK25,-2) -> 6600 | AL25: ='All Districts unrounded'!AL25 -> 0.1297620699
A26: Kent | B26: =ROUND(Kent!AK$8,-2) -> 621500 | C26: =ROUND(Kent!AL$8,-2) -> 622000 | D26: =ROUND(Kent!AM$8,-2) -> 624400 | E26: =ROUND(Kent!AN$8,-2) -> 626200 | F26: =ROUND(Kent!AO$8,-2) -> 628500 | G26: =ROUND(Kent!AP$8,-2) -> 631000 | H26: =ROUND(Kent!AQ$8,-2) -> 633200 | I26: =ROUND(Kent!AR$8,-2) -> 637400 | J26: =ROUND(Kent!AS$8,-2) -> 641400 | K26: =ROUND(Kent!AT$8,-2) -> 644800 | L26: =ROUND(Kent!AU$8,-2) -> 649100 | M26: =ROUND(Kent!AV$8,-2) -> 654900 | N26: =ROUND(Kent!AW$8,-2) -> 661100 | O26: =ROUND(Kent!AX$8,-2) -> 667700 | P26: =ROUND(Kent!AY$8,-2) -> 675600 | Q26: =ROUND(Kent!AZ$8,-2) -> 685400 | R26: =ROUND(Kent!BA$8,-2) -> 693700 | S26: =ROUND(Kent!BB$8,-2) -> 700200 | T26: =ROUND(Kent!BC$8,-2) -> 709200 | U26: =ROUND(Kent!BD$8,-2) -> 717200 | V26: =ROUND(Kent!BE$8,-2) -> 722800 | W26: =ROUND(Kent!BF$8,-2) -> 728500 | X26: =ROUND(Kent!BG$8,-2) -> 736300 | Y26: =ROUND(Kent!BH$8,-2) -> 741600 | Z26: =ROUND(Kent!BI$8,-2) -> 748500 | AA26: =ROUND(Kent!BJ$8,-2) -> 754300 | AB26: =ROUND(Kent!BK$8,-2) -> 758600 | AC26: =ROUND(Kent!BL$8,-2) -> 762800 | AD26: =ROUND(Kent!BM$8,-2) -> 764700 | AE26: =ROUND(Kent!BN$8,-2) -> 769400 | AF26: =ROUND(Kent!BO$8,-2) -> 776900 | AG26: =ROUND(Kent!BP$8,-2) -> 784100 | AI26: =INDEX($M26:$AH26,Index!$B$16) -> 654900 | AJ26: =INDEX($M26:$AH26,Index!$B$19) -> 784100 | AK26: =ROUND('All Districts unrounded'!AK26,-2) -> 129200 | AL26: ='All Districts unrounded'!AL26 -> 0.1972897983
A27: Kent + Medway | B27: =ROUND('Kent+Med'!AK$8,-2) -> 742100 | C27: =ROUND('Kent+Med'!AL$8,-2) -> 741900 | D27: =ROUND('Kent+Med'!AM$8,-2) -> 744200 | E27: =ROUND('Kent+Med'!AN$8,-2) -> 745000 | F27: =ROUND('Kent+Med'!AO$8,-2) -> 747300 | G27: =ROUND('Kent+Med'!AP$8,-2) -> 750300 | H27: =ROUND('Kent+Med'!AQ$8,-2) -> 753900 | I27: =ROUND('Kent+Med'!AR$8,-2) -> 758800 | J27: =ROUND('Kent+Med'!AS$8,-2) -> 764000 | K27: =ROUND('Kent+Med'!AT$8,-2) -> 767800 | L27: =ROUND('Kent+Med'!AU$8,-2) -> 772500 | M27: =ROUND('Kent+Med'!AV$8,-2) -> 778700 | N27: =ROUND('Kent+Med'!AW$8,-2) -> 785100 | O27: =ROUND('Kent+Med'!AX$8,-2) -> 791800 | P27: =ROUND('Kent+Med'!AY$8,-2) -> 800500 | Q27: =ROUND('Kent+Med'!AZ$8,-2) -> 811700 | R27: =ROUND('Kent+Med'!BA$8,-2) -> 821300 | S27: =ROUND('Kent+Med'!BB$8,-2) -> 829000 | T27: =ROUND('Kent+Med'!BC$8,-2) -> 839600 | U27: =ROUND('Kent+Med'!BD$8,-2) -> 848600 | V27: =ROUND('Kent+Med'!BE$8,-2) -> 855500 | W27: =ROUND('Kent+Med'!BF$8,-2) -> 862600 | X27: =ROUND('Kent+Med'!BG$8,-2) -> 871700 | Y27: =ROUND('Kent+Med'!BH$8,-2) -> 878000 | Z27: =ROUND('Kent+Med'!BI$8,-2) -> 885400 | AA27: =ROUND('Kent+Med'!BJ$8,-2) -> 891700 | AB27: =ROUND('Kent+Med'!BK$8,-2) -> 895700 | AC27: =ROUND('Kent+Med'!BL$8,-2) -> 900400 | AD27: =ROUND('Kent+Med'!BM$8,-2) -> 902500 | AE27: =ROUND('Kent+Med'!BN$8,-2) -> 906500 | AF27: =ROUND('Kent+Med'!BO$8,-2) -> 915400 | AG27: =ROUND('Kent+Med'!BP$8,-2) -> 924400 | AI27: =INDEX($M27:$AH27,Index!$B$16) -> 778700 | AJ27: =INDEX($M27:$AH27,Index!$B$19) -> 924400 | AK27: =ROUND('All Districts unrounded'!AK27,-2) -> 145700 | AL27: ='All Districts unrounded'!AL27 -> 0.1870832033
A28: South East Region | B28: =ROUND('South East'!AK$8,-2) -> 3728500 | C28: =ROUND('South East'!AL$8,-2) -> 3735400 | D28: =ROUND('South East'!AM$8,-2) -> 3754000 | E28: =ROUND('South East'!AN$8,-2) -> 3780800 | F28: =ROUND('South East'!AO$8,-2) -> 3801800 | G28: =ROUND('South East'!AP$8,-2) -> 3828900 | H28: =ROUND('South East'!AQ$8,-2) -> 3848400 | I28: =ROUND('South East'!AR$8,-2) -> 3884000 | J28: =ROUND('South East'!AS$8,-2) -> 3902900 | K28: =ROUND('South East'!AT$8,-2) -> 3924000 | L28: =ROUND('South East'!AU$8,-2) -> 3935300 | M28: =ROUND('South East'!AV$8,-2) -> 3959600 | N28: =ROUND('South East'!AW$8,-2) -> 3980300 | O28: =ROUND('South East'!AX$8,-2) -> 4011600 | P28: =ROUND('South East'!AY$8,-2) -> 4047800 | Q28: =ROUND('South East'!AZ$8,-2) -> 4090100 | R28: =ROUND('South East'!BA$8,-2) -> 4130500 | S28: =ROUND('South East'!BB$8,-2) -> 4164000 | T28: =ROUND('South East'!BC$8,-2) -> 4210700 | U28: =ROUND('South East'!BD$8,-2) -> 4251400 | V28: =ROUND('South East'!BE$8,-2) -> 4289800 | W28: =ROUND('South East'!BF$8,-2) -> 4327100 | X28: =ROUND('South East'!BG$8,-2) -> 4366200 | Y28: =ROUND('South East'!BH$8,-2) -> 4404600 | Z28: =ROUND('South East'!BI$8,-2) -> 4445000 | AA28: =ROUND('South East'!BJ$8,-2) -> 4467900 | AB28: =ROUND('South East'!BK$8,-2) -> 4486200 | AC28: =ROUND('South East'!BL$8,-2) -> 4504200 | AD28: =ROUND('South East'!BM$8,-2) -> 4517000 | AE28: =ROUND('South East'!BN$8,-2) -> 4548200 | AF28: =ROUND('South East'!BO$8,-2) -> 4593500 | AG28: =ROUND('South East'!BP$8,-2) -> 4638800 | AI28: =INDEX($M28:$AH28,Index!$B$16) -> 3959600 | AJ28: =INDEX($M28:$AH28,Index!$B$19) -> 4638800 | AK28: =ROUND('All Districts unrounded'!AK28,-2) -> 679200 | AL28: ='All Districts unrounded'!AL28 -> 0.1715408481
A29: England & Wales | B29: =ROUND('England & Wales'!AK$8,-2) -> 24739500 | C29: =ROUND('England & Wales'!AL$8,-2) -> 24792600 | D29: =ROUND('England & Wales'!AM$8,-2) -> 24853000 | E29: =ROUND('England & Wales'!AN$8,-2) -> 24946300 | F29: =ROUND('England & Wales'!AO$8,-2) -> 25029800 | G29: =ROUND('England & Wales'!AP$8,-2) -> 25113200 | H29: =ROUND('England & Wales'!AQ$8,-2) -> 25200700 | I29: =ROUND('England & Wales'!AR$8,-2) -> 25323400 | J29: =ROUND('England & Wales'!AS$8,-2) -> 25438000 | K29: =ROUND('England & Wales'!AT$8,-2) -> 25574300 | L29: =ROUND('England & Wales'!AU$8,-2) -> 25708100 | M29: =ROUND('England & Wales'!AV$8,-2) -> 25854100 | N29: =ROUND('England & Wales'!AW$8,-2) -> 26012100 | O29: =ROUND('England & Wales'!AX$8,-2) -> 26234400 | P29: =ROUND('England & Wales'!AY$8,-2) -> 26433400 | Q29: =ROUND('England & Wales'!AZ$8,-2) -> 26669100 | R29: =ROUND('England & Wales'!BA$8,-2) -> 26914300 | S29: =ROUND('England & Wales'!BB$8,-2) -> 27121700 | T29: =ROUND('England & Wales'!BC$8,-2) -> 27372700 | U29: =ROUND('England & Wales'!BD$8,-2) -> 27637600 | V29: =ROUND('England & Wales'!BE$8,-2) -> 27825600 | W29: =ROUND('England & Wales'!BF$8,-2) -> 28016400 | X29: =ROUND('England & Wales'!BG$8,-2) -> 28232500 | Y29: =ROUND('England & Wales'!BH$8,-2) -> 28451200 | Z29: =ROUND('England & Wales'!BI$8,-2) -> 28676100 | AA29: =ROUND('England & Wales'!BJ$8,-2) -> 28823900 | AB29: =ROUND('England & Wales'!BK$8,-2) -> 28952800 | AC29: =ROUND('England & Wales'!BL$8,-2) -> 29086000 | AD29: =ROUND('England & Wales'!BM$8,-2) -> 29118200 | AE29: =ROUND('England & Wales'!BN$8,-2) -> 29203400 | AF29: =ROUND('England & Wales'!BO$8,-2) -> 29521500 | AG29: =ROUND('England & Wales'!BP$8,-2) -> 29836000 | AI29: =INDEX($M29:$AH29,Index!$B$16) -> 25854100 | AJ29: =INDEX($M29:$AH29,Index!$B$19) -> 29836000 | AK29: =ROUND('All Districts unrounded'!AK29,-2) -> 3981900 | AL29: ='All Districts unrounded'!AL29 -> 0.1540135458
A31: Females
B32: ='All Districts unrounded'!B32 -> 1992 | C32: ='All Districts unrounded'!C32 -> 1993 | D32: ='All Districts unrounded'!D32 -> 1994 | E32: ='All Districts unrounded'!E32 -> 1995 | F32: ='All Districts unrounded'!F32 -> 1996 | G32: ='All Districts unrounded'!G32 -> 1997 | H32: ='All Districts unrounded'!H32 -> 1998 | I32: ='All Districts unrounded'!I32 -> 1999 | J32: ='All Districts unrounded'!J32 -> 2000 | K32: ='All Districts unrounded'!K32 -> 2001 | L32: ='All Districts unrounded'!L32 -> 2002 | M32: ='All Districts unrounded'!M32 -> 2003 | N32: ='All Districts unrounded'!N32 -> 2004 | O32: ='All Districts unrounded'!O32 -> 2005 | P32: ='All Districts unrounded'!P32 -> 2006 | Q32: ='All Districts unrounded'!Q32 -> 2007 | R32: ='All Districts unrounded'!R32 -> 2008 | S32: ='All Districts unrounded'!S32 -> 2009 | T32: ='All Districts unrounded'!T32 -> 2010 | U32: ='All Districts unrounded'!U32 -> 2011 | V32: ='All Districts unrounded'!V32 -> 2012 | W32: ='All Districts unrounded'!W32 -> 2013 | X32: ='All Districts unrounded'!X32 -> 2014 | Y32: ='All Districts unrounded'!Y32 -> 2015 | Z32: ='All Districts unrounded'!Z32 -> 2016 | AA32: ='All Districts unrounded'!AA32 -> 2017 | AB32: ='All Districts unrounded'!AB32 -> 2018 | AC32: ='All Districts unrounded'!AC32 -> 2019 | AD32: ='All Districts unrounded'!AD32 -> 2020 | AE32: ='All Districts unrounded'!AE32 -> 2021 | AF32: ='All Districts unrounded'!AF32 -> 2022 | AG32: ='All Districts unrounded'!AG32 -> 2023 | AI32: =Index!$C$16 -> 2003 | AJ32: =Index!$C$19 -> 2023 | AK32: Number change | AL32: % change
A33: -
A34: Ashford | B34: =ROUND(ASH!AK$9,-2) -> 47900 | C34: =ROUND(ASH!AL$9,-2) -> 47900 | D34: =ROUND(ASH!AM$9,-2) -> 48200 | E34: =ROUND(ASH!AN$9,-2) -> 48700 | F34: =ROUND(ASH!AO$9,-2) -> 49400 | G34: =ROUND(ASH!AP$9,-2) -> 50000 | H34: =ROUND(ASH!AQ$9,-2) -> 50200 | I34: =ROUND(ASH!AR$9,-2) -> 51300 | J34: =ROUND(ASH!AS$9,-2) -> 52000 | K34: =ROUND(ASH!AT$9,-2) -> 52900 | L34: =ROUND(ASH!AU$9,-2) -> 53600 | M34: =ROUND(ASH!AV$9,-2) -> 54300 | N34: =ROUND(ASH!AW$9,-2) -> 55200 | O34: =ROUND(ASH!AX$9,-2) -> 56400 | P34: =ROUND(ASH!AY$9,-2) -> 57400 | Q34: =ROUND(ASH!AZ$9,-2) -> 58300 | R34: =ROUND(ASH!BA$9,-2) -> 59000 | S34: =ROUND(ASH!BB$9,-2) -> 59500 | T34: =ROUND(ASH!BC$9,-2) -> 60200 | U34: =ROUND(ASH!BD$9,-2) -> 61000 | V34: =ROUND(ASH!BE$9,-2) -> 61900 | W34: =ROUND(ASH!BF$9,-2) -> 62800 | X34: =ROUND(ASH!BG$9,-2) -> 63700 | Y34: =ROUND(ASH!BH$9,-2) -> 64100 | Z34: =ROUND(ASH!BI$9,-2) -> 65000 | AA34: =ROUND(ASH!BJ$9,-2) -> 65800 | AB34: =ROUND(ASH!BK$9,-2) -> 66700 | AC34: =ROUND(ASH!BL$9,-2) -> 67000 | AD34: =ROUND(ASH!BM$9,-2) -> 67500 | AE34: =ROUND(ASH!BN$9,-2) -> 68400 | AF34: =ROUND(ASH!BO$9,-2) -> 69700 | AG34: =ROUND(ASH!BP$9,-2) -> 71000 | AI34: =INDEX($M34:$AH34,Index!$B$16) -> 54300 | AJ34: =INDEX($M34:$AH34,Index!$B$19) -> 71000 | AK34: =ROUND('All Districts unrounded'!AK34,-2) -> 16700 | AL34: ='All Districts unrounded'!AL34 -> 0.3064774422
A35: Canterbury | B35: =ROUND(CAN!AK$9,-2) -> 67900 | C35: =ROUND(CAN!AL$9,-2) -> 68000 | D35: =ROUND(CAN!AM$9,-2) -> 68200 | E35: =ROUND(CAN!AN$9,-2) -> 68400 | F35: =ROUND(CAN!AO$9,-2) -> 68700 | G35: =ROUND(CAN!AP$9,-2) -> 69300 | H35: =ROUND(CAN!AQ$9,-2) -> 69200 | I35: =ROUND(CAN!AR$9,-2) -> 70100 | J35: =ROUND(CAN!AS$9,-2) -> 70900 | K35: =ROUND(CAN!AT$9,-2) -> 71200 | L35: =ROUND(CAN!AU$9,-2) -> 71800 | M35: =ROUND(CAN!AV$9,-2) -> 72600 | N35: =ROUND(CAN!AW$9,-2) -> 73500 | O35: =ROUND(CAN!AX$9,-2) -> 74400 | P35: =ROUND(CAN!AY$9,-2) -> 75200 | Q35: =ROUND(CAN!AZ$9,-2) -> 75900 | R35: =ROUND(CAN!BA$9,-2) -> 76300 | S35: =ROUND(CAN!BB$9,-2) -> 76300 | T35: =ROUND(CAN!BC$9,-2) -> 77300 | U35: =ROUND(CAN!BD$9,-2) -> 78000 | V35: =ROUND(CAN!BE$9,-2) -> 78600 | W35: =ROUND(CAN!BF$9,-2) -> 79500 | X35: =ROUND(CAN!BG$9,-2) -> 80400 | Y35: =ROUND(CAN!BH$9,-2) -> 80800 | Z35: =ROUND(CAN!BI$9,-2) -> 81300 | AA35: =ROUND(CAN!BJ$9,-2) -> 81600 | AB35: =ROUND(CAN!BK$9,-2) -> 81600 | AC35: =ROUND(CAN!BL$9,-2) -> 81600 | AD35: =ROUND(CAN!BM$9,-2) -> 81700 | AE35: =ROUND(CAN!BN$9,-2) -> 81400 | AF35: =ROUND(CAN!BO$9,-2) -> 82100 | AG35: =ROUND(CAN!BP$9,-2) -> 82900 | AI35: =INDEX($M35:$AH35,Index!$B$16) -> 72600 | AJ35: =INDEX($M35:$AH35,Index!$B$19) -> 82900 | AK35: =ROUND('All Districts unrounded'!AK35,-2) -> 10300 | AL35: ='All Districts unrounded'!AL35 -> 0.1418926367
A36: Dartford | B36: =ROUND(DAR!AK$9,-2) -> 41400 | C36: =ROUND(DAR!AL$9,-2) -> 41700 | D36: =ROUND(DAR!AM$9,-2) -> 42100 | E36: =ROUND(DAR!AN$9,-2) -> 42200 | F36: =ROUND(DAR!AO$9,-2) -> 42300 | G36: =ROUND(DAR!AP$9,-2) -> 42700 | H36: =ROUND(DAR!AQ$9,-2) -> 43200 | I36: =ROUND(DAR!AR$9,-2) -> 43400 | J36: =ROUND(DAR!AS$9,-2) -> 43600 | K36: =ROUND(DAR!AT$9,-2) -> 43800 | L36: =ROUND(DAR!AU$9,-2) -> 43900 | M36: =ROUND(DAR!AV$9,-2) -> 44100 | N36: =ROUND(DAR!AW$9,-2) -> 44900 | O36: =ROUND(DAR!AX$9,-2) -> 45800 | P36: =ROUND(DAR!AY$9,-2) -> 46400 | Q36: =ROUND(DAR!AZ$9,-2) -> 46900 | R36: =ROUND(DAR!BA$9,-2) -> 47700 | S36: =ROUND(DAR!BB$9,-2) -> 48400 | T36: =ROUND(DAR!BC$9,-2) -> 48800 | U36: =ROUND(DAR!BD$9,-2) -> 49400 | V36: =ROUND(DAR!BE$9,-2) -> 50200 | W36: =ROUND(DAR!BF$9,-2) -> 51100 | X36: =ROUND(DAR!BG$9,-2) -> 52300 | Y36: =ROUND(DAR!BH$9,-2) -> 53200 | Z36: =ROUND(DAR!BI$9,-2) -> 54100 | AA36: =ROUND(DAR!BJ$9,-2) -> 55300 | AB36: =ROUND(DAR!BK$9,-2) -> 56600 | AC36: =ROUND(DAR!BL$9,-2) -> 58200 | AD36: =ROUND(DAR!BM$9,-2) -> 58900 | AE36: =ROUND(DAR!BN$9,-2) -> 59700 | AF36: =ROUND(DAR!BO$9,-2) -> 60700 | AG36: =ROUND(DAR!BP$9,-2) -> 61800 | AI36: =INDEX($M36:$AH36,Index!$B$16) -> 44100 | AJ36: =INDEX($M36:$AH36,Index!$B$19) -> 61800 | AK36: =ROUND('All Districts unrounded'!AK36,-2) -> 17700 | AL36: ='All Districts unrounded'!AL36 -> 0.4006479237
A37: Dover | B37: =ROUND(DOV!AK$9,-2) -> 53800 | C37: =ROUND(DOV!AL$9,-2) -> 53500 | D37: =ROUND(DOV!AM$9,-2) -> 53800 | E37: =ROUND(DOV!AN$9,-2) -> 53800 | F37: =ROUND(DOV!AO$9,-2) -> 53700 | G37: =ROUND(DOV!AP$9,-2) -> 53800 | H37: =ROUND(DOV!AQ$9,-2) -> 53700 | I37: =ROUND(DOV!AR$9,-2) -> 54100 | J37: =ROUND(DOV!AS$9,-2) -> 54200 | K37: =ROUND(DOV!AT$9,-2) -> 54300 | L37: =ROUND(DOV!AU$9,-2) -> 54300 | M37: =ROUND(DOV!AV$9,-2) -> 54800 | N37: =ROUND(DOV!AW$9,-2) -> 55300 | O37: =ROUND(DOV!AX$9,-2) -> 55500 | P37: =ROUND(DOV!AY$9,-2) -> 55600 | Q37: =ROUND(DOV!AZ$9,-2) -> 56100 | R37: =ROUND(DOV!BA$9,-2) -> 56300 | S37: =ROUND(DOV!BB$9,-2) -> 56400 | T37: =ROUND(DOV!BC$9,-2) -> 56700 | U37: =ROUND(DOV!BD$9,-2) -> 56900 | V37: =ROUND(DOV!BE$9,-2) -> 56900 | W37: =ROUND(DOV!BF$9,-2) -> 57200 | X37: =ROUND(DOV!BG$9,-2) -> 57400 | Y37: =ROUND(DOV!BH$9,-2) -> 57500 | Z37: =ROUND(DOV!BI$9,-2) -> 57900 | AA37: =ROUND(DOV!BJ$9,-2) -> 58400 | AB37: =ROUND(DOV!BK$9,-2) -> 58700 | AC37: =ROUND(DOV!BL$9,-2) -> 59200 | AD37: =ROUND(DOV!BM$9,-2) -> 59500 | AE37: =ROUND(DOV!BN$9,-2) -> 59700 | AF37: =ROUND(DOV!BO$9,-2) -> 60300 | AG37: =ROUND(DOV!BP$9,-2) -> 60900 | AI37: =INDEX($M37:$AH37,Index!$B$16) -> 54800 | AJ37: =INDEX($M37:$AH37,Index!$B$19) -> 60900 | AK37: =ROUND('All Districts unrounded'!AK37,-2) -> 6100 | AL37: ='All Districts unrounded'!AL37 -> 0.1118638497
A38: Gravesham | B38: =ROUND(GRA!AK$9,-2) -> 47900 | C38: =ROUND(GRA!AL$9,-2) -> 47800 | D38: =ROUND(GRA!AM$9,-2) -> 47900 | E38: =ROUND(GRA!AN$9,-2) -> 47800 | F38: =ROUND(GRA!AO$9,-2) -> 47600 | G38: =ROUND(GRA!AP$9,-2) -> 47700 | H38: =ROUND(GRA!AQ$9,-2) -> 48100 | I38: =ROUND(GRA!AR$9,-2) -> 48400 | J38: =ROUND(GRA!AS$9,-2) -> 48600 | K38: =ROUND(GRA!AT$9,-2) -> 48900 | L38: =ROUND(GRA!AU$9,-2) -> 48500 | M38: =ROUND(GRA!AV$9,-2) -> 48500 | N38: =ROUND(GRA!AW$9,-2) -> 48700 | O38: =ROUND(GRA!AX$9,-2) -> 49200 | P38: =ROUND(GRA!AY$9,-2) -> 49500 | Q38: =ROUND(GRA!AZ$9,-2) -> 50000 | R38: =ROUND(GRA!BA$9,-2) -> 50500 | S38: =ROUND(GRA!BB$9,-2) -> 50900 | T38: =ROUND(GRA!BC$9,-2) -> 51300 | U38: =ROUND(GRA!BD$9,-2) -> 51600 | V38: =ROUND(GRA!BE$9,-2) -> 52100 | W38: =ROUND(GRA!BF$9,-2) -> 52700 | X38: =ROUND(GRA!BG$9,-2) -> 53400 | Y38: =ROUND(GRA!BH$9,-2) -> 53900 | Z38: =ROUND(GRA!BI$9,-2) -> 54200 | AA38: =ROUND(GRA!BJ$9,-2) -> 54200 | AB38: =ROUND(GRA!BK$9,-2) -> 54400 | AC38: =ROUND(GRA!BL$9,-2) -> 54800 | AD38: =ROUND(GRA!BM$9,-2) -> 54700 | AE38: =ROUND(GRA!BN$9,-2) -> 54700 | AF38: =ROUND(GRA!BO$9,-2) -> 54800 | AG38: =ROUND(GRA!BP$9,-2) -> 55300 | AI38: =INDEX($M38:$AH38,Index!$B$16) -> 48500 | AJ38: =INDEX($M38:$AH38,Index!$B$19) -> 55300 | AK38: =ROUND('All Districts unrounded'!AK38,-2) -> 6700 | AL38: ='All Districts unrounded'!AL38 -> 0.1389335311
A39: Maidstone | B39: =ROUND(MAI!AK$9,-2) -> 70000 | C39: =ROUND(MAI!AL$9,-2) -> 70100 | D39: =ROUND(MAI!AM$9,-2) -> 69900 | E39: =ROUND(MAI!AN$9,-2) -> 70000 | F39: =ROUND(MAI!AO$9,-2) -> 70400 | G39: =ROUND(MAI!AP$9,-2) -> 70500 | H39: =ROUND(MAI!AQ$9,-2) -> 70300 | I39: =ROUND(MAI!AR$9,-2) -> 70200 | J39: =ROUND(MAI!AS$9,-2) -> 70400 | K39: =ROUND(MAI!AT$9,-2) -> 70700 | L39: =ROUND(MAI!AU$9,-2) -> 71300 | M39: =ROUND(MAI!AV$9,-2) -> 71700 | N39: =ROUND(MAI!AW$9,-2) -> 72300 | O39: =ROUND(MAI!AX$9,-2) -> 72800 | P39: =ROUND(MAI!AY$9,-2) -> 73800 | Q39: =ROUND(MAI!AZ$9,-2) -> 74900 | R39: =ROUND(MAI!BA$9,-2) -> 75800 | S39: =ROUND(MAI!BB$9,-2) -> 76800 | T39: =ROUND(MAI!BC$9,-2) -> 77900 | U39: =ROUND(MAI!BD$9,-2) -> 78900 | V39: =ROUND(MAI!BE$9,-2) -> 79800 | W39: =ROUND(MAI!BF$9,-2) -> 80700 | X39: =ROUND(MAI!BG$9,-2) -> 81700 | Y39: =ROUND(MAI!BH$9,-2) -> 82800 | Z39: =ROUND(MAI!BI$9,-2) -> 83600 | AA39: =ROUND(MAI!BJ$9,-2) -> 84700 | AB39: =ROUND(MAI!BK$9,-2) -> 85600 | AC39: =ROUND(MAI!BL$9,-2) -> 86800 | AD39: =ROUND(MAI!BM$9,-2) -> 87500 | AE39: =ROUND(MAI!BN$9,-2) -> 89400 | AF39: =ROUND(MAI!BO$9,-2) -> 91500 | AG39: =ROUND(MAI!BP$9,-2) -> 93400 | AI39: =INDEX($M39:$AH39,Index!$B$16) -> 71700 | AJ39: =INDEX($M39:$AH39,Index!$B$19) -> 93400 | AK39: =ROUND('All Districts unrounded'!AK39,-2) -> 21600 | AL39: ='All Districts unrounded'!AL39 -> 0.3013813194
A40: Medway | B40: =ROUND(MED!AK$9,-2) -> 123100 | C40: =ROUND(MED!AL$9,-2) -> 122700 | D40: =ROUND(MED!AM$9,-2) -> 122800 | E40: =ROUND(MED!AN$9,-2) -> 122700 | F40: =ROUND(MED!AO$9,-2) -> 122500 | G40: =ROUND(MED!AP$9,-2) -> 123000 | H40: =ROUND(MED!AQ$9,-2) -> 124600 | I40: =ROUND(MED!AR$9,-2) -> 125000 | J40: =ROUND(MED!AS$9,-2) -> 125900 | K40: =ROUND(MED!AT$9,-2) -> 126700 | L40: =ROUND(MED!AU$9,-2) -> 126900 | M40: =ROUND(MED!AV$9,-2) -> 127300 | N40: =ROUND(MED!AW$9,-2) -> 127500 | O40: =ROUND(MED!AX$9,-2) -> 127900 | P40: =ROUND(MED!AY$9,-2) -> 128600 | Q40: =ROUND(MED!AZ$9,-2) -> 129600 | R40: =ROUND(MED!BA$9,-2) -> 130600 | S40: =ROUND(MED!BB$9,-2) -> 131400 | T40: =ROUND(MED!BC$9,-2) -> 132400 | U40: =ROUND(MED!BD$9,-2) -> 133500 | V40: =ROUND(MED!BE$9,-2) -> 135500 | W40: =ROUND(MED!BF$9,-2) -> 137000 | X40: =ROUND(MED!BG$9,-2) -> 138600 | Y40: =ROUND(MED!BH$9,-2) -> 139700 | Z40: =ROUND(MED!BI$9,-2) -> 140600 | AA40: =ROUND(MED!BJ$9,-2) -> 141300 | AB40: =ROUND(MED!BK$9,-2) -> 141700 | AC40: =ROUND(MED!BL$9,-2) -> 142300 | AD40: =ROUND(MED!BM$9,-2) -> 142600 | AE40: =ROUND(MED!BN$9,-2) -> 142700 | AF40: =ROUND(MED!BO$9,-2) -> 144200 | AG40: =ROUND(MED!BP$9,-2) -> 146500 | AI40: =INDEX($M40:$AH40,Index!$B$16) -> 127300 | AJ40: =INDEX($M40:$AH40,Index!$B$19) -> 146500 | AK40: =ROUND('All Districts unrounded'!AK40,-2) -> 19200 | AL40: ='All Districts unrounded'!AL40 -> 0.1504583265
A41: Sevenoaks | B41: =ROUND(SEV!AK$9,-2) -> 55800 | C41: =ROUND(SEV!AL$9,-2) -> 55900 | D41: =ROUND(SEV!AM$9,-2) -> 56100 | E41: =ROUND(SEV!AN$9,-2) -> 55800 | F41: =ROUND(SEV!AO$9,-2) -> 56000 | G41: =ROUND(SEV!AP$9,-2) -> 56400 | H41: =ROUND(SEV!AQ$9,-2) -> 56200 | I41: =ROUND(SEV!AR$9,-2) -> 56500 | J41: =ROUND(SEV!AS$9,-2) -> 56500 | K41: =ROUND(SEV!AT$9,-2) -> 56400 | L41: =ROUND(SEV!AU$9,-2) -> 56400 | M41: =ROUND(SEV!AV$9,-2) -> 56400 | N41: =ROUND(SEV!AW$9,-2) -> 56900 | O41: =ROUND(SEV!AX$9,-2) -> 57500 | P41: =ROUND(SEV!AY$9,-2) -> 58200 | Q41: =ROUND(SEV!AZ$9,-2) -> 58500 | R41: =ROUND(SEV!BA$9,-2) -> 58500 | S41: =ROUND(SEV!BB$9,-2) -> 58700 | T41: =ROUND(SEV!BC$9,-2) -> 59000 | U41: =ROUND(SEV!BD$9,-2) -> 59400 | V41: =ROUND(SEV!BE$9,-2) -> 59900 | W41: =ROUND(SEV!BF$9,-2) -> 60100 | X41: =ROUND(SEV!BG$9,-2) -> 60600 | Y41: =ROUND(SEV!BH$9,-2) -> 60800 | Z41: =ROUND(SEV!BI$9,-2) -> 61100 | AA41: =ROUND(SEV!BJ$9,-2) -> 61100 | AB41: =ROUND(SEV!BK$9,-2) -> 61500 | AC41: =ROUND(SEV!BL$9,-2) -> 61800 | AD41: =ROUND(SEV!BM$9,-2) -> 62100 | AE41: =ROUND(SEV!BN$9,-2) -> 62400 | AF41: =ROUND(SEV!BO$9,-2) -> 62800 | AG41: =ROUND(SEV!BP$9,-2) -> 63000 | AI41: =INDEX($M41:$AH41,Index!$B$16) -> 56400 | AJ41: =INDEX($M41:$AH41,Index!$B$19) -> 63000 | AK41: =ROUND('All Districts unrounded'!AK41,-2) -> 6600 | AL41: ='All Districts unrounded'!AL41 -> 0.1166184894
A42: Folkestone & Hythe | B42: =ROUND('F&H'!AK$9,-2) -> 49100 | C42: =ROUND('F&H'!AL$9,-2) -> 49200 | D42: =ROUND('F&H'!AM$9,-2) -> 49200 | E42: =ROUND('F&H'!AN$9,-2) -> 49400 | F42: =ROUND('F&H'!AO$9,-2) -> 49900 | G42: =ROUND('F&H'!AP$9,-2) -> 49800 | H42: =ROUND('F&H'!AQ$9,-2) -> 49700 | I42: =ROUND('F&H'!AR$9,-2) -> 50200 | J42: =ROUND('F&H'!AS$9,-2) -> 50300 | K42: =ROUND('F&H'!AT$9,-2) -> 50200 | L42: =ROUND('F&H'!AU$9,-2) -> 50500 | M42: =ROUND('F&H'!AV$9,-2) -> 51100 | N42: =ROUND('F&H'!AW$9,-2) -> 51700 | O42: =ROUND('F&H'!AX$9,-2) -> 52400 | P42: =ROUND('F&H'!AY$9,-2) -> 52600 | Q42: =ROUND('F&H'!AZ$9,-2) -> 53200 | R42: =ROUND('F&H'!BA$9,-2) -> 53500 | S42: =ROUND('F&H'!BB$9,-2) -> 53800 | T42: =ROUND('F&H'!BC$9,-2) -> 54400 | U42: =ROUND('F&H'!BD$9,-2) -> 54900 | V42: =ROUND('F&H'!BE$9,-2) -> 54900 | W42: =ROUND('F&H'!BF$9,-2) -> 54800 | X42: =ROUND('F&H'!BG$9,-2) -> 55100 | Y42: =ROUND('F&H'!BH$9,-2) -> 55300 | Z42: =ROUND('F&H'!BI$9,-2) -> 55800 | AA42: =ROUND('F&H'!BJ$9,-2) -> 55700 | AB42: =ROUND('F&H'!BK$9,-2) -> 56000 | AC42: =ROUND('F&H'!BL$9,-2) -> 56000 | AD42: =ROUND('F&H'!BM$9,-2) -> 56000 | AE42: =ROUND('F&H'!BN$9,-2) -> 56300 | AF42: =ROUND('F&H'!BO$9,-2) -> 56600 | AG42: =ROUND('F&H'!BP$9,-2) -> 56900 | AI42: =INDEX($M42:$AH42,Index!$B$16) -> 51100 | AJ42: =INDEX($M42:$AH42,Index!$B$19) -> 56900 | AK42: =ROUND('All Districts unrounded'!AK42,-2) -> 5800 | AL42: ='All Districts unrounded'!AL42 -> 0.1144519314
A43: Swale | B43: =ROUND(SWA!AK$9,-2) -> 58900 | C43: =ROUND(SWA!AL$9,-2) -> 59200 | D43: =ROUND(SWA!AM$9,-2) -> 59100 | E43: =ROUND(SWA!AN$9,-2) -> 59500 | F43: =ROUND(SWA!AO$9,-2) -> 59400 | G43: =ROUND(SWA!AP$9,-2) -> 59800 | H43: =ROUND(SWA!AQ$9,-2) -> 59900 | I43: =ROUND(SWA!AR$9,-2) -> 60800 | J43: =ROUND(SWA!AS$9,-2) -> 61700 | K43: =ROUND(SWA!AT$9,-2) -> 62400 | L43: =ROUND(SWA!AU$9,-2) -> 63000 | M43: =ROUND(SWA!AV$9,-2) -> 63600 | N43: =ROUND(SWA!AW$9,-2) -> 63900 | O43: =ROUND(SWA!AX$9,-2) -> 64400 | P43: =ROUND(SWA!AY$9,-2) -> 64700 | Q43: =ROUND(SWA!AZ$9,-2) -> 65800 | R43: =ROUND(SWA!BA$9,-2) -> 66800 | S43: =ROUND(SWA!BB$9,-2) -> 67400 | T43: =ROUND(SWA!BC$9,-2) -> 68200 | U43: =ROUND(SWA!BD$9,-2) -> 68900 | V43: =ROUND(SWA!BE$9,-2) -> 69400 | W43: =ROUND(SWA!BF$9,-2) -> 70200 | X43: =ROUND(SWA!BG$9,-2) -> 71000 | Y43: =ROUND(SWA!BH$9,-2) -> 71800 | Z43: =ROUND(SWA!BI$9,-2) -> 72900 | AA43: =ROUND(SWA!BJ$9,-2) -> 73700 | AB43: =ROUND(SWA!BK$9,-2) -> 74500 | AC43: =ROUND(SWA!BL$9,-2) -> 75100 | AD43: =ROUND(SWA!BM$9,-2) -> 75700 | AE43: =ROUND(SWA!BN$9,-2) -> 76700 | AF43: =ROUND(SWA!BO$9,-2) -> 77900 | AG43: =ROUND(SWA!BP$9,-2) -> 78700 | AI43: =INDEX($M43:$AH43,Index!$B$16) -> 63600 | AJ43: =INDEX($M43:$AH43,Index!$B$19) -> 78700 | AK43: =ROUND('All Districts unrounded'!AK43,-2) -> 15000 | AL43: ='All Districts unrounded'!AL43 -> 0.2364442209
A44: Thanet | B44: =ROUND(THA!AK$9,-2) -> 66400 | C44: =ROUND(THA!AL$9,-2) -> 65900 | D44: =ROUND(THA!AM$9,-2) -> 65900 | E44: =ROUND(THA!AN$9,-2) -> 65700 | F44: =ROUND(THA!AO$9,-2) -> 65700 | G44: =ROUND(THA!AP$9,-2) -> 66100 | H44: =ROUND(THA!AQ$9,-2) -> 66100 | I44: =ROUND(THA!AR$9,-2) -> 66600 | J44: =ROUND(THA!AS$9,-2) -> 66600 | K44: =ROUND(THA!AT$9,-2) -> 66700 | L44: =ROUND(THA!AU$9,-2) -> 67100 | M44: =ROUND(THA!AV$9,-2) -> 67200 | N44: =ROUND(THA!AW$9,-2) -> 67400 | O44: =ROUND(THA!AX$9,-2) -> 67600 | P44: =ROUND(THA!AY$9,-2) -> 67600 | Q44: =ROUND(THA!AZ$9,-2) -> 68100 | R44: =ROUND(THA!BA$9,-2) -> 68600 | S44: =ROUND(THA!BB$9,-2) -> 68800 | T44: =ROUND(THA!BC$9,-2) -> 69400 | U44: =ROUND(THA!BD$9,-2) -> 69800 | V44: =ROUND(THA!BE$9,-2) -> 70500 | W44: =ROUND(THA!BF$9,-2) -> 71100 | X44: =ROUND(THA!BG$9,-2) -> 72100 | Y44: =ROUND(THA!BH$9,-2) -> 72500 | Z44: =ROUND(THA!BI$9,-2) -> 72800 | AA44: =ROUND(THA!BJ$9,-2) -> 72900 | AB44: =ROUND(THA!BK$9,-2) -> 73100 | AC44: =ROUND(THA!BL$9,-2) -> 73000 | AD44: =ROUND(THA!BM$9,-2) -> 72600 | AE44: =ROUND(THA!BN$9,-2) -> 73000 | AF44: =ROUND(THA!BO$9,-2) -> 73000 | AG44: =ROUND(THA!BP$9,-2) -> 72900 | AI44: =INDEX($M44:$AH44,Index!$B$16) -> 67200 | AJ44: =INDEX($M44:$AH44,Index!$B$19) -> 72900 | AK44: =ROUND('All Districts unrounded'!AK44,-2) -> 5700 | AL44: ='All Districts unrounded'!AL44 -> 0.08489007309
A45: Tonbridge & Malling | B45: =ROUND(TON!AK$9,-2) -> 51600 | C45: =ROUND(TON!AL$9,-2) -> 51600 | D45: =ROUND(TON!AM$9,-2) -> 51900 | E45: =ROUND(TON!AN$9,-2) -> 52600 | F45: =ROUND(TON!AO$9,-2) -> 53000 | G45: =ROUND(TON!AP$9,-2) -> 53200 | H45: =ROUND(TON!AQ$9,-2) -> 53500 | I45: =ROUND(TON!AR$9,-2) -> 54200 | J45: =ROUND(TON!AS$9,-2) -> 54500 | K45: =ROUND(TON!AT$9,-2) -> 55000 | L45: =ROUND(TON!AU$9,-2) -> 55600 | M45: =ROUND(TON!AV$9,-2) -> 55900 | N45: =ROUND(TON!AW$9,-2) -> 56300 | O45: =ROUND(TON!AX$9,-2) -> 56900 | P45: =ROUND(TON!AY$9,-2) -> 57800 | Q45: =ROUND(TON!AZ$9,-2) -> 58900 | R45: =ROUND(TON!BA$9,-2) -> 59700 | S45: =ROUND(TON!BB$9,-2) -> 60500 | T45: =ROUND(TON!BC$9,-2) -> 61300 | U45: =ROUND(TON!BD$9,-2) -> 61800 | V45: =ROUND(TON!BE$9,-2) -> 62200 | W45: =ROUND(TON!BF$9,-2) -> 62700 | X45: =ROUND(TON!BG$9,-2) -> 63600 | Y45: =ROUND(TON!BH$9,-2) -> 64200 | Z45: =ROUND(TON!BI$9,-2) -> 65000 | AA45: =ROUND(TON!BJ$9,-2) -> 65900 | AB45: =ROUND(TON!BK$9,-2) -> 66600 | AC45: =ROUND(TON!BL$9,-2) -> 67400 | AD45: =ROUND(TON!BM$9,-2) -> 67600 | AE45: =ROUND(TON!BN$9,-2) -> 68000 | AF45: =ROUND(TON!BO$9,-2) -> 68700 | AG45: =ROUND(TON!BP$9,-2) -> 69600 | AI45: =INDEX($M45:$AH45,Index!$B$16) -> 55900 | AJ45: =INDEX($M45:$AH45,Index!$B$19) -> 69600 | AK45: =ROUND('All Districts unrounded'!AK45,-2) -> 13600 | AL45: ='All Districts unrounded'!AL45 -> 0.2437882092
A46: Tunbridge Wells | B46: =ROUND(TUN!AK$9,-2) -> 53100 | C46: =ROUND(TUN!AL$9,-2) -> 53000 | D46: =ROUND(TUN!AM$9,-2) -> 53400 | E46: =ROUND(TUN!AN$9,-2) -> 53600 | F46: =ROUND(TUN!AO$9,-2) -> 53200 | G46: =ROUND(TUN!AP$9,-2) -> 52800 | H46: =ROUND(TUN!AQ$9,-2) -> 53300 | I46: =ROUND(TUN!AR$9,-2) -> 53600 | J46: =ROUND(TUN!AS$9,-2) -> 53800 | K46: =ROUND(TUN!AT$9,-2) -> 54000 | L46: =ROUND(TUN!AU$9,-2) -> 54000 | M46: =ROUND(TUN!AV$9,-2) -> 53900 | N46: =ROUND(TUN!AW$9,-2) -> 54200 | O46: =ROUND(TUN!AX$9,-2) -> 54600 | P46: =ROUND(TUN!AY$9,-2) -> 55100 | Q46: =ROUND(TUN!AZ$9,-2) -> 55900 | R46: =ROUND(TUN!BA$9,-2) -> 57000 | S46: =ROUND(TUN!BB$9,-2) -> 57600 | T46: =ROUND(TUN!BC$9,-2) -> 58100 | U46: =ROUND(TUN!BD$9,-2) -> 58700 | V46: =ROUND(TUN!BE$9,-2) -> 58900 | W46: =ROUND(TUN!BF$9,-2) -> 58800 | X46: =ROUND(TUN!BG$9,-2) -> 58700 | Y46: =ROUND(TUN!BH$9,-2) -> 58500 | Z46: =ROUND(TUN!BI$9,-2) -> 58800 | AA46: =ROUND(TUN!BJ$9,-2) -> 59000 | AB46: =ROUND(TUN!BK$9,-2) -> 59000 | AC46: =ROUND(TUN!BL$9,-2) -> 59100 | AD46: =ROUND(TUN!BM$9,-2) -> 59300 | AE46: =ROUND(TUN!BN$9,-2) -> 59500 | AF46: =ROUND(TUN!BO$9,-2) -> 59600 | AG46: =ROUND(TUN!BP$9,-2) -> 60000 | AI46: =INDEX($M46:$AH46,Index!$B$16) -> 53900 | AJ46: =INDEX($M46:$AH46,Index!$B$19) -> 60000 | AK46: =ROUND('All Districts unrounded'!AK46,-2) -> 6100 | AL46: ='All Districts unrounded'!AL46 -> 0.1127742845
A47: Kent | B47: =ROUND(Kent!AK$9,-2) -> 663700 | C47: =ROUND(Kent!AL$9,-2) -> 663800 | D47: =ROUND(Kent!AM$9,-2) -> 665700 | E47: =ROUND(Kent!AN$9,-2) -> 667500 | F47: =ROUND(Kent!AO$9,-2) -> 669200 | G47: =ROUND(Kent!AP$9,-2) -> 672100 | H47: =ROUND(Kent!AQ$9,-2) -> 673600 | I47: =ROUND(Kent!AR$9,-2) -> 679300 | J47: =ROUND(Kent!AS$9,-2) -> 683300 | K47: =ROUND(Kent!AT$9,-2) -> 686400 | L47: =ROUND(Kent!AU$9,-2) -> 689900 | M47: =ROUND(Kent!AV$9,-2) -> 694200 | N47: =ROUND(Kent!AW$9,-2) -> 700300 | O47: =ROUND(Kent!AX$9,-2) -> 707500 | P47: =ROUND(Kent!AY$9,-2) -> 714000 | Q47: =ROUND(Kent!AZ$9,-2) -> 722400 | R47: =ROUND(Kent!BA$9,-2) -> 729700 | S47: =ROUND(Kent!BB$9,-2) -> 735100 | T47: =ROUND(Kent!BC$9,-2) -> 742700 | U47: =ROUND(Kent!BD$9,-2) -> 749200 | V47: =ROUND(Kent!BE$9,-2) -> 755400 | W47: =ROUND(Kent!BF$9,-2) -> 761500 | X47: =ROUND(Kent!BG$9,-2) -> 769900 | Y47: =ROUND(Kent!BH$9,-2) -> 775400 | Z47: =ROUND(Kent!BI$9,-2) -> 782600 | AA47: =ROUND(Kent!BJ$9,-2) -> 788400 | AB47: =ROUND(Kent!BK$9,-2) -> 794300 | AC47: =ROUND(Kent!BL$9,-2) -> 800000 | AD47: =ROUND(Kent!BM$9,-2) -> 803200 | AE47: =ROUND(Kent!BN$9,-2) -> 809200 | AF47: =ROUND(Kent!BO$9,-2) -> 817600 | AG47: =ROUND(Kent!BP$9,-2) -> 826200 | AI47: =INDEX($M47:$AH47,Index!$B$16) -> 694200 | AJ47: =INDEX($M47:$AH47,Index!$B$19) -> 826200 | AK47: =ROUND('All Districts unrounded'!AK47,-2) -> 132000 | AL47: ='All Districts unrounded'!AL47 -> 0.1901620169
A48: Kent + Medway | B48: =ROUND('Kent+Med'!AK$9,-2) -> 786800 | C48: =ROUND('Kent+Med'!AL$9,-2) -> 786600 | D48: =ROUND('Kent+Med'!AM$9,-2) -> 788500 | E48: =ROUND('Kent+Med'!AN$9,-2) -> 790200 | F48: =ROUND('Kent+Med'!AO$9,-2) -> 791700 | G48: =ROUND('Kent+Med'!AP$9,-2) -> 795100 | H48: =ROUND('Kent+Med'!AQ$9,-2) -> 798100 | I48: =ROUND('Kent+Med'!AR$9,-2) -> 804300 | J48: =ROUND('Kent+Med'!AS$9,-2) -> 809200 | K48: =ROUND('Kent+Med'!AT$9,-2) -> 813100 | L48: =ROUND('Kent+Med'!AU$9,-2) -> 816700 | M48: =ROUND('Kent+Med'!AV$9,-2) -> 821500 | N48: =ROUND('Kent+Med'!AW$9,-2) -> 827800 | O48: =ROUND('Kent+Med'!AX$9,-2) -> 835500 | P48: =ROUND('Kent+Med'!AY$9,-2) -> 842600 | Q48: =ROUND('Kent+Med'!AZ$9,-2) -> 852000 | R48: =ROUND('Kent+Med'!BA$9,-2) -> 860200 | S48: =ROUND('Kent+Med'!BB$9,-2) -> 866500 | T48: =ROUND('Kent+Med'!BC$9,-2) -> 875100 | U48: =ROUND('Kent+Med'!BD$9,-2) -> 882700 | V48: =ROUND('Kent+Med'!BE$9,-2) -> 890900 | W48: =ROUND('Kent+Med'!BF$9,-2) -> 898500 | X48: =ROUND('Kent+Med'!BG$9,-2) -> 908400 | Y48: =ROUND('Kent+Med'!BH$9,-2) -> 915100 | Z48: =ROUND('Kent+Med'!BI$9,-2) -> 923100 | AA48: =ROUND('Kent+Med'!BJ$9,-2) -> 929600 | AB48: =ROUND('Kent+Med'!BK$9,-2) -> 935900 | AC48: =ROUND('Kent+Med'!BL$9,-2) -> 942300 | AD48: =ROUND('Kent+Med'!BM$9,-2) -> 945800 | AE48: =ROUND('Kent+Med'!BN$9,-2) -> 951900 | AF48: =ROUND('Kent+Med'!BO$9,-2) -> 961800 | AG48: =ROUND('Kent+Med'!BP$9,-2) -> 972700 | AI48: =INDEX($M48:$AH48,Index!$B$16) -> 821500 | AJ48: =INDEX($M48:$AH48,Index!$B$19) -> 972700 | AK48: =ROUND('All Districts unrounded'!AK48,-2) -> 151200 | AL48: ='All Districts unrounded'!AL48 -> 0.184008969
A49: South East Region | B49: =ROUND('South East'!AK$9,-2) -> 3928100 | C49: =ROUND('South East'!AL$9,-2) -> 3937800 | D49: =ROUND('South East'!AM$9,-2) -> 3957600 | E49: =ROUND('South East'!AN$9,-2) -> 3982200 | F49: =ROUND('South East'!AO$9,-2) -> 3998600 | G49: =ROUND('South East'!AP$9,-2) -> 4024200 | H49: =ROUND('South East'!AQ$9,-2) -> 4040500 | I49: =ROUND('South East'!AR$9,-2) -> 4071100 | J49: =ROUND('South East'!AS$9,-2) -> 4087700 | K49: =ROUND('South East'!AT$9,-2) -> 4099500 | L49: =ROUND('South East'!AU$9,-2) -> 4109900 | M49: =ROUND('South East'!AV$9,-2) -> 4128300 | N49: =ROUND('South East'!AW$9,-2) -> 4152800 | O49: =ROUND('South East'!AX$9,-2) -> 4191300 | P49: =ROUND('South East'!AY$9,-2) -> 4223000 | Q49: =ROUND('South East'!AZ$9,-2) -> 4261300 | R49: =ROUND('South East'!BA$9,-2) -> 4295900 | S49: =ROUND('South East'!BB$9,-2) -> 4326900 | T49: =ROUND('South East'!BC$9,-2) -> 4367100 | U49: =ROUND('South East'!BD$9,-2) -> 4401400 | V49: =ROUND('South East'!BE$9,-2) -> 4442000 | W49: =ROUND('South East'!BF$9,-2) -> 4482200 | X49: =ROUND('South East'!BG$9,-2) -> 4527700 | Y49: =ROUND('South East'!BH$9,-2) -> 4565000 | Z49: =ROUND('South East'!BI$9,-2) -> 4608100 | AA49: =ROUND('South East'!BJ$9,-2) -> 4637100 | AB49: =ROUND('South East'!BK$9,-2) -> 4664100 | AC49: =ROUND('South East'!BL$9,-2) -> 4689600 | AD49: =ROUND('South East'!BM$9,-2) -> 4708300 | AE49: =ROUND('South East'!BN$9,-2) -> 4747600 | AF49: =ROUND('South East'!BO$9,-2) -> 4793800 | AG49: =ROUND('South East'!BP$9,-2) -> 4843700 | AI49: =INDEX($M49:$AH49,Index!$B$16) -> 4128300 | AJ49: =INDEX($M49:$AH49,Index!$B$19) -> 4843700 | AK49: =ROUND('All Districts unrounded'!AK49,-2) -> 715300 | AL49: ='All Districts unrounded'!AL49 -> 0.1732785184
A50: England & Wales | B50: =ROUND('England & Wales'!AK$9,-2) -> 26136200 | C50: =ROUND('England & Wales'!AL$9,-2) -> 26193200 | D50: =ROUND('England & Wales'!AM$9,-2) -> 26263200 | E50: =ROUND('England & Wales'!AN$9,-2) -> 26325600 | F50: =ROUND('England & Wales'!AO$9,-2) -> 26380700 | G50: =ROUND('England & Wales'!AP$9,-2) -> 26446500 | H50: =ROUND('England & Wales'!AQ$9,-2) -> 26519400 | I50: =ROUND('England & Wales'!AR$9,-2) -> 26610000 | J50: =ROUND('England & Wales'!AS$9,-2) -> 26702100 | K50: =ROUND('England & Wales'!AT$9,-2) -> 26785700 | L50: =ROUND('England & Wales'!AU$9,-2) -> 26894000 | M50: =ROUND('England & Wales'!AV$9,-2) -> 27009100 | N50: =ROUND('England & Wales'!AW$9,-2) -> 27139900 | O50: =ROUND('England & Wales'!AX$9,-2) -> 27340900 | P50: =ROUND('England & Wales'!AY$9,-2) -> 27517500 | Q50: =ROUND('England & Wales'!AZ$9,-2) -> 27718300 | R50: =ROUND('England & Wales'!BA$9,-2) -> 27927400 | S50: =ROUND('England & Wales'!BB$9,-2) -> 28113600 | T50: =ROUND('England & Wales'!BC$9,-2) -> 28319700 | U50: =ROUND('England & Wales'!BD$9,-2) -> 28533300 | V50: =ROUND('England & Wales'!BE$9,-2) -> 28752100 | W50: =ROUND('England & Wales'!BF$9,-2) -> 28973400 | X50: =ROUND('England & Wales'!BG$9,-2) -> 29211600 | Y50: =ROUND('England & Wales'!BH$9,-2) -> 29430200 | Z50: =ROUND('England & Wales'!BI$9,-2) -> 29690100 | AA50: =ROUND('England & Wales'!BJ$9,-2) -> 29877100 | AB50: =ROUND('England & Wales'!BK$9,-2) -> 30055600 | AC50: =ROUND('England & Wales'!BL$9,-2) -> 30231800 | AD50: =ROUND('England & Wales'!BM$9,-2) -> 30312300 | AE50: =ROUND('England & Wales'!BN$9,-2) -> 30457200 | AF50: =ROUND('England & Wales'!BO$9,-2) -> 30723700 | AG50: =ROUND('England & Wales'!BP$9,-2) -> 31018700 | AI50: =INDEX($M50:$AH50,Index!$B$16) -> 27009100 | AJ50: =INDEX($M50:$AH50,Index!$B$19) -> 31018700 | AK50: =ROUND('All Districts unrounded'!AK50,-2) -> 4009600 | AL50: ='All Districts unrounded'!AL50 -> 0.1484537321
A52: Total
B53: ='All Districts unrounded'!B53 -> 1992 | C53: ='All Districts unrounded'!C53 -> 1993 | D53: ='All Districts unrounded'!D53 -> 1994 | E53: ='All Districts unrounded'!E53 -> 1995 | F53: ='All Districts unrounded'!F53 -> 1996 | G53: ='All Districts unrounded'!G53 -> 1997 | H53: ='All Districts unrounded'!H53 -> 1998 | I53: ='All Districts unrounded'!I53 -> 1999 | J53: ='All Districts unrounded'!J53 -> 2000 | K53: ='All Districts unrounded'!K53 -> 2001 | L53: ='All Districts unrounded'!L53 -> 2002 | M53: ='All Districts unrounded'!M53 -> 2003 | N53: ='All Districts unrounded'!N53 -> 2004 | O53: ='All Districts unrounded'!O53 -> 2005 | P53: ='All Districts unrounded'!P53 -> 2006 | Q53: ='All Districts unrounded'!Q53 -> 2007 | R53: ='All Districts unrounded'!R53 -> 2008 | S53: ='All Districts unrounded'!S53 -> 2009 | T53: ='All Districts unrounded'!T53 -> 2010 | U53: ='All Districts unrounded'!U53 -> 2011 | V53: ='All Districts unrounded'!V53 -> 2012 | W53: ='All Districts unrounded'!W53 -> 2013 | X53: ='All Districts unrounded'!X53 -> 2014 | Y53: ='All Districts unrounded'!Y53 -> 2015 | Z53: ='All Districts unrounded'!Z53 -> 2016 | AA53: ='All Districts unrounded'!AA53 -> 2017 | AB53: ='All Districts unrounded'!AB53 -> 2018 | AC53: ='All Districts unrounded'!AC53 -> 2019 | AD53: ='All Districts unrounded'!AD53 -> 2020 | AE53: ='All Districts unrounded'!AE53 -> 2021 | AF53: ='All Districts unrounded'!AF53 -> 2022 | AG53: ='All Districts unrounded'!AG53 -> 2023 | AI53: =Index!$C$16 -> 2003 | AJ53: =Index!$C$19 -> 2023 | AK53: Number change | AL53: % change
A54: -
A55: Ashford | B55: =ROUND(ASH!AK$10,-2) -> 93100 | C55: =ROUND(ASH!AL$10,-2) -> 93100 | D55: =ROUND(ASH!AM$10,-2) -> 93800 | E55: =ROUND(ASH!AN$10,-2) -> 95100 | F55: =ROUND(ASH!AO$10,-2) -> 96400 | G55: =ROUND(ASH!AP$10,-2) -> 97500 | H55: =ROUND(ASH!AQ$10,-2) -> 98000 | I55: =ROUND(ASH!AR$10,-2) -> 100100 | J55: =ROUND(ASH!AS$10,-2) -> 101400 | K55: =ROUND(ASH!AT$10,-2) -> 103000 | L55: =ROUND(ASH!AU$10,-2) -> 104400 | M55: =ROUND(ASH!AV$10,-2) -> 105600 | N55: =ROUND(ASH!AW$10,-2) -> 107300 | O55: =ROUND(ASH!AX$10,-2) -> 109400 | P55: =ROUND(ASH!AY$10,-2) -> 111500 | Q55: =ROUND(ASH!AZ$10,-2) -> 113300 | R55: =ROUND(ASH!BA$10,-2) -> 114600 | S55: =ROUND(ASH!BB$10,-2) -> 115700 | T55: =ROUND(ASH!BC$10,-2) -> 117000 | U55: =ROUND(ASH!BD$10,-2) -> 118400 | V55: =ROUND(ASH!BE$10,-2) -> 120200 | W55: =ROUND(ASH!BF$10,-2) -> 121900 | X55: =ROUND(ASH!BG$10,-2) -> 123700 | Y55: =ROUND(ASH!BH$10,-2) -> 124600 | Z55: =ROUND(ASH!BI$10,-2) -> 126300 | AA55: =ROUND(ASH!BJ$10,-2) -> 128000 | AB55: =ROUND(ASH!BK$10,-2) -> 129700 | AC55: =ROUND(ASH!BL$10,-2) -> 130500 | AD55: =ROUND(ASH!BM$10,-2) -> 131400 | AE55: =ROUND(ASH!BN$10,-2) -> 133200 | AF55: =ROUND(ASH!BO$10,-2) -> 135700 | AG55: =ROUND(ASH!BP$10,-2) -> 138300 | AI55: =INDEX($M55:$AH55,Index!$B$16) -> 105600 | AJ55: =INDEX($M55:$AH55,Index!$B$19) -> 138300 | AK55: =ROUND('All Districts unrounded'!AK55,-2) -> 32600 | AL55: ='All Districts unrounded'!AL55 -> 0.3090518384
A56: Canterbury | B56: =ROUND(CAN!AK$10,-2) -> 128800 | C56: =ROUND(CAN!AL$10,-2) -> 129800 | D56: =ROUND(CAN!AM$10,-2) -> 130400 | E56: =ROUND(CAN!AN$10,-2) -> 130700 | F56: =ROUND(CAN!AO$10,-2) -> 131300 | G56: =ROUND(CAN!AP$10,-2) -> 132600 | H56: =ROUND(CAN!AQ$10,-2) -> 132600 | I56: =ROUND(CAN!AR$10,-2) -> 133700 | J56: =ROUND(CAN!AS$10,-2) -> 134900 | K56: =ROUND(CAN!AT$10,-2) -> 135400 | L56: =ROUND(CAN!AU$10,-2) -> 136500 | M56: =ROUND(CAN!AV$10,-2) -> 138600 | N56: =ROUND(CAN!AW$10,-2) -> 140600 | O56: =ROUND(CAN!AX$10,-2) -> 141900 | P56: =ROUND(CAN!AY$10,-2) -> 143500 | Q56: =ROUND(CAN!AZ$10,-2) -> 145200 | R56: =ROUND(CAN!BA$10,-2) -> 146100 | S56: =ROUND(CAN!BB$10,-2) -> 146400 | T56: =ROUND(CAN!BC$10,-2) -> 148700 | U56: =ROUND(CAN!BD$10,-2) -> 150600 | V56: =ROUND(CAN!BE$10,-2) -> 151700 | W56: =ROUND(CAN!BF$10,-2) -> 153500 | X56: =ROUND(CAN!BG$10,-2) -> 155200 | Y56: =ROUND(CAN!BH$10,-2) -> 156100 | Z56: =ROUND(CAN!BI$10,-2) -> 157300 | AA56: =ROUND(CAN!BJ$10,-2) -> 157900 | AB56: =ROUND(CAN!BK$10,-2) -> 157300 | AC56: =ROUND(CAN!BL$10,-2) -> 157100 | AD56: =ROUND(CAN!BM$10,-2) -> 157200 | AE56: =ROUND(CAN!BN$10,-2) -> 156600 | AF56: =ROUND(CAN!BO$10,-2) -> 158300 | AG56: =ROUND(CAN!BP$10,-2) -> 159900 | AI56: =INDEX($M56:$AH56,Index!$B$16) -> 138600 | AJ56: =INDEX($M56:$AH56,Index!$B$19) -> 159900 | AK56: =ROUND('All Districts unrounded'!AK56,-2) -> 21300 | AL56: ='All Districts unrounded'!AL56 -> 0.1538944361
A57: Dartford | B57: =ROUND(DAR!AK$10,-2) -> 81000 | C57: =ROUND(DAR!AL$10,-2) -> 81700 | D57: =ROUND(DAR!AM$10,-2) -> 82400 | E57: =ROUND(DAR!AN$10,-2) -> 82600 | F57: =ROUND(DAR!AO$10,-2) -> 83000 | G57: =ROUND(DAR!AP$10,-2) -> 83700 | H57: =ROUND(DAR!AQ$10,-2) -> 84600 | I57: =ROUND(DAR!AR$10,-2) -> 85000 | J57: =ROUND(DAR!AS$10,-2) -> 85500 | K57: =ROUND(DAR!AT$10,-2) -> 86000 | L57: =ROUND(DAR!AU$10,-2) -> 86400 | M57: =ROUND(DAR!AV$10,-2) -> 87000 | N57: =ROUND(DAR!AW$10,-2) -> 88300 | O57: =ROUND(DAR!AX$10,-2) -> 90000 | P57: =ROUND(DAR!AY$10,-2) -> 91200 | Q57: =ROUND(DAR!AZ$10,-2) -> 92200 | R57: =ROUND(DAR!BA$10,-2) -> 93900 | S57: =ROUND(DAR!BB$10,-2) -> 95300 | T57: =ROUND(DAR!BC$10,-2) -> 96300 | U57: =ROUND(DAR!BD$10,-2) -> 97600 | V57: =ROUND(DAR!BE$10,-2) -> 99100 | W57: =ROUND(DAR!BF$10,-2) -> 100800 | X57: =ROUND(DAR!BG$10,-2) -> 102800 | Y57: =ROUND(DAR!BH$10,-2) -> 104400 | Z57: =ROUND(DAR!BI$10,-2) -> 105900 | AA57: =ROUND(DAR!BJ$10,-2) -> 108400 | AB57: =ROUND(DAR!BK$10,-2) -> 110800 | AC57: =ROUND(DAR!BL$10,-2) -> 113900 | AD57: =ROUND(DAR!BM$10,-2) -> 115600 | AE57: =ROUND(DAR!BN$10,-2) -> 116800 | AF57: =ROUND(DAR!BO$10,-2) -> 118800 | AG57: =ROUND(DAR!BP$10,-2) -> 120700 | AI57: =INDEX($M57:$AH57,Index!$B$16) -> 87000 | AJ57: =INDEX($M57:$AH57,Index!$B$19) -> 120700 | AK57: =ROUND('All Districts unrounded'!AK57,-2) -> 33700 | AL57: ='All Districts unrounded'!AL57 -> 0.3871694383
A58: Dover | B58: =ROUND(DOV!AK$10,-2) -> 104600 | C58: =ROUND(DOV!AL$10,-2) -> 104100 | D58: =ROUND(DOV!AM$10,-2) -> 104400 | E58: =ROUND(DOV!AN$10,-2) -> 104100 | F58: =ROUND(DOV!AO$10,-2) -> 103600 | G58: =ROUND(DOV!AP$10,-2) -> 103400 | H58: =ROUND(DOV!AQ$10,-2) -> 103700 | I58: =ROUND(DOV!AR$10,-2) -> 104000 | J58: =ROUND(DOV!AS$10,-2) -> 104500 | K58: =ROUND(DOV!AT$10,-2) -> 104600 | L58: =ROUND(DOV!AU$10,-2) -> 104900 | M58: =ROUND(DOV!AV$10,-2) -> 105800 | N58: =ROUND(DOV!AW$10,-2) -> 106900 | O58: =ROUND(DOV!AX$10,-2) -> 107500 | P58: =ROUND(DOV!AY$10,-2) -> 107900 | Q58: =ROUND(DOV!AZ$10,-2) -> 109000 | R58: =ROUND(DOV!BA$10,-2) -> 109800 | S58: =ROUND(DOV!BB$10,-2) -> 110100 | T58: =ROUND(DOV!BC$10,-2) -> 111100 | U58: =ROUND(DOV!BD$10,-2) -> 111700 | V58: =ROUND(DOV!BE$10,-2) -> 111500 | W58: =ROUND(DOV!BF$10,-2) -> 112000 | X58: =ROUND(DOV!BG$10,-2) -> 112500 | Y58: =ROUND(DOV!BH$10,-2) -> 112500 | Z58: =ROUND(DOV!BI$10,-2) -> 113400 | AA58: =ROUND(DOV!BJ$10,-2) -> 114300 | AB58: =ROUND(DOV!BK$10,-2) -> 115100 | AC58: =ROUND(DOV!BL$10,-2) -> 115900 | AD58: =ROUND(DOV!BM$10,-2) -> 116100 | AE58: =ROUND(DOV!BN$10,-2) -> 116500 | AF58: =ROUND(DOV!BO$10,-2) -> 117500 | AG58: =ROUND(DOV!BP$10,-2) -> 118600 | AI58: =INDEX($M58:$AH58,Index!$B$16) -> 105800 | AJ58: =INDEX($M58:$AH58,Index!$B$19) -> 118600 | AK58: =ROUND('All Districts unrounded'!AK58,-2) -> 12800 | AL58: ='All Districts unrounded'!AL58 -> 0.1210674582
A59: Gravesham | B59: =ROUND(GRA!AK$10,-2) -> 93500 | C59: =ROUND(GRA!AL$10,-2) -> 93400 | D59: =ROUND(GRA!AM$10,-2) -> 93600 | E59: =ROUND(GRA!AN$10,-2) -> 93400 | F59: =ROUND(GRA!AO$10,-2) -> 93000 | G59: =ROUND(GRA!AP$10,-2) -> 93300 | H59: =ROUND(GRA!AQ$10,-2) -> 93900 | I59: =ROUND(GRA!AR$10,-2) -> 94600 | J59: =ROUND(GRA!AS$10,-2) -> 95200 | K59: =ROUND(GRA!AT$10,-2) -> 95800 | L59: =ROUND(GRA!AU$10,-2) -> 95400 | M59: =ROUND(GRA!AV$10,-2) -> 95600 | N59: =ROUND(GRA!AW$10,-2) -> 95900 | O59: =ROUND(GRA!AX$10,-2) -> 96900 | P59: =ROUND(GRA!AY$10,-2) -> 97600 | Q59: =ROUND(GRA!AZ$10,-2) -> 98500 | R59: =ROUND(GRA!BA$10,-2) -> 99400 | S59: =ROUND(GRA!BB$10,-2) -> 100200 | T59: =ROUND(GRA!BC$10,-2) -> 101100 | U59: =ROUND(GRA!BD$10,-2) -> 101800 | V59: =ROUND(GRA!BE$10,-2) -> 103000 | W59: =ROUND(GRA!BF$10,-2) -> 103800 | X59: =ROUND(GRA!BG$10,-2) -> 105400 | Y59: =ROUND(GRA!BH$10,-2) -> 106400 | Z59: =ROUND(GRA!BI$10,-2) -> 106800 | AA59: =ROUND(GRA!BJ$10,-2) -> 106500 | AB59: =ROUND(GRA!BK$10,-2) -> 106700 | AC59: =ROUND(GRA!BL$10,-2) -> 107300 | AD59: =ROUND(GRA!BM$10,-2) -> 107100 | AE59: =ROUND(GRA!BN$10,-2) -> 106900 | AF59: =ROUND(GRA!BO$10,-2) -> 106900 | AG59: =ROUND(GRA!BP$10,-2) -> 107700 | AI59: =INDEX($M59:$AH59,Index!$B$16) -> 95600 | AJ59: =INDEX($M59:$AH59,Index!$B$19) -> 107700 | AK59: =ROUND('All Districts unrounded'!AK59,-2) -> 12200 | AL59: ='All Districts unrounded'!AL59 -> 0.127321621
A60: Maidstone | B60: =ROUND(MAI!AK$10,-2) -> 137200 | C60: =ROUND(MAI!AL$10,-2) -> 137400 | D60: =ROUND(MAI!AM$10,-2) -> 137000 | E60: =ROUND(MAI!AN$10,-2) -> 137400 | F60: =ROUND(MAI!AO$10,-2) -> 138400 | G60: =ROUND(MAI!AP$10,-2) -> 138400 | H60: =ROUND(MAI!AQ$10,-2) -> 138100 | I60: =ROUND(MAI!AR$10,-2) -> 137900 | J60: =ROUND(MAI!AS$10,-2) -> 138600 | K60: =ROUND(MAI!AT$10,-2) -> 139100 | L60: =ROUND(MAI!AU$10,-2) -> 140300 | M60: =ROUND(MAI!AV$10,-2) -> 141200 | N60: =ROUND(MAI!AW$10,-2) -> 142200 | O60: =ROUND(MAI!AX$10,-2) -> 143400 | P60: =ROUND(MAI!AY$10,-2) -> 145300 | Q60: =ROUND(MAI!AZ$10,-2) -> 147700 | R60: =ROUND(MAI!BA$10,-2) -> 149700 | S60: =ROUND(MAI!BB$10,-2) -> 151600 | T60: =ROUND(MAI!BC$10,-2) -> 153700 | U60: =ROUND(MAI!BD$10,-2) -> 155800 | V60: =ROUND(MAI!BE$10,-2) -> 157500 | W60: =ROUND(MAI!BF$10,-2) -> 159300 | X60: =ROUND(MAI!BG$10,-2) -> 161600 | Y60: =ROUND(MAI!BH$10,-2) -> 164100 | Z60: =ROUND(MAI!BI$10,-2) -> 166000 | AA60: =ROUND(MAI!BJ$10,-2) -> 168100 | AB60: =ROUND(MAI!BK$10,-2) -> 170000 | AC60: =ROUND(MAI!BL$10,-2) -> 171800 | AD60: =ROUND(MAI!BM$10,-2) -> 173300 | AE60: =ROUND(MAI!BN$10,-2) -> 176700 | AF60: =ROUND(MAI!BO$10,-2) -> 180600 | AG60: =ROUND(MAI!BP$10,-2) -> 184200 | AI60: =INDEX($M60:$AH60,Index!$B$16) -> 141200 | AJ60: =INDEX($M60:$AH60,Index!$B$19) -> 184200 | AK60: =ROUND('All Districts unrounded'!AK60,-2) -> 42900 | AL60: ='All Districts unrounded'!AL60 -> 0.3040156889
A61: Medway | B61: =ROUND(MED!AK$10,-2) -> 243700 | C61: =ROUND(MED!AL$10,-2) -> 242600 | D61: =ROUND(MED!AM$10,-2) -> 242600 | E61: =ROUND(MED!AN$10,-2) -> 241400 | F61: =ROUND(MED!AO$10,-2) -> 241300 | G61: =ROUND(MED!AP$10,-2) -> 242300 | H61: =ROUND(MED!AQ$10,-2) -> 245300 | I61: =ROUND(MED!AR$10,-2) -> 246400 | J61: =ROUND(MED!AS$10,-2) -> 248500 | K61: =ROUND(MED!AT$10,-2) -> 249700 | L61: =ROUND(MED!AU$10,-2) -> 250300 | M61: =ROUND(MED!AV$10,-2) -> 251200 | N61: =ROUND(MED!AW$10,-2) -> 251500 | O61: =ROUND(MED!AX$10,-2) -> 252100 | P61: =ROUND(MED!AY$10,-2) -> 253500 | Q61: =ROUND(MED!AZ$10,-2) -> 255800 | R61: =ROUND(MED!BA$10,-2) -> 258200 | S61: =ROUND(MED!BB$10,-2) -> 260200 | T61: =ROUND(MED!BC$10,-2) -> 262700 | U61: =ROUND(MED!BD$10,-2) -> 264900 | V61: =ROUND(MED!BE$10,-2) -> 268100 | W61: =ROUND(MED!BF$10,-2) -> 271100 | X61: =ROUND(MED!BG$10,-2) -> 274000 | Y61: =ROUND(MED!BH$10,-2) -> 276000 | Z61: =ROUND(MED!BI$10,-2) -> 277500 | AA61: =ROUND(MED!BJ$10,-2) -> 278700 | AB61: =ROUND(MED!BK$10,-2) -> 278800 | AC61: =ROUND(MED!BL$10,-2) -> 279900 | AD61: =ROUND(MED!BM$10,-2) -> 280400 | AE61: =ROUND(MED!BN$10,-2) -> 279900 | AF61: =ROUND(MED!BO$10,-2) -> 282600 | AG61: =ROUND(MED!BP$10,-2) -> 286800 | AI61: =INDEX($M61:$AH61,Index!$B$16) -> 251200 | AJ61: =INDEX($M61:$AH61,Index!$B$19) -> 286800 | AK61: =ROUND('All Districts unrounded'!AK61,-2) -> 35600 | AL61: ='All Districts unrounded'!AL61 -> 0.1419061232
A62: Sevenoaks | B62: =ROUND(SEV!AK$10,-2) -> 108800 | C62: =ROUND(SEV!AL$10,-2) -> 108800 | D62: =ROUND(SEV!AM$10,-2) -> 108900 | E62: =ROUND(SEV!AN$10,-2) -> 108400 | F62: =ROUND(SEV!AO$10,-2) -> 108700 | G62: =ROUND(SEV!AP$10,-2) -> 109400 | H62: =ROUND(SEV!AQ$10,-2) -> 109100 | I62: =ROUND(SEV!AR$10,-2) -> 109600 | J62: =ROUND(SEV!AS$10,-2) -> 109500 | K62: =ROUND(SEV!AT$10,-2) -> 109200 | L62: =ROUND(SEV!AU$10,-2) -> 109100 | M62: =ROUND(SEV!AV$10,-2) -> 109300 | N62: =ROUND(SEV!AW$10,-2) -> 110000 | O62: =ROUND(SEV!AX$10,-2) -> 111300 | P62: =ROUND(SEV!AY$10,-2) -> 112500 | Q62: =ROUND(SEV!AZ$10,-2) -> 113100 | R62: =ROUND(SEV!BA$10,-2) -> 113300 | S62: =ROUND(SEV!BB$10,-2) -> 113800 | T62: =ROUND(SEV!BC$10,-2) -> 114500 | U62: =ROUND(SEV!BD$10,-2) -> 115400 | V62: =ROUND(SEV!BE$10,-2) -> 116300 | W62: =ROUND(SEV!BF$10,-2) -> 116700 | X62: =ROUND(SEV!BG$10,-2) -> 117400 | Y62: =ROUND(SEV!BH$10,-2) -> 117700 | Z62: =ROUND(SEV!BI$10,-2) -> 118300 | AA62: =ROUND(SEV!BJ$10,-2) -> 118500 | AB62: =ROUND(SEV!BK$10,-2) -> 119200 | AC62: =ROUND(SEV!BL$10,-2) -> 119600 | AD62: =ROUND(SEV!BM$10,-2) -> 120100 | AE62: =ROUND(SEV!BN$10,-2) -> 120800 | AF62: =ROUND(SEV!BO$10,-2) -> 121200 | AG62: =ROUND(SEV!BP$10,-2) -> 121300 | AI62: =INDEX($M62:$AH62,Index!$B$16) -> 109300 | AJ62: =INDEX($M62:$AH62,Index!$B$19) -> 121300 | AK62: =ROUND('All Districts unrounded'!AK62,-2) -> 12000 | AL62: ='All Districts unrounded'!AL62 -> 0.1096449488
A63: Folkestone & Hythe | B63: =ROUND('F&H'!AK$10,-2) -> 93500 | C63: =ROUND('F&H'!AL$10,-2) -> 93400 | D63: =ROUND('F&H'!AM$10,-2) -> 94100 | E63: =ROUND('F&H'!AN$10,-2) -> 94000 | F63: =ROUND('F&H'!AO$10,-2) -> 95000 | G63: =ROUND('F&H'!AP$10,-2) -> 94900 | H63: =ROUND('F&H'!AQ$10,-2) -> 94800 | I63: =ROUND('F&H'!AR$10,-2) -> 95800 | J63: =ROUND('F&H'!AS$10,-2) -> 96400 | K63: =ROUND('F&H'!AT$10,-2) -> 96300 | L63: =ROUND('F&H'!AU$10,-2) -> 97200 | M63: =ROUND('F&H'!AV$10,-2) -> 98500 | N63: =ROUND('F&H'!AW$10,-2) -> 99900 | O63: =ROUND('F&H'!AX$10,-2) -> 101500 | P63: =ROUND('F&H'!AY$10,-2) -> 102500 | Q63: =ROUND('F&H'!AZ$10,-2) -> 103900 | R63: =ROUND('F&H'!BA$10,-2) -> 104800 | S63: =ROUND('F&H'!BB$10,-2) -> 105700 | T63: =ROUND('F&H'!BC$10,-2) -> 107000 | U63: =ROUND('F&H'!BD$10,-2) -> 108200 | V63: =ROUND('F&H'!BE$10,-2) -> 108200 | W63: =ROUND('F&H'!BF$10,-2) -> 107900 | X63: =ROUND('F&H'!BG$10,-2) -> 108200 | Y63: =ROUND('F&H'!BH$10,-2) -> 108300 | Z63: =ROUND('F&H'!BI$10,-2) -> 109200 | AA63: =ROUND('F&H'!BJ$10,-2) -> 109100 | AB63: =ROUND('F&H'!BK$10,-2) -> 109700 | AC63: =ROUND('F&H'!BL$10,-2) -> 109700 | AD63: =ROUND('F&H'!BM$10,-2) -> 109600 | AE63: =ROUND('F&H'!BN$10,-2) -> 110000 | AF63: =ROUND('F&H'!BO$10,-2) -> 110400 | AG63: =ROUND('F&H'!BP$10,-2) -> 111000 | AI63: =INDEX($M63:$AH63,Index!$B$16) -> 98500 | AJ63: =INDEX($M63:$AH63,Index!$B$19) -> 111000 | AK63: =ROUND('All Districts unrounded'!AK63,-2) -> 12500 | AL63: ='All Districts unrounded'!AL63 -> 0.1263953724
A64: Swale | B64: =ROUND(SWA!AK$10,-2) -> 116200 | C64: =ROUND(SWA!AL$10,-2) -> 116700 | D64: =ROUND(SWA!AM$10,-2) -> 116800 | E64: =ROUND(SWA!AN$10,-2) -> 117600 | F64: =ROUND(SWA!AO$10,-2) -> 117300 | G64: =ROUND(SWA!AP$10,-2) -> 118300 | H64: =ROUND(SWA!AQ$10,-2) -> 118700 | I64: =ROUND(SWA!AR$10,-2) -> 120100 | J64: =ROUND(SWA!AS$10,-2) -> 121600 | K64: =ROUND(SWA!AT$10,-2) -> 123100 | L64: =ROUND(SWA!AU$10,-2) -> 124200 | M64: =ROUND(SWA!AV$10,-2) -> 125300 | N64: =ROUND(SWA!AW$10,-2) -> 125900 | O64: =ROUND(SWA!AX$10,-2) -> 126500 | P64: =ROUND(SWA!AY$10,-2) -> 127600 | Q64: =ROUND(SWA!AZ$10,-2) -> 129700 | R64: =ROUND(SWA!BA$10,-2) -> 131700 | S64: =ROUND(SWA!BB$10,-2) -> 133000 | T64: =ROUND(SWA!BC$10,-2) -> 135000 | U64: =ROUND(SWA!BD$10,-2) -> 136300 | V64: =ROUND(SWA!BE$10,-2) -> 137700 | W64: =ROUND(SWA!BF$10,-2) -> 139100 | X64: =ROUND(SWA!BG$10,-2) -> 141000 | Y64: =ROUND(SWA!BH$10,-2) -> 142700 | Z64: =ROUND(SWA!BI$10,-2) -> 145200 | AA64: =ROUND(SWA!BJ$10,-2) -> 146800 | AB64: =ROUND(SWA!BK$10,-2) -> 148400 | AC64: =ROUND(SWA!BL$10,-2) -> 149800 | AD64: =ROUND(SWA!BM$10,-2) -> 150600 | AE64: =ROUND(SWA!BN$10,-2) -> 152200 | AF64: =ROUND(SWA!BO$10,-2) -> 154600 | AG64: =ROUND(SWA!BP$10,-2) -> 155900 | AI64: =INDEX($M64:$AH64,Index!$B$16) -> 125300 | AJ64: =INDEX($M64:$AH64,Index!$B$19) -> 155900 | AK64: =ROUND('All Districts unrounded'!AK64,-2) -> 30500 | AL64: ='All Districts unrounded'!AL64 -> 0.2436815905
A65: Thanet | B65: =ROUND(THA!AK$10,-2) -> 125400 | C65: =ROUND(THA!AL$10,-2) -> 124700 | D65: =ROUND(THA!AM$10,-2) -> 124400 | E65: =ROUND(THA!AN$10,-2) -> 124300 | F65: =ROUND(THA!AO$10,-2) -> 124400 | G65: =ROUND(THA!AP$10,-2) -> 125400 | H65: =ROUND(THA!AQ$10,-2) -> 125500 | I65: =ROUND(THA!AR$10,-2) -> 126500 | J65: =ROUND(THA!AS$10,-2) -> 126500 | K65: =ROUND(THA!AT$10,-2) -> 126800 | L65: =ROUND(THA!AU$10,-2) -> 127700 | M65: =ROUND(THA!AV$10,-2) -> 128100 | N65: =ROUND(THA!AW$10,-2) -> 128800 | O65: =ROUND(THA!AX$10,-2) -> 129300 | P65: =ROUND(THA!AY$10,-2) -> 129600 | Q65: =ROUND(THA!AZ$10,-2) -> 130600 | R65: =ROUND(THA!BA$10,-2) -> 131800 | S65: =ROUND(THA!BB$10,-2) -> 132300 | T65: =ROUND(THA!BC$10,-2) -> 133500 | U65: =ROUND(THA!BD$10,-2) -> 134400 | V65: =ROUND(THA!BE$10,-2) -> 135700 | W65: =ROUND(THA!BF$10,-2) -> 136900 | X65: =ROUND(THA!BG$10,-2) -> 138700 | Y65: =ROUND(THA!BH$10,-2) -> 139700 | Z65: =ROUND(THA!BI$10,-2) -> 140400 | AA65: =ROUND(THA!BJ$10,-2) -> 140700 | AB65: =ROUND(THA!BK$10,-2) -> 140800 | AC65: =ROUND(THA!BL$10,-2) -> 140600 | AD65: =ROUND(THA!BM$10,-2) -> 139900 | AE65: =ROUND(THA!BN$10,-2) -> 140700 | AF65: =ROUND(THA!BO$10,-2) -> 140700 | AG65: =ROUND(THA!BP$10,-2) -> 140400 | AI65: =INDEX($M65:$AH65,Index!$B$16) -> 128100 | AJ65: =INDEX($M65:$AH65,Index!$B$19) -> 140400 | AK65: =ROUND('All Districts unrounded'!AK65,-2) -> 12300 | AL65: ='All Districts unrounded'!AL65 -> 0.09598095833
A66: Tonbridge & Malling | B66: =ROUND(TON!AK$10,-2) -> 101700 | C66: =ROUND(TON!AL$10,-2) -> 101700 | D66: =ROUND(TON!AM$10,-2) -> 102300 | E66: =ROUND(TON!AN$10,-2) -> 103500 | F66: =ROUND(TON!AO$10,-2) -> 104300 | G66: =ROUND(TON!AP$10,-2) -> 104700 | H66: =ROUND(TON!AQ$10,-2) -> 105200 | I66: =ROUND(TON!AR$10,-2) -> 106400 | J66: =ROUND(TON!AS$10,-2) -> 106900 | K66: =ROUND(TON!AT$10,-2) -> 107800 | L66: =ROUND(TON!AU$10,-2) -> 108700 | M66: =ROUND(TON!AV$10,-2) -> 109500 | N66: =ROUND(TON!AW$10,-2) -> 110400 | O66: =ROUND(TON!AX$10,-2) -> 111700 | P66: =ROUND(TON!AY$10,-2) -> 113500 | Q66: =ROUND(TON!AZ$10,-2) -> 115500 | R66: =ROUND(TON!BA$10,-2) -> 117000 | S66: =ROUND(TON!BB$10,-2) -> 118500 | T66: =ROUND(TON!BC$10,-2) -> 120100 | U66: =ROUND(TON!BD$10,-2) -> 121100 | V66: =ROUND(TON!BE$10,-2) -> 122000 | W66: =ROUND(TON!BF$10,-2) -> 123000 | X66: =ROUND(TON!BG$10,-2) -> 124600 | Y66: =ROUND(TON!BH$10,-2) -> 125700 | Z66: =ROUND(TON!BI$10,-2) -> 127100 | AA66: =ROUND(TON!BJ$10,-2) -> 128700 | AB66: =ROUND(TON!BK$10,-2) -> 130100 | AC66: =ROUND(TON!BL$10,-2) -> 131500 | AD66: =ROUND(TON!BM$10,-2) -> 131800 | AE66: =ROUND(TON!BN$10,-2) -> 132400 | AF66: =ROUND(TON!BO$10,-2) -> 133700 | AG66: =ROUND(TON!BP$10,-2) -> 135200 | AI66: =INDEX($M66:$AH66,Index!$B$16) -> 109500 | AJ66: =INDEX($M66:$AH66,Index!$B$19) -> 135200 | AK66: =ROUND('All Districts unrounded'!AK66,-2) -> 25700 | AL66: ='All Districts unrounded'!AL66 -> 0.2348256525
A67: Tunbridge Wells | B67: =ROUND(TUN!AK$10,-2) -> 101400 | C67: =ROUND(TUN!AL$10,-2) -> 101200 | D67: =ROUND(TUN!AM$10,-2) -> 102200 | E67: =ROUND(TUN!AN$10,-2) -> 102800 | F67: =ROUND(TUN!AO$10,-2) -> 102200 | G67: =ROUND(TUN!AP$10,-2) -> 101600 | H67: =ROUND(TUN!AQ$10,-2) -> 102500 | I67: =ROUND(TUN!AR$10,-2) -> 103000 | J67: =ROUND(TUN!AS$10,-2) -> 103700 | K67: =ROUND(TUN!AT$10,-2) -> 104000 | L67: =ROUND(TUN!AU$10,-2) -> 104200 | M67: =ROUND(TUN!AV$10,-2) -> 104400 | N67: =ROUND(TUN!AW$10,-2) -> 105100 | O67: =ROUND(TUN!AX$10,-2) -> 105900 | P67: =ROUND(TUN!AY$10,-2) -> 107100 | Q67: =ROUND(TUN!AZ$10,-2) -> 108900 | R67: =ROUND(TUN!BA$10,-2) -> 111300 | S67: =ROUND(TUN!BB$10,-2) -> 112800 | T67: =ROUND(TUN!BC$10,-2) -> 114000 | U67: =ROUND(TUN!BD$10,-2) -> 115200 | V67: =ROUND(TUN!BE$10,-2) -> 115400 | W67: =ROUND(TUN!BF$10,-2) -> 115200 | X67: =ROUND(TUN!BG$10,-2) -> 115200 | Y67: =ROUND(TUN!BH$10,-2) -> 114800 | Z67: =ROUND(TUN!BI$10,-2) -> 115200 | AA67: =ROUND(TUN!BJ$10,-2) -> 115600 | AB67: =ROUND(TUN!BK$10,-2) -> 114900 | AC67: =ROUND(TUN!BL$10,-2) -> 115200 | AD67: =ROUND(TUN!BM$10,-2) -> 115300 | AE67: =ROUND(TUN!BN$10,-2) -> 115700 | AF67: =ROUND(TUN!BO$10,-2) -> 116200 | AG67: =ROUND(TUN!BP$10,-2) -> 117000 | AI67: =INDEX($M67:$AH67,Index!$B$16) -> 104400 | AJ67: =INDEX($M67:$AH67,Index!$B$19) -> 117000 | AK67: =ROUND('All Districts unrounded'!AK67,-2) -> 12600 | AL67: ='All Districts unrounded'!AL67 -> 0.1209886004
A68: Kent | B68: =ROUND(Kent!AK$10,-2) -> 1285200 | C68: =ROUND(Kent!AL$10,-2) -> 1285800 | D68: =ROUND(Kent!AM$10,-2) -> 1290100 | E68: =ROUND(Kent!AN$10,-2) -> 1293700 | F68: =ROUND(Kent!AO$10,-2) -> 1297700 | G68: =ROUND(Kent!AP$10,-2) -> 1303100 | H68: =ROUND(Kent!AQ$10,-2) -> 1306700 | I68: =ROUND(Kent!AR$10,-2) -> 1316700 | J68: =ROUND(Kent!AS$10,-2) -> 1324700 | K68: =ROUND(Kent!AT$10,-2) -> 1331200 | L68: =ROUND(Kent!AU$10,-2) -> 1339000 | M68: =ROUND(Kent!AV$10,-2) -> 1349000 | N68: =ROUND(Kent!AW$10,-2) -> 1361400 | O68: =ROUND(Kent!AX$10,-2) -> 1375200 | P68: =ROUND(Kent!AY$10,-2) -> 1389600 | Q68: =ROUND(Kent!AZ$10,-2) -> 1407800 | R68: =ROUND(Kent!BA$10,-2) -> 1423300 | S68: =ROUND(Kent!BB$10,-2) -> 1435300 | T68: =ROUND(Kent!BC$10,-2) -> 1451900 | U68: =ROUND(Kent!BD$10,-2) -> 1466500 | V68: =ROUND(Kent!BE$10,-2) -> 1478300 | W68: =ROUND(Kent!BF$10,-2) -> 1490000 | X68: =ROUND(Kent!BG$10,-2) -> 1506200 | Y68: =ROUND(Kent!BH$10,-2) -> 1517000 | Z68: =ROUND(Kent!BI$10,-2) -> 1531000 | AA68: =ROUND(Kent!BJ$10,-2) -> 1542700 | AB68: =ROUND(Kent!BK$10,-2) -> 1552900 | AC68: =ROUND(Kent!BL$10,-2) -> 1562800 | AD68: =ROUND(Kent!BM$10,-2) -> 1568000 | AE68: =ROUND(Kent!BN$10,-2) -> 1578600 | AF68: =ROUND(Kent!BO$10,-2) -> 1594500 | AG68: =ROUND(Kent!BP$10,-2) -> 1610300 | AI68: =INDEX($M68:$AH68,Index!$B$16) -> 1349000 | AJ68: =INDEX($M68:$AH68,Index!$B$19) -> 1610300 | AK68: =ROUND('All Districts unrounded'!AK68,-2) -> 261200 | AL68: ='All Districts unrounded'!AL68 -> 0.1936220114
A69: Kent + Medway | B69: =ROUND('Kent+Med'!AK$10,-2) -> 1528900 | C69: =ROUND('Kent+Med'!AL$10,-2) -> 1528400 | D69: =ROUND('Kent+Med'!AM$10,-2) -> 1532700 | E69: =ROUND('Kent+Med'!AN$10,-2) -> 1535200 | F69: =ROUND('Kent+Med'!AO$10,-2) -> 1539000 | G69: =ROUND('Kent+Med'!AP$10,-2) -> 1545400 | H69: =ROUND('Kent+Med'!AQ$10,-2) -> 1552100 | I69: =ROUND('Kent+Med'!AR$10,-2) -> 1563100 | J69: =ROUND('Kent+Med'!AS$10,-2) -> 1573200 | K69: =ROUND('Kent+Med'!AT$10,-2) -> 1580900 | L69: =ROUND('Kent+Med'!AU$10,-2) -> 1589200 | M69: =ROUND('Kent+Med'!AV$10,-2) -> 1600200 | N69: =ROUND('Kent+Med'!AW$10,-2) -> 1612800 | O69: =ROUND('Kent+Med'!AX$10,-2) -> 1627300 | P69: =ROUND('Kent+Med'!AY$10,-2) -> 1643100 | Q69: =ROUND('Kent+Med'!AZ$10,-2) -> 1663600 | R69: =ROUND('Kent+Med'!BA$10,-2) -> 1681500 | S69: =ROUND('Kent+Med'!BB$10,-2) -> 1695500 | T69: =ROUND('Kent+Med'!BC$10,-2) -> 1714600 | U69: =ROUND('Kent+Med'!BD$10,-2) -> 1731400 | V69: =ROUND('Kent+Med'!BE$10,-2) -> 1746400 | W69: =ROUND('Kent+Med'!BF$10,-2) -> 1761100 | X69: =ROUND('Kent+Med'!BG$10,-2) -> 1780200 | Y69: =ROUND('Kent+Med'!BH$10,-2) -> 1793100 | Z69: =ROUND('Kent+Med'!BI$10,-2) -> 1808500 | AA69: =ROUND('Kent+Med'!BJ$10,-2) -> 1821400 | AB69: =ROUND('Kent+Med'!BK$10,-2) -> 1831700 | AC69: =ROUND('Kent+Med'!BL$10,-2) -> 1842700 | AD69: =ROUND('Kent+Med'!BM$10,-2) -> 1848300 | AE69: =ROUND('Kent+Med'!BN$10,-2) -> 1858500 | AF69: =ROUND('Kent+Med'!BO$10,-2) -> 1877100 | AG69: =ROUND('Kent+Med'!BP$10,-2) -> 1897100 | AI69: =INDEX($M69:$AH69,Index!$B$16) -> 1600200 | AJ69: =INDEX($M69:$AH69,Index!$B$19) -> 1897100 | AK69: =ROUND('All Districts unrounded'!AK69,-2) -> 296800 | AL69: ='All Districts unrounded'!AL69 -> 0.1855049822
A70: South East Region | B70: =ROUND('South East'!AK$10,-2) -> 7656600 | C70: =ROUND('South East'!AL$10,-2) -> 7673200 | D70: =ROUND('South East'!AM$10,-2) -> 7711600 | E70: =ROUND('South East'!AN$10,-2) -> 7763000 | F70: =ROUND('South East'!AO$10,-2) -> 7800400 | G70: =ROUND('South East'!AP$10,-2) -> 7853100 | H70: =ROUND('South East'!AQ$10,-2) -> 7888800 | I70: =ROUND('South East'!AR$10,-2) -> 7955100 | J70: =ROUND('South East'!AS$10,-2) -> 7990600 | K70: =ROUND('South East'!AT$10,-2) -> 8023400 | L70: =ROUND('South East'!AU$10,-2) -> 8045200 | M70: =ROUND('South East'!AV$10,-2) -> 8087900 | N70: =ROUND('South East'!AW$10,-2) -> 8133100 | O70: =ROUND('South East'!AX$10,-2) -> 8202900 | P70: =ROUND('South East'!AY$10,-2) -> 8270900 | Q70: =ROUND('South East'!AZ$10,-2) -> 8351400 | R70: =ROUND('South East'!BA$10,-2) -> 8426400 | S70: =ROUND('South East'!BB$10,-2) -> 8490900 | T70: =ROUND('South East'!BC$10,-2) -> 8577800 | U70: =ROUND('South East'!BD$10,-2) -> 8652800 | V70: =ROUND('South East'!BE$10,-2) -> 8731800 | W70: =ROUND('South East'!BF$10,-2) -> 8809400 | X70: =ROUND('South East'!BG$10,-2) -> 8893900 | Y70: =ROUND('South East'!BH$10,-2) -> 8969600 | Z70: =ROUND('South East'!BI$10,-2) -> 9053000 | AA70: =ROUND('South East'!BJ$10,-2) -> 9105100 | AB70: =ROUND('South East'!BK$10,-2) -> 9150200 | AC70: =ROUND('South East'!BL$10,-2) -> 9193800 | AD70: =ROUND('South East'!BM$10,-2) -> 9225300 | AE70: =ROUND('South East'!BN$10,-2) -> 9295800 | AF70: =ROUND('South East'!BO$10,-2) -> 9387300 | AG70: =ROUND('South East'!BP$10,-2) -> 9482500 | AI70: =INDEX($M70:$AH70,Index!$B$16) -> 8087900 | AJ70: =INDEX($M70:$AH70,Index!$B$19) -> 9482500 | AK70: =ROUND('All Districts unrounded'!AK70,-2) -> 1394600 | AL70: ='All Districts unrounded'!AL70 -> 0.1724278072
A71: England & Wales | B71: =ROUND('England & Wales'!AK$10,-2) -> 50875600 | C71: =ROUND('England & Wales'!AL$10,-2) -> 50985900 | D71: =ROUND('England & Wales'!AM$10,-2) -> 51116200 | E71: =ROUND('England & Wales'!AN$10,-2) -> 51272000 | F71: =ROUND('England & Wales'!AO$10,-2) -> 51410400 | G71: =ROUND('England & Wales'!AP$10,-2) -> 51559600 | H71: =ROUND('England & Wales'!AQ$10,-2) -> 51720100 | I71: =ROUND('England & Wales'!AR$10,-2) -> 51933500 | J71: =ROUND('England & Wales'!AS$10,-2) -> 52140200 | K71: =ROUND('England & Wales'!AT$10,-2) -> 52360000 | L71: =ROUND('England & Wales'!AU$10,-2) -> 52602100 | M71: =ROUND('England & Wales'!AV$10,-2) -> 52863200 | N71: =ROUND('England & Wales'!AW$10,-2) -> 53152000 | O71: =ROUND('England & Wales'!AX$10,-2) -> 53575300 | P71: =ROUND('England & Wales'!AY$10,-2) -> 53950900 | Q71: =ROUND('England & Wales'!AZ$10,-2) -> 54387400 | R71: =ROUND('England & Wales'!BA$10,-2) -> 54841700 | S71: =ROUND('England & Wales'!BB$10,-2) -> 55235300 | T71: =ROUND('England & Wales'!BC$10,-2) -> 55692400 | U71: =ROUND('England & Wales'!BD$10,-2) -> 56170900 | V71: =ROUND('England & Wales'!BE$10,-2) -> 56577700 | W71: =ROUND('England & Wales'!BF$10,-2) -> 56989700 | X71: =ROUND('England & Wales'!BG$10,-2) -> 57444100 | Y71: =ROUND('England & Wales'!BH$10,-2) -> 57881400 | Z71: =ROUND('England & Wales'!BI$10,-2) -> 58366200 | AA71: =ROUND('England & Wales'!BJ$10,-2) -> 58700900 | AB71: =ROUND('England & Wales'!BK$10,-2) -> 59008400 | AC71: =ROUND('England & Wales'!BL$10,-2) -> 59317800 | AD71: =ROUND('England & Wales'!BM$10,-2) -> 59430400 | AE71: =ROUND('England & Wales'!BN$10,-2) -> 59660500 | AF71: =ROUND('England & Wales'!BO$10,-2) -> 60245200 | AG71: =ROUND('England & Wales'!BP$10,-2) -> 60854700 | AI71: =INDEX($M71:$AH71,Index!$B$16) -> 52863200 | AJ71: =INDEX($M71:$AH71,Index!$B$19) -> 60854700 | AK71: =ROUND('All Districts unrounded'!AK71,-2) -> 7991500 | AL71: ='All Districts unrounded'!AL71 -> 0.1511729002

Sheet All Districts unrounded (hidden)
A1: All data on this sheet is rounded from each of the district worksheets | AH1: Insert column here before extending the table
A8: Selected Ages: | C8: =Index!$C$4&" : "&Index!$C$7 -> 0 : 90
A10: Males | AI10: Change
B11: 1992 | C11: 1993 | D11: 1994 | E11: 1995 | F11: 1996 | G11: 1997 | H11: 1998 | I11: 1999 | J11: 2000 | K11: 2001 | L11: 2002 | M11: 2003 | N11: 2004 | O11: 2005 | P11: 2006 | Q11: 2007 | R11: 2008 | S11: 2009 | T11: 2010 | U11: 2011 | V11: 2012 | W11: 2013 | X11: 2014 | Y11: 2015 | Z11: 2016 | AA11: 2017 | AB11: 2018 | AC11: 2019 | AD11: 2020 | AE11: 2021 | AF11: 2022 | AG11: 2023 | AI11: =Index!$C$16 -> 2003 | AJ11: =Index!$C$19 -> 2023 | AK11: Number change | AL11: % change
A12: -
A13: Ashford | B13: =ASH!AK$4 -> 45156 | C13: =ASH!AL$4 -> 45194 | D13: =ASH!AM$4 -> 45562 | E13: =ASH!AN$4 -> 46317 | F13: =ASH!AO$4 -> 47052 | G13: =ASH!AP$4 -> 47580 | H13: =ASH!AQ$4 -> 47785 | I13: =ASH!AR$4 -> 48734 | J13: =ASH!AS$4 -> 49335 | K13: =ASH!AT$4 -> 50142 | L13: =ASH!AU$4 -> 50755 | M13: =ASH!AV$4 -> 51309 | N13: =ASH!AW$4 -> 52041 | O13: =ASH!AX$4 -> 53017 | P13: =ASH!AY$4 -> 54010 | Q13: =ASH!AZ$4 -> 54954 | R13: =ASH!BA$4 -> 55603 | S13: =ASH!BB$4 -> 56188 | T13: =ASH!BC$4 -> 56737 | U13: =ASH!BD$4 -> 57441 | V13: =ASH!BE$4 -> 58265 | W13: =ASH!BF$4 -> 59100 | X13: =ASH!BG$4 -> 60015 | Y13: =ASH!BH$4 -> 60503 | Z13: =ASH!BI$4 -> 61339 | AA13: =ASH!BJ$4 -> 62218 | AB13: =ASH!BK$4 -> 63044 | AC13: =ASH!BL$4 -> 63439 | AD13: =ASH!BM$4 -> 63913 | AE13: =ASH!BN$4 -> 64793 | AF13: =ASH!BO$4 -> 66086 | AG13: =ASH!BP$4 -> 67306 | AI13: =INDEX($M13:$AH13,Index!$B$16) -> 51309 | AJ13: =INDEX($M13:$AH13,Index!$B$19) -> 67306 | AK13: =AJ13-AI13 -> 15997 | AL13: =IF(AI13<0,0,AK13/AI13) -> 0.3117776608
A14: Canterbury | B14: =CAN!AK$4 -> 60902 | C14: =CAN!AL$4 -> 61768 | D14: =CAN!AM$4 -> 62185 | E14: =CAN!AN$4 -> 62281 | F14: =CAN!AO$4 -> 62638 | G14: =CAN!AP$4 -> 63292 | H14: =CAN!AQ$4 -> 63369 | I14: =CAN!AR$4 -> 63583 | J14: =CAN!AS$4 -> 63992 | K14: =CAN!AT$4 -> 64206 | L14: =CAN!AU$4 -> 64723 | M14: =CAN!AV$4 -> 66032 | N14: =CAN!AW$4 -> 67067 | O14: =CAN!AX$4 -> 67544 | P14: =CAN!AY$4 -> 68324 | Q14: =CAN!AZ$4 -> 69323 | R14: =CAN!BA$4 -> 69802 | S14: =CAN!BB$4 -> 70065 | T14: =CAN!BC$4 -> 71332 | U14: =CAN!BD$4 -> 72565 | V14: =CAN!BE$4 -> 73089 | W14: =CAN!BF$4 -> 74007 | X14: =CAN!BG$4 -> 74705 | Y14: =CAN!BH$4 -> 75299 | Z14: =CAN!BI$4 -> 75971 | AA14: =CAN!BJ$4 -> 76329 | AB14: =CAN!BK$4 -> 75670 | AC14: =CAN!BL$4 -> 75520 | AD14: =CAN!BM$4 -> 75471 | AE14: =CAN!BN$4 -> 75205 | AF14: =CAN!BO$4 -> 76230 | AG14: =CAN!BP$4 -> 77065 | AI14: =INDEX($M14:$AH14,Index!$B$16) -> 66032 | AJ14: =INDEX($M14:$AH14,Index!$B$19) -> 77065 | AK14: =AJ14-AI14 -> 11033 | AL14: =IF(AI14<0,0,AK14/AI14) -> 0.1670856554
A15: Dartford | B15: =DAR!AK$4 -> 39641 | C15: =DAR!AL$4 -> 39966 | D15: =DAR!AM$4 -> 40342 | E15: =DAR!AN$4 -> 40478 | F15: =DAR!AO$4 -> 40653 | G15: =DAR!AP$4 -> 40977 | H15: =DAR!AQ$4 -> 41459 | I15: =DAR!AR$4 -> 41650 | J15: =DAR!AS$4 -> 41869 | K15: =DAR!AT$4 -> 42161 | L15: =DAR!AU$4 -> 42493 | M15: =DAR!AV$4 -> 42870 | N15: =DAR!AW$4 -> 43417 | O15: =DAR!AX$4 -> 44224 | P15: =DAR!AY$4 -> 44802 | Q15: =DAR!AZ$4 -> 45375 | R15: =DAR!BA$4 -> 46200 | S15: =DAR!BB$4 -> 46885 | T15: =DAR!BC$4 -> 47544 | U15: =DAR!BD$4 -> 48187 | V15: =DAR!BE$4 -> 48866 | W15: =DAR!BF$4 -> 49696 | X15: =DAR!BG$4 -> 50495 | Y15: =DAR!BH$4 -> 51188 | Z15: =DAR!BI$4 -> 51815 | AA15: =DAR!BJ$4 -> 53105 | AB15: =DAR!BK$4 -> 54241 | AC15: =DAR!BL$4 -> 55728 | AD15: =DAR!BM$4 -> 56635 | AE15: =DAR!BN$4 -> 57141 | AF15: =DAR!BO$4 -> 58107 | AG15: =DAR!BP$4 -> 58873 | AI15: =INDEX($M15:$AH15,Index!$B$16) -> 42870 | AJ15: =INDEX($M15:$AH15,Index!$B$19) -> 58873 | AK15: 16003 | AL15: 0.3732913459
A16: Dover | B16: =DOV!AK$4 -> 50846 | C16: =DOV!AL$4 -> 50520 | D16: =DOV!AM$4 -> 50589 | E16: =DOV!AN$4 -> 50326 | F16: =DOV!AO$4 -> 49902 | G16: =DOV!AP$4 -> 49551 | H16: =DOV!AQ$4 -> 49956 | I16: =DOV!AR$4 -> 49911 | J16: =DOV!AS$4 -> 50287 | K16: =DOV!AT$4 -> 50367 | L16: =DOV!AU$4 -> 50544 | M16: =DOV!AV$4 -> 51021 | N16: =DOV!AW$4 -> 51628 | O16: =DOV!AX$4 -> 51936 | P16: =DOV!AY$4 -> 52336 | Q16: =DOV!AZ$4 -> 52976 | R16: =DOV!BA$4 -> 53517 | S16: =DOV!BB$4 -> 53704 | T16: =DOV!BC$4 -> 54347 | U16: =DOV!BD$4 -> 54780 | V16: =DOV!BE$4 -> 54671 | W16: =DOV!BF$4 -> 54818 | X16: =DOV!BG$4 -> 55159 | Y16: =DOV!BH$4 -> 54968 | Z16: =DOV!BI$4 -> 55464 | AA16: =DOV!BJ$4 -> 55906 | AB16: =DOV!BK$4 -> 56451 | AC16: =DOV!BL$4 -> 56677 | AD16: =DOV!BM$4 -> 56678 | AE16: =DOV!BN$4 -> 56857 | AF16: =DOV!BO$4 -> 57248 | AG16: =DOV!BP$4 -> 57702 | AI16: =INDEX($M16:$AH16,Index!$B$16) -> 51021 | AJ16: =INDEX($M16:$AH16,Index!$B$19) -> 57702 | AK16: 6681 | AL16: 0.130946081
A17: Gravesham | B17: =GRA!AK$4 -> 45642 | C17: =GRA!AL$4 -> 45573 | D17: =GRA!AM$4 -> 45679 | E17: =GRA!AN$4 -> 45597 | F17: =GRA!AO$4 -> 45413 | G17: =GRA!AP$4 -> 45548 | H17: =GRA!AQ$4 -> 45861 | I17: =GRA!AR$4 -> 46222 | J17: =GRA!AS$4 -> 46545 | K17: =GRA!AT$4 -> 46928 | L17: =GRA!AU$4 -> 46902 | M17: =GRA!AV$4 -> 47035 | N17: =GRA!AW$4 -> 47209 | O17: =GRA!AX$4 -> 47642 | P17: =GRA!AY$4 -> 48034 | Q17: =GRA!AZ$4 -> 48478 | R17: =GRA!BA$4 -> 48882 | S17: =GRA!BB$4 -> 49256 | T17: =GRA!BC$4 -> 49777 | U17: =GRA!BD$4 -> 50180 | V17: =GRA!BE$4 -> 50857 | W17: =GRA!BF$4 -> 51164 | X17: =GRA!BG$4 -> 52012 | Y17: =GRA!BH$4 -> 52481 | Z17: =GRA!BI$4 -> 52606 | AA17: =GRA!BJ$4 -> 52342 | AB17: =GRA!BK$4 -> 52301 | AC17: =GRA!BL$4 -> 52568 | AD17: =GRA!BM$4 -> 52415 | AE17: =GRA!BN$4 -> 52227 | AF17: =GRA!BO$4 -> 52092 | AG17: =GRA!BP$4 -> 52460 | AI17: =INDEX($M17:$AH17,Index!$B$16) -> 47035 | AJ17: =INDEX($M17:$AH17,Index!$B$19) -> 52460 | AK17: 5425 | AL17: 0.1153396407
A18: Maidstone | B18: =MAI!AK$4 -> 67197 | C18: =MAI!AL$4 -> 67311 | D18: =MAI!AM$4 -> 67124 | E18: =MAI!AN$4 -> 67381 | F18: =MAI!AO$4 -> 68023 | G18: =MAI!AP$4 -> 67952 | H18: =MAI!AQ$4 -> 67736 | I18: =MAI!AR$4 -> 67746 | J18: =MAI!AS$4 -> 68190 | K18: =MAI!AT$4 -> 68453 | L18: =MAI!AU$4 -> 68997 | M18: =MAI!AV$4 -> 69503 | N18: =MAI!AW$4 -> 69928 | O18: =MAI!AX$4 -> 70506 | P18: =MAI!AY$4 -> 71538 | Q18: =MAI!AZ$4 -> 72812 | R18: =MAI!BA$4 -> 73935 | S18: =MAI!BB$4 -> 74791 | T18: =MAI!BC$4 -> 75863 | U18: =MAI!BD$4 -> 76868 | V18: =MAI!BE$4 -> 77637 | W18: =MAI!BF$4 -> 78645 | X18: =MAI!BG$4 -> 79890 | Y18: =MAI!BH$4 -> 81332 | Z18: =MAI!BI$4 -> 82310 | AA18: =MAI!BJ$4 -> 83374 | AB18: =MAI!BK$4 -> 84325 | AC18: =MAI!BL$4 -> 85015 | AD18: =MAI!BM$4 -> 85724 | AE18: =MAI!BN$4 -> 87294 | AF18: =MAI!BO$4 -> 89057 | AG18: =MAI!BP$4 -> 90822 | AI18: =INDEX($M18:$AH18,Index!$B$16) -> 69503 | AJ18: =INDEX($M18:$AH18,Index!$B$19) -> 90822 | AK18: 21319 | AL18: 0.3067349611
A19: Medway | B19: =MED!AK$4 -> 120622 | C19: =MED!AL$4 -> 119884 | D19: =MED!AM$4 -> 119748 | E19: =MED!AN$4 -> 118766 | F19: =MED!AO$4 -> 118782 | G19: =MED!AP$4 -> 119298 | H19: =MED!AQ$4 -> 120750 | I19: =MED!AR$4 -> 121354 | J19: =MED!AS$4 -> 122544 | K19: =MED!AT$4 -> 122993 | L19: =MED!AU$4 -> 123401 | M19: =MED!AV$4 -> 123848 | N19: =MED!AW$4 -> 123925 | O19: =MED!AX$4 -> 124173 | P19: =MED!AY$4 -> 124859 | Q19: =MED!AZ$4 -> 126260 | R19: =MED!BA$4 -> 127647 | S19: =MED!BB$4 -> 128802 | T19: =MED!BC$4 -> 130339 | U19: =MED!BD$4 -> 131368 | V19: =MED!BE$4 -> 132668 | W19: =MED!BF$4 -> 134078 | X19: =MED!BG$4 -> 135403 | Y19: =MED!BH$4 -> 136380 | Z19: =MED!BI$4 -> 136943 | AA19: =MED!BJ$4 -> 137397 | AB19: =MED!BK$4 -> 137142 | AC19: =MED!BL$4 -> 137522 | AD19: =MED!BM$4 -> 137769 | AE19: =MED!BN$4 -> 137187 | AF19: =MED!BO$4 -> 138487 | AG19: =MED!BP$4 -> 140334 | AI19: =INDEX($M19:$AH19,Index!$B$16) -> 123848 | AJ19: =INDEX($M19:$AH19,Index!$B$19) -> 140334 | AK19: 16486 | AL19: 0.1331147859
A20: Sevenoaks | B20: =SEV!AK$4 -> 53002 | C20: =SEV!AL$4 -> 52903 | D20: =SEV!AM$4 -> 52832 | E20: =SEV!AN$4 -> 52592 | F20: =SEV!AO$4 -> 52747 | G20: =SEV!AP$4 -> 53056 | H20: =SEV!AQ$4 -> 52896 | I20: =SEV!AR$4 -> 53138 | J20: =SEV!AS$4 -> 53020 | K20: =SEV!AT$4 -> 52868 | L20: =SEV!AU$4 -> 52751 | M20: =SEV!AV$4 -> 52891 | N20: =SEV!AW$4 -> 53155 | O20: =SEV!AX$4 -> 53718 | P20: =SEV!AY$4 -> 54290 | Q20: =SEV!AZ$4 -> 54676 | R20: =SEV!BA$4 -> 54792 | S20: =SEV!BB$4 -> 55086 | T20: =SEV!BC$4 -> 55478 | U20: =SEV!BD$4 -> 55975 | V20: =SEV!BE$4 -> 56343 | W20: =SEV!BF$4 -> 56568 | X20: =SEV!BG$4 -> 56750 | Y20: =SEV!BH$4 -> 56961 | Z20: =SEV!BI$4 -> 57230 | AA20: =SEV!BJ$4 -> 57389 | AB20: =SEV!BK$4 -> 57682 | AC20: =SEV!BL$4 -> 57824 | AD20: =SEV!BM$4 -> 57957 | AE20: =SEV!BN$4 -> 58378 | AF20: =SEV!BO$4 -> 58385 | AG20: =SEV!BP$4 -> 58297 | AI20: =INDEX($M20:$AH20,Index!$B$16) -> 52891 | AJ20: =INDEX($M20:$AH20,Index!$B$19) -> 58297 | AK20: 5406 | AL20: 0.1022102059
A21: Folkestone & Hythe | B21: ='F&H'!AK$4 -> 44410 | C21: ='F&H'!AL$4 -> 44203 | D21: ='F&H'!AM$4 -> 44867 | E21: ='F&H'!AN$4 -> 44540 | F21: ='F&H'!AO$4 -> 45121 | G21: ='F&H'!AP$4 -> 45102 | H21: ='F&H'!AQ$4 -> 45093 | I21: ='F&H'!AR$4 -> 45643 | J21: ='F&H'!AS$4 -> 46121 | K21: ='F&H'!AT$4 -> 46123 | L21: ='F&H'!AU$4 -> 46736 | M21: ='F&H'!AV$4 -> 47488 | N21: ='F&H'!AW$4 -> 48299 | O21: ='F&H'!AX$4 -> 49123 | P21: ='F&H'!AY$4 -> 49903 | Q21: ='F&H'!AZ$4 -> 50723 | R21: ='F&H'!BA$4 -> 51297 | S21: ='F&H'!BB$4 -> 51867 | T21: ='F&H'!BC$4 -> 52557 | U21: ='F&H'!BD$4 -> 53287 | V21: ='F&H'!BE$4 -> 53244 | W21: ='F&H'!BF$4 -> 53061 | X21: ='F&H'!BG$4 -> 53101 | Y21: ='F&H'!BH$4 -> 53045 | Z21: ='F&H'!BI$4 -> 53449 | AA21: ='F&H'!BJ$4 -> 53424 | AB21: ='F&H'!BK$4 -> 53723 | AC21: ='F&H'!BL$4 -> 53623 | AD21: ='F&H'!BM$4 -> 53548 | AE21: ='F&H'!BN$4 -> 53719 | AF21: ='F&H'!BO$4 -> 53781 | AG21: ='F&H'!BP$4 -> 54100 | AI21: =INDEX($M21:$AH21,Index!$B$16) -> 47488 | AJ21: =INDEX($M21:$AH21,Index!$B$19) -> 54100 | AK21: 6612 | AL21: 0.1392351752
A22: Swale | B22: =SWA!AK$4 -> 57291 | C22: =SWA!AL$4 -> 57488 | D22: =SWA!AM$4 -> 57655 | E22: =SWA!AN$4 -> 58050 | F22: =SWA!AO$4 -> 57943 | G22: =SWA!AP$4 -> 58445 | H22: =SWA!AQ$4 -> 58763 | I22: =SWA!AR$4 -> 59236 | J22: =SWA!AS$4 -> 59966 | K22: =SWA!AT$4 -> 60737 | L22: =SWA!AU$4 -> 61199 | M22: =SWA!AV$4 -> 61722 | N22: =SWA!AW$4 -> 61945 | O22: =SWA!AX$4 -> 62142 | P22: =SWA!AY$4 -> 62828 | Q22: =SWA!AZ$4 -> 63946 | R22: =SWA!BA$4 -> 64953 | S22: =SWA!BB$4 -> 65616 | T22: =SWA!BC$4 -> 66742 | U22: =SWA!BD$4 -> 67418 | V22: =SWA!BE$4 -> 68253 | W22: =SWA!BF$4 -> 68983 | X22: =SWA!BG$4 -> 70034 | Y22: =SWA!BH$4 -> 70948 | Z22: =SWA!BI$4 -> 72256 | AA22: =SWA!BJ$4 -> 73152 | AB22: =SWA!BK$4 -> 73928 | AC22: =SWA!BL$4 -> 74682 | AD22: =SWA!BM$4 -> 74911 | AE22: =SWA!BN$4 -> 75544 | AF22: =SWA!BO$4 -> 76727 | AG22: =SWA!BP$4 -> 77223 | AI22: =INDEX($M22:$AH22,Index!$B$16) -> 61722 | AJ22: =INDEX($M22:$AH22,Index!$B$19) -> 77223 | AK22: 15501 | AL22: 0.2511422183
A23: Thanet | B23: =THA!AK$4 -> 59043 | C23: =THA!AL$4 -> 58721 | D23: =THA!AM$4 -> 58525 | E23: =THA!AN$4 -> 58553 | F23: =THA!AO$4 -> 58740 | G23: =THA!AP$4 -> 59280 | H23: =THA!AQ$4 -> 59376 | I23: =THA!AR$4 -> 59863 | J23: =THA!AS$4 -> 59870 | K23: =THA!AT$4 -> 60002 | L23: =THA!AU$4 -> 60617 | M23: =THA!AV$4 -> 60959 | N23: =THA!AW$4 -> 61396 | O23: =THA!AX$4 -> 61736 | P23: =THA!AY$4 -> 61965 | Q23: =THA!AZ$4 -> 62557 | R23: =THA!BA$4 -> 63171 | S23: =THA!BB$4 -> 63544 | T23: =THA!BC$4 -> 64105 | U23: =THA!BD$4 -> 64652 | V23: =THA!BE$4 -> 65206 | W23: =THA!BF$4 -> 65794 | X23: =THA!BG$4 -> 66635 | Y23: =THA!BH$4 -> 67159 | Z23: =THA!BI$4 -> 67541 | AA23: =THA!BJ$4 -> 67765 | AB23: =THA!BK$4 -> 67754 | AC23: =THA!BL$4 -> 67626 | AD23: =THA!BM$4 -> 67298 | AE23: =THA!BN$4 -> 67687 | AF23: =THA!BO$4 -> 67692 | AG23: =THA!BP$4 -> 67555 | AI23: =INDEX($M23:$AH23,Index!$B$16) -> 60959 | AJ23: =INDEX($M23:$AH23,Index!$B$19) -> 67555 | AK23: 6596 | AL23: 0.1082038747
A24: Tonbridge & Malling | B24: =TON!AK$4 -> 50143 | C24: =TON!AL$4 -> 50078 | D24: =TON!AM$4 -> 50315 | E24: =TON!AN$4 -> 50926 | F24: =TON!AO$4 -> 51289 | G24: =TON!AP$4 -> 51482 | H24: =TON!AQ$4 -> 51668 | I24: =TON!AR$4 -> 52219 | J24: =TON!AS$4 -> 52341 | K24: =TON!AT$4 -> 52751 | L24: =TON!AU$4 -> 53122 | M24: =TON!AV$4 -> 53552 | N24: =TON!AW$4 -> 54116 | O24: =TON!AX$4 -> 54778 | P24: =TON!AY$4 -> 55687 | Q24: =TON!AZ$4 -> 56548 | R24: =TON!BA$4 -> 57227 | S24: =TON!BB$4 -> 57999 | T24: =TON!BC$4 -> 58779 | U24: =TON!BD$4 -> 59318 | V24: =TON!BE$4 -> 59895 | W24: =TON!BF$4 -> 60274 | X24: =TON!BG$4 -> 60995 | Y24: =TON!BH$4 -> 61466 | Z24: =TON!BI$4 -> 62090 | AA24: =TON!BJ$4 -> 62806 | AB24: =TON!BK$4 -> 63500 | AC24: =TON!BL$4 -> 64113 | AD24: =TON!BM$4 -> 64185 | AE24: =TON!BN$4 -> 64406 | AF24: =TON!BO$4 -> 64926 | AG24: =TON!BP$4 -> 65626 | AI24: =INDEX($M24:$AH24,Index!$B$16) -> 53552 | AJ24: =INDEX($M24:$AH24,Index!$B$19) -> 65626 | AK24: 12074 | AL24: 0.2254631013
A25: Tunbridge Wells | B25: =TUN!AK$4 -> 48213 | C25: =TUN!AL$4 -> 48252 | D25: =TUN!AM$4 -> 48762 | E25: =TUN!AN$4 -> 49175 | F25: =TUN!AO$4 -> 48984 | G25: =TUN!AP$4 -> 48764 | H25: =TUN!AQ$4 -> 49207 | I25: =TUN!AR$4 -> 49473 | J25: =TUN!AS$4 -> 49876 | K25: =TUN!AT$4 -> 50050 | L25: =TUN!AU$4 -> 50254 | M25: =TUN!AV$4 -> 50477 | N25: =TUN!AW$4 -> 50929 | O25: =TUN!AX$4 -> 51304 | P25: =TUN!AY$4 -> 51924 | Q25: =TUN!AZ$4 -> 53035 | R25: =TUN!BA$4 -> 54278 | S25: =TUN!BB$4 -> 55205 | T25: =TUN!BC$4 -> 55953 | U25: =TUN!BD$4 -> 56563 | V25: =TUN!BE$4 -> 56515 | W25: =TUN!BF$4 -> 56413 | X25: =TUN!BG$4 -> 56533 | Y25: =TUN!BH$4 -> 56235 | Z25: =TUN!BI$4 -> 56385 | AA25: =TUN!BJ$4 -> 56521 | AB25: =TUN!BK$4 -> 55980 | AC25: =TUN!BL$4 -> 56022 | AD25: =TUN!BM$4 -> 56010 | AE25: =TUN!BN$4 -> 56111 | AF25: =TUN!BO$4 -> 56534 | AG25: =TUN!BP$4 -> 57027 | AI25: =INDEX($M25:$AH25,Index!$B$16) -> 50477 | AJ25: =INDEX($M25:$AH25,Index!$B$19) -> 57027 | AK25: 6550 | AL25: 0.1297620699
A26: Kent | B26: =Kent!AK$4 -> 621486 | C26: =Kent!AL$4 -> 621977 | D26: =Kent!AM$4 -> 624437 | E26: =Kent!AN$4 -> 626216 | F26: =Kent!AO$4 -> 628505 | G26: =Kent!AP$4 -> 631029 | H26: =Kent!AQ$4 -> 633169 | I26: =Kent!AR$4 -> 637418 | J26: =Kent!AS$4 -> 641412 | K26: =Kent!AT$4 -> 644788 | L26: =Kent!AU$4 -> 649093 | M26: =Kent!AV$4 -> 654859 | N26: =Kent!AW$4 -> 661130 | O26: =Kent!AX$4 -> 667670 | P26: =Kent!AY$4 -> 675641 | Q26: =Kent!AZ$4 -> 685403 | R26: =Kent!BA$4 -> 693657 | S26: =Kent!BB$4 -> 700206 | T26: =Kent!BC$4 -> 709214 | U26: =Kent!BD$4 -> 717234 | V26: =Kent!BE$4 -> 722841 | W26: =Kent!BF$4 -> 728523 | X26: =Kent!BG$4 -> 736324 | Y26: =Kent!BH$4 -> 741585 | Z26: =Kent!BI$4 -> 748456 | AA26: =Kent!BJ$4 -> 754331 | AB26: =Kent!BK$4 -> 758599 | AC26: =Kent!BL$4 -> 762837 | AD26: =Kent!BM$4 -> 764745 | AE26: =Kent!BN$4 -> 769362 | AF26: =Kent!BO$4 -> 776865 | AG26: =Kent!BP$4 -> 784056 | AI26: =INDEX($M26:$AH26,Index!$B$16) -> 654859 | AJ26: =INDEX($M26:$AH26,Index!$B$19) -> 784056 | AK26: 129197 | AL26: 0.1972897983
A27: Kent + Medway | B27: ='Kent+Med'!AK4 -> 742108 | C27: ='Kent+Med'!AL4 -> 741861 | D27: ='Kent+Med'!AM4 -> 744185 | E27: ='Kent+Med'!AN4 -> 744982 | F27: ='Kent+Med'!AO4 -> 747287 | G27: ='Kent+Med'!AP4 -> 750327 | H27: ='Kent+Med'!AQ4 -> 753919 | I27: ='Kent+Med'!AR4 -> 758772 | J27: ='Kent+Med'!AS4 -> 763956 | K27: ='Kent+Med'!AT4 -> 767781 | L27: ='Kent+Med'!AU4 -> 772494 | M27: ='Kent+Med'!AV4 -> 778707 | N27: ='Kent+Med'!AW4 -> 785055 | O27: ='Kent+Med'!AX4 -> 791843 | P27: ='Kent+Med'!AY4 -> 800500 | Q27: ='Kent+Med'!AZ4 -> 811663 | R27: ='Kent+Med'!BA4 -> 821304 | S27: ='Kent+Med'!BB4 -> 829008 | T27: ='Kent+Med'!BC4 -> 839553 | U27: ='Kent+Med'!BD4 -> 848602 | V27: ='Kent+Med'!BE4 -> 855509 | W27: ='Kent+Med'!BF4 -> 862601 | X27: ='Kent+Med'!BG4 -> 871727 | Y27: ='Kent+Med'!BH4 -> 877965 | Z27: ='Kent+Med'!BI4 -> 885399 | AA27: ='Kent+Med'!BJ4 -> 891728 | AB27: ='Kent+Med'!BK4 -> 895741 | AC27: ='Kent+Med'!BL4 -> 900359 | AD27: ='Kent+Med'!BM4 -> 902514 | AE27: ='Kent+Med'!BN4 -> 906549 | AF27: ='Kent+Med'!BO4 -> 915352 | AG27: ='Kent+Med'!BP4 -> 924390 | AI27: =INDEX($M27:$AH27,Index!$B$16) -> 778707 | AJ27: =INDEX($M27:$AH27,Index!$B$19) -> 924390 | AK27: 145683 | AL27: 0.1870832033
A28: South East Region | B28: ='South East'!AK4 -> 3728474 | C28: ='South East'!AL4 -> 3735419 | D28: ='South East'!AM4 -> 3754015 | E28: ='South East'!AN4 -> 3780782 | F28: ='South East'!AO4 -> 3801825 | G28: ='South East'!AP4 -> 3828869 | H28: ='South East'!AQ4 -> 3848358 | I28: ='South East'!AR4 -> 3883985 | J28: ='South East'!AS4 -> 3902882 | K28: ='South East'!AT4 -> 3923985 | L28: ='South East'!AU4 -> 3935274 | M28: ='South East'!AV4 -> 3959605 | N28: ='South East'!AW4 -> 3980267 | O28: ='South East'!AX4 -> 4011554 | P28: ='South East'!AY4 -> 4047844 | Q28: ='South East'!AZ4 -> 4090120 | R28: ='South East'!BA4 -> 4130547 | S28: ='South East'!BB4 -> 4163976 | T28: ='South East'!BC4 -> 4210659 | U28: ='South East'!BD4 -> 4251422 | V28: ='South East'!BE4 -> 4289814 | W28: ='South East'!BF4 -> 4327136 | X28: ='South East'!BG4 -> 4366190 | Y28: ='South East'!BH4 -> 4404632 | Z28: ='South East'!BI4 -> 4444960 | AA28: ='South East'!BJ4 -> 4467929 | AB28: ='South East'!BK4 -> 4486173 | AC28: ='South East'!BL4 -> 4504155 | AD28: ='South East'!BM4 -> 4516989 | AE28: ='South East'!BN4 -> 4548243 | AF28: ='South East'!BO4 -> 4593507 | AG28: ='South East'!BP4 -> 4638839 | AI28: =INDEX($M28:$AH28,Index!$B$16) -> 3959605 | AJ28: =INDEX($M28:$AH28,Index!$B$19) -> 4638839 | AK28: =AJ28-AI28 -> 679234 | AL28: =IF(AI28<0,0,AK28/AI28) -> 0.1715408481
A29: England & Wales | B29: ='England & Wales'!AK4 -> 24739461 | C29: ='England & Wales'!AL4 -> 24792642 | D29: ='England & Wales'!AM4 -> 24853043 | E29: ='England & Wales'!AN4 -> 24946334 | F29: ='England & Wales'!AO4 -> 25029777 | G29: ='England & Wales'!AP4 -> 25113194 | H29: ='England & Wales'!AQ4 -> 25200700 | I29: ='England & Wales'!AR4 -> 25323441 | J29: ='England & Wales'!AS4 -> 25438046 | K29: ='England & Wales'!AT4 -> 25574258 | L29: ='England & Wales'!AU4 -> 25708118 | M29: ='England & Wales'!AV4 -> 25854109 | N29: ='England & Wales'!AW4 -> 26012115 | O29: ='England & Wales'!AX4 -> 26234398 | P29: ='England & Wales'!AY4 -> 26433350 | Q29: ='England & Wales'!AZ4 -> 26669068 | R29: ='England & Wales'!BA4 -> 26914321 | S29: ='England & Wales'!BB4 -> 27121680 | T29: ='England & Wales'!BC4 -> 27372737 | U29: ='England & Wales'!BD4 -> 27637637 | V29: ='England & Wales'!BE4 -> 27825600 | W29: ='England & Wales'!BF4 -> 28016359 | X29: ='England & Wales'!BG4 -> 28232465 | Y29: ='England & Wales'!BH4 -> 28451237 | Z29: ='England & Wales'!BI4 -> 28676053 | AA29: ='England & Wales'!BJ4 -> 28823855 | AB29: ='England & Wales'!BK4 -> 28952751 | AC29: ='England & Wales'!BL4 -> 29085955 | AD29: ='England & Wales'!BM4 -> 29118166 | AE29: ='England & Wales'!BN4 -> 29203353 | AF29: ='England & Wales'!BO4 -> 29521521 | AG29: ='England & Wales'!BP4 -> 29835992 | AI29: =INDEX($M29:$AH29,Index!$B$16) -> 25854109 | AJ29: =INDEX($M29:$AH29,Index!$B$19) -> 29835992 | AK29: =AJ29-AI29 -> 3981883 | AL29: =IF(AI29<0,0,AK29/AI29) -> 0.1540135458
A31: Females
B32: 1992 | C32: 1993 | D32: 1994 | E32: 1995 | F32: 1996 | G32: 1997 | H32: 1998 | I32: 1999 | J32: 2000 | K32: 2001 | L32: 2002 | M32: 2003 | N32: 2004 | O32: 2005 | P32: 2006 | Q32: 2007 | R32: 2008 | S32: 2009 | T32: 2010 | U32: 2011 | V32: 2012 | W32: 2013 | X32: 2014 | Y32: 2015 | Z32: 2016 | AA32: 2017 | AB32: 2018 | AC32: 2019 | AD32: 2020 | AE32: 2021 | AF32: 2022 | AG32: 2023 | AI32: =Index!$C$16 -> 2003 | AJ32: =Index!$C$19 -> 2023 | AK32: Number change | AL32: % change
A33: -
A34: Ashford | B34: =ASH!AK$5 -> 47936 | C34: =ASH!AL$5 -> 47898 | D34: =ASH!AM$5 -> 48201 | E34: =ASH!AN$5 -> 48749 | F34: =ASH!AO$5 -> 49390 | G34: =ASH!AP$5 -> 49956 | H34: =ASH!AQ$5 -> 50190 | I34: =ASH!AR$5 -> 51338 | J34: =ASH!AS$5 -> 52042 | K34: =ASH!AT$5 -> 52882 | L34: =ASH!AU$5 -> 53622 | M34: =ASH!AV$5 -> 54327 | N34: =ASH!AW$5 -> 55223 | O34: =ASH!AX$5 -> 56392 | P34: =ASH!AY$5 -> 57449 | Q34: =ASH!AZ$5 -> 58332 | R34: =ASH!BA$5 -> 58953 | S34: =ASH!BB$5 -> 59506 | T34: =ASH!BC$5 -> 60238 | U34: =ASH!BD$5 -> 60964 | V34: =ASH!BE$5 -> 61926 | W34: =ASH!BF$5 -> 62750 | X34: =ASH!BG$5 -> 63667 | Y34: =ASH!BH$5 -> 64077 | Z34: =ASH!BI$5 -> 64988 | AA34: =ASH!BJ$5 -> 65831 | AB34: =ASH!BK$5 -> 66657 | AC34: =ASH!BL$5 -> 67027 | AD34: =ASH!BM$5 -> 67518 | AE34: =ASH!BN$5 -> 68428 | AF34: =ASH!BO$5 -> 69655 | AG34: =ASH!BP$5 -> 70977 | AI34: =INDEX($M34:$AH34,Index!$B$16) -> 54327 | AJ34: =INDEX($M34:$AH34,Index!$B$19) -> 70977 | AK34: =AJ34-AI34 -> 16650 | AL34: =IF(AI34<0,0,AK34/AI34) -> 0.3064774422
A35: Canterbury | B35: =CAN!AK$5 -> 67941 | C35: =CAN!AL$5 -> 68009 | D35: =CAN!AM$5 -> 68195 | E35: =CAN!AN$5 -> 68408 | F35: =CAN!AO$5 -> 68680 | G35: =CAN!AP$5 -> 69311 | H35: =CAN!AQ$5 -> 69240 | I35: =CAN!AR$5 -> 70079 | J35: =CAN!AS$5 -> 70913 | K35: =CAN!AT$5 -> 71175 | L35: =CAN!AU$5 -> 71760 | M35: =CAN!AV$5 -> 72576 | N35: =CAN!AW$5 -> 73511 | O35: =CAN!AX$5 -> 74374 | P35: =CAN!AY$5 -> 75166 | Q35: =CAN!AZ$5 -> 75874 | R35: =CAN!BA$5 -> 76271 | S35: =CAN!BB$5 -> 76331 | T35: =CAN!BC$5 -> 77321 | U35: =CAN!BD$5 -> 78035 | V35: =CAN!BE$5 -> 78621 | W35: =CAN!BF$5 -> 79468 | X35: =CAN!BG$5 -> 80446 | Y35: =CAN!BH$5 -> 80844 | Z35: =CAN!BI$5 -> 81309 | AA35: =CAN!BJ$5 -> 81615 | AB35: =CAN!BK$5 -> 81586 | AC35: =CAN!BL$5 -> 81589 | AD35: =CAN!BM$5 -> 81716 | AE35: =CAN!BN$5 -> 81426 | AF35: =CAN!BO$5 -> 82052 | AG35: =CAN!BP$5 -> 82874 | AI35: =INDEX($M35:$AH35,Index!$B$16) -> 72576 | AJ35: =INDEX($M35:$AH35,Index!$B$19) -> 82874 | AK35: =AJ35-AI35 -> 10298 | AL35: =IF(AI35<0,0,AK35/AI35) -> 0.1418926367
A36: Dartford | B36: =DAR!AK$5 -> 41364 | C36: =DAR!AL$5 -> 41716 | D36: =DAR!AM$5 -> 42101 | E36: =DAR!AN$5 -> 42154 | F36: =DAR!AO$5 -> 42328 | G36: =DAR!AP$5 -> 42735 | H36: =DAR!AQ$5 -> 43160 | I36: =DAR!AR$5 -> 43395 | J36: =DAR!AS$5 -> 43640 | K36: =DAR!AT$5 -> 43795 | L36: =DAR!AU$5 -> 43910 | M36: =DAR!AV$5 -> 44141 | N36: =DAR!AW$5 -> 44860 | O36: =DAR!AX$5 -> 45766 | P36: =DAR!AY$5 -> 46372 | Q36: =DAR!AZ$5 -> 46867 | R36: =DAR!BA$5 -> 47746 | S36: =DAR!BB$5 -> 48381 | T36: =DAR!BC$5 -> 48793 | U36: =DAR!BD$5 -> 49417 | V36: =DAR!BE$5 -> 50198 | W36: =DAR!BF$5 -> 51060 | X36: =DAR!BG$5 -> 52270 | Y36: =DAR!BH$5 -> 53191 | Z36: =DAR!BI$5 -> 54090 | AA36: =DAR!BJ$5 -> 55267 | AB36: =DAR!BK$5 -> 56577 | AC36: =DAR!BL$5 -> 58200 | AD36: =DAR!BM$5 -> 58937 | AE36: =DAR!BN$5 -> 59678 | AF36: =DAR!BO$5 -> 60703 | AG36: =DAR!BP$5 -> 61826 | AI36: =INDEX($M36:$AH36,Index!$B$16) -> 44141 | AJ36: =INDEX($M36:$AH36,Index!$B$19) -> 61826 | AK36: 17685 | AL36: 0.4006479237
A37: Dover | B37: =DOV!AK$5 -> 53760 | C37: =DOV!AL$5 -> 53543 | D37: =DOV!AM$5 -> 53786 | E37: =DOV!AN$5 -> 53758 | F37: =DOV!AO$5 -> 53669 | G37: =DOV!AP$5 -> 53800 | H37: =DOV!AQ$5 -> 53730 | I37: =DOV!AR$5 -> 54095 | J37: =DOV!AS$5 -> 54191 | K37: =DOV!AT$5 -> 54279 | L37: =DOV!AU$5 -> 54339 | M37: =DOV!AV$5 -> 54763 | N37: =DOV!AW$5 -> 55250 | O37: =DOV!AX$5 -> 55539 | P37: =DOV!AY$5 -> 55568 | Q37: =DOV!AZ$5 -> 56065 | R37: =DOV!BA$5 -> 56331 | S37: =DOV!BB$5 -> 56357 | T37: =DOV!BC$5 -> 56725 | U37: =DOV!BD$5 -> 56938 | V37: =DOV!BE$5 -> 56858 | W37: =DOV!BF$5 -> 57161 | X37: =DOV!BG$5 -> 57382 | Y37: =DOV!BH$5 -> 57496 | Z37: =DOV!BI$5 -> 57901 | AA37: =DOV!BJ$5 -> 58429 | AB37: =DOV!BK$5 -> 58697 | AC37: =DOV!BL$5 -> 59225 | AD37: =DOV!BM$5 -> 59456 | AE37: =DOV!BN$5 -> 59692 | AF37: =DOV!BO$5 -> 60298 | AG37: =DOV!BP$5 -> 60889 | AI37: =INDEX($M37:$AH37,Index!$B$16) -> 54763 | AJ37: =INDEX($M37:$AH37,Index!$B$19) -> 60889 | AK37: 6126 | AL37: 0.1118638497
A38: Gravesham | B38: =GRA!AK$5 -> 47871 | C38: =GRA!AL$5 -> 47793 | D38: =GRA!AM$5 -> 47881 | E38: =GRA!AN$5 -> 47833 | F38: =GRA!AO$5 -> 47612 | G38: =GRA!AP$5 -> 47744 | H38: =GRA!AQ$5 -> 48055 | I38: =GRA!AR$5 -> 48353 | J38: =GRA!AS$5 -> 48615 | K38: =GRA!AT$5 -> 48863 | L38: =GRA!AU$5 -> 48546 | M38: =GRA!AV$5 -> 48534 | N38: =GRA!AW$5 -> 48698 | O38: =GRA!AX$5 -> 49242 | P38: =GRA!AY$5 -> 49540 | Q38: =GRA!AZ$5 -> 50018 | R38: =GRA!BA$5 -> 50512 | S38: =GRA!BB$5 -> 50932 | T38: =GRA!BC$5 -> 51299 | U38: =GRA!BD$5 -> 51586 | V38: =GRA!BE$5 -> 52147 | W38: =GRA!BF$5 -> 52673 | X38: =GRA!BG$5 -> 53422 | Y38: =GRA!BH$5 -> 53923 | Z38: =GRA!BI$5 -> 54217 | AA38: =GRA!BJ$5 -> 54201 | AB38: =GRA!BK$5 -> 54425 | AC38: =GRA!BL$5 -> 54780 | AD38: =GRA!BM$5 -> 54731 | AE38: =GRA!BN$5 -> 54656 | AF38: =GRA!BO$5 -> 54778 | AG38: =GRA!BP$5 -> 55277 | AI38: =INDEX($M38:$AH38,Index!$B$16) -> 48534 | AJ38: =INDEX($M38:$AH38,Index!$B$19) -> 55277 | AK38: 6743 | AL38: 0.1389335311
A39: Maidstone | B39: =MAI!AK$5 -> 70014 | C39: =MAI!AL$5 -> 70079 | D39: =MAI!AM$5 -> 69853 | E39: =MAI!AN$5 -> 70006 | F39: =MAI!AO$5 -> 70382 | G39: =MAI!AP$5 -> 70496 | H39: =MAI!AQ$5 -> 70341 | I39: =MAI!AR$5 -> 70195 | J39: =MAI!AS$5 -> 70443 | K39: =MAI!AT$5 -> 70663 | L39: =MAI!AU$5 -> 71341 | M39: =MAI!AV$5 -> 71743 | N39: =MAI!AW$5 -> 72314 | O39: =MAI!AX$5 -> 72847 | P39: =MAI!AY$5 -> 73769 | Q39: =MAI!AZ$5 -> 74929 | R39: =MAI!BA$5 -> 75788 | S39: =MAI!BB$5 -> 76803 | T39: =MAI!BC$5 -> 77876 | U39: =MAI!BD$5 -> 78896 | V39: =MAI!BE$5 -> 79820 | W39: =MAI!BF$5 -> 80663 | X39: =MAI!BG$5 -> 81677 | Y39: =MAI!BH$5 -> 82780 | Z39: =MAI!BI$5 -> 83643 | AA39: =MAI!BJ$5 -> 84741 | AB39: =MAI!BK$5 -> 85649 | AC39: =MAI!BL$5 -> 86801 | AD39: =MAI!BM$5 -> 87548 | AE39: =MAI!BN$5 -> 89403 | AF39: =MAI!BO$5 -> 91512 | AG39: =MAI!BP$5 -> 93365 | AI39: =INDEX($M39:$AH39,Index!$B$16) -> 71743 | AJ39: =INDEX($M39:$AH39,Index!$B$19) -> 93365 | AK39: 21622 | AL39: 0.3013813194
A40: Medway | B40: =MED!AK$5 -> 123064 | C40: =MED!AL$5 -> 122732 | D40: =MED!AM$5 -> 122838 | E40: =MED!AN$5 -> 122651 | F40: =MED!AO$5 -> 122505 | G40: =MED!AP$5 -> 123016 | H40: =MED!AQ$5 -> 124591 | I40: =MED!AR$5 -> 125029 | J40: =MED!AS$5 -> 125930 | K40: =MED!AT$5 -> 126711 | L40: =MED!AU$5 -> 126861 | M40: =MED!AV$5 -> 127311 | N40: =MED!AW$5 -> 127534 | O40: =MED!AX$5 -> 127925 | P40: =MED!AY$5 -> 128619 | Q40: =MED!AZ$5 -> 129564 | R40: =MED!BA$5 -> 130577 | S40: =MED!BB$5 -> 131428 | T40: =MED!BC$5 -> 132399 | U40: =MED!BD$5 -> 133517 | V40: =MED!BE$5 -> 135476 | W40: =MED!BF$5 -> 137006 | X40: =MED!BG$5 -> 138574 | Y40: =MED!BH$5 -> 139657 | Z40: =MED!BI$5 -> 140561 | AA40: =MED!BJ$5 -> 141255 | AB40: =MED!BK$5 -> 141685 | AC40: =MED!BL$5 -> 142330 | AD40: =MED!BM$5 -> 142595 | AE40: =MED!BN$5 -> 142716 | AF40: =MED!BO$5 -> 144156 | AG40: =MED!BP$5 -> 146466 | AI40: =INDEX($M40:$AH40,Index!$B$16) -> 127311 | AJ40: =INDEX($M40:$AH40,Index!$B$19) -> 146466 | AK40: 19155 | AL40: 0.1504583265
A41: Sevenoaks | B41: =SEV!AK$5 -> 55843 | C41: =SEV!AL$5 -> 55914 | D41: =SEV!AM$5 -> 56106 | E41: =SEV!AN$5 -> 55786 | F41: =SEV!AO$5 -> 55997 | G41: =SEV!AP$5 -> 56358 | H41: =SEV!AQ$5 -> 56245 | I41: =SEV!AR$5 -> 56508 | J41: =SEV!AS$5 -> 56519 | K41: =SEV!AT$5 -> 56374 | L41: =SEV!AU$5 -> 56354 | M41: =SEV!AV$5 -> 56389 | N41: =SEV!AW$5 -> 56890 | O41: =SEV!AX$5 -> 57548 | P41: =SEV!AY$5 -> 58210 | Q41: =SEV!AZ$5 -> 58456 | R41: =SEV!BA$5 -> 58506 | S41: =SEV!BB$5 -> 58668 | T41: =SEV!BC$5 -> 59031 | U41: =SEV!BD$5 -> 59376 | V41: =SEV!BE$5 -> 59907 | W41: =SEV!BF$5 -> 60128 | X41: =SEV!BG$5 -> 60626 | Y41: =SEV!BH$5 -> 60774 | Z41: =SEV!BI$5 -> 61059 | AA41: =SEV!BJ$5 -> 61100 | AB41: =SEV!BK$5 -> 61483 | AC41: =SEV!BL$5 -> 61751 | AD41: =SEV!BM$5 -> 62094 | AE41: =SEV!BN$5 -> 62445 | AF41: =SEV!BO$5 -> 62788 | AG41: =SEV!BP$5 -> 62965 | AI41: =INDEX($M41:$AH41,Index!$B$16) -> 56389 | AJ41: =INDEX($M41:$AH41,Index!$B$19) -> 62965 | AK41: 6576 | AL41: 0.1166184894
A42: Folkestone & Hythe | B42: ='F&H'!AK$5 -> 49064 | C42: ='F&H'!AL$5 -> 49198 | D42: ='F&H'!AM$5 -> 49204 | E42: ='F&H'!AN$5 -> 49440 | F42: ='F&H'!AO$5 -> 49852 | G42: ='F&H'!AP$5 -> 49778 | H42: ='F&H'!AQ$5 -> 49717 | I42: ='F&H'!AR$5 -> 50168 | J42: ='F&H'!AS$5 -> 50296 | K42: ='F&H'!AT$5 -> 50222 | L42: ='F&H'!AU$5 -> 50469 | M42: ='F&H'!AV$5 -> 51052 | N42: ='F&H'!AW$5 -> 51650 | O42: ='F&H'!AX$5 -> 52386 | P42: ='F&H'!AY$5 -> 52566 | Q42: ='F&H'!AZ$5 -> 53179 | R42: ='F&H'!BA$5 -> 53485 | S42: ='F&H'!BB$5 -> 53849 | T42: ='F&H'!BC$5 -> 54405 | U42: ='F&H'!BD$5 -> 54912 | V42: ='F&H'!BE$5 -> 54941 | W42: ='F&H'!BF$5 -> 54838 | X42: ='F&H'!BG$5 -> 55052 | Y42: ='F&H'!BH$5 -> 55282 | Z42: ='F&H'!BI$5 -> 55786 | AA42: ='F&H'!BJ$5 -> 55671 | AB42: ='F&H'!BK$5 -> 56005 | AC42: ='F&H'!BL$5 -> 56036 | AD42: ='F&H'!BM$5 -> 56039 | AE42: ='F&H'!BN$5 -> 56321 | AF42: ='F&H'!BO$5 -> 56575 | AG42: ='F&H'!BP$5 -> 56895 | AI42: =INDEX($M42:$AH42,Index!$B$16) -> 51052 | AJ42: =INDEX($M42:$AH42,Index!$B$19) -> 56895 | AK42: 5843 | AL42: 0.1144519314
A43: Swale | B43: =SWA!AK$5 -> 58888 | C43: =SWA!AL$5 -> 59181 | D43: =SWA!AM$5 -> 59143 | E43: =SWA!AN$5 -> 59502 | F43: =SWA!AO$5 -> 59394 | G43: =SWA!AP$5 -> 59823 | H43: =SWA!AQ$5 -> 59930 | I43: =SWA!AR$5 -> 60843 | J43: =SWA!AS$5 -> 61672 | K43: =SWA!AT$5 -> 62386 | L43: =SWA!AU$5 -> 62973 | M43: =SWA!AV$5 -> 63626 | N43: =SWA!AW$5 -> 63945 | O43: =SWA!AX$5 -> 64374 | P43: =SWA!AY$5 -> 64740 | Q43: =SWA!AZ$5 -> 65775 | R43: =SWA!BA$5 -> 66767 | S43: =SWA!BB$5 -> 67414 | T43: =SWA!BC$5 -> 68238 | U43: =SWA!BD$5 -> 68906 | V43: =SWA!BE$5 -> 69441 | W43: =SWA!BF$5 -> 70152 | X43: =SWA!BG$5 -> 70958 | Y43: =SWA!BH$5 -> 71775 | Z43: =SWA!BI$5 -> 72928 | AA43: =SWA!BJ$5 -> 73694 | AB43: =SWA!BK$5 -> 74472 | AC43: =SWA!BL$5 -> 75071 | AD43: =SWA!BM$5 -> 75673 | AE43: =SWA!BN$5 -> 76674 | AF43: =SWA!BO$5 -> 77871 | AG43: =SWA!BP$5 -> 78670 | AI43: =INDEX($M43:$AH43,Index!$B$16) -> 63626 | AJ43: =INDEX($M43:$AH43,Index!$B$19) -> 78670 | AK43: 15044 | AL43: 0.2364442209
A44: Thanet | B44: =THA!AK$5 -> 66359 | C44: =THA!AL$5 -> 65947 | D44: =THA!AM$5 -> 65855 | E44: =THA!AN$5 -> 65712 | F44: =THA!AO$5 -> 65693 | G44: =THA!AP$5 -> 66090 | H44: =THA!AQ$5 -> 66147 | I44: =THA!AR$5 -> 66613 | J44: =THA!AS$5 -> 66583 | K44: =THA!AT$5 -> 66748 | L44: =THA!AU$5 -> 67058 | M44: =THA!AV$5 -> 67181 | N44: =THA!AW$5 -> 67386 | O44: =THA!AX$5 -> 67565 | P44: =THA!AY$5 -> 67636 | Q44: =THA!AZ$5 -> 68080 | R44: =THA!BA$5 -> 68579 | S44: =THA!BB$5 -> 68793 | T44: =THA!BC$5 -> 69403 | U44: =THA!BD$5 -> 69750 | V44: =THA!BE$5 -> 70524 | W44: =THA!BF$5 -> 71122 | X44: =THA!BG$5 -> 72060 | Y44: =THA!BH$5 -> 72509 | Z44: =THA!BI$5 -> 72832 | AA44: =THA!BJ$5 -> 72915 | AB44: =THA!BK$5 -> 73094 | AC44: =THA!BL$5 -> 72998 | AD44: =THA!BM$5 -> 72647 | AE44: =THA!BN$5 -> 72971 | AF44: =THA!BO$5 -> 72991 | AG44: =THA!BP$5 -> 72884 | AI44: =INDEX($M44:$AH44,Index!$B$16) -> 67181 | AJ44: =INDEX($M44:$AH44,Index!$B$19) -> 72884 | AK44: 5703 | AL44: 0.08489007309
A45: Tonbridge & Malling | B45: =TON!AK$5 -> 51563 | C45: =TON!AL$5 -> 51578 | D45: =TON!AM$5 -> 51947 | E45: =TON!AN$5 -> 52572 | F45: =TON!AO$5 -> 52981 | G45: =TON!AP$5 -> 53189 | H45: =TON!AQ$5 -> 53499 | I45: =TON!AR$5 -> 54157 | J45: =TON!AS$5 -> 54543 | K45: =TON!AT$5 -> 55020 | L45: =TON!AU$5 -> 55551 | M45: =TON!AV$5 -> 55942 | N45: =TON!AW$5 -> 56325 | O45: =TON!AX$5 -> 56941 | P45: =TON!AY$5 -> 57849 | Q45: =TON!AZ$5 -> 58921 | R45: =TON!BA$5 -> 59740 | S45: =TON!BB$5 -> 60460 | T45: =TON!BC$5 -> 61275 | U45: =TON!BD$5 -> 61769 | V45: =TON!BE$5 -> 62151 | W45: =TON!BF$5 -> 62732 | X45: =TON!BG$5 -> 63608 | Y45: =TON!BH$5 -> 64246 | Z45: =TON!BI$5 -> 65000 | AA45: =TON!BJ$5 -> 65874 | AB45: =TON!BK$5 -> 66649 | AC45: =TON!BL$5 -> 67389 | AD45: =TON!BM$5 -> 67606 | AE45: =TON!BN$5 -> 67957 | AF45: =TON!BO$5 -> 68738 | AG45: =TON!BP$5 -> 69580 | AI45: =INDEX($M45:$AH45,Index!$B$16) -> 55942 | AJ45: =INDEX($M45:$AH45,Index!$B$19) -> 69580 | AK45: 13638 | AL45: 0.2437882092
A46: Tunbridge Wells | B46: =TUN!AK$5 -> 53146 | C46: =TUN!AL$5 -> 52973 | D46: =TUN!AM$5 -> 53390 | E46: =TUN!AN$5 -> 53602 | F46: =TUN!AO$5 -> 53180 | G46: =TUN!AP$5 -> 52796 | H46: =TUN!AQ$5 -> 53300 | I46: =TUN!AR$5 -> 53558 | J46: =TUN!AS$5 -> 53810 | K46: =TUN!AT$5 -> 53999 | L46: =TUN!AU$5 -> 53952 | M46: =TUN!AV$5 -> 53913 | N46: =TUN!AW$5 -> 54202 | O46: =TUN!AX$5 -> 54573 | P46: =TUN!AY$5 -> 55128 | Q46: =TUN!AZ$5 -> 55892 | R46: =TUN!BA$5 -> 56973 | S46: =TUN!BB$5 -> 57569 | T46: =TUN!BC$5 -> 58087 | U46: =TUN!BD$5 -> 58683 | V46: =TUN!BE$5 -> 58887 | W46: =TUN!BF$5 -> 58751 | X46: =TUN!BG$5 -> 58695 | Y46: =TUN!BH$5 -> 58534 | Z46: =TUN!BI$5 -> 58813 | AA46: =TUN!BJ$5 -> 59038 | AB46: =TUN!BK$5 -> 58960 | AC46: =TUN!BL$5 -> 59136 | AD46: =TUN!BM$5 -> 59261 | AE46: =TUN!BN$5 -> 59539 | AF46: =TUN!BO$5 -> 59641 | AG46: =TUN!BP$5 -> 59993 | AI46: =INDEX($M46:$AH46,Index!$B$16) -> 53913 | AJ46: =INDEX($M46:$AH46,Index!$B$19) -> 59993 | AK46: 6080 | AL46: 0.1127742845
A47: Kent | B47: =Kent!AK$5 -> 663749 | C47: =Kent!AL$5 -> 663829 | D47: =Kent!AM$5 -> 665662 | E47: =Kent!AN$5 -> 667522 | F47: =Kent!AO$5 -> 669158 | G47: =Kent!AP$5 -> 672076 | H47: =Kent!AQ$5 -> 673554 | I47: =Kent!AR$5 -> 679302 | J47: =Kent!AS$5 -> 683267 | K47: =Kent!AT$5 -> 686406 | L47: =Kent!AU$5 -> 689875 | M47: =Kent!AV$5 -> 694187 | N47: =Kent!AW$5 -> 700254 | O47: =Kent!AX$5 -> 707547 | P47: =Kent!AY$5 -> 713993 | Q47: =Kent!AZ$5 -> 722388 | R47: =Kent!BA$5 -> 729651 | S47: =Kent!BB$5 -> 735063 | T47: =Kent!BC$5 -> 742691 | U47: =Kent!BD$5 -> 749232 | V47: =Kent!BE$5 -> 755421 | W47: =Kent!BF$5 -> 761498 | X47: =Kent!BG$5 -> 769863 | Y47: =Kent!BH$5 -> 775431 | Z47: =Kent!BI$5 -> 782566 | AA47: =Kent!BJ$5 -> 788376 | AB47: =Kent!BK$5 -> 794254 | AC47: =Kent!BL$5 -> 800003 | AD47: =Kent!BM$5 -> 803226 | AE47: =Kent!BN$5 -> 809190 | AF47: =Kent!BO$5 -> 817602 | AG47: =Kent!BP$5 -> 826195 | AI47: =INDEX($M47:$AH47,Index!$B$16) -> 694187 | AJ47: =INDEX($M47:$AH47,Index!$B$19) -> 826195 | AK47: 132008 | AL47: 0.1901620169
A48: Kent + Medway | B48: ='Kent+Med'!AK5 -> 786813 | C48: ='Kent+Med'!AL5 -> 786561 | D48: ='Kent+Med'!AM5 -> 788500 | E48: ='Kent+Med'!AN5 -> 790173 | F48: ='Kent+Med'!AO5 -> 791663 | G48: ='Kent+Med'!AP5 -> 795092 | H48: ='Kent+Med'!AQ5 -> 798145 | I48: ='Kent+Med'!AR5 -> 804331 | J48: ='Kent+Med'!AS5 -> 809197 | K48: ='Kent+Med'!AT5 -> 813117 | L48: ='Kent+Med'!AU5 -> 816736 | M48: ='Kent+Med'!AV5 -> 821498 | N48: ='Kent+Med'!AW5 -> 827788 | O48: ='Kent+Med'!AX5 -> 835472 | P48: ='Kent+Med'!AY5 -> 842612 | Q48: ='Kent+Med'!AZ5 -> 851952 | R48: ='Kent+Med'!BA5 -> 860228 | S48: ='Kent+Med'!BB5 -> 866491 | T48: ='Kent+Med'!BC5 -> 875090 | U48: ='Kent+Med'!BD5 -> 882749 | V48: ='Kent+Med'!BE5 -> 890897 | W48: ='Kent+Med'!BF5 -> 898504 | X48: ='Kent+Med'!BG5 -> 908437 | Y48: ='Kent+Med'!BH5 -> 915088 | Z48: ='Kent+Med'!BI5 -> 923127 | AA48: ='Kent+Med'!BJ5 -> 929631 | AB48: ='Kent+Med'!BK5 -> 935939 | AC48: ='Kent+Med'!BL5 -> 942333 | AD48: ='Kent+Med'!BM5 -> 945821 | AE48: ='Kent+Med'!BN5 -> 951906 | AF48: ='Kent+Med'!BO5 -> 961758 | AG48: ='Kent+Med'!BP5 -> 972661 | AI48: =INDEX($M48:$AH48,Index!$B$16) -> 821498 | AJ48: =INDEX($M48:$AH48,Index!$B$19) -> 972661 | AK48: 151163 | AL48: 0.184008969
A49: South East Region | B49: ='South East'!AK5 -> 3928120 | C49: ='South East'!AL5 -> 3937753 | D49: ='South East'!AM5 -> 3957579 | E49: ='South East'!AN5 -> 3982196 | F49: ='South East'!AO5 -> 3998581 | G49: ='South East'!AP5 -> 4024233 | H49: ='South East'!AQ5 -> 4040480 | I49: ='South East'!AR5 -> 4071139 | J49: ='South East'!AS5 -> 4087716 | K49: ='South East'!AT5 -> 4099464 | L49: ='South East'!AU5 -> 4109918 | M49: ='South East'!AV5 -> 4128319 | N49: ='South East'!AW5 -> 4152833 | O49: ='South East'!AX5 -> 4191342 | P49: ='South East'!AY5 -> 4223017 | Q49: ='South East'!AZ5 -> 4261271 | R49: ='South East'!BA5 -> 4295852 | S49: ='South East'!BB5 -> 4326946 | T49: ='South East'!BC5 -> 4367112 | U49: ='South East'!BD5 -> 4401362 | V49: ='South East'!BE5 -> 4442026 | W49: ='South East'!BF5 -> 4482246 | X49: ='South East'!BG5 -> 4527740 | Y49: ='South East'!BH5 -> 4565006 | Z49: ='South East'!BI5 -> 4608051 | AA49: ='South East'!BJ5 -> 4637147 | AB49: ='South East'!BK5 -> 4664072 | AC49: ='South East'!BL5 -> 4689615 | AD49: ='South East'!BM5 -> 4708284 | AE49: ='South East'!BN5 -> 4747586 | AF49: ='South East'!BO5 -> 4793779 | AG49: ='South East'!BP5 -> 4843668 | AI49: =INDEX($M49:$AH49,Index!$B$16) -> 4128319 | AJ49: =INDEX($M49:$AH49,Index!$B$19) -> 4843668 | AK49: =AJ49-AI49 -> 715349 | AL49: =IF(AI49<0,0,AK49/AI49) -> 0.1732785184
A50: England & Wales | B50: ='England & Wales'!AK5 -> 26136186 | C50: ='England & Wales'!AL5 -> 26193235 | D50: ='England & Wales'!AM5 -> 26263185 | E50: ='England & Wales'!AN5 -> 26325644 | F50: ='England & Wales'!AO5 -> 26380656 | G50: ='England & Wales'!AP5 -> 26446454 | H50: ='England & Wales'!AQ5 -> 26519404 | I50: ='England & Wales'!AR5 -> 26610030 | J50: ='England & Wales'!AS5 -> 26702135 | K50: ='England & Wales'!AT5 -> 26785720 | L50: ='England & Wales'!AU5 -> 26894025 | M50: ='England & Wales'!AV5 -> 27009129 | N50: ='England & Wales'!AW5 -> 27139907 | O50: ='England & Wales'!AX5 -> 27340945 | P50: ='England & Wales'!AY5 -> 27517504 | Q50: ='England & Wales'!AZ5 -> 27718324 | R50: ='England & Wales'!BA5 -> 27927399 | S50: ='England & Wales'!BB5 -> 28113573 | T50: ='England & Wales'!BC5 -> 28319686 | U50: ='England & Wales'!BD5 -> 28533290 | V50: ='England & Wales'!BE5 -> 28752140 | W50: ='England & Wales'!BF5 -> 28973385 | X50: ='England & Wales'!BG5 -> 29211642 | Y50: ='England & Wales'!BH5 -> 29430178 | Z50: ='England & Wales'!BI5 -> 29690146 | AA50: ='England & Wales'!BJ5 -> 29877059 | AB50: ='England & Wales'!BK5 -> 30055617 | AC50: ='England & Wales'!BL5 -> 30231833 | AD50: ='England & Wales'!BM5 -> 30312278 | AE50: ='England & Wales'!BN5 -> 30457171 | AF50: ='England & Wales'!BO5 -> 30723697 | AG50: ='England & Wales'!BP5 -> 31018735 | AI50: =INDEX($M50:$AH50,Index!$B$16) -> 27009129 | AJ50: =INDEX($M50:$AH50,Index!$B$19) -> 31018735 | AK50: =AJ50-AI50 -> 4009606 | AL50: =IF(AI50<0,0,AK50/AI50) -> 0.1484537321
A52: Total
B53: 1992 | C53: 1993 | D53: 1994 | E53: 1995 | F53: 1996 | G53: 1997 | H53: 1998 | I53: 1999 | J53: 2000 | K53: 2001 | L53: 2002 | M53: 2003 | N53: 2004 | O53: 2005 | P53: 2006 | Q53: 2007 | R53: 2008 | S53: 2009 | T53: 2010 | U53: 2011 | V53: 2012 | W53: 2013 | X53: 2014 | Y53: 2015 | Z53: 2016 | AA53: 2017 | AB53: 2018 | AC53: 2019 | AD53: 2020 | AE53: 2021 | AF53: 2022 | AG53: 2023 | AI53: =Index!$C$16 -> 2003 | AJ53: =Index!$C$19 -> 2023 | AK53: Number change | AL53: % change
A54: -
A55: Ashford | B55: =ASH!AK$6 -> 93092 | C55: =ASH!AL$6 -> 93092 | D55: =ASH!AM$6 -> 93763 | E55: =ASH!AN$6 -> 95066 | F55: =ASH!AO$6 -> 96442 | G55: =ASH!AP$6 -> 97536 | H55: =ASH!AQ$6 -> 97975 | I55: =ASH!AR$6 -> 100072 | J55: =ASH!AS$6 -> 101377 | K55: =ASH!AT$6 -> 103024 | L55: =ASH!AU$6 -> 104377 | M55: =ASH!AV$6 -> 105636 | N55: =ASH!AW$6 -> 107264 | O55: =ASH!AX$6 -> 109409 | P55: =ASH!AY$6 -> 111459 | Q55: =ASH!AZ$6 -> 113286 | R55: =ASH!BA$6 -> 114556 | S55: =ASH!BB$6 -> 115694 | T55: =ASH!BC$6 -> 116975 | U55: =ASH!BD$6 -> 118405 | V55: =ASH!BE$6 -> 120191 | W55: =ASH!BF$6 -> 121850 | X55: =ASH!BG$6 -> 123682 | Y55: =ASH!BH$6 -> 124580 | Z55: =ASH!BI$6 -> 126327 | AA55: =ASH!BJ$6 -> 128049 | AB55: =ASH!BK$6 -> 129701 | AC55: =ASH!BL$6 -> 130466 | AD55: =ASH!BM$6 -> 131431 | AE55: =ASH!BN$6 -> 133221 | AF55: =ASH!BO$6 -> 135741 | AG55: =ASH!BP$6 -> 138283 | AI55: =INDEX($M55:$AH55,Index!$B$16) -> 105636 | AJ55: =INDEX($M55:$AH55,Index!$B$19) -> 138283 | AK55: =AJ55-AI55 -> 32647 | AL55: =IF(AI55<0,0,AK55/AI55) -> 0.3090518384
A56: Canterbury | B56: =CAN!AK$6 -> 128843 | C56: =CAN!AL$6 -> 129777 | D56: =CAN!AM$6 -> 130380 | E56: =CAN!AN$6 -> 130689 | F56: =CAN!AO$6 -> 131318 | G56: =CAN!AP$6 -> 132603 | H56: =CAN!AQ$6 -> 132609 | I56: =CAN!AR$6 -> 133662 | J56: =CAN!AS$6 -> 134905 | K56: =CAN!AT$6 -> 135381 | L56: =CAN!AU$6 -> 136483 | M56: =CAN!AV$6 -> 138608 | N56: =CAN!AW$6 -> 140578 | O56: =CAN!AX$6 -> 141918 | P56: =CAN!AY$6 -> 143490 | Q56: =CAN!AZ$6 -> 145197 | R56: =CAN!BA$6 -> 146073 | S56: =CAN!BB$6 -> 146396 | T56: =CAN!BC$6 -> 148653 | U56: =CAN!BD$6 -> 150600 | V56: =CAN!BE$6 -> 151710 | W56: =CAN!BF$6 -> 153475 | X56: =CAN!BG$6 -> 155151 | Y56: =CAN!BH$6 -> 156143 | Z56: =CAN!BI$6 -> 157280 | AA56: =CAN!BJ$6 -> 157944 | AB56: =CAN!BK$6 -> 157256 | AC56: =CAN!BL$6 -> 157109 | AD56: =CAN!BM$6 -> 157187 | AE56: =CAN!BN$6 -> 156631 | AF56: =CAN!BO$6 -> 158282 | AG56: =CAN!BP$6 -> 159939 | AI56: =INDEX($M56:$AH56,Index!$B$16) -> 138608 | AJ56: =INDEX($M56:$AH56,Index!$B$19) -> 159939 | AK56: =AJ56-AI56 -> 21331 | AL56: =IF(AI56<0,0,AK56/AI56) -> 0.1538944361
A57: Dartford | B57: =DAR!AK$6 -> 81005 | C57: =DAR!AL$6 -> 81682 | D57: =DAR!AM$6 -> 82443 | E57: =DAR!AN$6 -> 82632 | F57: =DAR!AO$6 -> 82981 | G57: =DAR!AP$6 -> 83712 | H57: =DAR!AQ$6 -> 84619 | I57: =DAR!AR$6 -> 85045 | J57: =DAR!AS$6 -> 85509 | K57: =DAR!AT$6 -> 85956 | L57: =DAR!AU$6 -> 86403 | M57: =DAR!AV$6 -> 87011 | N57: =DAR!AW$6 -> 88277 | O57: =DAR!AX$6 -> 89990 | P57: =DAR!AY$6 -> 91174 | Q57: =DAR!AZ$6 -> 92242 | R57: =DAR!BA$6 -> 93946 | S57: =DAR!BB$6 -> 95266 | T57: =DAR!BC$6 -> 96337 | U57: =DAR!BD$6 -> 97604 | V57: =DAR!BE$6 -> 99064 | W57: =DAR!BF$6 -> 100756 | X57: =DAR!BG$6 -> 102765 | Y57: =DAR!BH$6 -> 104379 | Z57: =DAR!BI$6 -> 105905 | AA57: =DAR!BJ$6 -> 108372 | AB57: =DAR!BK$6 -> 110818 | AC57: =DAR!BL$6 -> 113928 | AD57: =DAR!BM$6 -> 115572 | AE57: =DAR!BN$6 -> 116819 | AF57: =DAR!BO$6 -> 118810 | AG57: =DAR!BP$6 -> 120699 | AI57: =INDEX($M57:$AH57,Index!$B$16) -> 87011 | AJ57: =INDEX($M57:$AH57,Index!$B$19) -> 120699 | AK57: 33688 | AL57: 0.3871694383
A58: Dover | B58: =DOV!AK$6 -> 104606 | C58: =DOV!AL$6 -> 104063 | D58: =DOV!AM$6 -> 104375 | E58: =DOV!AN$6 -> 104084 | F58: =DOV!AO$6 -> 103571 | G58: =DOV!AP$6 -> 103351 | H58: =DOV!AQ$6 -> 103686 | I58: =DOV!AR$6 -> 104006 | J58: =DOV!AS$6 -> 104478 | K58: =DOV!AT$6 -> 104646 | L58: =DOV!AU$6 -> 104883 | M58: =DOV!AV$6 -> 105784 | N58: =DOV!AW$6 -> 106878 | O58: =DOV!AX$6 -> 107475 | P58: =DOV!AY$6 -> 107904 | Q58: =DOV!AZ$6 -> 109041 | R58: =DOV!BA$6 -> 109848 | S58: =DOV!BB$6 -> 110061 | T58: =DOV!BC$6 -> 111072 | U58: =DOV!BD$6 -> 111718 | V58: =DOV!BE$6 -> 111529 | W58: =DOV!BF$6 -> 111979 | X58: =DOV!BG$6 -> 112541 | Y58: =DOV!BH$6 -> 112464 | Z58: =DOV!BI$6 -> 113365 | AA58: =DOV!BJ$6 -> 114335 | AB58: =DOV!BK$6 -> 115148 | AC58: =DOV!BL$6 -> 115902 | AD58: =DOV!BM$6 -> 116134 | AE58: =DOV!BN$6 -> 116549 | AF58: =DOV!BO$6 -> 117546 | AG58: =DOV!BP$6 -> 118591 | AI58: =INDEX($M58:$AH58,Index!$B$16) -> 105784 | AJ58: =INDEX($M58:$AH58,Index!$B$19) -> 118591 | AK58: 12807 | AL58: 0.1210674582
A59: Gravesham | B59: =GRA!AK$6 -> 93513 | C59: =GRA!AL$6 -> 93366 | D59: =GRA!AM$6 -> 93560 | E59: =GRA!AN$6 -> 93430 | F59: =GRA!AO$6 -> 93025 | G59: =GRA!AP$6 -> 93292 | H59: =GRA!AQ$6 -> 93916 | I59: =GRA!AR$6 -> 94575 | J59: =GRA!AS$6 -> 95160 | K59: =GRA!AT$6 -> 95791 | L59: =GRA!AU$6 -> 95448 | M59: =GRA!AV$6 -> 95569 | N59: =GRA!AW$6 -> 95907 | O59: =GRA!AX$6 -> 96884 | P59: =GRA!AY$6 -> 97574 | Q59: =GRA!AZ$6 -> 98496 | R59: =GRA!BA$6 -> 99394 | S59: =GRA!BB$6 -> 100188 | T59: =GRA!BC$6 -> 101076 | U59: =GRA!BD$6 -> 101766 | V59: =GRA!BE$6 -> 103004 | W59: =GRA!BF$6 -> 103837 | X59: =GRA!BG$6 -> 105434 | Y59: =GRA!BH$6 -> 106404 | Z59: =GRA!BI$6 -> 106823 | AA59: =GRA!BJ$6 -> 106543 | AB59: =GRA!BK$6 -> 106726 | AC59: =GRA!BL$6 -> 107348 | AD59: =GRA!BM$6 -> 107146 | AE59: =GRA!BN$6 -> 106883 | AF59: =GRA!BO$6 -> 106870 | AG59: =GRA!BP$6 -> 107737 | AI59: =INDEX($M59:$AH59,Index!$B$16) -> 95569 | AJ59: =INDEX($M59:$AH59,Index!$B$19) -> 107737 | AK59: 12168 | AL59: 0.127321621
A60: Maidstone | B60: =MAI!AK$6 -> 137211 | C60: =MAI!AL$6 -> 137390 | D60: =MAI!AM$6 -> 136977 | E60: =MAI!AN$6 -> 137387 | F60: =MAI!AO$6 -> 138405 | G60: =MAI!AP$6 -> 138448 | H60: =MAI!AQ$6 -> 138077 | I60: =MAI!AR$6 -> 137941 | J60: =MAI!AS$6 -> 138633 | K60: =MAI!AT$6 -> 139116 | L60: =MAI!AU$6 -> 140338 | M60: =MAI!AV$6 -> 141246 | N60: =MAI!AW$6 -> 142242 | O60: =MAI!AX$6 -> 143353 | P60: =MAI!AY$6 -> 145307 | Q60: =MAI!AZ$6 -> 147741 | R60: =MAI!BA$6 -> 149723 | S60: =MAI!BB$6 -> 151594 | T60: =MAI!BC$6 -> 153739 | U60: =MAI!BD$6 -> 155764 | V60: =MAI!BE$6 -> 157457 | W60: =MAI!BF$6 -> 159308 | X60: =MAI!BG$6 -> 161567 | Y60: =MAI!BH$6 -> 164112 | Z60: =MAI!BI$6 -> 165953 | AA60: =MAI!BJ$6 -> 168115 | AB60: =MAI!BK$6 -> 169974 | AC60: =MAI!BL$6 -> 171816 | AD60: =MAI!BM$6 -> 173272 | AE60: =MAI!BN$6 -> 176697 | AF60: =MAI!BO$6 -> 180569 | AG60: =MAI!BP$6 -> 184187 | AI60: =INDEX($M60:$AH60,Index!$B$16) -> 141246 | AJ60: =INDEX($M60:$AH60,Index!$B$19) -> 184187 | AK60: 42941 | AL60: 0.3040156889
A61: Medway | B61: =MED!AK$6 -> 243686 | C61: =MED!AL$6 -> 242616 | D61: =MED!AM$6 -> 242586 | E61: =MED!AN$6 -> 241417 | F61: =MED!AO$6 -> 241287 | G61: =MED!AP$6 -> 242314 | H61: =MED!AQ$6 -> 245341 | I61: =MED!AR$6 -> 246383 | J61: =MED!AS$6 -> 248474 | K61: =MED!AT$6 -> 249704 | L61: =MED!AU$6 -> 250262 | M61: =MED!AV$6 -> 251159 | N61: =MED!AW$6 -> 251459 | O61: =MED!AX$6 -> 252098 | P61: =MED!AY$6 -> 253478 | Q61: =MED!AZ$6 -> 255824 | R61: =MED!BA$6 -> 258224 | S61: =MED!BB$6 -> 260230 | T61: =MED!BC$6 -> 262738 | U61: =MED!BD$6 -> 264885 | V61: =MED!BE$6 -> 268144 | W61: =MED!BF$6 -> 271084 | X61: =MED!BG$6 -> 273977 | Y61: =MED!BH$6 -> 276037 | Z61: =MED!BI$6 -> 277504 | AA61: =MED!BJ$6 -> 278652 | AB61: =MED!BK$6 -> 278827 | AC61: =MED!BL$6 -> 279852 | AD61: =MED!BM$6 -> 280364 | AE61: =MED!BN$6 -> 279903 | AF61: =MED!BO$6 -> 282643 | AG61: =MED!BP$6 -> 286800 | AI61: =INDEX($M61:$AH61,Index!$B$16) -> 251159 | AJ61: =INDEX($M61:$AH61,Index!$B$19) -> 286800 | AK61: 35641 | AL61: 0.1419061232
A62: Sevenoaks | B62: =SEV!AK$6 -> 108845 | C62: =SEV!AL$6 -> 108817 | D62: =SEV!AM$6 -> 108938 | E62: =SEV!AN$6 -> 108378 | F62: =SEV!AO$6 -> 108744 | G62: =SEV!AP$6 -> 109414 | H62: =SEV!AQ$6 -> 109141 | I62: =SEV!AR$6 -> 109646 | J62: =SEV!AS$6 -> 109539 | K62: =SEV!AT$6 -> 109242 | L62: =SEV!AU$6 -> 109105 | M62: =SEV!AV$6 -> 109280 | N62: =SEV!AW$6 -> 110045 | O62: =SEV!AX$6 -> 111266 | P62: =SEV!AY$6 -> 112500 | Q62: =SEV!AZ$6 -> 113132 | R62: =SEV!BA$6 -> 113298 | S62: =SEV!BB$6 -> 113754 | T62: =SEV!BC$6 -> 114509 | U62: =SEV!BD$6 -> 115351 | V62: =SEV!BE$6 -> 116250 | W62: =SEV!BF$6 -> 116696 | X62: =SEV!BG$6 -> 117376 | Y62: =SEV!BH$6 -> 117735 | Z62: =SEV!BI$6 -> 118289 | AA62: =SEV!BJ$6 -> 118489 | AB62: =SEV!BK$6 -> 119165 | AC62: =SEV!BL$6 -> 119575 | AD62: =SEV!BM$6 -> 120051 | AE62: =SEV!BN$6 -> 120823 | AF62: =SEV!BO$6 -> 121173 | AG62: =SEV!BP$6 -> 121262 | AI62: =INDEX($M62:$AH62,Index!$B$16) -> 109280 | AJ62: =INDEX($M62:$AH62,Index!$B$19) -> 121262 | AK62: 11982 | AL62: 0.1096449488
A63: Folkestone & Hythe | B63: ='F&H'!AK$6 -> 93474 | C63: ='F&H'!AL$6 -> 93401 | D63: ='F&H'!AM$6 -> 94071 | E63: ='F&H'!AN$6 -> 93980 | F63: ='F&H'!AO$6 -> 94973 | G63: ='F&H'!AP$6 -> 94880 | H63: ='F&H'!AQ$6 -> 94810 | I63: ='F&H'!AR$6 -> 95811 | J63: ='F&H'!AS$6 -> 96417 | K63: ='F&H'!AT$6 -> 96345 | L63: ='F&H'!AU$6 -> 97205 | M63: ='F&H'!AV$6 -> 98540 | N63: ='F&H'!AW$6 -> 99949 | O63: ='F&H'!AX$6 -> 101509 | P63: ='F&H'!AY$6 -> 102469 | Q63: ='F&H'!AZ$6 -> 103902 | R63: ='F&H'!BA$6 -> 104782 | S63: ='F&H'!BB$6 -> 105716 | T63: ='F&H'!BC$6 -> 106962 | U63: ='F&H'!BD$6 -> 108199 | V63: ='F&H'!BE$6 -> 108185 | W63: ='F&H'!BF$6 -> 107899 | X63: ='F&H'!BG$6 -> 108153 | Y63: ='F&H'!BH$6 -> 108327 | Z63: ='F&H'!BI$6 -> 109235 | AA63: ='F&H'!BJ$6 -> 109095 | AB63: ='F&H'!BK$6 -> 109728 | AC63: ='F&H'!BL$6 -> 109659 | AD63: ='F&H'!BM$6 -> 109587 | AE63: ='F&H'!BN$6 -> 110040 | AF63: ='F&H'!BO$6 -> 110356 | AG63: ='F&H'!BP$6 -> 110995 | AI63: =INDEX($M63:$AH63,Index!$B$16) -> 98540 | AJ63: =INDEX($M63:$AH63,Index!$B$19) -> 110995 | AK63: 12455 | AL63: 0.1263953724
A64: Swale | B64: =SWA!AK$6 -> 116179 | C64: =SWA!AL$6 -> 116669 | D64: =SWA!AM$6 -> 116798 | E64: =SWA!AN$6 -> 117552 | F64: =SWA!AO$6 -> 117337 | G64: =SWA!AP$6 -> 118268 | H64: =SWA!AQ$6 -> 118693 | I64: =SWA!AR$6 -> 120079 | J64: =SWA!AS$6 -> 121638 | K64: =SWA!AT$6 -> 123123 | L64: =SWA!AU$6 -> 124172 | M64: =SWA!AV$6 -> 125348 | N64: =SWA!AW$6 -> 125890 | O64: =SWA!AX$6 -> 126516 | P64: =SWA!AY$6 -> 127568 | Q64: =SWA!AZ$6 -> 129721 | R64: =SWA!BA$6 -> 131720 | S64: =SWA!BB$6 -> 133030 | T64: =SWA!BC$6 -> 134980 | U64: =SWA!BD$6 -> 136324 | V64: =SWA!BE$6 -> 137694 | W64: =SWA!BF$6 -> 139135 | X64: =SWA!BG$6 -> 140992 | Y64: =SWA!BH$6 -> 142723 | Z64: =SWA!BI$6 -> 145184 | AA64: =SWA!BJ$6 -> 146846 | AB64: =SWA!BK$6 -> 148400 | AC64: =SWA!BL$6 -> 149753 | AD64: =SWA!BM$6 -> 150584 | AE64: =SWA!BN$6 -> 152218 | AF64: =SWA!BO$6 -> 154598 | AG64: =SWA!BP$6 -> 155893 | AI64: =INDEX($M64:$AH64,Index!$B$16) -> 125348 | AJ64: =INDEX($M64:$AH64,Index!$B$19) -> 155893 | AK64: 30545 | AL64: 0.2436815905
A65: Thanet | B65: =THA!AK$6 -> 125402 | C65: =THA!AL$6 -> 124668 | D65: =THA!AM$6 -> 124380 | E65: =THA!AN$6 -> 124265 | F65: =THA!AO$6 -> 124433 | G65: =THA!AP$6 -> 125370 | H65: =THA!AQ$6 -> 125523 | I65: =THA!AR$6 -> 126476 | J65: =THA!AS$6 -> 126453 | K65: =THA!AT$6 -> 126750 | L65: =THA!AU$6 -> 127675 | M65: =THA!AV$6 -> 128140 | N65: =THA!AW$6 -> 128782 | O65: =THA!AX$6 -> 129301 | P65: =THA!AY$6 -> 129601 | Q65: =THA!AZ$6 -> 130637 | R65: =THA!BA$6 -> 131750 | S65: =THA!BB$6 -> 132337 | T65: =THA!BC$6 -> 133508 | U65: =THA!BD$6 -> 134402 | V65: =THA!BE$6 -> 135730 | W65: =THA!BF$6 -> 136916 | X65: =THA!BG$6 -> 138695 | Y65: =THA!BH$6 -> 139668 | Z65: =THA!BI$6 -> 140373 | AA65: =THA!BJ$6 -> 140680 | AB65: =THA!BK$6 -> 140848 | AC65: =THA!BL$6 -> 140624 | AD65: =THA!BM$6 -> 139945 | AE65: =THA!BN$6 -> 140658 | AF65: =THA!BO$6 -> 140683 | AG65: =THA!BP$6 -> 140439 | AI65: =INDEX($M65:$AH65,Index!$B$16) -> 128140 | AJ65: =INDEX($M65:$AH65,Index!$B$19) -> 140439 | AK65: 12299 | AL65: 0.09598095833
A66: Tonbridge & Malling | B66: =TON!AK$6 -> 101706 | C66: =TON!AL$6 -> 101656 | D66: =TON!AM$6 -> 102262 | E66: =TON!AN$6 -> 103498 | F66: =TON!AO$6 -> 104270 | G66: =TON!AP$6 -> 104671 | H66: =TON!AQ$6 -> 105167 | I66: =TON!AR$6 -> 106376 | J66: =TON!AS$6 -> 106884 | K66: =TON!AT$6 -> 107771 | L66: =TON!AU$6 -> 108673 | M66: =TON!AV$6 -> 109494 | N66: =TON!AW$6 -> 110441 | O66: =TON!AX$6 -> 111719 | P66: =TON!AY$6 -> 113536 | Q66: =TON!AZ$6 -> 115469 | R66: =TON!BA$6 -> 116967 | S66: =TON!BB$6 -> 118459 | T66: =TON!BC$6 -> 120054 | U66: =TON!BD$6 -> 121087 | V66: =TON!BE$6 -> 122046 | W66: =TON!BF$6 -> 123006 | X66: =TON!BG$6 -> 124603 | Y66: =TON!BH$6 -> 125712 | Z66: =TON!BI$6 -> 127090 | AA66: =TON!BJ$6 -> 128680 | AB66: =TON!BK$6 -> 130149 | AC66: =TON!BL$6 -> 131502 | AD66: =TON!BM$6 -> 131791 | AE66: =TON!BN$6 -> 132363 | AF66: =TON!BO$6 -> 133664 | AG66: =TON!BP$6 -> 135206 | AI66: =INDEX($M66:$AH66,Index!$B$16) -> 109494 | AJ66: =INDEX($M66:$AH66,Index!$B$19) -> 135206 | AK66: 25712 | AL66: 0.2348256525
A67: Tunbridge Wells | B67: =TUN!AK$6 -> 101359 | C67: =TUN!AL$6 -> 101225 | D67: =TUN!AM$6 -> 102152 | E67: =TUN!AN$6 -> 102777 | F67: =TUN!AO$6 -> 102164 | G67: =TUN!AP$6 -> 101560 | H67: =TUN!AQ$6 -> 102507 | I67: =TUN!AR$6 -> 103031 | J67: =TUN!AS$6 -> 103686 | K67: =TUN!AT$6 -> 104049 | L67: =TUN!AU$6 -> 104206 | M67: =TUN!AV$6 -> 104390 | N67: =TUN!AW$6 -> 105131 | O67: =TUN!AX$6 -> 105877 | P67: =TUN!AY$6 -> 107052 | Q67: =TUN!AZ$6 -> 108927 | R67: =TUN!BA$6 -> 111251 | S67: =TUN!BB$6 -> 112774 | T67: =TUN!BC$6 -> 114040 | U67: =TUN!BD$6 -> 115246 | V67: =TUN!BE$6 -> 115402 | W67: =TUN!BF$6 -> 115164 | X67: =TUN!BG$6 -> 115228 | Y67: =TUN!BH$6 -> 114769 | Z67: =TUN!BI$6 -> 115198 | AA67: =TUN!BJ$6 -> 115559 | AB67: =TUN!BK$6 -> 114940 | AC67: =TUN!BL$6 -> 115158 | AD67: =TUN!BM$6 -> 115271 | AE67: =TUN!BN$6 -> 115650 | AF67: =TUN!BO$6 -> 116175 | AG67: =TUN!BP$6 -> 117020 | AI67: =INDEX($M67:$AH67,Index!$B$16) -> 104390 | AJ67: =INDEX($M67:$AH67,Index!$B$19) -> 117020 | AK67: 12630 | AL67: 0.1209886004
A68: Kent | B68: =Kent!AK$6 -> 1285235 | C68: =Kent!AL$6 -> 1285806 | D68: =Kent!AM$6 -> 1290099 | E68: =Kent!AN$6 -> 1293738 | F68: =Kent!AO$6 -> 1297663 | G68: =Kent!AP$6 -> 1303105 | H68: =Kent!AQ$6 -> 1306723 | I68: =Kent!AR$6 -> 1316720 | J68: =Kent!AS$6 -> 1324679 | K68: =Kent!AT$6 -> 1331194 | L68: =Kent!AU$6 -> 1338968 | M68: =Kent!AV$6 -> 1349046 | N68: =Kent!AW$6 -> 1361384 | O68: =Kent!AX$6 -> 1375217 | P68: =Kent!AY$6 -> 1389634 | Q68: =Kent!AZ$6 -> 1407791 | R68: =Kent!BA$6 -> 1423308 | S68: =Kent!BB$6 -> 1435269 | T68: =Kent!BC$6 -> 1451905 | U68: =Kent!BD$6 -> 1466466 | V68: =Kent!BE$6 -> 1478262 | W68: =Kent!BF$6 -> 1490021 | X68: =Kent!BG$6 -> 1506187 | Y68: =Kent!BH$6 -> 1517016 | Z68: =Kent!BI$6 -> 1531022 | AA68: =Kent!BJ$6 -> 1542707 | AB68: =Kent!BK$6 -> 1552853 | AC68: =Kent!BL$6 -> 1562840 | AD68: =Kent!BM$6 -> 1567971 | AE68: =Kent!BN$6 -> 1578552 | AF68: =Kent!BO$6 -> 1594467 | AG68: =Kent!BP$6 -> 1610251 | AI68: =INDEX($M68:$AH68,Index!$B$16) -> 1349046 | AJ68: =INDEX($M68:$AH68,Index!$B$19) -> 1610251 | AK68: 261205 | AL68: 0.1936220114
A69: Kent + Medway | B69: ='Kent+Med'!AK6 -> 1528921 | C69: ='Kent+Med'!AL6 -> 1528422 | D69: ='Kent+Med'!AM6 -> 1532685 | E69: ='Kent+Med'!AN6 -> 1535155 | F69: ='Kent+Med'!AO6 -> 1538950 | G69: ='Kent+Med'!AP6 -> 1545419 | H69: ='Kent+Med'!AQ6 -> 1552064 | I69: ='Kent+Med'!AR6 -> 1563103 | J69: ='Kent+Med'!AS6 -> 1573153 | K69: ='Kent+Med'!AT6 -> 1580898 | L69: ='Kent+Med'!AU6 -> 1589230 | M69: ='Kent+Med'!AV6 -> 1600205 | N69: ='Kent+Med'!AW6 -> 1612843 | O69: ='Kent+Med'!AX6 -> 1627315 | P69: ='Kent+Med'!AY6 -> 1643112 | Q69: ='Kent+Med'!AZ6 -> 1663615 | R69: ='Kent+Med'!BA6 -> 1681532 | S69: ='Kent+Med'!BB6 -> 1695499 | T69: ='Kent+Med'!BC6 -> 1714643 | U69: ='Kent+Med'!BD6 -> 1731351 | V69: ='Kent+Med'!BE6 -> 1746406 | W69: ='Kent+Med'!BF6 -> 1761105 | X69: ='Kent+Med'!BG6 -> 1780164 | Y69: ='Kent+Med'!BH6 -> 1793053 | Z69: ='Kent+Med'!BI6 -> 1808526 | AA69: ='Kent+Med'!BJ6 -> 1821359 | AB69: ='Kent+Med'!BK6 -> 1831680 | AC69: ='Kent+Med'!BL6 -> 1842692 | AD69: ='Kent+Med'!BM6 -> 1848335 | AE69: ='Kent+Med'!BN6 -> 1858455 | AF69: ='Kent+Med'!BO6 -> 1877110 | AG69: ='Kent+Med'!BP6 -> 1897051 | AI69: =INDEX($M69:$AH69,Index!$B$16) -> 1600205 | AJ69: =INDEX($M69:$AH69,Index!$B$19) -> 1897051 | AK69: 296846 | AL69: 0.1855049822
A70: South East Region | B70: ='South East'!AK6 -> 7656594 | C70: ='South East'!AL6 -> 7673172 | D70: ='South East'!AM6 -> 7711594 | E70: ='South East'!AN6 -> 7762978 | F70: ='South East'!AO6 -> 7800406 | G70: ='South East'!AP6 -> 7853102 | H70: ='South East'!AQ6 -> 7888838 | I70: ='South East'!AR6 -> 7955124 | J70: ='South East'!AS6 -> 7990598 | K70: ='South East'!AT6 -> 8023449 | L70: ='South East'!AU6 -> 8045192 | M70: ='South East'!AV6 -> 8087924 | N70: ='South East'!AW6 -> 8133100 | O70: ='South East'!AX6 -> 8202896 | P70: ='South East'!AY6 -> 8270861 | Q70: ='South East'!AZ6 -> 8351391 | R70: ='South East'!BA6 -> 8426399 | S70: ='South East'!BB6 -> 8490922 | T70: ='South East'!BC6 -> 8577771 | U70: ='South East'!BD6 -> 8652784 | V70: ='South East'!BE6 -> 8731840 | W70: ='South East'!BF6 -> 8809382 | X70: ='South East'!BG6 -> 8893930 | Y70: ='South East'!BH6 -> 8969638 | Z70: ='South East'!BI6 -> 9053011 | AA70: ='South East'!BJ6 -> 9105076 | AB70: ='South East'!BK6 -> 9150245 | AC70: ='South East'!BL6 -> 9193770 | AD70: ='South East'!BM6 -> 9225273 | AE70: ='South East'!BN6 -> 9295829 | AF70: ='South East'!BO6 -> 9387286 | AG70: ='South East'!BP6 -> 9482507 | AI70: =INDEX($M70:$AH70,Index!$B$16) -> 8087924 | AJ70: =INDEX($M70:$AH70,Index!$B$19) -> 9482507 | AK70: =AJ70-AI70 -> 1394583 | AL70: =IF(AI70<0,0,AK70/AI70) -> 0.1724278072
A71: England & Wales | B71: ='England & Wales'!AK6 -> 50875647 | C71: ='England & Wales'!AL6 -> 50985877 | D71: ='England & Wales'!AM6 -> 51116228 | E71: ='England & Wales'!AN6 -> 51271978 | F71: ='England & Wales'!AO6 -> 51410433 | G71: ='England & Wales'!AP6 -> 51559648 | H71: ='England & Wales'!AQ6 -> 51720104 | I71: ='England & Wales'!AR6 -> 51933471 | J71: ='England & Wales'!AS6 -> 52140181 | K71: ='England & Wales'!AT6 -> 52359978 | L71: ='England & Wales'!AU6 -> 52602143 | M71: ='England & Wales'!AV6 -> 52863238 | N71: ='England & Wales'!AW6 -> 53152022 | O71: ='England & Wales'!AX6 -> 53575343 | P71: ='England & Wales'!AY6 -> 53950854 | Q71: ='England & Wales'!AZ6 -> 54387392 | R71: ='England & Wales'!BA6 -> 54841720 | S71: ='England & Wales'!BB6 -> 55235253 | T71: ='England & Wales'!BC6 -> 55692423 | U71: ='England & Wales'!BD6 -> 56170927 | V71: ='England & Wales'!BE6 -> 56577740 | W71: ='England & Wales'!BF6 -> 56989744 | X71: ='England & Wales'!BG6 -> 57444107 | Y71: ='England & Wales'!BH6 -> 57881415 | Z71: ='England & Wales'!BI6 -> 58366199 | AA71: ='England & Wales'!BJ6 -> 58700914 | AB71: ='England & Wales'!BK6 -> 59008368 | AC71: ='England & Wales'!BL6 -> 59317788 | AD71: ='England & Wales'!BM6 -> 59430444 | AE71: ='England & Wales'!BN6 -> 59660524 | AF71: ='England & Wales'!BO6 -> 60245218 | AG71: ='England & Wales'!BP6 -> 60854727 | AI71: =INDEX($M71:$AH71,Index!$B$16) -> 52863238 | AJ71: =INDEX($M71:$AH71,Index!$B$19) -> 60854727 | AK71: =AJ71-AI71 -> 7991489 | AL71: =IF(AI71<0,0,AK71/AI71) -> 0.1511729002
A75: Population by 5 year
A76: =INDEX(Index!D30:D54,'Population Pyramid'!L1) -> 2012 | C76: - | D76: Ashford | E76: Canterbury | F76: Dartford | G76: Dover | H76: Gravesham | I76: Maidstone | J76: Medway | K76: Sevenoaks | L76: Folketone & Hythe | M76: Swale | N76: Thanet | O76: Tonbridge & Malling | P76: Tunbridge Wells | Q76: Kent | R76: Kent + Medway | S76: South East Region | T76: England & Wales
A77: Males | B77: All Ages | C77: - | D77: =ASH!$DB$15 -> 63913 | E77: =CAN!$DB$15 -> 75471 | F77: =DAR!$DB$15 -> 56635 | G77: =DOV!$DB$15 -> 56678 | H77: =GRA!$DB$15 -> 52415 | I77: =MAI!$DB$15 -> 85724 | J77: =MED!$DB$15 -> 137769 | K77: =SEV!$DB$15 -> 57957 | L77: ='F&H'!$DB$15 -> 53548 | M77: =SWA!$DB$15 -> 74911 | N77: =THA!$DB$15 -> 67298 | O77: =TON!$DB$15 -> 64185 | P77: =TUN!$DB$15 -> 56010 | Q77: =Kent!$DB$15 -> 764745 | R77: ='Kent+Med'!$DB$15 -> 902514 | S77: ='South East'!$DB$15 -> 4516989 | T77: ='England & Wales'!$DB$15 -> 29118166
A78: Males | B78: 0-4 | C78: - | D78: =ASH!$DB$16 -> 3887 | E78: =CAN!$DB$16 -> 3497 | F78: =DAR!$DB$16 -> 4343 | G78: =DOV!$DB$16 -> 2960 | H78: =GRA!$DB$16 -> 3428 | I78: =MAI!$DB$16 -> 5291 | J78: =MED!$DB$16 -> 8948 | K78: =SEV!$DB$16 -> 3379 | L78: ='F&H'!$DB$16 -> 2672 | M78: =SWA!$DB$16 -> 4610 | N78: =THA!$DB$16 -> 3924 | O78: =TON!$DB$16 -> 3944 | P78: =TUN!$DB$16 -> 3135 | Q78: =Kent!$DB$16 -> 45070 | R78: ='Kent+Med'!$DB$16 -> 54018 | S78: ='South East'!$DB$16 -> 255976 | T78: ='England & Wales'!$DB$16 -> 1691467
A79: Males | B79: 5-9 | C79: - | D79: =ASH!$DB$17 -> 4244 | E79: =CAN!$DB$17 -> 3979 | F79: =DAR!$DB$17 -> 4219 | G79: =DOV!$DB$17 -> 3351 | H79: =GRA!$DB$17 -> 3653 | I79: =MAI!$DB$17 -> 5631 | J79: =MED!$DB$17 -> 9406 | K79: =SEV!$DB$17 -> 3940 | L79: ='F&H'!$DB$17 -> 3006 | M79: =SWA!$DB$17 -> 4889 | N79: =THA!$DB$17 -> 4138 | O79: =TON!$DB$17 -> 4384 | P79: =TUN!$DB$17 -> 3657 | Q79: =Kent!$DB$17 -> 49091 | R79: ='Kent+Med'!$DB$17 -> 58497 | S79: ='South East'!$DB$17 -> 285029 | T79: ='England & Wales'!$DB$17 -> 1820871
A80: Males | B80: 10-14 | C80: - | D80: =ASH!$DB$18 -> 4224 | E80: =CAN!$DB$18 -> 4333 | F80: =DAR!$DB$18 -> 3959 | G80: =DOV!$DB$18 -> 3380 | H80: =GRA!$DB$18 -> 3575 | I80: =MAI!$DB$18 -> 5236 | J80: =MED!$DB$18 -> 9116 | K80: =SEV!$DB$18 -> 4117 | L80: ='F&H'!$DB$18 -> 3115 | M80: =SWA!$DB$18 -> 4850 | N80: =THA!$DB$18 -> 4230 | O80: =TON!$DB$18 -> 4467 | P80: =TUN!$DB$18 -> 4075 | Q80: =Kent!$DB$18 -> 49561 | R80: ='Kent+Med'!$DB$18 -> 58677 | S80: ='South East'!$DB$18 -> 286970 | T80: ='England & Wales'!$DB$18 -> 1815246
A81: Males | B81: 15-19 | C81: - | D81: =ASH!$DB$19 -> 3874 | E81: =CAN!$DB$19 -> 5668 | F81: =DAR!$DB$19 -> 3208 | G81: =DOV!$DB$19 -> 3118 | H81: =GRA!$DB$19 -> 3185 | I81: =MAI!$DB$19 -> 4609 | J81: =MED!$DB$19 -> 8316 | K81: =SEV!$DB$19 -> 3325 | L81: ='F&H'!$DB$19 -> 2803 | M81: =SWA!$DB$19 -> 4180 | N81: =THA!$DB$19 -> 3884 | O81: =TON!$DB$19 -> 4062 | P81: =TUN!$DB$19 -> 3393 | Q81: =Kent!$DB$19 -> 45309 | R81: ='Kent+Med'!$DB$19 -> 53625 | S81: ='South East'!$DB$19 -> 268377 | T81: ='England & Wales'!$DB$19 -> 1712672
A82: Males | B82: 20-24 | C82: - | D82: =ASH!$DB$20 -> 3212 | E82: =CAN!$DB$20 -> 8120 | F82: =DAR!$DB$20 -> 2791 | G82: =DOV!$DB$20 -> 2829 | H82: =GRA!$DB$20 -> 2835 | I82: =MAI!$DB$20 -> 4515 | J82: =MED!$DB$20 -> 8432 | K82: =SEV!$DB$20 -> 2449 | L82: ='F&H'!$DB$20 -> 2757 | M82: =SWA!$DB$20 -> 4127 | N82: =THA!$DB$20 -> 3333 | O82: =TON!$DB$20 -> 2939 | P82: =TUN!$DB$20 -> 2396 | Q82: =Kent!$DB$20 -> 42303 | R82: ='Kent+Med'!$DB$20 -> 50735 | S82: ='South East'!$DB$20 -> 264748 | T82: ='England & Wales'!$DB$20 -> 1820769
A83: Males | B83: 25-29 | C83: - | D83: =ASH!$DB$21 -> 3801 | E83: =CAN!$DB$21 -> 4534 | F83: =DAR!$DB$21 -> 3629 | G83: =DOV!$DB$21 -> 3147 | H83: =GRA!$DB$21 -> 3258 | I83: =MAI!$DB$21 -> 5529 | J83: =MED!$DB$21 -> 9045 | K83: =SEV!$DB$21 -> 2707 | L83: ='F&H'!$DB$21 -> 2994 | M83: =SWA!$DB$21 -> 4787 | N83: =THA!$DB$21 -> 3727 | O83: =TON!$DB$21 -> 3325 | P83: =TUN!$DB$21 -> 2978 | Q83: =Kent!$DB$21 -> 44416 | R83: ='Kent+Med'!$DB$21 -> 53461 | S83: ='South East'!$DB$21 -> 270063 | T83: ='England & Wales'!$DB$21 -> 1920382
A84: Males | B84: 30-34 | C84: - | D84: =ASH!$DB$22 -> 3996 | E84: =CAN!$DB$22 -> 4054 | F84: =DAR!$DB$22 -> 4512 | G84: =DOV!$DB$22 -> 3324 | H84: =GRA!$DB$22 -> 3572 | I84: =MAI!$DB$22 -> 5849 | J84: =MED!$DB$22 -> 9783 | K84: =SEV!$DB$22 -> 3084 | L84: ='F&H'!$DB$22 -> 2901 | M84: =SWA!$DB$22 -> 5065 | N84: =THA!$DB$22 -> 3814 | O84: =TON!$DB$22 -> 3701 | P84: =TUN!$DB$22 -> 3226 | Q84: =Kent!$DB$22 -> 47098 | R84: ='Kent+Med'!$DB$22 -> 56881 | S84: ='South East'!$DB$22 -> 285287 | T84: ='England & Wales'!$DB$22 -> 1986509
A85: Males | B85: 35-39 | C85: - | D85: =ASH!$DB$23 -> 3813 | E85: =CAN!$DB$23 -> 3984 | F85: =DAR!$DB$23 -> 4562 | G85: =DOV!$DB$23 -> 3182 | H85: =GRA!$DB$23 -> 3530 | I85: =MAI!$DB$23 -> 5763 | J85: =MED!$DB$23 -> 9375 | K85: =SEV!$DB$23 -> 3372 | L85: ='F&H'!$DB$23 -> 2835 | M85: =SWA!$DB$23 -> 4855 | N85: =THA!$DB$23 -> 3817 | O85: =TON!$DB$23 -> 3843 | P85: =TUN!$DB$23 -> 3504 | Q85: =Kent!$DB$23 -> 47060 | R85: ='Kent+Med'!$DB$23 -> 56435 | S85: ='South East'!$DB$23 -> 291802 | T85: ='England & Wales'!$DB$23 -> 1937634
A86: Males | B86: 40-44 | C86: - | D86: =ASH!$DB$24 -> 3905 | E86: =CAN!$DB$24 -> 3834 | F86: =DAR!$DB$24 -> 4238 | G86: =DOV!$DB$24 -> 3027 | H86: =GRA!$DB$24 -> 3362 | I86: =MAI!$DB$24 -> 5386 | J86: =MED!$DB$24 -> 8768 | K86: =SEV!$DB$24 -> 3735 | L86: ='F&H'!$DB$24 -> 2870 | M86: =SWA!$DB$24 -> 4518 | N86: =THA!$DB$24 -> 3766 | O86: =TON!$DB$24 -> 4036 | P86: =TUN!$DB$24 -> 3715 | Q86: =Kent!$DB$24 -> 46392 | R86: ='Kent+Med'!$DB$24 -> 55160 | S86: ='South East'!$DB$24 -> 289739 | T86: ='England & Wales'!$DB$24 -> 1819918
A87: Males | B87: 45-49 | C87: - | D87: =ASH!$DB$25 -> 4153 | E87: =CAN!$DB$25 -> 4363 | F87: =DAR!$DB$25 -> 3924 | G87: =DOV!$DB$25 -> 3344 | H87: =GRA!$DB$25 -> 3511 | I87: =MAI!$DB$25 -> 5791 | J87: =MED!$DB$25 -> 9048 | K87: =SEV!$DB$25 -> 4080 | L87: ='F&H'!$DB$25 -> 3370 | M87: =SWA!$DB$25 -> 4686 | N87: =THA!$DB$25 -> 4160 | O87: =TON!$DB$25 -> 4735 | P87: =TUN!$DB$25 -> 4204 | Q87: =Kent!$DB$25 -> 50321 | R87: ='Kent+Med'!$DB$25 -> 59369 | S87: ='South East'!$DB$25 -> 307642 | T87: ='England & Wales'!$DB$25 -> 1910779
A88: Males | B88: 50-54 | C88: - | D88: =ASH!$DB$26 -> 4876 | E88: =CAN!$DB$26 -> 4705 | F88: =DAR!$DB$26 -> 3815 | G88: =DOV!$DB$26 -> 3950 | H88: =GRA!$DB$26 -> 3717 | I88: =MAI!$DB$26 -> 6293 | J88: =MED!$DB$26 -> 9654 | K88: =SEV!$DB$26 -> 4261 | L88: ='F&H'!$DB$26 -> 4006 | M88: =SWA!$DB$26 -> 5282 | N88: =THA!$DB$26 -> 4530 | O88: =TON!$DB$26 -> 4876 | P88: =TUN!$DB$26 -> 4468 | Q88: =Kent!$DB$26 -> 54779 | R88: ='Kent+Med'!$DB$26 -> 64433 | S88: ='South East'!$DB$26 -> 323062 | T88: ='England & Wales'!$DB$26 -> 2028917
A89: Males | B89: 55-59 | C89: - | D89: =ASH!$DB$27 -> 4547 | E89: =CAN!$DB$27 -> 4810 | F89: =DAR!$DB$27 -> 3440 | G89: =DOV!$DB$27 -> 4263 | H89: =GRA!$DB$27 -> 3515 | I89: =MAI!$DB$27 -> 5806 | J89: =MED!$DB$27 -> 9155 | K89: =SEV!$DB$27 -> 4285 | L89: ='F&H'!$DB$27 -> 4059 | M89: =SWA!$DB$27 -> 5270 | N89: =THA!$DB$27 -> 4795 | O89: =TON!$DB$27 -> 4583 | P89: =TUN!$DB$27 -> 3991 | Q89: =Kent!$DB$27 -> 53364 | R89: ='Kent+Med'!$DB$27 -> 62519 | S89: ='South East'!$DB$27 -> 312486 | T89: ='England & Wales'!$DB$27 -> 1958332
A90: Males | B90: 60-64 | C90: - | D90: =ASH!$DB$28 -> 3570 | E90: =CAN!$DB$28 -> 4284 | F90: =DAR!$DB$28 -> 2745 | G90: =DOV!$DB$28 -> 3894 | H90: =GRA!$DB$28 -> 2908 | I90: =MAI!$DB$28 -> 4768 | J90: =MED!$DB$28 -> 7566 | K90: =SEV!$DB$28 -> 3477 | L90: ='F&H'!$DB$28 -> 3511 | M90: =SWA!$DB$28 -> 4375 | N90: =THA!$DB$28 -> 4239 | O90: =TON!$DB$28 -> 3707 | P90: =TUN!$DB$28 -> 3219 | Q90: =Kent!$DB$28 -> 44697 | R90: ='Kent+Med'!$DB$28 -> 52263 | S90: ='South East'!$DB$28 -> 261335 | T90: ='England & Wales'!$DB$28 -> 1662209
A91: Males | B91: 65-69 | C91: - | D91: =ASH!$DB$29 -> 3154 | E91: =CAN!$DB$29 -> 4033 | F91: =DAR!$DB$29 -> 2127 | G91: =DOV!$DB$29 -> 3571 | H91: =GRA!$DB$29 -> 2326 | I91: =MAI!$DB$29 -> 4033 | J91: =MED!$DB$29 -> 6321 | K91: =SEV!$DB$29 -> 3104 | L91: ='F&H'!$DB$29 -> 3338 | M91: =SWA!$DB$29 -> 3788 | N91: =THA!$DB$29 -> 4042 | O91: =TON!$DB$29 -> 3127 | P91: =TUN!$DB$29 -> 2616 | Q91: =Kent!$DB$29 -> 39259 | R91: ='Kent+Med'!$DB$29 -> 45580 | S91: ='South East'!$DB$29 -> 221497 | T91: ='England & Wales'!$DB$29 -> 1422322
A92: Males | B92: 70-74 | C92: - | D92: =ASH!$DB$30 -> 3403 | E92: =CAN!$DB$30 -> 4449 | F92: =DAR!$DB$30 -> 1985 | G92: =DOV!$DB$30 -> 3757 | H92: =GRA!$DB$30 -> 2283 | I92: =MAI!$DB$30 -> 4467 | J92: =MED!$DB$30 -> 6214 | K92: =SEV!$DB$30 -> 3301 | L92: ='F&H'!$DB$30 -> 3800 | M92: =SWA!$DB$30 -> 3964 | N92: =THA!$DB$30 -> 4385 | O92: =TON!$DB$30 -> 3239 | P92: =TUN!$DB$30 -> 2824 | Q92: =Kent!$DB$30 -> 41857 | R92: ='Kent+Med'!$DB$30 -> 48071 | S92: ='South East'!$DB$30 -> 227756 | T92: ='England & Wales'!$DB$30 -> 1413470
A93: Males | B93: 75-79 | C93: - | D93: =ASH!$DB$31 -> 2461 | E93: =CAN!$DB$31 -> 2992 | F93: =DAR!$DB$31 -> 1345 | G93: =DOV!$DB$31 -> 2628 | H93: =GRA!$DB$31 -> 1638 | I93: =MAI!$DB$31 -> 3071 | J93: =MED!$DB$31 -> 4083 | K93: =SEV!$DB$31 -> 2329 | L93: ='F&H'!$DB$31 -> 2550 | M93: =SWA!$DB$31 -> 2711 | N93: =THA!$DB$31 -> 3019 | O93: =TON!$DB$31 -> 2283 | P93: =TUN!$DB$31 -> 1987 | Q93: =Kent!$DB$31 -> 29014 | R93: ='Kent+Med'!$DB$31 -> 33097 | S93: ='South East'!$DB$31 -> 160671 | T93: ='England & Wales'!$DB$31 -> 985708
A94: Males | B94: 80-84 | C94: - | D94: =ASH!$DB$32 -> 1589 | E94: =CAN!$DB$32 -> 2140 | F94: =DAR!$DB$32 -> 956 | G94: =DOV!$DB$32 -> 1691 | H94: =GRA!$DB$32 -> 1146 | I94: =MAI!$DB$32 -> 2066 | J94: =MED!$DB$32 -> 2659 | K94: =SEV!$DB$32 -> 1588 | L94: ='F&H'!$DB$32 -> 1647 | M94: =SWA!$DB$32 -> 1737 | N94: =THA!$DB$32 -> 1953 | O94: =TON!$DB$32 -> 1645 | P94: =TUN!$DB$32 -> 1374 | Q94: =Kent!$DB$32 -> 19532 | R94: ='Kent+Med'!$DB$32 -> 22191 | S94: ='South East'!$DB$32 -> 110391 | T94: ='England & Wales'!$DB$32 -> 670607
A95: Males | B95: 85+ | C95: - | D95: =ASH!$DB$33 -> 1204 | E95: =CAN!$DB$33 -> 1692 | F95: =DAR!$DB$33 -> 837 | G95: =DOV!$DB$33 -> 1262 | H95: =GRA!$DB$33 -> 973 | I95: =MAI!$DB$33 -> 1620 | J95: =MED!$DB$33 -> 1880 | K95: =SEV!$DB$33 -> 1424 | L95: ='F&H'!$DB$33 -> 1314 | M95: =SWA!$DB$33 -> 1217 | N95: =THA!$DB$33 -> 1542 | O95: =TON!$DB$33 -> 1289 | P95: =TUN!$DB$33 -> 1248 | Q95: =Kent!$DB$33 -> 15622 | R95: ='Kent+Med'!$DB$33 -> 17502 | S95: ='South East'!$DB$33 -> 94158 | T95: ='England & Wales'!$DB$33 -> 540354
A97: Females | B97: All Ages | C97: - | D97: =ASH!$DB$35 -> 67518 | E97: =CAN!$DB$35 -> 81716 | F97: =DAR!$DB$35 -> 58937 | G97: =DOV!$DB$35 -> 59456 | H97: =GRA!$DB$35 -> 54731 | I97: =MAI!$DB$35 -> 87548 | J97: =MED!$DB$35 -> 142595 | K97: =SEV!$DB$35 -> 62094 | L97: ='F&H'!$DB$35 -> 56039 | M97: =SWA!$DB$35 -> 75673 | N97: =THA!$DB$35 -> 72647 | O97: =TON!$DB$35 -> 67606 | P97: =TUN!$DB$35 -> 59261 | Q97: =Kent!$DB$35 -> 803226 | R97: ='Kent+Med'!$DB$35 -> 945821 | S97: ='South East'!$DB$35 -> 4708284 | T97: ='England & Wales'!$DB$35 -> 30312278
A98: Females | B98: 0-4 | C98: - | D98: =ASH!$DB$36 -> 3718 | E98: =CAN!$DB$36 -> 3291 | F98: =DAR!$DB$36 -> 4007 | G98: =DOV!$DB$36 -> 2778 | H98: =GRA!$DB$36 -> 3268 | I98: =MAI!$DB$36 -> 4949 | J98: =MED!$DB$36 -> 8658 | K98: =SEV!$DB$36 -> 3269 | L98: ='F&H'!$DB$36 -> 2518 | M98: =SWA!$DB$36 -> 4341 | N98: =THA!$DB$36 -> 3526 | O98: =TON!$DB$36 -> 3774 | P98: =TUN!$DB$36 -> 2962 | Q98: =Kent!$DB$36 -> 42401 | R98: ='Kent+Med'!$DB$36 -> 51059 | S98: ='South East'!$DB$36 -> 243084 | T98: ='England & Wales'!$DB$36 -> 1608682
A99: Females | B99: 5-9 | C99: - | D99: =ASH!$DB$37 -> 4066 | E99: =CAN!$DB$37 -> 3754 | F99: =DAR!$DB$37 -> 4055 | G99: =DOV!$DB$37 -> 3152 | H99: =GRA!$DB$37 -> 3552 | I99: =MAI!$DB$37 -> 5128 | J99: =MED!$DB$37 -> 8911 | K99: =SEV!$DB$37 -> 3804 | L99: ='F&H'!$DB$37 -> 2858 | M99: =SWA!$DB$37 -> 4565 | N99: =THA!$DB$37 -> 3871 | O99: =TON!$DB$37 -> 4111 | P99: =TUN!$DB$37 -> 3432 | Q99: =Kent!$DB$37 -> 46348 | R99: ='Kent+Med'!$DB$37 -> 55259 | S99: ='South East'!$DB$37 -> 269883 | T99: ='England & Wales'!$DB$37 -> 1733414
A100: Females | B100: 10-14 | C100: - | D100: =ASH!$DB$38 -> 4114 | E100: =CAN!$DB$38 -> 3956 | F100: =DAR!$DB$38 -> 3776 | G100: =DOV!$DB$38 -> 3265 | H100: =GRA!$DB$38 -> 3572 | I100: =MAI!$DB$38 -> 4915 | J100: =MED!$DB$38 -> 8624 | K100: =SEV!$DB$38 -> 3905 | L100: ='F&H'!$DB$38 -> 2974 | M100: =SWA!$DB$38 -> 4563 | N100: =THA!$DB$38 -> 3989 | O100: =TON!$DB$38 -> 4200 | P100: =TUN!$DB$38 -> 3899 | Q100: =Kent!$DB$38 -> 47128 | R100: ='Kent+Med'!$DB$38 -> 55752 | S100: ='South East'!$DB$38 -> 272338 | T100: ='England & Wales'!$DB$38 -> 1727101
A101: Females | B101: 15-19 | C101: - | D101: =ASH!$DB$39 -> 3605 | E101: =CAN!$DB$39 -> 5850 | F101: =DAR!$DB$39 -> 2954 | G101: =DOV!$DB$39 -> 2962 | H101: =GRA!$DB$39 -> 2915 | I101: =MAI!$DB$39 -> 4368 | J101: =MED!$DB$39 -> 7907 | K101: =SEV!$DB$39 -> 3307 | L101: ='F&H'!$DB$39 -> 2518 | M101: =SWA!$DB$39 -> 3940 | N101: =THA!$DB$39 -> 3386 | O101: =TON!$DB$39 -> 3617 | P101: =TUN!$DB$39 -> 3478 | Q101: =Kent!$DB$39 -> 42900 | R101: ='Kent+Med'!$DB$39 -> 50807 | S101: ='South East'!$DB$39 -> 252592 | T101: ='England & Wales'!$DB$39 -> 1629615
A102: Females | B102: 20-24 | C102: - | D102: =ASH!$DB$40 -> 3219 | E102: =CAN!$DB$40 -> 9018 | F102: =DAR!$DB$40 -> 2884 | G102: =DOV!$DB$40 -> 2642 | H102: =GRA!$DB$40 -> 2739 | I102: =MAI!$DB$40 -> 4316 | J102: =MED!$DB$40 -> 8037 | K102: =SEV!$DB$40 -> 2431 | L102: ='F&H'!$DB$40 -> 2509 | M102: =SWA!$DB$40 -> 3875 | N102: =THA!$DB$40 -> 3391 | O102: =TON!$DB$40 -> 2966 | P102: =TUN!$DB$40 -> 2439 | Q102: =Kent!$DB$40 -> 42429 | R102: ='Kent+Med'!$DB$40 -> 50466 | S102: ='South East'!$DB$40 -> 257106 | T102: ='England & Wales'!$DB$40 -> 1807953
A103: Females | B103: 25-29 | C103: - | D103: =ASH!$DB$41 -> 4135 | E103: =CAN!$DB$41 -> 4402 | F103: =DAR!$DB$41 -> 4167 | G103: =DOV!$DB$41 -> 3438 | H103: =GRA!$DB$41 -> 3484 | I103: =MAI!$DB$41 -> 5455 | J103: =MED!$DB$41 -> 9917 | K103: =SEV!$DB$41 -> 2948 | L103: ='F&H'!$DB$41 -> 2923 | M103: =SWA!$DB$41 -> 4678 | N103: =THA!$DB$41 -> 4185 | O103: =TON!$DB$41 -> 3750 | P103: =TUN!$DB$41 -> 3084 | Q103: =Kent!$DB$41 -> 46649 | R103: ='Kent+Med'!$DB$41 -> 56566 | S103: ='South East'!$DB$41 -> 277460 | T103: ='England & Wales'!$DB$41 -> 2009848
A104: Females | B104: 30-34 | C104: - | D104: =ASH!$DB$42 -> 4579 | E104: =CAN!$DB$42 -> 4243 | F104: =DAR!$DB$42 -> 5267 | G104: =DOV!$DB$42 -> 3458 | H104: =GRA!$DB$42 -> 3947 | I104: =MAI!$DB$42 -> 6059 | J104: =MED!$DB$42 -> 10508 | K104: =SEV!$DB$42 -> 3450 | L104: ='F&H'!$DB$42 -> 3159 | M104: =SWA!$DB$42 -> 5093 | N104: =THA!$DB$42 -> 4432 | O104: =TON!$DB$42 -> 4069 | P104: =TUN!$DB$42 -> 3460 | Q104: =Kent!$DB$42 -> 51216 | R104: ='Kent+Med'!$DB$42 -> 61724 | S104: ='South East'!$DB$42 -> 304853 | T104: ='England & Wales'!$DB$42 -> 2121377
A105: Females | B105: 35-39 | C105: - | D105: =ASH!$DB$43 -> 4228 | E105: =CAN!$DB$43 -> 4297 | F105: =DAR!$DB$43 -> 4994 | G105: =DOV!$DB$43 -> 3308 | H105: =GRA!$DB$43 -> 3917 | I105: =MAI!$DB$43 -> 5939 | J105: =MED!$DB$43 -> 9880 | K105: =SEV!$DB$43 -> 3881 | L105: ='F&H'!$DB$43 -> 3096 | M105: =SWA!$DB$43 -> 4965 | N105: =THA!$DB$43 -> 4200 | O105: =TON!$DB$43 -> 4494 | P105: =TUN!$DB$43 -> 3720 | Q105: =Kent!$DB$43 -> 51039 | R105: ='Kent+Med'!$DB$43 -> 60919 | S105: ='South East'!$DB$43 -> 310718 | T105: ='England & Wales'!$DB$43 -> 2040307
A106: Females | B106: 40-44 | C106: - | D106: =ASH!$DB$44 -> 4157 | E106: =CAN!$DB$44 -> 4273 | F106: =DAR!$DB$44 -> 4108 | G106: =DOV!$DB$44 -> 3196 | H106: =GRA!$DB$44 -> 3475 | I106: =MAI!$DB$44 -> 5442 | J106: =MED!$DB$44 -> 9303 | K106: =SEV!$DB$44 -> 4023 | L106: ='F&H'!$DB$44 -> 3135 | M106: =SWA!$DB$44 -> 4454 | N106: =THA!$DB$44 -> 4111 | O106: =TON!$DB$44 -> 4547 | P106: =TUN!$DB$44 -> 3953 | Q106: =Kent!$DB$44 -> 48874 | R106: ='Kent+Med'!$DB$44 -> 58177 | S106: ='South East'!$DB$44 -> 302344 | T106: ='England & Wales'!$DB$44 -> 1878787
A107: Females | B107: 45-49 | C107: - | D107: =ASH!$DB$45 -> 4579 | E107: =CAN!$DB$45 -> 4706 | F107: =DAR!$DB$45 -> 3857 | G107: =DOV!$DB$45 -> 3654 | H107: =GRA!$DB$45 -> 3592 | I107: =MAI!$DB$45 -> 6023 | J107: =MED!$DB$45 -> 9083 | K107: =SEV!$DB$45 -> 4331 | L107: ='F&H'!$DB$45 -> 3519 | M107: =SWA!$DB$45 -> 4795 | N107: =THA!$DB$45 -> 4579 | O107: =TON!$DB$45 -> 4916 | P107: =TUN!$DB$45 -> 4453 | Q107: =Kent!$DB$45 -> 53004 | R107: ='Kent+Med'!$DB$45 -> 62087 | S107: ='South East'!$DB$45 -> 318035 | T107: ='England & Wales'!$DB$45 -> 1963502
A108: Females | B108: 50-54 | C108: - | D108: =ASH!$DB$46 -> 5021 | E108: =CAN!$DB$46 -> 5236 | F108: =DAR!$DB$46 -> 3954 | G108: =DOV!$DB$46 -> 4190 | H108: =GRA!$DB$46 -> 3819 | I108: =MAI!$DB$46 -> 6199 | J108: =MED!$DB$46 -> 9652 | K108: =SEV!$DB$46 -> 4641 | L108: ='F&H'!$DB$46 -> 4086 | M108: =SWA!$DB$46 -> 5371 | N108: =THA!$DB$46 -> 5098 | O108: =TON!$DB$46 -> 5041 | P108: =TUN!$DB$46 -> 4555 | Q108: =Kent!$DB$46 -> 57211 | R108: ='Kent+Med'!$DB$46 -> 66863 | S108: ='South East'!$DB$46 -> 333897 | T108: ='England & Wales'!$DB$46 -> 2093780
A109: Females | B109: 55-59 | C109: - | D109: =ASH!$DB$47 -> 4542 | E109: =CAN!$DB$47 -> 5179 | F109: =DAR!$DB$47 -> 3419 | G109: =DOV!$DB$47 -> 4433 | H109: =GRA!$DB$47 -> 3512 | I109: =MAI!$DB$47 -> 5876 | J109: =MED!$DB$47 -> 9418 | K109: =SEV!$DB$47 -> 4313 | L109: ='F&H'!$DB$47 -> 4158 | M109: =SWA!$DB$47 -> 5304 | N109: =THA!$DB$47 -> 5033 | O109: =TON!$DB$47 -> 4720 | P109: =TUN!$DB$47 -> 4063 | Q109: =Kent!$DB$47 -> 54552 | R109: ='Kent+Med'!$DB$47 -> 63970 | S109: ='South East'!$DB$47 -> 320314 | T109: ='England & Wales'!$DB$47 -> 2021720
A110: Females | B110: 60-64 | C110: - | D110: =ASH!$DB$48 -> 3718 | E110: =CAN!$DB$48 -> 4703 | F110: =DAR!$DB$48 -> 2763 | G110: =DOV!$DB$48 -> 4135 | H110: =GRA!$DB$48 -> 2827 | I110: =MAI!$DB$48 -> 4891 | J110: =MED!$DB$48 -> 7785 | K110: =SEV!$DB$48 -> 3731 | L110: ='F&H'!$DB$48 -> 3780 | M110: =SWA!$DB$48 -> 4402 | N110: =THA!$DB$48 -> 4599 | O110: =TON!$DB$48 -> 3764 | P110: =TUN!$DB$48 -> 3421 | Q110: =Kent!$DB$48 -> 46734 | R110: ='Kent+Med'!$DB$48 -> 54519 | S110: ='South East'!$DB$48 -> 268864 | T110: ='England & Wales'!$DB$48 -> 1716626
A111: Females | B111: 65-69 | C111: - | D111: =ASH!$DB$49 -> 3410 | E111: =CAN!$DB$49 -> 4421 | F111: =DAR!$DB$49 -> 2187 | G111: =DOV!$DB$49 -> 3786 | H111: =GRA!$DB$49 -> 2498 | I111: =MAI!$DB$49 -> 4375 | J111: =MED!$DB$49 -> 6607 | K111: =SEV!$DB$49 -> 3343 | L111: ='F&H'!$DB$49 -> 3671 | M111: =SWA!$DB$49 -> 3817 | N111: =THA!$DB$49 -> 4524 | O111: =TON!$DB$49 -> 3187 | P111: =TUN!$DB$49 -> 2884 | Q111: =Kent!$DB$49 -> 42103 | R111: ='Kent+Med'!$DB$49 -> 48710 | S111: ='South East'!$DB$49 -> 237823 | T111: ='England & Wales'!$DB$49 -> 1511330
A112: Females | B112: 70-74 | C112: - | D112: =ASH!$DB$50 -> 3833 | E112: =CAN!$DB$50 -> 5014 | F112: =DAR!$DB$50 -> 2256 | G112: =DOV!$DB$50 -> 3971 | H112: =GRA!$DB$50 -> 2630 | I112: =MAI!$DB$50 -> 4891 | J112: =MED!$DB$50 -> 6850 | K112: =SEV!$DB$50 -> 3688 | L112: ='F&H'!$DB$50 -> 4038 | M112: =SWA!$DB$50 -> 4370 | N112: =THA!$DB$50 -> 4907 | O112: =TON!$DB$50 -> 3655 | P112: =TUN!$DB$50 -> 3103 | Q112: =Kent!$DB$50 -> 46356 | R112: ='Kent+Med'!$DB$50 -> 53206 | S112: ='South East'!$DB$50 -> 253565 | T112: ='England & Wales'!$DB$50 -> 1547744
A113: Females | B113: 75-79 | C113: - | D113: =ASH!$DB$51 -> 2776 | E113: =CAN!$DB$51 -> 3611 | F113: =DAR!$DB$51 -> 1622 | G113: =DOV!$DB$51 -> 2878 | H113: =GRA!$DB$51 -> 1891 | I113: =MAI!$DB$51 -> 3372 | J113: =MED!$DB$51 -> 4627 | K113: =SEV!$DB$51 -> 2620 | L113: ='F&H'!$DB$51 -> 2792 | M113: =SWA!$DB$51 -> 2999 | N113: =THA!$DB$51 -> 3522 | O113: =TON!$DB$51 -> 2762 | P113: =TUN!$DB$51 -> 2395 | Q113: =Kent!$DB$51 -> 33240 | R113: ='Kent+Med'!$DB$51 -> 37867 | S113: ='South East'!$DB$51 -> 186042 | T113: ='England & Wales'!$DB$51 -> 1135065
A114: Females | B114: 80-84 | C114: - | D114: =ASH!$DB$52 -> 1877 | E114: =CAN!$DB$52 -> 2633 | F114: =DAR!$DB$52 -> 1294 | G114: =DOV!$DB$52 -> 2032 | H114: =GRA!$DB$52 -> 1527 | I114: =MAI!$DB$52 -> 2593 | J114: =MED!$DB$52 -> 3493 | K114: =SEV!$DB$52 -> 2010 | L114: ='F&H'!$DB$52 -> 2060 | M114: =SWA!$DB$52 -> 2098 | N114: =THA!$DB$52 -> 2533 | O114: =TON!$DB$52 -> 1981 | P114: =TUN!$DB$52 -> 1772 | Q114: =Kent!$DB$52 -> 24410 | R114: ='Kent+Med'!$DB$52 -> 27903 | S114: ='South East'!$DB$52 -> 140062 | T114: ='England & Wales'!$DB$52 -> 851907
A115: Females | B115: 85+ | C115: - | D115: =ASH!$DB$53 -> 1941 | E115: =CAN!$DB$53 -> 3129 | F115: =DAR!$DB$53 -> 1373 | G115: =DOV!$DB$53 -> 2178 | H115: =GRA!$DB$53 -> 1566 | I115: =MAI!$DB$53 -> 2757 | J115: =MED!$DB$53 -> 3335 | K115: =SEV!$DB$53 -> 2399 | L115: ='F&H'!$DB$53 -> 2245 | M115: =SWA!$DB$53 -> 2043 | N115: =THA!$DB$53 -> 2761 | O115: =ASH!$DB$53 -> 1941 | P115: =TUN!$DB$53 -> 2188 | Q115: =Kent!$DB$53 -> 26632 | R115: ='Kent+Med'!$DB$53 -> 29967 | S115: ='South East'!$DB$53 -> 159304 | T115: ='England & Wales'!$DB$53 -> 913520
A118: Population Pyramid data
A119: Selected district | I119: KCC Area
A120: =INDEX(C76:T76,Index!B11) -> Ashford | B120: Total Pop | C120: =SUM(B122,E122) -> 131431 | H120: KCC | I120: Total Pop | J120: =SUM(I122,L122) -> 1567971
A121: =Index!C22 -> 2023 | B121: Males | E121: Females | I121: Males | L121: Females
A122: All Ages | B122: =INDEX(C77:T77,Index!$B$11) -> 63913 | C122: =B122/C120 -> 0.4862855795 | E122: =INDEX(C97:T97,Index!$B$11) -> 67518 | F122: =E122/C120 -> 0.5137144205 | H122: All Ages | I122: =Kent!DB15 -> 764745 | L122: =Kent!DB35 -> 803226
A123: 0-4 | B123: =INDEX(C78:T78,Index!$B$11) -> 3887 | C123: =B123/$C$120 -> 0.02957445352 | D123: =C123*-1 -> -0.02957445352 | E123: =INDEX(C98:T98,Index!$B$11) -> 3718 | F123: =E123/$C$120 -> 0.02828860771 | H123: 0-4 | I123: =Kent!DB16 -> 45070 | J123: =I123/$J$120 -> 0.02874415407 | K123: =J123*-1 -> -0.02874415407 | L123: =Kent!DB36 -> 42401 | M123: =L123/$J$120 -> 0.02704195422
A124: 5-9 | B124: =INDEX(C79:T79,Index!$B$11) -> 4244 | C124: =B124/$C$120 -> 0.03229070767 | D124: =C124*-1 -> -0.03229070767 | E124: =INDEX(C99:T99,Index!$B$11) -> 4066 | F124: =E124/$C$120 -> 0.03093638487 | H124: 5-9 | I124: =Kent!DB17 -> 49091 | J124: =I124/$J$120 -> 0.03130861476 | K124: =J124*-1 -> -0.03130861476 | L124: =Kent!DB37 -> 46348 | M124: =L124/$J$120 -> 0.02955922016
A125: 10-14 | B125: =INDEX(C80:T80,Index!$B$11) -> 4224 | C125: 0.03213853657 | D125: -0.03213853657 | E125: =INDEX(C100:T100,Index!$B$11) -> 4114 | F125: 0.03130159551 | H125: 10-14 | I125: =Kent!DB18 -> 49561 | J125: 0.03160836521 | K125: -0.03160836521 | L125: =Kent!DB38 -> 47128 | M125: 0.03005667834
A126: 15-19 | B126: =INDEX(C81:T81,Index!$B$11) -> 3874 | C126: 0.0294755423 | D126: -0.0294755423 | E126: =INDEX(C101:T101,Index!$B$11) -> 3605 | F126: 0.02742884099 | H126: 15-19 | I126: =Kent!DB19 -> 45309 | J126: 0.02889658036 | K126: -0.02889658036 | L126: =Kent!DB39 -> 42900 | M126: 0.0273601999
A127: 20-24 | B127: =INDEX(C82:T82,Index!$B$11) -> 3212 | C127: 0.02443867885 | D127: -0.02443867885 | E127: =INDEX(C102:T102,Index!$B$11) -> 3219 | F127: 0.02449193874 | H127: 20-24 | I127: =Kent!DB20 -> 42303 | J127: 0.02697945306 | K127: -0.02697945306 | L127: =Kent!DB40 -> 42429 | M127: 0.02705981169
A128: 25-29 | B128: =INDEX(C83:T83,Index!$B$11) -> 3801 | C128: 0.02892011778 | D128: -0.02892011778 | E128: =INDEX(C103:T103,Index!$B$11) -> 4135 | F128: 0.03146137517 | H128: 25-29 | I128: =Kent!DB21 -> 44416 | J128: 0.02832705452 | K128: -0.02832705452 | L128: =Kent!DB41 -> 46649 | M128: 0.029751188
A129: 30-34 | B129: =INDEX(C84:T84,Index!$B$11) -> 3996 | C129: 0.03040378602 | D129: -0.03040378602 | E129: =INDEX(C104:T104,Index!$B$11) -> 4579 | F129: 0.03483957362 | H129: 30-34 | I129: =Kent!DB22 -> 47098 | J129: 0.03003754534 | K129: -0.03003754534 | L129: =Kent!DB42 -> 51216 | M129: 0.03266386942
A130: 35-39 | B130: =INDEX(C85:T85,Index!$B$11) -> 3813 | C130: 0.02901142044 | D130: -0.02901142044 | E130: =INDEX(C105:T105,Index!$B$11) -> 4228 | F130: 0.03216897079 | H130: 35-39 | I130: =Kent!DB23 -> 47060 | J130: 0.0300133102 | K130: -0.0300133102 | L130: =Kent!DB43 -> 51039 | M130: 0.03255098468
A131: 40-44 | B131: =INDEX(C86:T86,Index!$B$11) -> 3905 | C131: 0.02971140751 | D131: -0.02971140751 | E131: =INDEX(C106:T106,Index!$B$11) -> 4157 | F131: 0.03162876338 | H131: 40-44 | I131: =Kent!DB24 -> 46392 | J131: 0.02958728191 | K131: -0.02958728191 | L131: =Kent!DB44 -> 48874 | M131: 0.03117021935
A132: 45-49 | B132: =INDEX(C87:T87,Index!$B$11) -> 4153 | C132: 0.03159832916 | D132: -0.03159832916 | E132: =INDEX(C107:T107,Index!$B$11) -> 4579 | F132: 0.03483957362 | H132: 45-49 | I132: =Kent!DB25 -> 50321 | J132: 0.03209306805 | K132: -0.03209306805 | L132: =Kent!DB45 -> 53004 | M132: 0.03380419663
A133: 50-54 | B133: =INDEX(C88:T88,Index!$B$11) -> 4876 | C133: 0.03709931447 | D133: -0.03709931447 | E133: =INDEX(C108:T108,Index!$B$11) -> 5021 | F133: 0.03820255495 | H133: 50-54 | I133: =Kent!DB26 -> 54779 | J133: 0.03493623288 | K133: -0.03493623288 | L133: =Kent!DB46 -> 57211 | M133: 0.03648728197
A134: 55-59 | B134: =INDEX(C89:T89,Index!$B$11) -> 4547 | C134: 0.03459609985 | D134: -0.03459609985 | E134: =INDEX(C109:T109,Index!$B$11) -> 4542 | F134: 0.03455805708 | H134: 55-59 | I134: =Kent!DB27 -> 53364 | J134: 0.03403379272 | K134: -0.03403379272 | L134: =Kent!DB47 -> 54552 | M134: 0.03479145979
A135: 60-64 | B135: =INDEX(C90:T90,Index!$B$11) -> 3570 | C135: 0.02716254156 | D135: -0.02716254156 | E135: =INDEX(C110:T110,Index!$B$11) -> 3718 | F135: 0.02828860771 | H135: 60-64 | I135: =Kent!DB28 -> 44697 | J135: 0.02850626702 | K135: -0.02850626702 | L135: =Kent!DB48 -> 46734 | M135: 0.02980539819
A136: 65-69 | B136: =INDEX(C91:T91,Index!$B$11) -> 3154 | C136: 0.02399738266 | D136: -0.02399738266 | E136: =INDEX(C111:T111,Index!$B$11) -> 3410 | F136: 0.02594517275 | H136: 65-69 | I136: =Kent!DB29 -> 39259 | J136: 0.02503809063 | K136: -0.02503809063 | L136: =Kent!DB49 -> 42103 | M136: 0.02685189968
A137: 70-74 | B137: =INDEX(C92:T92,Index!$B$11) -> 3403 | C137: 0.02589191287 | D137: -0.02589191287 | E137: =INDEX(C112:T112,Index!$B$11) -> 3833 | F137: 0.02916359154 | H137: 70-74 | I137: =Kent!DB30 -> 41857 | J137: 0.02669500903 | K137: -0.02669500903 | L137: =Kent!DB50 -> 46356 | M137: 0.0295643223
A138: 75-79 | B138: =INDEX(C93:T93,Index!$B$11) -> 2461 | C138: 0.018724654 | D138: -0.018724654 | E138: =INDEX(C113:T113,Index!$B$11) -> 2776 | F138: 0.02112134884 | H138: 75-79 | I138: =Kent!DB31 -> 29014 | J138: 0.01850416876 | K138: -0.01850416876 | L138: =Kent!DB51 -> 33240 | M138: 0.02119937167
A139: 80-84 | B139: =INDEX(C94:T94,Index!$B$11) -> 1589 | C139: 0.01208999399 | D139: -0.01208999399 | E139: =INDEX(C114:T114,Index!$B$11) -> 1877 | F139: 0.01428125785 | H139: 80-84 | I139: =Kent!DB32 -> 19532 | J139: 0.01245686304 | K139: -0.01245686304 | L139: =Kent!DB52 -> 24410 | M139: 0.01556788997
A140: 85+ | B140: =INDEX(C95:T95,Index!$B$11) -> 1204 | C140: 0.009160700291 | D140: -0.009160700291 | E140: =INDEX(C115:T115,Index!$B$11) -> 1941 | F140: 0.01476820537 | H140: 85+ | I140: =Kent!DB33 -> 15622 | J140: 0.009963194472 | K140: -0.009963194472 | L140: =Kent!DB53 -> 26632 | M140: 0.01698500801

Sheet England & Wales (hidden)
A1: Mid Year Population Estimates | BQ1: Insert column here before extending the table
A2: ONS Mid-Year Population Estimates 1991 to 2022 - (1992 to 2001 Revised 7th October 2004) ( 2002 to 2010 revised in light of the 2011 census. Released 30 April 2013) | AJ2: Selected Ages: | AL2: =Index!$C$4&" : "&Index!$C$7 -> 0 : 90 | BU2: Start year | BV2: End Year | BW2: Number change | BX2: % Change
A3: Revised ONS Mid-Year Population Estimates 2012 to 2020- Released 23 November 2023 | AK3: =AK13 -> 1992 | AL3: =AL13 -> 1993 | AM3: =AM13 -> 1994 | AN3: =AN13 -> 1995 | AO3: =AO13 -> 1996 | AP3: =AP13 -> 1997 | AQ3: 1998 | AR3: 1999 | AS3: 2000 | AT3: 2001 | AU3: 2002 | AV3: 2003 | AW3: 2004 | AX3: 2005 | AY3: 2006 | AZ3: 2007 | BA3: 2008 | BB3: 2009 | BC3: 2010 | BD3: 2011 | BE3: 2012 | BF3: 2013 | BG3: 2014 | BH3: 2015 | BI3: 2016 | BJ3: =BJ13 -> 2017 | BK3: 2018 | BL3: 2019 | BM3: 2020 | BN3: 2021 | BO3: 2022 | BP3: =BP13 -> 2023 | BU3: =INDEX($AR3:$BM3,Index!$B$16) -> 1999 | BV3: =INDEX($AR3:$BM3,Index!$B$19) -> 2019
A4: 2022 MYPE released 23 November 2023 | AJ4: Males | AK4: =OFFSET(AK16,Index!$B$7-1,0)-IF(Index!$B$4-2=-1,0,OFFSET(AK16,Index!$B$4-2,0)) -> 24739461 | AL4: =OFFSET(AL16,Index!$B$7-1,0)-IF(Index!$B$4-2=-1,0,OFFSET(AL16,Index!$B$4-2,0)) -> 24792642 | AM4: =OFFSET(AM16,Index!$B$7-1,0)-IF(Index!$B$4-2=-1,0,OFFSET(AM16,Index!$B$4-2,0)) -> 24853043 | AN4: =OFFSET(AN16,Index!$B$7-1,0)-IF(Index!$B$4-2=-1,0,OFFSET(AN16,Index!$B$4-2,0)) -> 24946334 | AO4: =OFFSET(AO16,Index!$B$7-1,0)-IF(Index!$B$4-2=-1,0,OFFSET(AO16,Index!$B$4-2,0)) -> 25029777 | AP4: =OFFSET(AP16,Index!$B$7-1,0)-IF(Index!$B$4-2=-1,0,OFFSET(AP16,Index!$B$4-2,0)) -> 25113194 | AQ4: =OFFSET(AQ16,Index!$B$7-1,0)-IF(Index!$B$4-2=-1,0,OFFSET(AQ16,Index!$B$4-2,0)) -> 25200700 | AR4: =OFFSET(AR16,Index!$B$7-1,0)-IF(Index!$B$4-2=-1,0,OFFSET(AR16,Index!$B$4-2,0)) -> 25323441 | AS4: =OFFSET(AS16,Index!$B$7-1,0)-IF(Index!$B$4-2=-1,0,OFFSET(AS16,Index!$B$4-2,0)) -> 25438046 | AT4: =OFFSET(AT16,Index!$B$7-1,0)-IF(Index!$B$4-2=-1,0,OFFSET(AT16,Index!$B$4-2,0)) -> 25574258 | AU4: =OFFSET(AU16,Index!$B$7-1,0)-IF(Index!$B$4-2=-1,0,OFFSET(AU16,Index!$B$4-2,0)) -> 25708118 | AV4: =OFFSET(AV16,Index!$B$7-1,0)-IF(Index!$B$4-2=-1,0,OFFSET(AV16,Index!$B$4-2,0)) -> 25854109 | AW4: =OFFSET(AW16,Index!$B$7-1,0)-IF(Index!$B$4-2=-1,0,OFFSET(AW16,Index!$B$4-2,0)) -> 26012115 | AX4: =OFFSET(AX16,Index!$B$7-1,0)-IF(Index!$B$4-2=-1,0,OFFSET(AX16,Index!$B$4-2,0)) -> 26234398 | AY4: =OFFSET(AY16,Index!$B$7-1,0)-IF(Index!$B$4-2=-1,0,OFFSET(AY16,Index!$B$4-2,0)) -> 26433350 | AZ4: =OFFSET(AZ16,Index!$B$7-1,0)-IF(Index!$B$4-2=-1,0,OFFSET(AZ16,Index!$B$4-2,0)) -> 26669068 | BA4: =OFFSET(BA16,Index!$B$7-1,0)-IF(Index!$B$4-2=-1,0,OFFSET(BA16,Index!$B$4-2,0)) -> 26914321 | BB4: =OFFSET(BB16,Index!$B$7-1,0)-IF(Index!$B$4-2=-1,0,OFFSET(BB16,Index!$B$4-2,0)) -> 27121680 | BC4: =OFFSET(BC16,Index!$B$7-1,0)-IF(Index!$B$4-2=-1,0,OFFSET(BC16,Index!$B$4-2,0)) -> 27372737 | BD4: =OFFSET(BD16,Index!$B$7-1,0)-IF(Index!$B$4-2=-1,0,OFFSET(BD16,Index!$B$4-2,0)) -> 27637637 | BE4: =OFFSET(BE16,Index!$B$7-1,0)-IF(Index!$B$4-2=-1,0,OFFSET(BE16,Index!$B$4-2,0)) -> 27825600 | BF4: =OFFSET(BF16,Index!$B$7-1,0)-IF(Index!$B$4-2=-1,0,OFFSET(BF16,Index!$B$4-2,0)) -> 28016359 | BG4: =OFFSET(BG16,Index!$B$7-1,0)-IF(Index!$B$4-2=-1,0,OFFSET(BG16,Index!$B$4-2,0)) -> 28232465 | BH4: =OFFSET(BH16,Index!$B$7-1,0)-IF(Index!$B$4-2=-1,0,OFFSET(BH16,Index!$B$4-2,0)) -> 28451237 | BI4: =OFFSET(BI16,Index!$B$7-1,0)-IF(Index!$B$4-2=-1,0,OFFSET(BI16,Index!$B$4-2,0)) -> 28676053 | BJ4: =OFFSET(BJ16,Index!$B$7-1,0)-IF(Index!$B$4-2=-1,0,OFFSET(BJ16,Index!$B$4-2,0)) -> 28823855 | BK4: =OFFSET(BK16,Index!$B$7-1,0)-IF(Index!$B$4-2=-1,0,OFFSET(BK16,Index!$B$4-2,0)) -> 28952751 | BL4: =OFFSET(BL16,Index!$B$7-1,0)-IF(Index!$B$4-2=-1,0,OFFSET(BL16,Index!$B$4-2,0)) -> 29085955 | BM4: =OFFSET(BM16,Index!$B$7-1,0)-IF(Index!$B$4-2=-1,0,OFFSET(BM16,Index!$B$4-2,0)) -> 29118166 | BN4: =OFFSET(BN16,Index!$B$7-1,0)-IF(Index!$B$4-2=-1,0,OFFSET(BN16,Index!$B$4-2,0)) -> 29203353 | BO4: =OFFSET(BO16,Index!$B$7-1,0)-IF(Index!$B$4-2=-1,0,OFFSET(BO16,Index!$B$4-2,0)) -> 29521521 | BP4: =OFFSET(BP16,Index!$B$7-1,0)-IF(Index!$B$4-2=-1,0,OFFSET(BP16,Index!$B$4-2,0)) -> 29835992 | BU4: =INDEX($AR4:$BL4,Index!$B$16) -> 25323441 | BV4: =INDEX($AR4:$BM4,Index!$B$19) -> 29085955 | BW4: =BV4-BU4 -> 3762514 | BX4: =BW4/BU4 -> 0.1485783073
AJ5: Females | AK5: =OFFSET(AK109,Index!$B$7-1,0)-IF(Index!$B$4-2=-1,0,OFFSET(AK109,Index!$B$4-2,0)) -> 26136186 | AL5: =OFFSET(AL109,Index!$B$7-1,0)-IF(Index!$B$4-2=-1,0,OFFSET(AL109,Index!$B$4-2,0)) -> 26193235 | AM5: =OFFSET(AM109,Index!$B$7-1,0)-IF(Index!$B$4-2=-1,0,OFFSET(AM109,Index!$B$4-2,0)) -> 26263185 | AN5: =OFFSET(AN109,Index!$B$7-1,0)-IF(Index!$B$4-2=-1,0,OFFSET(AN109,Index!$B$4-2,0)) -> 26325644 | AO5: =OFFSET(AO109,Index!$B$7-1,0)-IF(Index!$B$4-2=-1,0,OFFSET(AO109,Index!$B$4-2,0)) -> 26380656 | AP5: =OFFSET(AP109,Index!$B$7-1,0)-IF(Index!$B$4-2=-1,0,OFFSET(AP109,Index!$B$4-2,0)) -> 26446454 | AQ5: =OFFSET(AQ109,Index!$B$7-1,0)-IF(Index!$B$4-2=-1,0,OFFSET(AQ109,Index!$B$4-2,0)) -> 26519404 | AR5: =OFFSET(AR109,Index!$B$7-1,0)-IF(Index!$B$4-2=-1,0,OFFSET(AR109,Index!$B$4-2,0)) -> 26610030 | AS5: =OFFSET(AS109,Index!$B$7-1,0)-IF(Index!$B$4-2=-1,0,OFFSET(AS109,Index!$B$4-2,0)) -> 26702135 | AT5: =OFFSET(AT109,Index!$B$7-1,0)-IF(Index!$B$4-2=-1,0,OFFSET(AT109,Index!$B$4-2,0)) -> 26785720 | AU5: =OFFSET(AU109,Index!$B$7-1,0)-IF(Index!$B$4-2=-1,0,OFFSET(AU109,Index!$B$4-2,0)) -> 26894025 | AV5: =OFFSET(AV109,Index!$B$7-1,0)-IF(Index!$B$4-2=-1,0,OFFSET(AV109,Index!$B$4-2,0)) -> 27009129 | AW5: =OFFSET(AW109,Index!$B$7-1,0)-IF(Index!$B$4-2=-1,0,OFFSET(AW109,Index!$B$4-2,0)) -> 27139907 | AX5: =OFFSET(AX109,Index!$B$7-1,0)-IF(Index!$B$4-2=-1,0,OFFSET(AX109,Index!$B$4-2,0)) -> 27340945 | AY5: =OFFSET(AY109,Index!$B$7-1,0)-IF(Index!$B$4-2=-1,0,OFFSET(AY109,Index!$B$4-2,0)) -> 27517504 | AZ5: =OFFSET(AZ109,Index!$B$7-1,0)-IF(Index!$B$4-2=-1,0,OFFSET(AZ109,Index!$B$4-2,0)) -> 27718324 | BA5: =OFFSET(BA109,Index!$B$7-1,0)-IF(Index!$B$4-2=-1,0,OFFSET(BA109,Index!$B$4-2,0)) -> 27927399 | BB5: =OFFSET(BB109,Index!$B$7-1,0)-IF(Index!$B$4-2=-1,0,OFFSET(BB109,Index!$B$4-2,0)) -> 28113573 | BC5: =OFFSET(BC109,Index!$B$7-1,0)-IF(Index!$B$4-2=-1,0,OFFSET(BC109,Index!$B$4-2,0)) -> 28319686 | BD5: =OFFSET(BD109,Index!$B$7-1,0)-IF(Index!$B$4-2=-1,0,OFFSET(BD109,Index!$B$4-2,0)) -> 28533290 | BE5: =OFFSET(BE109,Index!$B$7-1,0)-IF(Index!$B$4-2=-1,0,OFFSET(BE109,Index!$B$4-2,0)) -> 28752140 | BF5: =OFFSET(BF109,Index!$B$7-1,0)-IF(Index!$B$4-2=-1,0,OFFSET(BF109,Index!$B$4-2,0)) -> 28973385 | BG5: =OFFSET(BG109,Index!$B$7-1,0)-IF(Index!$B$4-2=-1,0,OFFSET(BG109,Index!$B$4-2,0)) -> 29211642 | BH5: =OFFSET(BH109,Index!$B$7-1,0)-IF(Index!$B$4-2=-1,0,OFFSET(BH109,Index!$B$4-2,0)) -> 29430178 | BI5: =OFFSET(BI109,Index!$B$7-1,0)-IF(Index!$B$4-2=-1,0,OFFSET(BI109,Index!$B$4-2,0)) -> 29690146 | BJ5: =OFFSET(BJ109,Index!$B$7-1,0)-IF(Index!$B$4-2=-1,0,OFFSET(BJ109,Index!$B$4-2,0)) -> 29877059 | BK5: =OFFSET(BK109,Index!$B$7-1,0)-IF(Index!$B$4-2=-1,0,OFFSET(BK109,Index!$B$4-2,0)) -> 30055617 | BL5: =OFFSET(BL109,Index!$B$7-1,0)-IF(Index!$B$4-2=-1,0,OFFSET(BL109,Index!$B$4-2,0)) -> 30231833 | BM5: =OFFSET(BM109,Index!$B$7-1,0)-IF(Index!$B$4-2=-1,0,OFFSET(BM109,Index!$B$4-2,0)) -> 30312278 | BN5: =OFFSET(BN109,Index!$B$7-1,0)-IF(Index!$B$4-2=-1,0,OFFSET(BN109,Index!$B$4-2,0)) -> 30457171 | BO5: =OFFSET(BO109,Index!$B$7-1,0)-IF(Index!$B$4-2=-1,0,OFFSET(BO109,Index!$B$4-2,0)) -> 30723697 | BP5: =OFFSET(BP109,Index!$B$7-1,0)-IF(Index!$B$4-2=-1,0,OFFSET(BP109,Index!$B$4-2,0)) -> 31018735 | BU5: =INDEX($AR5:$BL5,Index!$B$16) -> 26610030 | BV5: =INDEX($AR5:$BM5,Index!$B$19) -> 30231833 | BW5: =BV5-BU5 -> 3621803 | BX5: =BW5/BU5 -> 0.1361066861
AJ6: Total | AK6: =SUM(AK4:AK5) -> 50875647 | AL6: =SUM(AL4:AL5) -> 50985877 | AM6: =SUM(AM4:AM5) -> 51116228 | AN6: =SUM(AN4:AN5) -> 51271978 | AO6: =SUM(AO4:AO5) -> 51410433 | AP6: =SUM(AP4:AP5) -> 51559648 | AQ6: 51720104 | AR6: 51933471 | AS6: 52140181 | AT6: 52359978 | AU6: 52602143 | AV6: 52863238 | AW6: 53152022 | AX6: 53575343 | AY6: 53950854 | AZ6: 54387392 | BA6: 54841720 | BB6: 55235253 | BC6: 55692423 | BD6: 56170927 | BE6: 56577740 | BF6: 56989744 | BG6: 57444107 | BH6: 57881415 | BI6: 58366199 | BJ6: 58700914 | BK6: 59008368 | BL6: 59317788 | BM6: 59430444 | BN6: 59660524 | BO6: 60245218 | BP6: 60854727 | BU6: =INDEX($AR6:$BL6,Index!$B$16) -> 51933471 | BV6: =INDEX($AR6:$BM6,Index!$B$19) -> 59317788 | BW6: =BV6-BU6 -> 7384317 | BX6: =BW6/BU6 -> 0.142188012
AJ8: Males | AK8: =IF(AK4<0,"0",AK4) -> 24739461 | AL8: =IF(AL4<0,"0",AL4) -> 24792642 | AM8: 24853043 | AN8: 24946334 | AO8: 25029777 | AP8: 25113194 | AQ8: 25200700 | AR8: 25323441 | AS8: 25438046 | AT8: 25574258 | AU8: 25708118 | AV8: 25854109 | AW8: 26012115 | AX8: 26234398 | AY8: 26433350 | AZ8: 26669068 | BA8: 26914321 | BB8: 27121680 | BC8: 27372737 | BD8: 27637637 | BE8: 27825600 | BF8: 28016359 | BG8: 28232465 | BH8: 28451237 | BI8: 28676053 | BJ8: 28823855 | BK8: =IF(BK4<0,"0",BK4) -> 28952751 | BL8: 29085955 | BM8: 29118166 | BN8: =IF(BN4<0,"0",BN4) -> 29203353 | BO8: 29521521 | BP8: =IF(BP4<0,"0",BP4) -> 29835992
AJ9: Females | AK9: =IF(AK5<0,"0",AK5) -> 26136186 | AL9: 26193235 | AM9: 26263185 | AN9: 26325644 | AO9: 26380656 | AP9: 26446454 | AQ9: 26519404 | AR9: 26610030 | AS9: 26702135 | AT9: 26785720 | AU9: 26894025 | AV9: 27009129 | AW9: 27139907 | AX9: 27340945 | AY9: 27517504 | AZ9: 27718324 | BA9: 27927399 | BB9: 28113573 | BC9: 28319686 | BD9: 28533290 | BE9: 28752140 | BF9: 28973385 | BG9: 29211642 | BH9: 29430178 | BI9: 29690146 | BJ9: 29877059 | BK9: 30055617 | BL9: 30231833 | BM9: 30312278 | BN9: =IF(BN5<0,"0",BN5) -> 30457171 | BO9: 30723697 | BP9: =IF(BP5<0,"0",BP5) -> 31018735
AJ10: Total | AK10: =SUM(AK8:AK9) -> 50875647 | AL10: 50985877 | AM10: 51116228 | AN10: 51271978 | AO10: 51410433 | AP10: 51559648 | AQ10: 51720104 | AR10: 51933471 | AS10: 52140181 | AT10: 52359978 | AU10: 52602143 | AV10: 52863238 | AW10: 53152022 | AX10: 53575343 | AY10: 53950854 | AZ10: 54387392 | BA10: 54841720 | BB10: 55235253 | BC10: 55692423 | BD10: 56170927 | BE10: 56577740 | BF10: 56989744 | BG10: 57444107 | BH10: 57881415 | BI10: 58366199 | BJ10: 58700914 | BK10: =SUM(BK8:BK9) -> 59008368 | BL10: 59317788 | BM10: 59430444 | BN10: 59660524 | BO10: 60245218 | BP10: 60854727
D12: MYE for . . . . . . | H12: England & Wales | AO12: Cummulative Ages | BR12: Population Pyramid Data
C13: Base Year | AK13: =C14 -> 1992 | AL13: 1993 | AM13: 1994 | AN13: 1995 | AO13: 1996 | AP13: 1997 | AQ13: 1998 | AR13: 1999 | AS13: 2000 | AT13: 2001 | AU13: 2002 | AV13: 2003 | AW13: 2004 | AX13: 2005 | AY13: 2006 | AZ13: 2007 | BA13: 2008 | BB13: 2009 | BC13: 2010 | BD13: 2011 | BE13: 2012 | BF13: 2013 | BG13: 2014 | BH13: 2015 | BI13: 2016 | BJ13: 2017 | BK13: 2018 | BL13: 2019 | BM13: 2020 | BN13: 2021 | BO13: 2022 | BP13: 2023
A14: Sex | B14: Age | C14: 1992 | D14: 1993 | E14: 1994 | F14: 1995 | G14: 1996 | H14: 1997 | I14: 1998 | J14: 1999 | K14: 2000 | L14: 2001 | M14: 2002 | N14: 2003 | O14: 2004 | P14: 2005 | Q14: 2006 | R14: 2007 | S14: 2008 | T14: 2009 | U14: 2010 | V14: 2011 | W14: 2012 | X14: 2013 | Y14: 2014 | Z14: 2015 | AA14: 2016 | AB14: 2017 | AC14: 2018 | AD14: 2019 | AE14: 2020 | AF14: 2021 | AG14: 2022 | AH14: 2023 | BU14: 1992 | BV14: 1993 | BW14: 1994 | BX14: 1995 | BY14: 1996 | BZ14: 1997 | CA14: 1998 | CB14: 1999 | CC14: 2000 | CD14: 2001 | CE14: 2002 | CF14: 2003 | CG14: 2004 | CH14: 2005 | CI14: 2006 | CJ14: 2007 | CK14: 2008 | CL14: 2009 | CM14: 2010 | CN14: 2011 | CO14: 2012 | CP14: 2013 | CQ14: 2014 | CR14: 2015 | CS14: 2016 | CT14: 2017 | CU14: 2018 | CV14: 2019 | CW14: 2020 | CX14: 2021 | CY14: 2022 | CZ14: 2023 | DB14: =INDEX(CC14:CY14,'Population Pyramid'!$L$1) -> 2020
B15: All persons | C15: =SUM(C107,C200) -> 50875647 | D15: =SUM(D107,D200) -> 50985877 | E15: 51116228 | F15: 51271978 | G15: 51410433 | H15: 51559648 | I15: 51720104 | J15: 51933471 | K15: 52140181 | L15: 52359978 | M15: 52602143 | N15: 52863238 | O15: 53152022 | P15: 53575343 | Q15: 53950854 | R15: 54387392 | S15: 54841720 | T15: 55235253 | U15: 55692423 | V15: 56170927 | W15: 56577740 | X15: 56989744 | Y15: =SUM(Y107,Y200) -> 57444107 | Z15: 57881415 | AA15: 58366199 | AB15: 58700914 | AC15: 59008368 | AD15: 59317788 | AE15: =SUM(AE107,AE200) -> 59430444 | AF15: 59660524 | AG15: =SUM(AG107,AG200) -> 60245218 | AH15: 60854727 | AJ15: Males | BR15: Males | BS15: All Ages | BU15: =C107 -> 24739461 | BV15: 24792642 | BW15: 24853043 | BX15: 24946334 | BY15: 25029777 | BZ15: 25113194 | CA15: 25200700 | CB15: 25323441 | CC15: 25438046 | CD15: 25574258 | CE15: 25708118 | CF15: 25854109 | CG15: 26012115 | CH15: 26234398 | CI15: 26433350 | CJ15: 26669068 | CK15: 26914321 | CL15: 27121680 | CM15: 27372737 | CN15: 27637637 | CO15: 27825600 | CP15: 28016359 | CQ15: 28232465 | CR15: 28451237 | CS15: 28676053 | CT15: 28823855 | CU15: 28952751 | CV15: 29085955 | CW15: 29118166 | CX15: 29203353 | CY15: 29521521 | CZ15: 29835992 | DB15: =INDEX(CC15:CY15,'Population Pyramid'!$L$1) -> 29118166
A16: male | B16: 0 | C16: 355162 | D16: 342554 | E16: 342980 | F16: 332065 | G16: 326779 | H16: 332858 | I16: 323385 | J16: 320558 | K16: 310695 | L16: 300956 | M16: 301650 | N16: 311829 | O16: 322654 | P16: 327191 | Q16: 335606 | R16: 346762 | S16: 360134 | T16: 357124 | U16: 362310 | V16: 366537 | W16: 372441 | X16: 363484 | Y16: 355917 | Z16: 355248 | AA16: 357889 | AB16: 348661 | AC16: 339913 | AD16: 331424 | AE16: 322123 | AF16: 311020 | AG16: 320174 | AH16: 308256 | AJ16: 0 | AK16: =C16 -> 355162 | AL16: 342554 | AM16: 342980 | AN16: 332065 | AO16: 326779 | AP16: 332858 | AQ16: 323385 | AR16: 320558 | AS16: 310695 | AT16: 300956 | AU16: 301650 | AV16: 311829 | AW16: 322654 | AX16: 327191 | AY16: 335606 | AZ16: 346762 | BA16: 360134 | BB16: 357124 | BC16: 362310 | BD16: 366537 | BE16: 372441 | BF16: 363484 | BG16: 355917 | BH16: 355248 | BI16: 357889 | BJ16: 348661 | BK16: 339913 | BL16: 331424 | BM16: 322123 | BN16: 311020 | BO16: 320174 | BP16: 308256 | BR16: Males | BS16: 0-4 | BU16: =SUM(C16:C20) -> 1754892 | BV16: 1745251 | BW16: 1741313 | BX16: 1724308 | BY16: 1694685 | BZ16: 1673321 | CA16: 1654020 | CB16: 1635609 | CC16: 1613271 | CD16: 1582445 | CE16: 1556684 | CF16: 1550518 | CG16: 1556816 | CH16: 1571348 | CI16: 1599648 | CJ16: 1646177 | CK16: 1695081 | CL16: 1731083 | CM16: 1769017 | CN16: 1795323 | CO16: 1824932 | CP16: 1831590 | CQ16: 1833134 | CR16: 1827025 | CS16: 1813950 | CT16: 1785041 | CU16: 1755271 | CV16: 1727618 | CW16: 1691467 | CX16: 1644444 | CY16: 1646565 | CZ16: 1645910 | DB16: =INDEX(CC16:CY16,'Population Pyramid'!$L$1) -> 1691467
A17: male | B17: 1 | C17: 354799 | D17: 353622 | E17: 341208 | F17: 342010 | G17: 331344 | H17: 326837 | I17: 331961 | J17: 323615 | K17: 318932 | L17: 309629 | M17: 301593 | N17: 302325 | O17: 311879 | P17: 322159 | Q17: 326684 | R17: 337182 | S17: 346927 | T17: 359574 | U17: 356537 | V17: 360920 | W17: 369021 | X17: 373859 | Y17: 365114 | Z17: 357361 | AA17: 356398 | AB17: 358185 | AC17: 348044 | AD17: 339515 | AE17: 331577 | AF17: 323301 | AG17: 318053 | AH17: 328403 | AJ17: 1 | AK17: =AK16+C17 -> 709961 | AL17: =AL16+D17 -> 696176 | AM17: =AM16+E17 -> 684188 | AN17: =AN16+F17 -> 674075 | AO17: =AO16+G17 -> 658123 | AP17: =AP16+H17 -> 659695 | AQ17: =AQ16+I17 -> 655346 | AR17: =AR16+J17 -> 644173 | AS17: =AS16+K17 -> 629627 | AT17: =AT16+L17 -> 610585 | AU17: =AU16+M17 -> 603243 | AV17: =AV16+N17 -> 614154 | AW17: =AW16+O17 -> 634533 | AX17: =AX16+P17 -> 649350 | AY17: =AY16+Q17 -> 662290 | AZ17: =AZ16+R17 -> 683944 | BA17: =BA16+S17 -> 707061 | BB17: =BB16+T17 -> 716698 | BC17: =BC16+U17 -> 718847 | BD17: =BD16+V17 -> 727457 | BE17: =BE16+W17 -> 741462 | BF17: =BF16+X17 -> 737343 | BG17: =BG16+Y17 -> 721031 | BH17: =BH16+Z17 -> 712609 | BI17: =BI16+AA17 -> 714287 | BJ17: =BJ16+AB17 -> 706846 | BK17: =BK16+AC17 -> 687957 | BL17: =BL16+AD17 -> 670939 | BM17: =BM16+AE17 -> 653700 | BN17: =BN16+AF17 -> 634321 | BO17: =BO16+AG17 -> 638227 | BP17: =BP16+AH17 -> 636659 | BR17: Males | BS17: 5-9 | BU17: =SUM(C21:C25) -> 1657475 | BV17: 1685763 | BW17: 1710687 | BX17: 1724726 | BY17: 1747295 | BZ17: 1760235 | CA17: 1752245 | CB17: 1747062 | CC17: 1725344 | CD17: 1693702 | CE17: 1680905 | CF17: 1671117 | CG17: 1658760 | CH17: 1642317 | CI17: 1616910 | CJ17: 1588723 | CK17: 1575269 | CL17: 1574289 | CM17: 1583910 | CN17: 1614598 | CO17: 1665283 | CP17: 1719560 | CQ17: 1759503 | CR17: 1796770 | CS17: 1829832 | CT17: 1853177 | CU17: 1850631 | CV17: 1840674 | CW17: 1820871 | CX17: 1798726 | CY17: 1796740 | CZ17: 1801747 | DB17: =INDEX(CC17:CY17,'Population Pyramid'!$L$1) -> 1820871
A18: male | B18: 2 | C18: 348349 | D18: 354728 | E18: 353170 | F18: 341410 | G18: 341434 | H18: 330882 | I18: 327422 | J18: 332063 | K18: 322923 | L18: 317683 | M18: 310486 | N18: 303249 | O18: 303154 | P18: 311945 | Q18: 321601 | R18: 327486 | S18: 338370 | T18: 347287 | U18: 360286 | V18: 356593 | W18: 362756 | X18: 370517 | Y18: 374734 | Z18: 365916 | AA18: 357867 | AB18: 355645 | AC18: 357245 | AD18: 346799 | AE18: 337367 | AF18: 330599 | AG18: 329835 | AH18: 326744 | AJ18: 2 | AK18: 1058310 | AL18: 1050904 | AM18: 1037358 | AN18: 1015485 | AO18: 999557 | AP18: 990577 | AQ18: 982768 | AR18: 976236 | AS18: 952550 | AT18: 928268 | AU18: 913729 | AV18: 917403 | AW18: 937687 | AX18: 961295 | AY18: 983891 | AZ18: 1011430 | BA18: 1045431 | BB18: 1063985 | BC18: 1079133 | BD18: 1084050 | BE18: 1104218 | BF18: 1107860 | BG18: 1095765 | BH18: 1078525 | BI18: 1072154 | BJ18: 1062491 | BK18: 1045202 | BL18: 1017738 | BM18: 991067 | BN18: 964920 | BO18: 968062 | BP18: 963403 | BR18: Males | BS18: 10-14 | BU18: =SUM(C26:C30) -> 1590784 | BV18: 1619393 | BW18: 1624277 | BX18: 1633400 | BY18: 1645940 | BZ18: 1666613 | CA18: 1698695 | CB18: 1724064 | CC18: 1736592 | CD18: 1759516 | CE18: 1767576 | CF18: 1763442 | CG18: 1759210 | CH18: 1747300 | CI18: 1726272 | CJ18: 1718566 | CK18: 1708277 | CL18: 1696803 | CM18: 1685454 | CN18: 1660935 | CO18: 1622654 | CP18: 1605501 | CQ18: 1606345 | CR18: 1626376 | CS18: 1664822 | CT18: 1710513 | CU18: 1757761 | CV18: 1789384 | CW18: 1815246 | CX18: 1846208 | CY18: 1884686 | CZ18: 1902914 | DB18: =INDEX(CC18:CY18,'Population Pyramid'!$L$1) -> 1815246
A19: male | B19: 3 | C19: 346154 | D19: 348519 | E19: 355058 | F19: 353157 | G19: 341753 | H19: 341016 | I19: 330902 | J19: 328304 | K19: 331697 | L19: 322828 | M19: 318775 | N19: 312220 | O19: 304972 | P19: 303712 | Q19: 311761 | R19: 322196 | S19: 327589 | T19: 339520 | U19: 348488 | V19: 361239 | W19: 358208 | X19: 364070 | Y19: 371860 | Z19: 375363 | AA19: 366169 | AB19: 356976 | AC19: 354205 | AD19: 356513 | AE19: 345079 | AF19: 335551 | AG19: 336984 | AH19: 337911 | AJ19: 3 | AK19: 1404464 | AL19: 1399423 | AM19: 1392416 | AN19: 1368642 | AO19: 1341310 | AP19: 1331593 | AQ19: 1313670 | AR19: 1304540 | AS19: 1284247 | AT19: 1251096 | AU19: 1232504 | AV19: 1229623 | AW19: 1242659 | AX19: 1265007 | AY19: 1295652 | AZ19: 1333626 | BA19: 1373020 | BB19: 1403505 | BC19: 1427621 | BD19: 1445289 | BE19: 1462426 | BF19: 1471930 | BG19: 1467625 | BH19: 1453888 | BI19: 1438323 | BJ19: 1419467 | BK19: 1399407 | BL19: 1374251 | BM19: 1336146 | BN19: 1300471 | BO19: 1305046 | BP19: 1301314 | BR19: Males | BS19: 15-19 | BU19: =SUM(C31:C35) -> 1574290 | BV19: 1513591 | BW19: 1503229 | BX19: 1518807 | BY19: 1543568 | BZ19: 1576684 | CA19: 1604184 | CB19: 1614480 | CC19: 1624113 | CD19: 1652119 | CE19: 1690289 | CF19: 1723399 | CG19: 1738289 | CH19: 1745816 | CI19: 1777657 | CJ19: 1802018 | CK19: 1803258 | CL19: 1813550 | CM19: 1811376 | CN19: 1801359 | CO19: 1787201 | CP19: 1769491 | CQ19: 1749465 | CR19: 1732959 | CS19: 1711490 | CT19: 1681913 | CU19: 1676450 | CV19: 1687344 | CW19: 1712672 | CX19: 1746454 | CY19: 1796093 | CZ19: 1848368 | DB19: =INDEX(CC19:CY19,'Population Pyramid'!$L$1) -> 1712672
A20: male | B20: 4 | C20: 350428 | D20: 345828 | E20: 348897 | F20: 355666 | G20: 353375 | H20: 341728 | I20: 340350 | J20: 331069 | K20: 329024 | L20: 331349 | M20: 324180 | N20: 320895 | O20: 314157 | P20: 306341 | Q20: 303996 | R20: 312551 | S20: 322061 | T20: 327578 | U20: 341396 | V20: 350034 | W20: 362506 | X20: 359660 | Y20: 365509 | Z20: 373137 | AA20: 375627 | AB20: 365574 | AC20: 355864 | AD20: 353367 | AE20: 355321 | AF20: 343973 | AG20: 341519 | AH20: 344596 | AJ20: 4 | AK20: 1754892 | AL20: 1745251 | AM20: 1741313 | AN20: 1724308 | AO20: 1694685 | AP20: 1673321 | AQ20: 1654020 | AR20: 1635609 | AS20: 1613271 | AT20: 1582445 | AU20: 1556684 | AV20: 1550518 | AW20: 1556816 | AX20: 1571348 | AY20: 1599648 | AZ20: 1646177 | BA20: 1695081 | BB20: 1731083 | BC20: 1769017 | BD20: 1795323 | BE20: 1824932 | BF20: 1831590 | BG20: 1833134 | BH20: 1827025 | BI20: 1813950 | BJ20: 1785041 | BK20: 1755271 | BL20: 1727618 | BM20: 1691467 | BN20: 1644444 | BO20: 1646565 | BP20: 1645910 | BR20: Males | BS20: 20-24 | BU20: =SUM(C36:C40) -> 1927145 | BV20: 1874612 | BW20: 1801329 | BX20: 1737261 | BY20: 1658262 | BZ20: 1580199 | CA20: 1530325 | CB20: 1529960 | CC20: 1547805 | CD20: 1579211 | CE20: 1612791 | CF20: 1652211 | CG20: 1706276 | CH20: 1750579 | CI20: 1776246 | CJ20: 1816450 | CK20: 1833613 | CL20: 1830096 | CM20: 1869295 | CN20: 1924608 | CO20: 1930765 | CP20: 1930080 | CQ20: 1937536 | CR20: 1932890 | CS20: 1919322 | CT20: 1900524 | CU20: 1878970 | CV20: 1856625 | CW20: 1820769 | CX20: 1806659 | CY20: 1836616 | CZ20: 1863366 | DB20: =INDEX(CC20:CY20,'Population Pyramid'!$L$1) -> 1820769
A21: male | B21: 5 | C21: 340091 | D21: 350636 | E21: 346234 | F21: 349351 | G21: 356561 | H21: 353504 | I21: 342222 | J21: 340570 | K21: 331113 | L21: 329360 | M21: 333437 | N21: 326102 | O21: 322778 | P21: 314889 | Q21: 307247 | R21: 304654 | S21: 312651 | T21: 322352 | U21: 327825 | V21: 342815 | W21: 350953 | X21: 363855 | Y21: 361519 | Z21: 367136 | AA21: 374384 | AB21: 375433 | AC21: 365141 | AD21: 355233 | AE21: 352168 | AF21: 354706 | AG21: 349750 | AH21: 348742 | AJ21: 5 | AK21: 2094983 | AL21: 2095887 | AM21: 2087547 | AN21: 2073659 | AO21: 2051246 | AP21: 2026825 | AQ21: 1996242 | AR21: 1976179 | AS21: 1944384 | AT21: 1911805 | AU21: 1890121 | AV21: 1876620 | AW21: 1879594 | AX21: 1886237 | AY21: 1906895 | AZ21: 1950831 | BA21: 2007732 | BB21: 2053435 | BC21: 2096842 | BD21: 2138138 | BE21: 2175885 | BF21: 2195445 | BG21: 2194653 | BH21: 2194161 | BI21: 2188334 | BJ21: 2160474 | BK21: 2120412 | BL21: 2082851 | BM21: 2043635 | BN21: 1999150 | BO21: 1996315 | BP21: 1994652 | BR21: Males | BS21: 25-29 | BU21: =SUM(C41:C45) -> 2071016 | BV21: 2051364 | BW21: 2024006 | BX21: 1994299 | BY21: 1969902 | BZ21: 1931931 | CA21: 1886610 | CB21: 1836146 | CC21: 1795614 | CD21: 1741892 | CE21: 1689640 | CF21: 1653519 | CG21: 1653628 | CH21: 1699542 | CI21: 1751156 | CJ21: 1810890 | CK21: 1874138 | CL21: 1885847 | CM21: 1895978 | CN21: 1919706 | CO21: 1902001 | CP21: 1898947 | CQ21: 1904211 | CR21: 1914181 | CS21: 1935753 | CT21: 1947308 | CU21: 1941948 | CV21: 1941263 | CW21: 1920382 | CX21: 1900978 | CY21: 1929710 | CZ21: 1967446 | DB21: =INDEX(CC21:CY21,'Population Pyramid'!$L$1) -> 1920382
A22: male | B22: 6 | C22: 336822 | D22: 340012 | E22: 350710 | F22: 346880 | G22: 350397 | H22: 356903 | I22: 353572 | J22: 342720 | K22: 339743 | L22: 330738 | M22: 331486 | N22: 335337 | O22: 327717 | P22: 323646 | Q22: 315844 | R22: 308667 | S22: 305271 | T22: 313104 | U22: 322431 | V22: 328076 | W22: 343538 | X22: 351857 | Y22: 365295 | Z22: 363209 | AA22: 368434 | AB22: 374882 | AC22: 374982 | AD22: 364968 | AE22: 354411 | AF22: 351656 | AG22: 360574 | AH22: 356646 | AJ22: 6 | AK22: 2431805 | AL22: 2435899 | AM22: 2438257 | AN22: 2420539 | AO22: 2401643 | AP22: 2383728 | AQ22: 2349814 | AR22: 2318899 | AS22: 2284127 | AT22: 2242543 | AU22: 2221607 | AV22: 2211957 | AW22: 2207311 | AX22: 2209883 | AY22: 2222739 | AZ22: 2259498 | BA22: 2313003 | BB22: 2366539 | BC22: 2419273 | BD22: 2466214 | BE22: 2519423 | BF22: 2547302 | BG22: 2559948 | BH22: 2557370 | BI22: 2556768 | BJ22: 2535356 | BK22: 2495394 | BL22: 2447819 | BM22: 2398046 | BN22: 2350806 | BO22: 2356889 | BP22: 2351298 | BR22: Males | BS22: 30-34 | BU22: =SUM(C46:C50) -> 1896804 | BV22: 1940267 | BW22: 1985597 | BX22: 2027873 | BY22: 2050203 | BZ22: 2063505 | CA22: 2055652 | CB22: 2044220 | CC22: 2027107 | CD22: 2016085 | CE22: 1984580 | CF22: 1950825 | CG22: 1903966 | CH22: 1867014 | CI22: 1814098 | CJ22: 1765111 | CK22: 1748489 | CL22: 1773266 | CM22: 1807043 | CN22: 1852968 | CO22: 1889596 | CP22: 1923418 | CQ22: 1931326 | CR22: 1938387 | CS22: 1947720 | CT22: 1947528 | CU22: 1960958 | CV22: 1980302 | CW22: 1986509 | CX22: 2003389 | CY22: 2030688 | CZ22: 2046698 | DB22: =INDEX(CC22:CY22,'Population Pyramid'!$L$1) -> 1986509
A23: male | B23: 7 | C23: 335847 | D23: 336537 | E23: 340331 | F23: 351055 | G23: 347410 | H23: 350678 | I23: 357263 | J23: 353592 | K23: 342615 | L23: 338380 | M23: 332287 | N23: 333713 | O23: 337185 | P23: 328630 | Q23: 324833 | R23: 317411 | S23: 310106 | T23: 306203 | U23: 313371 | V23: 322384 | W23: 330323 | X23: 344281 | Y23: 352816 | Z23: 366739 | AA23: 364631 | AB23: 369073 | AC23: 375161 | AD23: 374876 | AE23: 364464 | AF23: 354090 | AG23: 357352 | AH23: 367110 | AJ23: 7 | AK23: 2767652 | AL23: 2772436 | AM23: 2778588 | AN23: 2771594 | AO23: 2749053 | AP23: 2734406 | AQ23: 2707077 | AR23: 2672491 | AS23: 2626742 | AT23: 2580923 | AU23: 2553894 | AV23: 2545670 | AW23: 2544496 | AX23: 2538513 | AY23: 2547572 | AZ23: 2576909 | BA23: 2623109 | BB23: 2672742 | BC23: 2732644 | BD23: 2788598 | BE23: 2849746 | BF23: 2891583 | BG23: 2912764 | BH23: 2924109 | BI23: 2921399 | BJ23: 2904429 | BK23: 2870555 | BL23: 2822695 | BM23: 2762510 | BN23: 2704896 | BO23: 2714241 | BP23: 2718408 | BR23: Males | BS23: 35-39 | BU23: =SUM(C51:C55) -> 1682721 | BV23: 1706117 | BW23: 1736022 | BX23: 1781856 | BY23: 1833748 | BZ23: 1879908 | CA23: 1924247 | CB23: 1974047 | CC23: 2019106 | CD23: 2049687 | CE23: 2074276 | CF23: 2080007 | CG23: 2066491 | CH23: 2053114 | CI23: 2037530 | CJ23: 2018340 | CK23: 1987845 | CL23: 1939981 | CM23: 1898952 | CN23: 1845055 | CO23: 1800523 | CP23: 1777545 | CQ23: 1796053 | CR23: 1834140 | CS23: 1875866 | CT23: 1911140 | CU23: 1941122 | CV23: 1943691 | CW23: 1937634 | CX23: 1933832 | CY23: 1959070 | CZ23: 2003796 | DB23: =INDEX(CC23:CY23,'Population Pyramid'!$L$1) -> 1937634
A24: male | B24: 8 | C24: 322012 | D24: 336296 | E24: 336616 | F24: 340850 | G24: 351506 | H24: 347592 | I24: 351275 | J24: 358208 | K24: 353261 | L24: 342364 | M24: 340325 | N24: 333835 | O24: 335836 | P24: 337953 | Q24: 329818 | R24: 326597 | S24: 319009 | T24: 311859 | U24: 306932 | V24: 313670 | W24: 324639 | X24: 332406 | Y24: 345001 | Z24: 353701 | AA24: 367745 | AB24: 365284 | AC24: 369305 | AD24: 375597 | AE24: 374242 | AF24: 364248 | AG24: 359540 | AH24: 363672 | AJ24: 8 | AK24: 3089664 | AL24: 3108732 | AM24: 3115204 | AN24: 3112444 | AO24: 3100559 | AP24: 3081998 | AQ24: 3058352 | AR24: 3030699 | AS24: 2980003 | AT24: 2923287 | AU24: 2894219 | AV24: 2879505 | AW24: 2880332 | AX24: 2876466 | AY24: 2877390 | AZ24: 2903506 | BA24: 2942118 | BB24: 2984601 | BC24: 3039576 | BD24: 3102268 | BE24: 3174385 | BF24: 3223989 | BG24: 3257765 | BH24: 3277810 | BI24: 3289144 | BJ24: 3269713 | BK24: 3239860 | BL24: 3198292 | BM24: 3136752 | BN24: 3069144 | BO24: 3073781 | BP24: 3082080 | BR24: Males | BS24: 40-44 | BU24: =SUM(C56:C60) -> 1743139 | BV24: 1690237 | BW24: 1665381 | BX24: 1650821 | BY24: 1655403 | BZ24: 1675722 | CA24: 1703183 | CB24: 1737413 | CC24: 1782708 | CD24: 1831198 | CE24: 1886514 | CF24: 1930886 | CG24: 1973297 | CH24: 2023842 | CI24: 2050282 | CJ24: 2069326 | CK24: 2071340 | CL24: 2068041 | CM24: 2041502 | CN24: 2026140 | CO24: 2011841 | CP24: 1989206 | CQ24: 1950153 | CR24: 1916510 | CS24: 1865265 | CT24: 1816604 | CU24: 1786804 | CV24: 1796584 | CW24: 1819918 | CX24: 1845644 | CY24: 1886703 | CZ24: 1932430 | DB24: =INDEX(CC24:CY24,'Population Pyramid'!$L$1) -> 1819918
A25: male | B25: 9 | C25: 322703 | D25: 322282 | E25: 336796 | F25: 336590 | G25: 341421 | H25: 351558 | I25: 347913 | J25: 351972 | K25: 358612 | L25: 352860 | M25: 343370 | N25: 342130 | O25: 335244 | P25: 337199 | Q25: 339168 | R25: 331394 | S25: 328232 | T25: 320771 | U25: 313351 | V25: 307653 | W25: 315830 | X25: 327161 | Y25: 334872 | Z25: 345985 | AA25: 354638 | AB25: 368505 | AC25: 366042 | AD25: 370000 | AE25: 375586 | AF25: 374026 | AG25: 369524 | AH25: 365577 | AJ25: 9 | AK25: 3412367 | AL25: 3431014 | AM25: 3452000 | AN25: 3449034 | AO25: 3441980 | AP25: 3433556 | AQ25: 3406265 | AR25: 3382671 | AS25: 3338615 | AT25: 3276147 | AU25: 3237589 | AV25: 3221635 | AW25: 3215576 | AX25: 3213665 | AY25: 3216558 | AZ25: 3234900 | BA25: 3270350 | BB25: 3305372 | BC25: 3352927 | BD25: 3409921 | BE25: 3490215 | BF25: 3551150 | BG25: 3592637 | BH25: 3623795 | BI25: 3643782 | BJ25: 3638218 | BK25: 3605902 | BL25: 3568292 | BM25: 3512338 | BN25: 3443170 | BO25: 3443305 | BP25: 3447657 | BR25: Males | BS25: 45-49 | BU25: =SUM(C61:C65) -> 1694327 | BV25: 1762678 | BW25: 1791769 | BX25: 1808492 | BY25: 1809787 | BZ25: 1723390 | CA25: 1671386 | CB25: 1649657 | CC25: 1636933 | CD25: 1643894 | CE25: 1657606 | CF25: 1691636 | CG25: 1728566 | CH25: 1773871 | CI25: 1826409 | CJ25: 1868913 | CK25: 1914021 | CL25: 1962862 | CM25: 2009125 | CN25: 2034545 | CO25: 2051957 | CP25: 2056291 | CQ25: 2055388 | CR25: 2042539 | CS25: 2042397 | CT25: 2026306 | CU25: 1999342 | CV25: 1954340 | CW25: 1910779 | CX25: 1851449 | CY25: 1800241 | CZ25: 1774009 | DB25: =INDEX(CC25:CY25,'Population Pyramid'!$L$1) -> 1910779
A26: male | B26: 10 | C26: 321923 | D26: 322034 | E26: 323014 | F26: 337786 | G26: 336962 | H26: 341716 | I26: 351796 | J26: 348552 | K26: 352561 | L26: 359135 | M26: 353809 | N26: 345082 | O26: 343840 | P26: 337041 | Q26: 338718 | R26: 341052 | S26: 332653 | T26: 330379 | U26: 322710 | V26: 314994 | W26: 309147 | X26: 317905 | Y26: 329721 | Z26: 337144 | AA26: 346677 | AB26: 355032 | AC26: 369069 | AD26: 367002 | AE26: 370261 | AF26: 376245 | AG26: 379069 | AH26: 375231 | AJ26: 10 | AK26: 3734290 | AL26: 3753048 | AM26: 3775014 | AN26: 3786820 | AO26: 3778942 | AP26: 3775272 | AQ26: 3758061 | AR26: 3731223 | AS26: 3691176 | AT26: 3635282 | AU26: 3591398 | AV26: 3566717 | AW26: 3559416 | AX26: 3550706 | AY26: 3555276 | AZ26: 3575952 | BA26: 3603003 | BB26: 3635751 | BC26: 3675637 | BD26: 3724915 | BE26: 3799362 | BF26: 3869055 | BG26: 3922358 | BH26: 3960939 | BI26: 3990459 | BJ26: 3993250 | BK26: 3974971 | BL26: 3935294 | BM26: 3882599 | BN26: 3819415 | BO26: 3822374 | BP26: 3822888 | BR26: Males | BS26: 50-54 | BU26: =SUM(C66:C70) -> 1360657 | BV26: 1386327 | BW26: 1426862 | BX26: 1471063 | BY26: 1534218 | BZ26: 1659903 | CA26: 1729024 | CB26: 1760497 | CC26: 1775943 | CD26: 1770895 | CE26: 1693608 | CF26: 1641392 | CG26: 1615539 | CH26: 1606897 | CI26: 1612264 | CJ26: 1634654 | CK26: 1670447 | CL26: 1707527 | CM26: 1750835 | CN26: 1798415 | CO26: 1852239 | CP26: 1901081 | CQ26: 1951591 | CR26: 1998063 | CS26: 2027044 | CT26: 2045523 | CU26: 2051103 | CV26: 2048012 | CW26: 2028917 | CX26: 2026428 | CY26: 2004777 | CZ26: 1973892 | DB26: =INDEX(CC26:CY26,'Population Pyramid'!$L$1) -> 2028917
A27: male | B27: 11 | C27: 326726 | D27: 322029 | E27: 322254 | F27: 323878 | G27: 338955 | H27: 337337 | I27: 342435 | J27: 352731 | K27: 348906 | L27: 353308 | M27: 360151 | N27: 354843 | O27: 346017 | P27: 346012 | Q27: 338047 | R27: 340718 | S27: 342408 | T27: 334742 | U27: 332448 | V27: 324515 | W27: 315490 | X27: 310954 | Y27: 320371 | Z27: 332494 | AA27: 339563 | AB27: 347280 | AC27: 355594 | AD27: 370232 | AE27: 367631 | AF27: 371100 | AG27: 380818 | AH27: 384524 | AJ27: 11 | AK27: 4061016 | AL27: 4075077 | AM27: 4097268 | AN27: 4110698 | AO27: 4117897 | AP27: 4112609 | AQ27: 4100496 | AR27: 4083954 | AS27: 4040082 | AT27: 3988590 | AU27: 3951549 | AV27: 3921560 | AW27: 3905433 | AX27: 3896718 | AY27: 3893323 | AZ27: 3916670 | BA27: 3945411 | BB27: 3970493 | BC27: 4008085 | BD27: 4049430 | BE27: 4114852 | BF27: 4180009 | BG27: 4242729 | BH27: 4293433 | BI27: 4330022 | BJ27: 4340530 | BK27: 4330565 | BL27: 4305526 | BM27: 4250230 | BN27: 4190515 | BO27: 4203192 | BP27: 4207412 | BR27: Males | BS27: 55-59 | BU27: =SUM(C71:C75) -> 1283224 | BV27: 1299335 | BW27: 1316718 | BX27: 1324309 | BY27: 1314840 | BZ27: 1317827 | CA27: 1343518 | CB27: 1383032 | CC27: 1428711 | CD27: 1491994 | CE27: 1610429 | CF27: 1676988 | CG27: 1705459 | CH27: 1720625 | CI27: 1720840 | CJ27: 1638458 | CK27: 1591538 | CL27: 1574086 | CM27: 1566196 | CN27: 1576567 | CO27: 1602263 | CP27: 1633646 | CQ27: 1671607 | CR27: 1720279 | CS27: 1772453 | CT27: 1825997 | CU27: 1873656 | CV27: 1919447 | CW27: 1958332 | CX27: 1985089 | CY27: 2001418 | CZ27: 2003983 | DB27: =INDEX(CC27:CY27,'Population Pyramid'!$L$1) -> 1958332
A28: male | B28: 12 | C28: 329988 | D28: 326623 | E28: 322006 | F28: 322322 | G28: 324825 | H28: 339510 | I28: 337622 | J28: 343142 | K28: 352880 | L28: 349384 | M28: 353466 | N28: 361222 | O28: 354740 | P28: 347143 | Q28: 347161 | R28: 339473 | S28: 342325 | T28: 344547 | U28: 336703 | V28: 334301 | W28: 324668 | X28: 316174 | Y28: 312887 | Z28: 322863 | AA28: 335244 | AB28: 341802 | AC28: 347903 | AD28: 356425 | AE28: 370743 | AF28: 368723 | AG28: 375542 | AH28: 385712 | AJ28: 12 | AK28: 4391004 | AL28: 4401700 | AM28: 4419274 | AN28: 4433020 | AO28: 4442722 | AP28: 4452119 | AQ28: 4438118 | AR28: 4427096 | AS28: 4392962 | AT28: 4337974 | AU28: 4305015 | AV28: 4282782 | AW28: 4260173 | AX28: 4243861 | AY28: 4240484 | AZ28: 4256143 | BA28: 4287736 | BB28: 4315040 | BC28: 4344788 | BD28: 4383731 | BE28: 4439520 | BF28: 4496183 | BG28: 4555616 | BH28: 4616296 | BI28: 4665266 | BJ28: 4682332 | BK28: 4678468 | BL28: 4661951 | BM28: 4620973 | BN28: 4559238 | BO28: 4578734 | BP28: 4593124 | BR28: Males | BS28: 60-64 | BU28: =SUM(C76:C80) -> 1228135 | BV28: 1219073 | BW28: 1210435 | BX28: 1206688 | BY28: 1204953 | BZ28: 1212477 | CA28: 1230494 | CB28: 1249856 | CC28: 1259161 | CD28: 1251730 | CE28: 1252983 | CF28: 1276778 | CG28: 1313418 | CH28: 1355976 | CI28: 1415196 | CJ28: 1529207 | CK28: 1597911 | CL28: 1627568 | CM28: 1647736 | CN28: 1652688 | CO28: 1572186 | CP28: 1532782 | CQ28: 1516886 | CR28: 1510181 | CS28: 1522002 | CT28: 1548451 | CU28: 1580155 | CV28: 1617078 | CW28: 1662209 | CX28: 1712131 | CY28: 1762596 | CZ28: 1805495 | DB28: =INDEX(CC28:CY28,'Population Pyramid'!$L$1) -> 1662209
A29: male | B29: 13 | C29: 318732 | D29: 329942 | E29: 326812 | F29: 322221 | G29: 322465 | H29: 325560 | I29: 340650 | J29: 338138 | K29: 343786 | L29: 353350 | M29: 348695 | N29: 353953 | O29: 361303 | P29: 355231 | Q29: 347556 | R29: 348996 | S29: 340558 | T29: 344768 | U29: 346550 | V29: 338619 | W29: 334626 | X29: 325193 | Y29: 317215 | Z29: 315123 | AA29: 325594 | AB29: 337911 | AC29: 344162 | AD29: 348631 | AE29: 356872 | AF29: 371897 | AG29: 373046 | AH29: 380005 | AJ29: 13 | AK29: 4709736 | AL29: 4731642 | AM29: 4746086 | AN29: 4755241 | AO29: 4765187 | AP29: 4777679 | AQ29: 4778768 | AR29: 4765234 | AS29: 4736748 | AT29: 4691324 | AU29: 4653710 | AV29: 4636735 | AW29: 4621476 | AX29: 4599092 | AY29: 4588040 | AZ29: 4605139 | BA29: 4628294 | BB29: 4659808 | BC29: 4691338 | BD29: 4722350 | BE29: 4774146 | BF29: 4821376 | BG29: 4872831 | BH29: 4931419 | BI29: 4990860 | BJ29: 5020243 | BK29: 5022630 | BL29: 5010582 | BM29: 4977845 | BN29: 4931135 | BO29: 4951780 | BP29: 4973129 | BR29: Males | BS29: 65-69 | BU29: =SUM(C81:C85) -> 1129250 | BV29: 1117539 | BW29: 1109795 | BX29: 1107128 | BY29: 1105639 | BZ29: 1104385 | CA29: 1102553 | CB29: 1098840 | CC29: 1099748 | CD29: 1104859 | CE29: 1114962 | CF29: 1130897 | CG29: 1146939 | CH29: 1155027 | CI29: 1145474 | CJ29: 1149698 | CK29: 1177348 | CL29: 1219590 | CM29: 1265030 | CN29: 1324899 | CO29: 1446257 | CP29: 1509584 | CQ29: 1535915 | CR29: 1552885 | CS29: 1558019 | CT29: 1481751 | CU29: 1444910 | CV29: 1430155 | CW29: 1422322 | CX29: 1433368 | CY29: 1459580 | CZ29: 1489100 | DB29: =INDEX(CC29:CY29,'Population Pyramid'!$L$1) -> 1422322
A30: male | B30: 14 | C30: 293415 | D30: 318765 | E30: 330191 | F30: 327193 | G30: 322733 | H30: 322490 | I30: 326192 | J30: 341501 | K30: 338459 | L30: 344339 | M30: 351455 | N30: 348342 | O30: 353310 | P30: 361873 | Q30: 354790 | R30: 348327 | S30: 350333 | T30: 342367 | U30: 347043 | V30: 348506 | W30: 338723 | X30: 335275 | Y30: 326151 | Z30: 318752 | AA30: 317744 | AB30: 328488 | AC30: 341033 | AD30: 347094 | AE30: 349739 | AF30: 358243 | AG30: 376211 | AH30: 377442 | AJ30: 14 | AK30: 5003151 | AL30: 5050407 | AM30: 5076277 | AN30: 5082434 | AO30: 5087920 | AP30: 5100169 | AQ30: 5104960 | AR30: 5106735 | AS30: 5075207 | AT30: 5035663 | AU30: 5005165 | AV30: 4985077 | AW30: 4974786 | AX30: 4960965 | AY30: 4942830 | AZ30: 4953466 | BA30: 4978627 | BB30: 5002175 | BC30: 5038381 | BD30: 5070856 | BE30: 5112869 | BF30: 5156651 | BG30: 5198982 | BH30: 5250171 | BI30: 5308604 | BJ30: 5348731 | BK30: 5363663 | BL30: 5357676 | BM30: 5327584 | BN30: 5289378 | BO30: 5327991 | BP30: 5350571 | BR30: Males | BS30: 70-74 | BU30: =SUM(C86:C90) -> 920586 | BV30: 965359 | BW30: 998733 | BX30: 971304 | BY30: 953593 | BZ30: 942834 | CA30: 938593 | CB30: 937517 | CC30: 940460 | CD30: 946760 | CE30: 950889 | CF30: 953520 | CG30: 953538 | CH30: 959150 | CI30: 965905 | CJ30: 979298 | CK30: 1000833 | CL30: 1021457 | CM30: 1033307 | CN30: 1027959 | CO30: 1037679 | CP30: 1065413 | CQ30: 1109388 | CR30: 1150730 | CS30: 1206591 | CT30: 1319406 | CU30: 1377747 | CV30: 1401323 | CW30: 1413470 | CX30: 1416681 | CY30: 1348007 | CZ30: 1313895 | DB30: =INDEX(CC30:CY30,'Population Pyramid'!$L$1) -> 1413470
A31: male | B31: 15 | C31: 288896 | D31: 293637 | E31: 318922 | F31: 330472 | G31: 327662 | H31: 323519 | I31: 323129 | J31: 326931 | K31: 341054 | L31: 340412 | M31: 342759 | N31: 351516 | O31: 348522 | P31: 354579 | Q31: 364760 | R31: 356889 | S31: 350729 | T31: 353956 | U31: 345738 | V31: 350744 | W31: 348881 | X31: 339388 | Y31: 336607 | Z31: 327764 | AA31: 320817 | AB31: 320557 | AC31: 331783 | AD31: 344323 | AE31: 349118 | AF31: 351119 | AG31: 362568 | AH31: 381017 | AJ31: 15 | AK31: 5292047 | AL31: 5344044 | AM31: 5395199 | AN31: 5412906 | AO31: 5415582 | AP31: 5423688 | AQ31: 5428089 | AR31: 5433666 | AS31: 5416261 | AT31: 5376075 | AU31: 5347924 | AV31: 5336593 | AW31: 5323308 | AX31: 5315544 | AY31: 5307590 | AZ31: 5310355 | BA31: 5329356 | BB31: 5356131 | BC31: 5384119 | BD31: 5421600 | BE31: 5461750 | BF31: 5496039 | BG31: 5535589 | BH31: 5577935 | BI31: 5629421 | BJ31: 5669288 | BK31: 5695446 | BL31: 5701999 | BM31: 5676702 | BN31: 5640497 | BO31: 5690559 | BP31: 5731588 | BR31: Males | BS31: 75-79 | BU31: =SUM(C91:C95) -> 637862 | BV31: 606173 | BW31: 582719 | BX31: 622978 | BY31: 659898 | BZ31: 695066 | CA31: 732371 | CB31: 755440 | CC31: 740861 | CD31: 734052 | CE31: 731492 | CF31: 732440 | CG31: 737648 | CH31: 746893 | CI31: 758033 | CJ31: 769223 | CK31: 778556 | CL31: 785937 | CM31: 798152 | CN31: 810590 | CO31: 826384 | CP31: 848062 | CQ31: 869609 | CR31: 879147 | CS31: 875506 | CT31: 885589 | CU31: 911267 | CV31: 952034 | CW31: 985708 | CX31: 1032208 | CY31: 1132327 | CZ31: 1183538 | DB31: =INDEX(CC31:CY31,'Population Pyramid'!$L$1) -> 985708
A32: male | B32: 16 | C32: 301281 | D32: 288692 | E32: 293407 | F32: 318817 | G32: 330569 | H32: 328165 | I32: 323904 | J32: 323812 | K32: 327416 | L32: 344276 | M32: 340872 | N32: 342047 | O32: 351533 | P32: 349556 | Q32: 357122 | R32: 367614 | S32: 359075 | T32: 353967 | U32: 358232 | V32: 349391 | W32: 350899 | X32: 349754 | Y32: 340730 | Z32: 338610 | AA32: 329980 | AB32: 322833 | AC32: 323726 | AD32: 335085 | AE32: 346737 | AF32: 351618 | AG32: 356561 | AH32: 368491 | AJ32: 16 | AK32: 5593328 | AL32: 5632736 | AM32: 5688606 | AN32: 5731723 | AO32: 5746151 | AP32: 5751853 | AQ32: 5751993 | AR32: 5757478 | AS32: 5743677 | AT32: 5720351 | AU32: 5688796 | AV32: 5678640 | AW32: 5674841 | AX32: 5665100 | AY32: 5664712 | AZ32: 5677969 | BA32: 5688431 | BB32: 5710098 | BC32: 5742351 | BD32: 5770991 | BE32: 5812649 | BF32: 5845793 | BG32: 5876319 | BH32: 5916545 | BI32: 5959401 | BJ32: 5992121 | BK32: 6019172 | BL32: 6037084 | BM32: 6023439 | BN32: 5992115 | BO32: 6047120 | BP32: 6100079 | BR32: Males | BS32: 80-84 | BU32: =SUM(C96:C100) -> 385465 | BV32: 395106 | BW32: 401857 | BX32: 407939 | BY32: 407330 | BZ32: 399918 | CA32: 383060 | CB32: 376333 | CC32: 407555 | CD32: 441267 | CE32: 468101 | CF32: 493128 | CG32: 505728 | CH32: 503666 | CI32: 505251 | CJ32: 510181 | CK32: 517782 | CL32: 527705 | CM32: 542321 | CN32: 557203 | CO32: 570961 | CP32: 581323 | CQ32: 592612 | CR32: 603567 | CS32: 616212 | CT32: 630040 | CU32: 647458 | CV32: 666244 | CW32: 670607 | CX32: 665753 | CY32: 674789 | CZ32: 695247 | DB32: =INDEX(CC32:CY32,'Population Pyramid'!$L$1) -> 670607
A33: male | B33: 17 | C33: 314202 | D33: 300736 | E33: 288378 | F33: 292990 | G33: 319015 | H33: 330977 | I33: 328569 | J33: 324967 | K33: 323351 | L33: 331178 | M33: 345015 | N33: 342083 | O33: 341112 | P33: 351648 | Q33: 352189 | R33: 360134 | S33: 370163 | T33: 361890 | U33: 357752 | V33: 362830 | W33: 350870 | X33: 352100 | Y33: 352136 | Z33: 343640 | AA33: 342195 | AB33: 332748 | AC33: 326122 | AD33: 327976 | AE33: 338506 | AF33: 350533 | AG33: 358566 | AH33: 363568 | AJ33: 17 | AK33: 5907530 | AL33: 5933472 | AM33: 5976984 | AN33: 6024713 | AO33: 6065166 | AP33: 6082830 | AQ33: 6080562 | AR33: 6082445 | AS33: 6067028 | AT33: 6051529 | AU33: 6033811 | AV33: 6020723 | AW33: 6015953 | AX33: 6016748 | AY33: 6016901 | AZ33: 6038103 | BA33: 6058594 | BB33: 6071988 | BC33: 6100103 | BD33: 6133821 | BE33: 6163519 | BF33: 6197893 | BG33: 6228455 | BH33: 6260185 | BI33: 6301596 | BJ33: 6324869 | BK33: 6345294 | BL33: 6365060 | BM33: 6361945 | BN33: 6342648 | BO33: 6405686 | BP33: 6463647 | BR33: Males | BS33: 85+ | BU33: =SUM(C101:C106) -> 201689 | BV33: 214457 | BW33: 222314 | BX33: 233082 | BY33: 240513 | BZ33: 249276 | CA33: 260540 | CB33: 269268 | CC33: 277014 | CD33: 282952 | CE33: 284793 | CF33: 281406 | CG33: 288547 | CH33: 311421 | CI33: 334179 | CJ33: 353835 | CK33: 368575 | CL33: 381992 | CM33: 397508 | CN33: 414079 | CO33: 430878 | CP33: 442839 | CQ33: 461743 | CR33: 474608 | CS33: 491809 | CT33: 507044 | CU33: 517198 | CV33: 533837 | CW33: 540354 | CX33: 553912 | CY33: 570915 | CZ33: 584158 | DB33: =INDEX(CC33:CY33,'Population Pyramid'!$L$1) -> 540354
A34: male | B34: 18 | C34: 323829 | D34: 310882 | E34: 296809 | F34: 284599 | G34: 288257 | H34: 313044 | I34: 324290 | J34: 322572 | K34: 317002 | L34: 321734 | M34: 334022 | N34: 348203 | O34: 344427 | P34: 341392 | Q34: 355625 | R34: 356040 | S34: 363162 | T34: 374527 | U34: 366877 | V34: 363483 | W34: 366387 | X34: 355032 | Y34: 356740 | Z34: 358207 | AA34: 350465 | AB34: 347822 | AC34: 338449 | AD34: 332959 | AE34: 334601 | AF34: 346585 | AG34: 359788 | AH34: 365574 | AJ34: 18 | AK34: 6231359 | AL34: 6244354 | AM34: 6273793 | AN34: 6309312 | AO34: 6353423 | AP34: 6395874 | AQ34: 6404852 | AR34: 6405017 | AS34: 6384030 | AT34: 6373263 | AU34: 6367833 | AV34: 6368926 | AW34: 6360380 | AX34: 6358140 | AY34: 6372526 | AZ34: 6394143 | BA34: 6421756 | BB34: 6446515 | BC34: 6466980 | BD34: 6497304 | BE34: 6529906 | BF34: 6552925 | BG34: 6585195 | BH34: 6618392 | BI34: 6652061 | BJ34: 6672691 | BK34: 6683743 | BL34: 6698019 | BM34: 6696546 | BN34: 6689233 | BO34: 6765474 | BP34: 6829221
A35: male | B35: 19 | C35: 346082 | D35: 319644 | E35: 305713 | F35: 291929 | G35: 278065 | H35: 280979 | I35: 304292 | J35: 316198 | K35: 315290 | L35: 314519 | M35: 327621 | N35: 339550 | O35: 352695 | P35: 348641 | Q35: 347961 | R35: 361341 | S35: 360129 | T35: 369210 | U35: 382777 | V35: 374911 | W35: 370164 | X35: 373217 | Y35: 363252 | Z35: 364738 | AA35: 368033 | AB35: 357953 | AC35: 356370 | AD35: 347001 | AE35: 343710 | AF35: 346599 | AG35: 358610 | AH35: 369718 | AJ35: 19 | AK35: 6577441 | AL35: 6563998 | AM35: 6579506 | AN35: 6601241 | AO35: 6631488 | AP35: 6676853 | AQ35: 6709144 | AR35: 6721215 | AS35: 6699320 | AT35: 6687782 | AU35: 6695454 | AV35: 6708476 | AW35: 6713075 | AX35: 6706781 | AY35: 6720487 | AZ35: 6755484 | BA35: 6781885 | BB35: 6815725 | BC35: 6849757 | BD35: 6872215 | BE35: 6900070 | BF35: 6926142 | BG35: 6948447 | BH35: 6983130 | BI35: 7020094 | BJ35: 7030644 | BK35: 7040113 | BL35: 7045020 | BM35: 7040256 | BN35: 7035832 | BO35: 7124084 | BP35: 7198939 | BR35: Females | BS35: All Ages | BU35: =C200 -> 26136186 | BV35: 26193235 | BW35: 26263185 | BX35: 26325644 | BY35: 26380656 | BZ35: 26446454 | CA35: 26519404 | CB35: 26610030 | CC35: 26702135 | CD35: 26785720 | CE35: 26894025 | CF35: 27009129 | CG35: 27139907 | CH35: 27340945 | CI35: 27517504 | CJ35: 27718324 | CK35: 27927399 | CL35: 28113573 | CM35: 28319686 | CN35: 28533290 | CO35: 28752140 | CP35: 28973385 | CQ35: 29211642 | CR35: 29430178 | CS35: 29690146 | CT35: 29877059 | CU35: 30055617 | CV35: 30231833 | CW35: 30312278 | CX35: 30457171 | CY35: 30723697 | CZ35: 31018735 | DB35: =INDEX(CC35:CY35,'Population Pyramid'!$L$1) -> 30312278
A36: male | B36: 20 | C36: 371128 | D36: 348503 | E36: 323803 | F36: 312489 | G36: 300513 | H36: 289399 | I36: 294544 | J36: 315346 | K36: 327634 | L36: 326366 | M36: 317079 | N36: 329009 | O36: 343435 | P36: 356820 | Q36: 351999 | R36: 352192 | S36: 363396 | T36: 361547 | U36: 377378 | V36: 391614 | W36: 380729 | X36: 375751 | Y36: 379747 | Z36: 370726 | AA36: 372018 | AB36: 373416 | AC36: 363569 | AD36: 362420 | AE36: 352080 | AF36: 349770 | AG36: 357652 | AH36: 368028 | AJ36: 20 | AK36: 6948569 | AL36: 6912501 | AM36: 6903309 | AN36: 6913730 | AO36: 6932001 | AP36: 6966252 | AQ36: 7003688 | AR36: 7036561 | AS36: 7026954 | AT36: 7014148 | AU36: 7012533 | AV36: 7037485 | AW36: 7056510 | AX36: 7063601 | AY36: 7072486 | AZ36: 7107676 | BA36: 7145281 | BB36: 7177272 | BC36: 7227135 | BD36: 7263829 | BE36: 7280799 | BF36: 7301893 | BG36: 7328194 | BH36: 7353856 | BI36: 7392112 | BJ36: 7404060 | BK36: 7403682 | BL36: 7407440 | BM36: 7392336 | BN36: 7385602 | BO36: 7481736 | BP36: 7566967 | BR36: Females | BS36: 0-4 | BU36: =SUM(C109:C113) -> 1680661 | BV36: 1669400 | BW36: 1661878 | BX36: 1642860 | BY36: 1610130 | BZ36: 1589311 | CA36: 1571637 | CB36: 1555637 | CC36: 1537356 | CD36: 1508558 | CE36: 1487644 | CF36: 1477045 | CG36: 1478511 | CH36: 1495919 | CI36: 1524286 | CJ36: 1567316 | CK36: 1616971 | CL36: 1653378 | CM36: 1687030 | CN36: 1711878 | CO36: 1739678 | CP36: 1744093 | CQ36: 1743296 | CR36: 1734503 | CS36: 1721796 | CT36: 1694767 | CU36: 1667843 | CV36: 1640581 | CW36: 1608682 | CX36: 1568216 | CY36: 1571321 | CZ36: 1568923 | DB36: =INDEX(CC36:CY36,'Population Pyramid'!$L$1) -> 1608682
A37: male | B37: 21 | C37: 382866 | D37: 370499 | E37: 347370 | F37: 324108 | G37: 312776 | H37: 301561 | I37: 291021 | J37: 295413 | K37: 314415 | L37: 328247 | M37: 330054 | N37: 320737 | O37: 335933 | P37: 349649 | Q37: 362081 | R37: 360124 | S37: 354610 | T37: 364755 | U37: 371264 | V37: 387925 | W37: 394907 | X37: 385114 | Y37: 380710 | Z37: 385354 | AA37: 376999 | AB37: 374773 | AC37: 376826 | AD37: 367409 | AE37: 362756 | AF37: 354768 | AG37: 357925 | AH37: 365925 | AJ37: 21 | AK37: 7331435 | AL37: 7283000 | AM37: 7250679 | AN37: 7237838 | AO37: 7244777 | AP37: 7267813 | AQ37: 7294709 | AR37: 7331974 | AS37: 7341369 | AT37: 7342395 | AU37: 7342587 | AV37: 7358222 | AW37: 7392443 | AX37: 7413250 | AY37: 7434567 | AZ37: 7467800 | BA37: 7499891 | BB37: 7542027 | BC37: 7598399 | BD37: 7651754 | BE37: 7675706 | BF37: 7687007 | BG37: 7708904 | BH37: 7739210 | BI37: 7769111 | BJ37: 7778833 | BK37: 7780508 | BL37: 7774849 | BM37: 7755092 | BN37: 7740370 | BO37: 7839661 | BP37: 7932892 | BR37: Females | BS37: 5-9 | BU37: =SUM(C114:C118) -> 1584502 | BV37: 1611854 | BW37: 1636011 | BX37: 1650101 | BY37: 1671002 | BZ37: 1680422 | CA37: 1670672 | CB37: 1663588 | CC37: 1639716 | CD37: 1612265 | CE37: 1598436 | CF37: 1591024 | CG37: 1580414 | CH37: 1564877 | CI37: 1543657 | CJ37: 1517300 | CK37: 1501729 | CL37: 1500292 | CM37: 1512699 | CN37: 1539381 | CO37: 1586548 | CP37: 1638548 | CQ37: 1676033 | CR37: 1710573 | CS37: 1740465 | CT37: 1763329 | CU37: 1759570 | CV37: 1750600 | CW37: 1733414 | CX37: 1715387 | CY37: 1714388 | CZ37: 1720549 | DB37: =INDEX(CC37:CY37,'Population Pyramid'!$L$1) -> 1733414
A38: male | B38: 22 | C38: 381827 | D38: 382462 | E38: 369772 | F38: 348386 | G38: 324954 | H38: 313722 | I38: 303354 | J38: 293684 | K38: 297357 | L38: 317041 | M38: 333455 | N38: 334337 | O38: 330817 | P38: 345101 | Q38: 356323 | R38: 371861 | S38: 365381 | T38: 355441 | U38: 375503 | V38: 382973 | W38: 389684 | X38: 396931 | Y38: 389076 | Z38: 385059 | AA38: 389485 | AB38: 378470 | AC38: 375181 | AD38: 378443 | AE38: 363770 | AF38: 364022 | AG38: 364418 | AH38: 365718 | AJ38: 22 | AK38: 7713262 | AL38: 7665462 | AM38: 7620451 | AN38: 7586224 | AO38: 7569731 | AP38: 7581535 | AQ38: 7598063 | AR38: 7625658 | AS38: 7638726 | AT38: 7659436 | AU38: 7676042 | AV38: 7692559 | AW38: 7723260 | AX38: 7758351 | AY38: 7790890 | AZ38: 7839661 | BA38: 7865272 | BB38: 7897468 | BC38: 7973902 | BD38: 8034727 | BE38: 8065390 | BF38: 8083938 | BG38: 8097980 | BH38: 8124269 | BI38: 8158596 | BJ38: 8157303 | BK38: 8155689 | BL38: 8153292 | BM38: 8118862 | BN38: 8104392 | BO38: 8204079 | BP38: 8298610 | BR38: Females | BS38: 10-14 | BU38: =SUM(C119:C123) -> 1519200 | BV38: 1549375 | BW38: 1555771 | BX38: 1562629 | BY38: 1571621 | BZ38: 1590857 | CA38: 1618755 | CB38: 1644390 | CC38: 1655814 | CD38: 1674885 | CE38: 1687343 | CF38: 1683264 | CG38: 1675080 | CH38: 1662893 | CI38: 1645593 | CJ38: 1636997 | CK38: 1628251 | CL38: 1614777 | CM38: 1603732 | CN38: 1583073 | CO38: 1548127 | CP38: 1531432 | CQ38: 1531734 | CR38: 1548913 | CS38: 1581770 | CT38: 1622434 | CU38: 1668651 | CV38: 1699819 | CW38: 1727101 | CX38: 1757227 | CY38: 1795955 | CZ38: 1812922 | DB38: =INDEX(CC38:CY38,'Population Pyramid'!$L$1) -> 1727101
A39: male | B39: 23 | C39: 394111 | D39: 380705 | E39: 381283 | F39: 370650 | G39: 349138 | H39: 325967 | I39: 314903 | J39: 307029 | K39: 297420 | L39: 303075 | M39: 323222 | N39: 339045 | O39: 345278 | P39: 342246 | Q39: 353673 | R39: 366860 | S39: 377720 | T39: 368025 | U39: 365626 | V39: 386756 | W39: 384618 | X39: 392245 | Y39: 400395 | Z39: 394844 | AA39: 389942 | AB39: 390849 | AC39: 379799 | AD39: 376041 | AE39: 375258 | AF39: 365472 | AG39: 377684 | AH39: 375371 | AJ39: 23 | AK39: 8107373 | AL39: 8046167 | AM39: 8001734 | AN39: 7956874 | AO39: 7918869 | AP39: 7907502 | AQ39: 7912966 | AR39: 7932687 | AS39: 7936146 | AT39: 7962511 | AU39: 7999264 | AV39: 8031604 | AW39: 8068538 | AX39: 8100597 | AY39: 8144563 | AZ39: 8206521 | BA39: 8242992 | BB39: 8265493 | BC39: 8339528 | BD39: 8421483 | BE39: 8450008 | BF39: 8476183 | BG39: 8498375 | BH39: 8519113 | BI39: 8548538 | BJ39: 8548152 | BK39: 8535488 | BL39: 8529333 | BM39: 8494120 | BN39: 8469864 | BO39: 8581763 | BP39: 8673981 | BR39: Females | BS39: 15-19 | BU39: =SUM(C124:C128) -> 1510197 | BV39: 1458855 | BW39: 1454060 | BX39: 1473828 | BY39: 1501440 | BZ39: 1534286 | CA39: 1560704 | CB39: 1566550 | CC39: 1562689 | CD39: 1578418 | CE39: 1603116 | CF39: 1645700 | CG39: 1675943 | CH39: 1698972 | CI39: 1712646 | CJ39: 1732216 | CK39: 1735770 | CL39: 1743570 | CM39: 1732304 | CN39: 1719795 | CO39: 1698671 | CP39: 1682712 | CQ39: 1665998 | CR39: 1650482 | CS39: 1635584 | CT39: 1609777 | CU39: 1602064 | CV39: 1609142 | CW39: 1629615 | CX39: 1657326 | CY39: 1692287 | CZ39: 1741478 | DB39: =INDEX(CC39:CY39,'Population Pyramid'!$L$1) -> 1629615
A40: male | B40: 24 | C40: 397213 | D40: 392443 | E40: 379101 | F40: 381628 | G40: 370881 | H40: 349550 | I40: 326503 | J40: 318488 | K40: 310979 | L40: 304482 | M40: 308981 | N40: 329083 | O40: 350813 | P40: 356763 | Q40: 352170 | R40: 365413 | S40: 372506 | T40: 380328 | U40: 379524 | V40: 375340 | W40: 380827 | X40: 380039 | Y40: 387608 | Z40: 396907 | AA40: 390878 | AB40: 383016 | AC40: 383595 | AD40: 372312 | AE40: 366905 | AF40: 372627 | AG40: 378937 | AH40: 388324 | AJ40: 24 | AK40: 8504586 | AL40: 8438610 | AM40: 8380835 | AN40: 8338502 | AO40: 8289750 | AP40: 8257052 | AQ40: 8239469 | AR40: 8251175 | AS40: 8247125 | AT40: 8266993 | AU40: 8308245 | AV40: 8360687 | AW40: 8419351 | AX40: 8457360 | AY40: 8496733 | AZ40: 8571934 | BA40: 8615498 | BB40: 8645821 | BC40: 8719052 | BD40: 8796823 | BE40: 8830835 | BF40: 8856222 | BG40: 8885983 | BH40: 8916020 | BI40: 8939416 | BJ40: 8931168 | BK40: 8919083 | BL40: 8901645 | BM40: 8861025 | BN40: 8842491 | BO40: 8960700 | BP40: 9062305 | BR40: Females | BS40: 20-24 | BU40: =SUM(C129:C133) -> 1896626 | BV40: 1842594 | BW40: 1774271 | BX40: 1711989 | BY40: 1632950 | BZ40: 1560629 | CA40: 1516650 | CB40: 1516871 | CC40: 1540036 | CD40: 1577685 | CE40: 1617800 | CF40: 1654080 | CG40: 1687160 | CH40: 1733001 | CI40: 1772676 | CJ40: 1801211 | CK40: 1834139 | CL40: 1840515 | CM40: 1853376 | CN40: 1884229 | CO40: 1901450 | CP40: 1910362 | CQ40: 1916591 | CR40: 1911603 | CS40: 1903648 | CT40: 1885957 | CU40: 1876149 | CV40: 1858075 | CW40: 1807953 | CX40: 1788450 | CY40: 1785532 | CZ40: 1783930 | DB40: =INDEX(CC40:CY40,'Population Pyramid'!$L$1) -> 1807953
A41: male | B41: 25 | C41: 410269 | D41: 396651 | E41: 391824 | F41: 380858 | G41: 383341 | H41: 371715 | I41: 351102 | J41: 331249 | K41: 325109 | L41: 317573 | M41: 311594 | N41: 314522 | O41: 335086 | P41: 360085 | Q41: 363825 | R41: 361385 | S41: 372309 | T41: 372073 | U41: 382955 | V41: 385830 | W41: 370696 | X41: 378057 | Y41: 377479 | Z41: 385944 | AA41: 393996 | AB41: 386756 | AC41: 378324 | AD41: 379411 | AE41: 368858 | AF41: 366839 | AG41: 385207 | AH41: 389661 | AJ41: 25 | AK41: 8914855 | AL41: 8835261 | AM41: 8772659 | AN41: 8719360 | AO41: 8673091 | AP41: 8628767 | AQ41: 8590571 | AR41: 8582424 | AS41: 8572234 | AT41: 8584566 | AU41: 8619839 | AV41: 8675209 | AW41: 8754437 | AX41: 8817445 | AY41: 8860558 | AZ41: 8933319 | BA41: 8987807 | BB41: 9017894 | BC41: 9102007 | BD41: 9182653 | BE41: 9201531 | BF41: 9234279 | BG41: 9263462 | BH41: 9301964 | BI41: 9333412 | BJ41: 9317924 | BK41: 9297407 | BL41: 9281056 | BM41: 9229883 | BN41: 9209330 | BO41: 9345907 | BP41: 9451966 | BR41: Females | BS41: 25-29 | BU41: =SUM(C134:C138) -> 2082030 | BV41: 2062861 | BW41: 2041269 | BX41: 2004895 | BY41: 1979709 | BZ41: 1945173 | CA41: 1902255 | CB41: 1850941 | CC41: 1809873 | CD41: 1744662 | CE41: 1681071 | CF41: 1647056 | CG41: 1658153 | CH41: 1712479 | CI41: 1762909 | CJ41: 1824599 | CK41: 1872687 | CL41: 1895208 | CM41: 1913018 | CN41: 1923189 | CO41: 1930258 | CP41: 1946638 | CQ41: 1967932 | CR41: 1988062 | CS41: 2022003 | CT41: 2037570 | CU41: 2034364 | CV41: 2033063 | CW41: 2009848 | CX41: 1980809 | CY41: 1979222 | CZ41: 2000917 | DB41: =INDEX(CC41:CY41,'Population Pyramid'!$L$1) -> 2009848
A42: male | B42: 26 | C42: 412078 | D42: 409172 | E42: 396082 | F42: 393641 | G42: 382103 | H42: 383767 | I42: 372633 | J42: 355029 | K42: 336914 | L42: 331340 | M42: 323600 | N42: 317014 | O42: 319456 | P42: 344005 | Q42: 367605 | R42: 372470 | S42: 369315 | T42: 373041 | U42: 374388 | V42: 388744 | W42: 382808 | X42: 370378 | Y42: 378877 | Z42: 379311 | AA42: 387187 | AB42: 392873 | AC42: 386483 | AD42: 378128 | AE42: 378786 | AF42: 371827 | AG42: 378970 | AH42: 396469 | AJ42: 26 | AK42: 9326933 | AL42: 9244433 | AM42: 9168741 | AN42: 9113001 | AO42: 9055194 | AP42: 9012534 | AQ42: 8963204 | AR42: 8937453 | AS42: 8909148 | AT42: 8915906 | AU42: 8943439 | AV42: 8992223 | AW42: 9073893 | AX42: 9161450 | AY42: 9228163 | AZ42: 9305789 | BA42: 9357122 | BB42: 9390935 | BC42: 9476395 | BD42: 9571397 | BE42: 9584339 | BF42: 9604657 | BG42: 9642339 | BH42: 9681275 | BI42: 9720599 | BJ42: 9710797 | BK42: 9683890 | BL42: 9659184 | BM42: 9608669 | BN42: 9581157 | BO42: 9724877 | BP42: 9848435 | BR42: Females | BS42: 30-34 | BU42: =SUM(C139:C143) -> 1909446 | BV42: 1956246 | BW42: 2007965 | BX42: 2051007 | BY42: 2075800 | BZ42: 2087857 | CA42: 2080722 | CB42: 2069172 | CC42: 2049279 | CD42: 2033424 | CE42: 2010113 | CF42: 1974793 | CG42: 1919327 | CH42: 1883350 | CI42: 1831721 | CJ42: 1773284 | CK42: 1752312 | CL42: 1762041 | CM42: 1802700 | CN42: 1851379 | CO42: 1907076 | CP42: 1958625 | CQ42: 1980868 | CR42: 1996612 | CS42: 2016755 | CT42: 2037339 | CU42: 2067364 | CV42: 2099818 | CW42: 2121377 | CX42: 2145444 | CY42: 2161226 | CZ42: 2168414 | DB42: =INDEX(CC42:CY42,'Population Pyramid'!$L$1) -> 2121377
A43: male | B43: 27 | C43: 419822 | D43: 411066 | E43: 408601 | F43: 397640 | G43: 394283 | H43: 382514 | I43: 384705 | J43: 376256 | K43: 360360 | L43: 342807 | M43: 336643 | N43: 328392 | O43: 321618 | P43: 326962 | Q43: 351224 | R43: 376389 | S43: 380055 | T43: 371352 | U43: 376282 | V43: 379580 | W43: 387539 | X43: 383044 | Y43: 372951 | Z43: 383126 | AA43: 383591 | AB43: 389034 | AC43: 394572 | AD43: 389349 | AE43: 379894 | AF43: 382270 | AG43: 382489 | AH43: 389367 | AJ43: 27 | AK43: 9746755 | AL43: 9655499 | AM43: 9577342 | AN43: 9510641 | AO43: 9449477 | AP43: 9395048 | AQ43: 9347909 | AR43: 9313709 | AS43: 9269508 | AT43: 9258713 | AU43: 9280082 | AV43: 9320615 | AW43: 9395511 | AX43: 9488412 | AY43: 9579387 | AZ43: 9682178 | BA43: 9737177 | BB43: 9762287 | BC43: 9852677 | BD43: 9950977 | BE43: 9971878 | BF43: 9987701 | BG43: 10015290 | BH43: 10064401 | BI43: 10104190 | BJ43: 10099831 | BK43: 10078462 | BL43: 10048533 | BM43: 9988563 | BN43: 9963427 | BO43: 10107366 | BP43: 10237802 | BR43: Females | BS43: 35-39 | BU43: =SUM(C144:C148) -> 1695504 | BV43: 1723744 | BW43: 1760028 | BX43: 1802476 | BY43: 1853891 | BZ43: 1903403 | CA43: 1951889 | CB43: 2003956 | CC43: 2053680 | CD43: 2081985 | CE43: 2103784 | CF43: 2100222 | CG43: 2093969 | CH43: 2070992 | CI43: 2059965 | CJ43: 2040482 | CK43: 2009443 | CL43: 1966383 | CM43: 1922517 | CN43: 1858048 | CO43: 1812192 | CP43: 1789797 | CQ43: 1809792 | CR43: 1854044 | CS43: 1907803 | CT43: 1960497 | CU43: 2008327 | CV43: 2028271 | CW43: 2040307 | CX43: 2056249 | CY43: 2093129 | CZ43: 2145756 | DB43: =INDEX(CC43:CY43,'Population Pyramid'!$L$1) -> 2040307
A44: male | B44: 28 | C44: 418678 | D44: 417763 | E44: 410491 | F44: 410299 | G44: 399112 | H44: 394354 | I44: 383046 | J44: 387723 | K44: 380973 | L44: 365262 | M44: 348022 | N44: 341242 | O44: 332623 | P44: 329247 | Q44: 333402 | R44: 360047 | S44: 384633 | T44: 382088 | U44: 375988 | V44: 382535 | W44: 378831 | X44: 388077 | Y44: 385007 | Z44: 377464 | AA44: 388339 | AB44: 386784 | AC44: 392077 | AD44: 398106 | AE44: 392199 | AF44: 383789 | AG44: 391435 | AH44: 392092 | AJ44: 28 | AK44: 10165433 | AL44: 10073262 | AM44: 9987833 | AN44: 9920940 | AO44: 9848589 | AP44: 9789402 | AQ44: 9730955 | AR44: 9701432 | AS44: 9650481 | AT44: 9623975 | AU44: 9628104 | AV44: 9661857 | AW44: 9728134 | AX44: 9817659 | AY44: 9912789 | AZ44: 10042225 | BA44: 10121810 | BB44: 10144375 | BC44: 10228665 | BD44: 10333512 | BE44: 10350709 | BF44: 10375778 | BG44: 10400297 | BH44: 10441865 | BI44: 10492529 | BJ44: 10486615 | BK44: 10470539 | BL44: 10446639 | BM44: 10380762 | BN44: 10347216 | BO44: 10498801 | BP44: 10629894 | BR44: Females | BS44: 40-44 | BU44: =SUM(C149:C153) -> 1755743 | BV44: 1704551 | BW44: 1683346 | BX44: 1667723 | BY44: 1673799 | BZ44: 1695646 | CA44: 1725008 | CB44: 1759129 | CC44: 1805241 | CD44: 1853349 | CE44: 1905417 | CF44: 1955037 | CG44: 2007179 | CH44: 2056890 | CI44: 2086487 | CJ44: 2108503 | CK44: 2103259 | CL44: 2097761 | CM44: 2076795 | CN44: 2068199 | CO44: 2054257 | CP44: 2029320 | CQ44: 1987827 | CR44: 1950648 | CS44: 1896007 | CT44: 1848431 | CU44: 1823672 | CV44: 1840293 | CW44: 1878787 | CX44: 1925944 | CY44: 1981045 | CZ44: 2039195 | DB44: =INDEX(CC44:CY44,'Population Pyramid'!$L$1) -> 1878787
A45: male | B45: 29 | C45: 410169 | D45: 416712 | E45: 417008 | F45: 411861 | G45: 411063 | H45: 399581 | I45: 395124 | J45: 385889 | K45: 392258 | L45: 384910 | M45: 369781 | N45: 352349 | O45: 344845 | P45: 339243 | Q45: 335100 | R45: 340599 | S45: 367826 | T45: 387293 | U45: 386365 | V45: 383017 | W45: 382127 | X45: 379391 | Y45: 389897 | Z45: 388336 | AA45: 382640 | AB45: 391861 | AC45: 390492 | AD45: 396269 | AE45: 400645 | AF45: 396253 | AG45: 391609 | AH45: 399857 | AJ45: 29 | AK45: 10575602 | AL45: 10489974 | AM45: 10404841 | AN45: 10332801 | AO45: 10259652 | AP45: 10188983 | AQ45: 10126079 | AR45: 10087321 | AS45: 10042739 | AT45: 10008885 | AU45: 9997885 | AV45: 10014206 | AW45: 10072979 | AX45: 10156902 | AY45: 10247889 | AZ45: 10382824 | BA45: 10489636 | BB45: 10531668 | BC45: 10615030 | BD45: 10716529 | BE45: 10732836 | BF45: 10755169 | BG45: 10790194 | BH45: 10830201 | BI45: 10875169 | BJ45: 10878476 | BK45: 10861031 | BL45: 10842908 | BM45: 10781407 | BN45: 10743469 | BO45: 10890410 | BP45: 11029751 | BR45: Females | BS45: 45-49 | BU45: =SUM(C154:C158) -> 1693680 | BV45: 1768900 | BW45: 1802534 | BX45: 1821757 | BY45: 1825445 | BZ45: 1744415 | CA45: 1693234 | CB45: 1673864 | CC45: 1664648 | CD45: 1670133 | CE45: 1688650 | CF45: 1718698 | CG45: 1749197 | CH45: 1792971 | CI45: 1842383 | CJ45: 1895002 | CK45: 1947236 | CL45: 1999599 | CM45: 2047110 | CN45: 2078162 | CO45: 2097901 | CP45: 2105436 | CQ45: 2106544 | CR45: 2093821 | CS45: 2095914 | CT45: 2081164 | CU45: 2053576 | CV45: 2007359 | CW45: 1963502 | CX45: 1904719 | CY45: 1855457 | CZ45: 1832791 | DB45: =INDEX(CC45:CY45,'Population Pyramid'!$L$1) -> 1963502
A46: male | B46: 30 | C46: 399833 | D46: 408229 | E46: 415220 | F46: 417567 | G46: 412975 | H46: 411501 | I46: 399717 | J46: 397314 | K46: 389667 | L46: 395591 | M46: 385184 | N46: 370562 | O46: 353321 | P46: 347723 | Q46: 341378 | R46: 336893 | S46: 345684 | T46: 373022 | U46: 388308 | V46: 388036 | W46: 382868 | X46: 382740 | Y46: 380888 | Z46: 392586 | AA46: 391809 | AB46: 385711 | AC46: 395526 | AD46: 395347 | AE46: 399069 | AF46: 403113 | AG46: 403092 | AH46: 399177 | AJ46: 30 | AK46: 10975435 | AL46: 10898203 | AM46: 10820061 | AN46: 10750368 | AO46: 10672627 | AP46: 10600484 | AQ46: 10525796 | AR46: 10484635 | AS46: 10432406 | AT46: 10404476 | AU46: 10383069 | AV46: 10384768 | AW46: 10426300 | AX46: 10504625 | AY46: 10589267 | AZ46: 10719717 | BA46: 10835320 | BB46: 10904690 | BC46: 11003338 | BD46: 11104565 | BE46: 11115704 | BF46: 11137909 | BG46: 11171082 | BH46: 11222787 | BI46: 11266978 | BJ46: 11264187 | BK46: 11256557 | BL46: 11238255 | BM46: 11180476 | BN46: 11146582 | BO46: 11293502 | BP46: 11428928 | BR46: Females | BS46: 50-54 | BU46: =SUM(C159:C163) -> 1362893 | BV46: 1390831 | BW46: 1432706 | BX46: 1479242 | BY46: 1544397 | BZ46: 1672625 | CA46: 1747044 | CB46: 1781918 | CC46: 1803429 | CD46: 1801328 | CE46: 1727163 | CF46: 1672665 | CG46: 1648952 | CH46: 1634915 | CI46: 1641900 | CJ46: 1662493 | CK46: 1693896 | CL46: 1728088 | CM46: 1772756 | CN46: 1826566 | CO46: 1882198 | CP46: 1936083 | CQ46: 1992029 | CR46: 2044924 | CS46: 2081953 | CT46: 2102598 | CU46: 2111903 | CV46: 2110786 | CW46: 2093780 | CX46: 2095013 | CY46: 2075187 | CZ46: 2044490 | DB46: =INDEX(CC46:CY46,'Population Pyramid'!$L$1) -> 2093780
A47: male | B47: 31 | C47: 395457 | D47: 398133 | E47: 407126 | F47: 415196 | G47: 417689 | H47: 413229 | I47: 411806 | J47: 401848 | K47: 400734 | L47: 393097 | M47: 396108 | N47: 385969 | O47: 371690 | P47: 355866 | Q47: 349257 | R47: 342657 | S47: 341135 | T47: 349402 | U47: 374061 | V47: 390576 | W47: 388144 | X47: 383749 | Y47: 384224 | Z47: 383280 | AA47: 395716 | AB47: 393399 | AC47: 389126 | AD47: 400399 | AE47: 397638 | AF47: 402360 | AG47: 409124 | AH47: 410472 | AJ47: 31 | AK47: 11370892 | AL47: 11296336 | AM47: 11227187 | AN47: 11165564 | AO47: 11090316 | AP47: 11013713 | AQ47: 10937602 | AR47: 10886483 | AS47: 10833140 | AT47: 10797573 | AU47: 10779177 | AV47: 10770737 | AW47: 10797990 | AX47: 10860491 | AY47: 10938524 | AZ47: 11062374 | BA47: 11176455 | BB47: 11254092 | BC47: 11377399 | BD47: 11495141 | BE47: 11503848 | BF47: 11521658 | BG47: 11555306 | BH47: 11606067 | BI47: 11662694 | BJ47: 11657586 | BK47: 11645683 | BL47: 11638654 | BM47: 11578114 | BN47: 11548942 | BO47: 11702626 | BP47: 11839400 | BR47: Females | BS47: 55-59 | BU47: =SUM(C164:C168) -> 1296383 | BV47: 1312314 | BW47: 1331996 | BX47: 1341824 | BY47: 1333856 | BZ47: 1340112 | CA47: 1367474 | CB47: 1407049 | CC47: 1454519 | CD47: 1520020 | CE47: 1642471 | CF47: 1711018 | CG47: 1741580 | CH47: 1757056 | CI47: 1759836 | CJ47: 1682239 | CK47: 1631800 | CL47: 1614830 | CM47: 1604112 | CN47: 1613977 | CO47: 1639423 | CP47: 1671001 | CQ47: 1708082 | CR47: 1756497 | CS47: 1809776 | CT47: 1866236 | CU47: 1919846 | CV47: 1972724 | CW47: 2021720 | CX47: 2058999 | CY47: 2076378 | CZ47: 2083590 | DB47: =INDEX(CC47:CY47,'Population Pyramid'!$L$1) -> 2021720
A48: male | B48: 32 | C48: 376952 | D48: 393099 | E48: 396893 | F48: 407108 | G48: 415302 | H48: 417470 | I48: 413206 | J48: 413245 | K48: 404392 | L48: 403056 | M48: 393630 | N48: 397184 | O48: 386884 | P48: 374208 | Q48: 357456 | R48: 350291 | S48: 346425 | T48: 344890 | U48: 349817 | V48: 376381 | W48: 390406 | X48: 388412 | Y48: 384530 | Z48: 385643 | AA48: 385089 | AB48: 396024 | AC48: 394365 | AD48: 392052 | AE48: 402125 | AF48: 399746 | AG48: 407167 | AH48: 415092 | AJ48: 32 | AK48: 11747844 | AL48: 11689435 | AM48: 11624080 | AN48: 11572672 | AO48: 11505618 | AP48: 11431183 | AQ48: 11350808 | AR48: 11299728 | AS48: 11237532 | AT48: 11200629 | AU48: 11172807 | AV48: 11167921 | AW48: 11184874 | AX48: 11234699 | AY48: 11295980 | AZ48: 11412665 | BA48: 11522880 | BB48: 11598982 | BC48: 11727216 | BD48: 11871522 | BE48: 11894254 | BF48: 11910070 | BG48: 11939836 | BH48: 11991710 | BI48: 12047783 | BJ48: 12053610 | BK48: 12040048 | BL48: 12030706 | BM48: 11980239 | BN48: 11948688 | BO48: 12109793 | BP48: 12254492 | BR48: Females | BS48: 60-64 | BU48: =SUM(C169:C173) -> 1306371 | BV48: 1291208 | BW48: 1273182 | BX48: 1258895 | BY48: 1252189 | BZ48: 1256622 | CA48: 1272446 | CB48: 1292069 | CC48: 1304429 | CD48: 1297331 | CE48: 1301110 | CF48: 1328312 | CG48: 1364646 | CH48: 1405026 | CI48: 1463864 | CJ48: 1583875 | CK48: 1654618 | CL48: 1685928 | CM48: 1706985 | CN48: 1714084 | CO48: 1634382 | CP48: 1593140 | CQ48: 1577700 | CR48: 1568439 | CS48: 1578922 | CT48: 1604272 | CU48: 1635750 | CV48: 1670765 | CW48: 1716626 | CX48: 1770461 | CY48: 1824758 | CZ48: 1876395 | DB48: =INDEX(CC48:CY48,'Population Pyramid'!$L$1) -> 1716626
A49: male | B49: 33 | C49: 365860 | D49: 375733 | E49: 391690 | F49: 397042 | G49: 407267 | H49: 414821 | I49: 417222 | J49: 414369 | K49: 415842 | L49: 406759 | M49: 403126 | N49: 393848 | O49: 398050 | P49: 388983 | Q49: 375712 | R49: 358490 | S49: 353626 | T49: 349562 | U49: 345178 | V49: 351295 | W49: 376438 | X49: 391063 | Y49: 389213 | Z49: 385953 | AA49: 387265 | AB49: 385057 | AC49: 396516 | AD49: 395378 | AE49: 392871 | AF49: 403732 | AG49: 403895 | AH49: 412689 | AJ49: 33 | AK49: =AK48+C49 -> 12113704 | AL49: =AL48+D49 -> 12065168 | AM49: =AM48+E49 -> 12015770 | AN49: =AN48+F49 -> 11969714 | AO49: =AO48+G49 -> 11912885 | AP49: =AP48+H49 -> 11846004 | AQ49: =AQ48+I49 -> 11768030 | AR49: =AR48+J49 -> 11714097 | AS49: =AS48+K49 -> 11653374 | AT49: =AT48+L49 -> 11607388 | AU49: =AU48+M49 -> 11575933 | AV49: =AV48+N49 -> 11561769 | AW49: =AW48+O49 -> 11582924 | AX49: =AX48+P49 -> 11623682 | AY49: =AY48+Q49 -> 11671692 | AZ49: =AZ48+R49 -> 11771155 | BA49: =BA48+S49 -> 11876506 | BB49: =BB48+T49 -> 11948544 | BC49: =BC48+U49 -> 12072394 | BD49: =BD48+V49 -> 12222817 | BE49: =BE48+W49 -> 12270692 | BF49: =BF48+X49 -> 12301133 | BG49: =BG48+Y49 -> 12329049 | BH49: =BH48+Z49 -> 12377663 | BI49: =BI48+AA49 -> 12435048 | BJ49: =BJ48+AB49 -> 12438667 | BK49: =BK48+AC49 -> 12436564 | BL49: =BL48+AD49 -> 12426084 | BM49: =BM48+AE49 -> 12373110 | BN49: =BN48+AF49 -> 12352420 | BO49: =BO48+AG49 -> 12513688 | BP49: =BP48+AH49 -> 12667181 | BR49: Females | BS49: 65-69 | BU49: =SUM(C174:C178) -> 1294123 | BV49: 1270997 | BW49: 1255701 | BX49: 1247871 | BY49: 1240220 | BZ49: 1230348 | CA49: 1220529 | CB49: 1206694 | CC49: 1198068 | CD49: 1194005 | CE49: 1199489 | CF49: 1214210 | CG49: 1231538 | CH49: 1239979 | CI49: 1226827 | CJ49: 1230171 | CK49: 1258025 | CL49: 1298176 | CM49: 1340958 | CN49: 1401057 | CO49: 1524656 | CP49: 1591856 | CQ49: 1622411 | CR49: 1644228 | CS49: 1651934 | CT49: 1575150 | CU49: 1534915 | CV49: 1520124 | CW49: 1511330 | CX49: 1521895 | CY49: 1546211 | CZ49: 1576100 | DB49: =INDEX(CC49:CY49,'Population Pyramid'!$L$1) -> 1511330
A50: male | B50: 34 | C50: 358702 | D50: 365073 | E50: 374668 | F50: 390960 | G50: 396970 | H50: 406484 | I50: 413701 | J50: 417444 | K50: 416472 | L50: 417582 | M50: 406532 | N50: 403262 | O50: 394021 | P50: 400234 | Q50: 390295 | R50: 376780 | S50: 361619 | T50: 356390 | U50: 349679 | V50: 346680 | W50: 351740 | X50: 377454 | Y50: 392471 | Z50: 390925 | AA50: 387841 | AB50: 387337 | AC50: 385425 | AD50: 397126 | AE50: 394806 | AF50: 394438 | AG50: 407410 | AH50: 409268 | AJ50: 34 | AK50: 12472406 | AL50: 12430241 | AM50: 12390438 | AN50: 12360674 | AO50: 12309855 | AP50: 12252488 | AQ50: 12181731 | AR50: 12131541 | AS50: 12069846 | AT50: 12024970 | AU50: 11982465 | AV50: 11965031 | AW50: 11976945 | AX50: 12023916 | AY50: 12061987 | AZ50: 12147935 | BA50: 12238125 | BB50: 12304934 | BC50: 12422073 | BD50: 12569497 | BE50: 12622432 | BF50: 12678587 | BG50: 12721520 | BH50: 12768588 | BI50: 12822889 | BJ50: 12826004 | BK50: 12821989 | BL50: 12823210 | BM50: 12767916 | BN50: 12746858 | BO50: 12921098 | BP50: 13076449 | BR50: Females | BS50: 70-74 | BU50: =SUM(C179:C183) -> 1196232 | BV50: 1247275 | BW50: 1282857 | BX50: 1235321 | BY50: 1196528 | BZ50: 1168558 | CA50: 1149571 | CB50: 1137997 | CC50: 1133964 | CD50: 1131760 | CE50: 1126589 | CF50: 1121628 | CG50: 1110969 | CH50: 1104053 | CI50: 1099751 | CJ50: 1105002 | CK50: 1121457 | CL50: 1139438 | CM50: 1148221 | CN50: 1140959 | CO50: 1150135 | CP50: 1177703 | CQ50: 1219008 | CR50: 1260025 | CS50: 1317130 | CT50: 1435301 | CU50: 1499634 | CV50: 1528708 | CW50: 1547744 | CX50: 1554799 | CY50: 1482924 | CZ50: 1444983 | DB50: =INDEX(CC50:CY50,'Population Pyramid'!$L$1) -> 1547744
A51: male | B51: 35 | C51: 347186 | D51: 358450 | E51: 364655 | F51: 374016 | G51: 389610 | H51: 395811 | I51: 405531 | J51: 413540 | K51: 417746 | L51: 417048 | M51: 418007 | N51: 408023 | O51: 403570 | P51: 397354 | Q51: 402105 | R51: 393517 | S51: 377788 | T51: 361484 | U51: 356835 | V51: 350452 | W51: 347311 | X51: 352770 | Y51: 378739 | Z51: 394227 | AA51: 392617 | AB51: 387758 | AC51: 387406 | AD51: 385448 | AE51: 395644 | AF51: 394031 | AG51: 397933 | AH51: 412465 | AJ51: 35 | AK51: 12819592 | AL51: 12788691 | AM51: 12755093 | AN51: 12734690 | AO51: 12699465 | AP51: 12648299 | AQ51: 12587262 | AR51: 12545081 | AS51: 12487592 | AT51: 12442018 | AU51: 12400472 | AV51: 12373054 | AW51: 12380515 | AX51: 12421270 | AY51: 12464092 | AZ51: 12541452 | BA51: 12615913 | BB51: 12666418 | BC51: 12778908 | BD51: 12919949 | BE51: 12969743 | BF51: 13031357 | BG51: 13100259 | BH51: 13162815 | BI51: 13215506 | BJ51: 13213762 | BK51: 13209395 | BL51: 13208658 | BM51: 13163560 | BN51: 13140889 | BO51: 13319031 | BP51: 13488914 | BR51: Females | BS51: 75-79 | BU51: =SUM(C184:C188) -> 986813 | BV51: 935890 | BW51: 892701 | BX51: 933207 | BY51: 975419 | BZ51: 1015045 | CA51: 1059715 | CB51: 1084140 | CC51: 1049841 | CD51: 1020415 | CE51: 999040 | CF51: 984614 | CG51: 977898 | CH51: 977962 | CI51: 979413 | CJ51: 979899 | CK51: 979088 | CL51: 974907 | CM51: 974130 | CN51: 976657 | CO51: 985829 | CP51: 1002980 | CQ51: 1022726 | CR51: 1030870 | CS51: 1025104 | CT51: 1033801 | CU51: 1058957 | CV51: 1098590 | CW51: 1135065 | CX51: 1186585 | CY51: 1295917 | CZ51: 1354975 | DB51: =INDEX(CC51:CY51,'Population Pyramid'!$L$1) -> 1135065
A52: male | B52: 36 | C52: 339139 | D52: 346924 | E52: 358310 | F52: 364623 | G52: 373499 | H52: 388306 | I52: 394862 | J52: 405556 | K52: 413485 | L52: 417934 | M52: 417442 | N52: 419182 | O52: 407642 | P52: 406323 | Q52: 398275 | R52: 404942 | S52: 394358 | T52: 377751 | U52: 362088 | V52: 357400 | W52: 351551 | X52: 348216 | Y52: 353948 | Z52: 380305 | AA52: 395821 | AB52: 392399 | AC52: 387540 | AD52: 386946 | AE52: 383575 | AF52: 393755 | AG52: 397213 | AH52: 402496 | AJ52: 36 | AK52: 13158731 | AL52: 13135615 | AM52: 13113403 | AN52: 13099313 | AO52: 13072964 | AP52: 13036605 | AQ52: 12982124 | AR52: 12950637 | AS52: 12901077 | AT52: 12859952 | AU52: 12817914 | AV52: 12792236 | AW52: 12788157 | AX52: 12827593 | AY52: 12862367 | AZ52: 12946394 | BA52: 13010271 | BB52: 13044169 | BC52: 13140996 | BD52: 13277349 | BE52: 13321294 | BF52: 13379573 | BG52: 13454207 | BH52: 13543120 | BI52: 13611327 | BJ52: 13606161 | BK52: 13596935 | BL52: 13595604 | BM52: 13547135 | BN52: 13534644 | BO52: 13716244 | BP52: 13891410 | BR52: Females | BS52: 80-84 | BU52: =SUM(C189:C193) -> 751667 | BV52: 756927 | BW52: 762931 | BX52: 767804 | BY52: 758605 | BZ52: 736891 | CA52: 699908 | CB52: 674954 | CC52: 708511 | CD52: 750954 | CE52: 785711 | CF52: 819313 | CG52: 831782 | CH52: 812003 | CI52: 791950 | CJ52: 779876 | CK52: 773078 | CL52: 772802 | CM52: 779967 | CN52: 788087 | CO52: 794666 | CP52: 795767 | CQ52: 797846 | CR52: 797587 | CS52: 803686 | CT52: 813193 | CU52: 829056 | CV52: 846855 | CW52: 851907 | CX52: 845948 | CY52: 853718 | CZ52: 874816 | DB52: =INDEX(CC52:CY52,'Population Pyramid'!$L$1) -> 851907
A53: male | B53: 37 | C53: 329384 | D53: 338282 | E53: 346744 | F53: 358425 | G53: 364549 | H53: 372737 | I53: 387311 | J53: 394984 | K53: 405801 | L53: 413528 | M53: 418196 | N53: 418437 | O53: 418758 | P53: 409825 | Q53: 407064 | R53: 400415 | S53: 406160 | T53: 394381 | U53: 378268 | V53: 362691 | W53: 358440 | X53: 352588 | Y53: 348995 | Z53: 354957 | AA53: 381249 | AB53: 395265 | AC53: 391718 | AD53: 386786 | AE53: 385015 | AF53: 381589 | AG53: 396070 | AH53: 401544 | AJ53: 37 | AK53: 13488115 | AL53: 13473897 | AM53: 13460147 | AN53: 13457738 | AO53: 13437513 | AP53: 13409342 | AQ53: 13369435 | AR53: 13345621 | AS53: 13306878 | AT53: 13273480 | AU53: 13236110 | AV53: 13210673 | AW53: 13206915 | AX53: 13237418 | AY53: 13269431 | AZ53: 13346809 | BA53: 13416431 | BB53: 13438550 | BC53: 13519264 | BD53: 13640040 | BE53: 13679734 | BF53: 13732161 | BG53: 13803202 | BH53: 13898077 | BI53: 13992576 | BJ53: 14001426 | BK53: 13988653 | BL53: 13982390 | BM53: 13932150 | BN53: 13916233 | BO53: 14112314 | BP53: 14292954 | BR53: Females | BS53: 85+ | BU53: =SUM(C194:C199) -> 614115 | BV53: 639413 | BW53: 653978 | BX53: 672215 | BY53: 683655 | BZ53: 694254 | CA53: 711191 | CB53: 721111 | CC53: 731042 | CD53: 734543 | CE53: 729078 | CF53: 710450 | CG53: 707609 | CH53: 737607 | CI53: 771640 | CJ53: 797859 | CK53: 813640 | CL53: 825880 | CM53: 841276 | CN53: 854570 | CO53: 864693 | CP53: 867892 | CQ53: 885225 | CR53: 888347 | CS53: 899896 | CT53: 905243 | CU53: 903976 | CV53: 916260 | CW53: 913520 | CX53: 923700 | CY53: 939042 | CZ53: 948511 | DB53: =INDEX(CC53:CY53,'Population Pyramid'!$L$1) -> 913520
A54: male | B54: 38 | C54: 334224 | D54: 328785 | E54: 337695 | F54: 347069 | G54: 358740 | H54: 364239 | I54: 372251 | J54: 387148 | K54: 395040 | L54: 405901 | M54: 413878 | N54: 419159 | O54: 417894 | P54: 420409 | Q54: 409885 | R54: 408689 | S54: 400716 | T54: 406342 | U54: 394828 | V54: 379017 | W54: 363540 | X54: 359544 | Y54: 353704 | Z54: 349899 | AA54: 355737 | AB54: 380650 | AC54: 394615 | AD54: 390745 | AE54: 384613 | AF54: 382250 | AG54: 383721 | AH54: 399998 | AJ54: 38 | AK54: 13822339 | AL54: 13802682 | AM54: 13797842 | AN54: 13804807 | AO54: 13796253 | AP54: 13773581 | AQ54: 13741686 | AR54: 13732769 | AS54: 13701918 | AT54: 13679381 | AU54: 13649988 | AV54: 13629832 | AW54: 13624809 | AX54: 13657827 | AY54: 13679316 | AZ54: 13755498 | BA54: 13817147 | BB54: 13844892 | BC54: 13914092 | BD54: 14019057 | BE54: 14043274 | BF54: 14091705 | BG54: 14156906 | BH54: 14247976 | BI54: 14348313 | BJ54: 14382076 | BK54: 14383268 | BL54: 14373135 | BM54: 14316763 | BN54: 14298483 | BO54: 14496035 | BP54: 14692952
A55: male | B55: 39 | C55: 332788 | D55: 333676 | E55: 328618 | F55: 337723 | G55: 347350 | H55: 358815 | I55: 364292 | J55: 372819 | K55: 387034 | L55: 395276 | M55: 406753 | N55: 415206 | O55: 418627 | P55: 419203 | Q55: 420201 | R55: 410777 | S55: 408823 | T55: 400023 | U55: 406933 | V55: 395495 | W55: 379681 | X55: 364427 | Y55: 360667 | Z55: 354752 | AA55: 350442 | AB55: 355068 | AC55: 379843 | AD55: 393766 | AE55: 388787 | AF55: 382207 | AG55: 384133 | AH55: 387293 | AJ55: 39 | AK55: 14155127 | AL55: 14136358 | AM55: 14126460 | AN55: 14142530 | AO55: 14143603 | AP55: 14132396 | AQ55: 14105978 | AR55: 14105588 | AS55: 14088952 | AT55: 14074657 | AU55: 14056741 | AV55: 14045038 | AW55: 14043436 | AX55: 14077030 | AY55: 14099517 | AZ55: 14166275 | BA55: 14225970 | BB55: 14244915 | BC55: 14321025 | BD55: 14414552 | BE55: 14422955 | BF55: 14456132 | BG55: 14517573 | BH55: 14602728 | BI55: 14698755 | BJ55: 14737144 | BK55: 14763111 | BL55: 14766901 | BM55: 14705550 | BN55: 14680690 | BO55: 14880168 | BP55: 15080245
A56: male | B56: 40 | C56: 326539 | D56: 331665 | E56: 333076 | F56: 328775 | G56: 337505 | H56: 347513 | I56: 358880 | J56: 364533 | K56: 372156 | L56: 385494 | M56: 397769 | N56: 406404 | O56: 413560 | P56: 419564 | Q56: 417521 | R56: 419348 | S56: 410123 | T56: 409583 | U56: 398083 | V56: 405691 | W56: 395795 | X56: 380374 | Y56: 365256 | Z56: 361713 | AA56: 355360 | AB56: 349637 | AC56: 354062 | AD56: 378825 | AE56: 391684 | AF56: 386421 | AG56: 383584 | AH56: 387245 | AJ56: 40 | AK56: 14481666 | AL56: 14468023 | AM56: 14459536 | AN56: 14471305 | AO56: 14481108 | AP56: 14479909 | AQ56: 14464858 | AR56: 14470121 | AS56: 14461108 | AT56: 14460151 | AU56: 14454510 | AV56: 14451442 | AW56: 14456996 | AX56: 14496594 | AY56: 14517038 | AZ56: 14585623 | BA56: 14636093 | BB56: 14654498 | BC56: 14719108 | BD56: 14820243 | BE56: 14818750 | BF56: 14836506 | BG56: 14882829 | BH56: 14964441 | BI56: 15054115 | BJ56: 15086781 | BK56: 15117173 | BL56: 15145726 | BM56: 15097234 | BN56: 15067111 | BO56: 15263752 | BP56: 15467490
A57: male | B57: 41 | C57: 334812 | D57: 326181 | E57: 331286 | F57: 332863 | G57: 328796 | H57: 337116 | I57: 347381 | J57: 359522 | K57: 365000 | L57: 371967 | M57: 387363 | N57: 397689 | O57: 404791 | P57: 414393 | Q57: 417855 | R57: 416521 | S57: 418383 | T57: 410182 | U57: 407629 | V57: 396139 | W57: 406406 | X57: 396232 | Y57: 380998 | Z57: 366085 | AA57: 362447 | AB57: 355049 | AC57: 348771 | AD57: 353364 | AE57: 377013 | AF57: 389646 | AG57: 387263 | AH57: 386672 | AJ57: 41 | AK57: 14816478 | AL57: 14794204 | AM57: 14790822 | AN57: 14804168 | AO57: 14809904 | AP57: 14817025 | AQ57: 14812239 | AR57: 14829643 | AS57: 14826108 | AT57: 14832118 | AU57: 14841873 | AV57: 14849131 | AW57: 14861787 | AX57: 14910987 | AY57: 14934893 | AZ57: 15002144 | BA57: 15054476 | BB57: 15064680 | BC57: 15126737 | BD57: 15216382 | BE57: 15225156 | BF57: 15232738 | BG57: 15263827 | BH57: 15330526 | BI57: 15416562 | BJ57: 15441830 | BK57: 15465944 | BL57: 15499090 | BM57: 15474247 | BN57: 15456757 | BO57: 15651015 | BP57: 15854162
A58: male | B58: 42 | C58: 343785 | D58: 333715 | E58: 325853 | F58: 330957 | G58: 332797 | H58: 328670 | I58: 336718 | J58: 347923 | K58: 360026 | L58: 364895 | M58: 373687 | N58: 387208 | O58: 396771 | P58: 405591 | Q58: 413199 | R58: 416866 | S58: 415342 | T58: 418115 | U58: 407789 | V58: 405713 | W58: 396903 | X58: 407246 | Y58: 396783 | Z58: 381759 | AA58: 366806 | AB58: 362399 | AC58: 354698 | AD58: 347820 | AE58: 351698 | AF58: 374931 | AG58: 390421 | AH58: 389355 | AJ58: 42 | AK58: 15160263 | AL58: 15127919 | AM58: 15116675 | AN58: 15135125 | AO58: 15142701 | AP58: 15145695 | AQ58: 15148957 | AR58: 15177566 | AS58: 15186134 | AT58: 15197013 | AU58: 15215560 | AV58: 15236339 | AW58: 15258558 | AX58: 15316578 | AY58: 15348092 | AZ58: 15419010 | BA58: 15469818 | BB58: 15482795 | BC58: 15534526 | BD58: 15622095 | BE58: 15622059 | BF58: 15639984 | BG58: 15660610 | BH58: 15712285 | BI58: 15783368 | BJ58: 15804229 | BK58: 15820642 | BL58: 15846910 | BM58: 15825945 | BN58: 15831688 | BO58: 16041436 | BP58: 16243517
A59: male | B59: 43 | C59: 356535 | D59: 343017 | E59: 332843 | F59: 325840 | G59: 330485 | H59: 332323 | I59: 328499 | J59: 336825 | K59: 348749 | L59: 360201 | M59: 366354 | N59: 373474 | O59: 385828 | P59: 397834 | Q59: 404488 | R59: 412490 | S59: 415738 | T59: 414866 | U59: 415628 | V59: 405426 | W59: 406651 | X59: 397874 | Y59: 408397 | Z59: 397638 | AA59: 382592 | AB59: 367000 | AC59: 362414 | AD59: 354513 | AE59: 346263 | AF59: 349942 | AG59: 375301 | AH59: 392378 | AJ59: 43 | AK59: 15516798 | AL59: 15470936 | AM59: 15449518 | AN59: 15460965 | AO59: 15473186 | AP59: 15478018 | AQ59: 15477456 | AR59: 15514391 | AS59: 15534883 | AT59: 15557214 | AU59: 15581914 | AV59: 15609813 | AW59: 15644386 | AX59: 15714412 | AY59: 15752580 | AZ59: 15831500 | BA59: 15885556 | BB59: 15897661 | BC59: 15950154 | BD59: 16027521 | BE59: 16028710 | BF59: 16037858 | BG59: 16069007 | BH59: 16109923 | BI59: 16165960 | BJ59: 16171229 | BK59: 16183056 | BL59: 16201423 | BM59: 16172208 | BN59: 16181630 | BO59: 16416737 | BP59: 16635895
A60: male | B60: 44 | C60: 381468 | D60: 355659 | E60: 342323 | F60: 332386 | G60: 325820 | H60: 330100 | I60: 331705 | J60: 328610 | K60: 336777 | L60: 348641 | M60: 361341 | N60: 366111 | O60: 372347 | P60: 386460 | Q60: 397219 | R60: 404101 | S60: 411754 | T60: 415295 | U60: 412373 | V60: 413171 | W60: 406086 | X60: 407480 | Y60: 398719 | Z60: 409315 | AA60: 398060 | AB60: 382519 | AC60: 366859 | AD60: 362062 | AE60: 353260 | AF60: 344704 | AG60: 350134 | AH60: 376780 | AJ60: 44 | AK60: 15898266 | AL60: 15826595 | AM60: 15791841 | AN60: 15793351 | AO60: 15799006 | AP60: 15808118 | AQ60: 15809161 | AR60: 15843001 | AS60: 15871660 | AT60: 15905855 | AU60: 15943255 | AV60: 15975924 | AW60: 16016733 | AX60: 16100872 | AY60: 16149799 | AZ60: 16235601 | BA60: 16297310 | BB60: 16312956 | BC60: 16362527 | BD60: 16440692 | BE60: 16434796 | BF60: 16445338 | BG60: 16467726 | BH60: 16519238 | BI60: 16564020 | BJ60: 16553748 | BK60: 16549915 | BL60: 16563485 | BM60: 16525468 | BN60: 16526334 | BO60: 16766871 | BP60: 17012675
A61: male | B61: 45 | C61: 416241 | D61: 380550 | E61: 354566 | F61: 341437 | G61: 331251 | H61: 325231 | I61: 329188 | J61: 331276 | K61: 328065 | L61: 336262 | M61: 346222 | N61: 360873 | O61: 366017 | P61: 371965 | Q61: 386452 | R61: 395115 | S61: 403440 | T61: 411528 | U61: 415041 | V61: 411181 | W61: 413419 | X61: 406696 | Y61: 408304 | Z61: 399532 | AA61: 410032 | AB61: 397799 | AC61: 382251 | AD61: 366585 | AE61: 361029 | AF61: 352282 | AG61: 344730 | AH61: 351252 | AJ61: 45 | AK61: 16314507 | AL61: 16207145 | AM61: 16146407 | AN61: 16134788 | AO61: 16130257 | AP61: 16133349 | AQ61: 16138349 | AR61: 16174277 | AS61: 16199725 | AT61: 16242117 | AU61: 16289477 | AV61: 16336797 | AW61: 16382750 | AX61: 16472837 | AY61: 16536251 | AZ61: 16630716 | BA61: 16700750 | BB61: 16724484 | BC61: 16777568 | BD61: 16851873 | BE61: 16848215 | BF61: 16852034 | BG61: 16876030 | BH61: 16918770 | BI61: 16974052 | BJ61: 16951547 | BK61: 16932166 | BL61: 16930070 | BM61: 16886497 | BN61: 16878616 | BO61: 17111601 | BP61: 17363927
A62: male | B62: 46 | C62: 326460 | D62: 413561 | E62: 379902 | F62: 353735 | G62: 340432 | H62: 330050 | I62: 324693 | J62: 328619 | K62: 330475 | L62: 327721 | M62: 333961 | N62: 345889 | O62: 360416 | P62: 365463 | Q62: 371988 | R62: 384214 | S62: 394935 | T62: 403243 | U62: 411547 | V62: 414054 | W62: 411266 | X62: 413555 | Y62: 407316 | Z62: 408962 | AA62: 400019 | AB62: 410187 | AC62: 397300 | AD62: 381707 | AE62: 365452 | AF62: 360389 | AG62: 352277 | AH62: 345606 | AJ62: 46 | AK62: 16640967 | AL62: 16620706 | AM62: 16526309 | AN62: 16488523 | AO62: 16470689 | AP62: 16463399 | AQ62: 16463042 | AR62: 16502896 | AS62: 16530200 | AT62: 16569838 | AU62: 16623438 | AV62: 16682686 | AW62: 16743166 | AX62: 16838300 | AY62: 16908239 | AZ62: 17014930 | BA62: 17095685 | BB62: 17127727 | BC62: 17189115 | BD62: 17265927 | BE62: 17259481 | BF62: 17265589 | BG62: 17283346 | BH62: 17327732 | BI62: 17374071 | BJ62: 17361734 | BK62: 17329466 | BL62: 17311777 | BM62: 17251949 | BN62: 17239005 | BO62: 17463878 | BP62: 17709533
A63: male | B63: 47 | C63: 321767 | D63: 325975 | E63: 411525 | F63: 379200 | G63: 352690 | H63: 339407 | I63: 328977 | J63: 324404 | K63: 327702 | L63: 329911 | M63: 325078 | N63: 333616 | O63: 345348 | P63: 359465 | Q63: 365291 | R63: 370003 | S63: 383644 | T63: 395226 | U63: 403356 | V63: 410980 | W63: 414061 | X63: 411421 | Y63: 413972 | Z63: 408034 | AA63: 409551 | AB63: 400101 | AC63: 410160 | AD63: 396813 | AE63: 380441 | AF63: 364736 | AG63: 359972 | AH63: 352748 | AJ63: 47 | AK63: 16962734 | AL63: 16946681 | AM63: 16937834 | AN63: 16867723 | AO63: 16823379 | AP63: 16802806 | AQ63: 16792019 | AR63: 16827300 | AS63: 16857902 | AT63: 16899749 | AU63: 16948516 | AV63: 17016302 | AW63: 17088514 | AX63: 17197765 | AY63: 17273530 | AZ63: 17384933 | BA63: 17479329 | BB63: 17522953 | BC63: 17592471 | BD63: 17676907 | BE63: 17673542 | BF63: 17677010 | BG63: 17697318 | BH63: 17735766 | BI63: 17783622 | BJ63: 17761835 | BK63: 17739626 | BL63: 17708590 | BM63: 17632390 | BN63: 17603741 | BO63: 17823850 | BP63: 18062281
A64: male | B64: 48 | C64: 323167 | D64: 321041 | E64: 325434 | F64: 409366 | G64: 378374 | H64: 351472 | I64: 338207 | J64: 328017 | K64: 323852 | L64: 326768 | M64: 327539 | N64: 324387 | O64: 333268 | P64: 344460 | Q64: 358886 | R64: 363091 | S64: 369522 | T64: 383490 | U64: 395704 | V64: 402826 | W64: 410788 | X64: 414167 | Y64: 411645 | Z64: 414325 | AA64: 408559 | AB64: 409669 | AC64: 400035 | AD64: 409655 | AE64: 395496 | AF64: 379613 | AG64: 364278 | AH64: 360210 | AJ64: 48 | AK64: 17285901 | AL64: 17267722 | AM64: 17263268 | AN64: 17277089 | AO64: 17201753 | AP64: 17154278 | AQ64: 17130226 | AR64: 17155317 | AS64: 17181754 | AT64: 17226517 | AU64: 17276055 | AV64: 17340689 | AW64: 17421782 | AX64: 17542225 | AY64: 17632416 | AZ64: 17748024 | BA64: 17848851 | BB64: 17906443 | BC64: 17988175 | BD64: 18079733 | BE64: 18084330 | BF64: 18091177 | BG64: 18108963 | BH64: 18150091 | BI64: 18192181 | BJ64: 18171504 | BK64: 18139661 | BL64: 18118245 | BM64: 18027886 | BN64: 17983354 | BO64: 18188128 | BP64: 18422491
A65: male | B65: 49 | C65: 306692 | D65: 321551 | E65: 320342 | F65: 324754 | G65: 407040 | H65: 377230 | I65: 350321 | J65: 337341 | K65: 326839 | L65: 323232 | M65: 324806 | N65: 326871 | O65: 323517 | P65: 332518 | Q65: 343792 | R65: 356490 | S65: 362480 | T65: 369375 | U65: 383477 | V65: 395504 | W65: 402423 | X65: 410452 | Y65: 414151 | Z65: 411686 | AA65: 414236 | AB65: 408550 | AC65: 409596 | AD65: 399580 | AE65: 408361 | AF65: 394429 | AG65: 378984 | AH65: 364193 | AJ65: 49 | AK65: 17592593 | AL65: 17589273 | AM65: 17583610 | AN65: 17601843 | AO65: 17608793 | AP65: 17531508 | AQ65: 17480547 | AR65: 17492658 | AS65: 17508593 | AT65: 17549749 | AU65: 17600861 | AV65: 17667560 | AW65: 17745299 | AX65: 17874743 | AY65: 17976208 | AZ65: 18104514 | BA65: 18211331 | BB65: 18275818 | BC65: 18371652 | BD65: 18475237 | BE65: 18486753 | BF65: 18501629 | BG65: 18523114 | BH65: 18561777 | BI65: 18606417 | BJ65: 18580054 | BK65: 18549257 | BL65: 18517825 | BM65: 18436247 | BN65: 18377783 | BO65: 18567112 | BP65: 18786684
A66: male | B66: 50 | C66: 279676 | D66: 305415 | E66: 319675 | F66: 319702 | G66: 324259 | H66: 404217 | I66: 376089 | J66: 348982 | K66: 336271 | L66: 324788 | M66: 322094 | N66: 324030 | O66: 325062 | P66: 322881 | Q66: 331427 | R66: 342685 | S66: 356250 | T66: 361987 | U66: 368268 | V66: 382183 | W66: 395017 | X66: 402066 | Y66: 410186 | Z66: 414055 | AA66: 411541 | AB66: 413858 | AC66: 408378 | AD66: 409046 | AE66: 398346 | AF66: 407609 | AG66: 393366 | AH66: 378328 | AJ66: 50 | AK66: 17872269 | AL66: 17894688 | AM66: 17903285 | AN66: 17921545 | AO66: 17933052 | AP66: 17935725 | AQ66: 17856636 | AR66: 17841640 | AS66: 17844864 | AT66: 17874537 | AU66: 17922955 | AV66: 17991590 | AW66: 18070361 | AX66: 18197624 | AY66: 18307635 | AZ66: 18447199 | BA66: 18567581 | BB66: 18637805 | BC66: 18739920 | BD66: 18857420 | BE66: 18881770 | BF66: 18903695 | BG66: 18933300 | BH66: 18975832 | BI66: 19017958 | BJ66: 18993912 | BK66: 18957635 | BL66: 18926871 | BM66: 18834593 | BN66: 18785392 | BO66: 18960478 | BP66: 19165012
A67: male | B67: 51 | C67: 258355 | D67: 278099 | E67: 304100 | F67: 318172 | G67: 318942 | H67: 323373 | I67: 401509 | J67: 375081 | K67: 347910 | L67: 334543 | M67: 323733 | N67: 320718 | O67: 322491 | P67: 324562 | Q67: 321320 | R67: 330480 | S67: 342653 | T67: 355386 | U67: 360623 | V67: 367041 | W67: 381752 | X67: 394385 | Y67: 401714 | Z67: 409905 | AA67: 413723 | AB67: 411008 | AC67: 413288 | AD67: 407701 | AE67: 407619 | AF67: 397609 | AG67: 406417 | AH67: 392490 | AJ67: 51 | AK67: 18130624 | AL67: 18172787 | AM67: 18207385 | AN67: 18239717 | AO67: 18251994 | AP67: 18259098 | AQ67: 18258145 | AR67: 18216721 | AS67: 18192774 | AT67: 18209080 | AU67: 18246688 | AV67: 18312308 | AW67: 18392852 | AX67: 18522186 | AY67: 18628955 | AZ67: 18777679 | BA67: 18910234 | BB67: 18993191 | BC67: 19100543 | BD67: 19224461 | BE67: 19263522 | BF67: 19298080 | BG67: 19335014 | BH67: 19385737 | BI67: 19431681 | BJ67: 19404920 | BK67: 19370923 | BL67: 19334572 | BM67: 19242212 | BN67: 19183001 | BO67: 19366895 | BP67: 19557502
A68: male | B68: 52 | C68: 273423 | D68: 257343 | E68: 276484 | F68: 302886 | G68: 316501 | H68: 317895 | I68: 322463 | J68: 399169 | K68: 374220 | L68: 346118 | M68: 333182 | N68: 322481 | O68: 318501 | P68: 322151 | Q68: 323042 | R68: 319933 | S68: 330564 | T68: 341750 | U68: 353500 | V68: 359204 | W68: 366540 | X68: 381232 | Y68: 393792 | Z68: 401157 | AA68: 409352 | AB68: 413049 | AC68: 410151 | AD68: 412062 | AE68: 406156 | AF68: 406996 | AG68: 396157 | AH68: 405017 | AJ68: 52 | AK68: 18404047 | AL68: 18430130 | AM68: 18483869 | AN68: 18542603 | AO68: 18568495 | AP68: 18576993 | AQ68: 18580608 | AR68: 18615890 | AS68: 18566994 | AT68: 18555198 | AU68: 18579870 | AV68: 18634789 | AW68: 18711353 | AX68: 18844337 | AY68: 18951997 | AZ68: 19097612 | BA68: 19240798 | BB68: 19334941 | BC68: 19454043 | BD68: 19583665 | BE68: 19630062 | BF68: 19679312 | BG68: 19728806 | BH68: 19786894 | BI68: 19841033 | BJ68: 19817969 | BK68: 19781074 | BL68: 19746634 | BM68: 19648368 | BN68: 19589997 | BO68: 19763052 | BP68: 19962519
A69: male | B69: 53 | C69: 275266 | D69: 271792 | E69: 256297 | F69: 274901 | G69: 301470 | H69: 314591 | I69: 316619 | J69: 321531 | K69: 396612 | L69: 372400 | M69: 344498 | N69: 331499 | O69: 320479 | P69: 317588 | Q69: 320883 | R69: 321757 | S69: 319610 | T69: 329930 | U69: 340055 | V69: 351677 | W69: 358357 | X69: 365909 | Y69: 380598 | Z69: 393035 | AA69: 400389 | AB69: 408341 | AC69: 412040 | AD69: 408757 | AE69: 410165 | AF69: 405320 | AG69: 405316 | AH69: 394613 | AJ69: 53 | AK69: 18679313 | AL69: 18701922 | AM69: 18740166 | AN69: 18817504 | AO69: 18869965 | AP69: 18891584 | AQ69: 18897227 | AR69: 18937421 | AS69: 18963606 | AT69: 18927598 | AU69: 18924368 | AV69: 18966288 | AW69: 19031832 | AX69: 19161925 | AY69: 19272880 | AZ69: 19419369 | BA69: 19560408 | BB69: 19664871 | BC69: 19794098 | BD69: 19935342 | BE69: 19988419 | BF69: 20045221 | BG69: 20109404 | BH69: 20179929 | BI69: 20241422 | BJ69: 20226310 | BK69: 20193114 | BL69: 20155391 | BM69: 20058533 | BN69: 19995317 | BO69: 20168368 | BP69: 20357132
A70: male | B70: 54 | C70: 273937 | D70: 273678 | E70: 270306 | F70: 255402 | G70: 273046 | H70: 299827 | I70: 312344 | J70: 315734 | K70: 320930 | L70: 393046 | M70: 370101 | N70: 342664 | O70: 329006 | P70: 319715 | Q70: 315592 | R70: 319799 | S70: 321370 | T70: 318474 | U70: 328389 | V70: 338310 | W70: 350573 | X70: 357489 | Y70: 365301 | Z70: 379911 | AA70: 392039 | AB70: 399267 | AC70: 407246 | AD70: 410446 | AE70: 406631 | AF70: 408894 | AG70: 403521 | AH70: 403444 | AJ70: 54 | AK70: 18953250 | AL70: 18975600 | AM70: 19010472 | AN70: 19072906 | AO70: 19143011 | AP70: 19191411 | AQ70: 19209571 | AR70: 19253155 | AS70: 19284536 | AT70: 19320644 | AU70: 19294469 | AV70: 19308952 | AW70: 19360838 | AX70: 19481640 | AY70: 19588472 | AZ70: 19739168 | BA70: 19881778 | BB70: 19983345 | BC70: 20122487 | BD70: 20273652 | BE70: 20338992 | BF70: 20402710 | BG70: 20474705 | BH70: 20559840 | BI70: 20633461 | BJ70: 20625577 | BK70: 20600360 | BL70: 20565837 | BM70: 20465164 | BN70: 20404211 | BO70: 20571889 | BP70: 20760576
A71: male | B71: 55 | C71: 268476 | D71: 272258 | E71: 271992 | F71: 268517 | G71: 254108 | H71: 271121 | I71: 298040 | J71: 310369 | K71: 314421 | L71: 319684 | M71: 391421 | N71: 366732 | O71: 340397 | P71: 327499 | Q71: 317903 | R71: 313202 | S71: 317906 | T71: 319953 | U71: 316973 | V71: 327115 | W71: 337071 | X71: 349487 | Y71: 356623 | Z71: 364499 | AA71: 378899 | AB71: 390746 | AC71: 397922 | AD71: 405207 | AE71: 408047 | AF71: 405275 | AG71: 407071 | AH71: 401604 | AJ71: 55 | AK71: 19221726 | AL71: 19247858 | AM71: 19282464 | AN71: 19341423 | AO71: 19397119 | AP71: 19462532 | AQ71: 19507611 | AR71: 19563524 | AS71: 19598957 | AT71: 19640328 | AU71: 19685890 | AV71: 19675684 | AW71: 19701235 | AX71: 19809139 | AY71: 19906375 | AZ71: 20052370 | BA71: 20199684 | BB71: 20303298 | BC71: 20439460 | BD71: 20600767 | BE71: 20676063 | BF71: 20752197 | BG71: 20831328 | BH71: 20924339 | BI71: 21012360 | BJ71: 21016323 | BK71: 20998282 | BL71: 20971044 | BM71: 20873211 | BN71: 20809486 | BO71: 20978960 | BP71: 21162180
A72: male | B72: 56 | C72: 262583 | D72: 266393 | E72: 270279 | F72: 270099 | G72: 266715 | H72: 252449 | I72: 269082 | J72: 296264 | K72: 308080 | L72: 312635 | M72: 316798 | N72: 389192 | O72: 363627 | P72: 338425 | Q72: 325112 | R72: 315427 | S72: 310651 | T72: 316552 | U72: 318239 | V72: 315134 | W72: 325642 | X72: 335714 | Y72: 348316 | Z72: 355534 | AA72: 363330 | AB72: 377518 | AC72: 389112 | AD72: 395726 | AE72: 402643 | AF72: 406488 | AG72: 403305 | AH72: 404751 | AJ72: 56 | AK72: 19484309 | AL72: 19514251 | AM72: 19552743 | AN72: 19611522 | AO72: 19663834 | AP72: 19714981 | AQ72: 19776693 | AR72: 19859788 | AS72: 19907037 | AT72: 19952963 | AU72: 20002688 | AV72: 20064876 | AW72: 20064862 | AX72: 20147564 | AY72: 20231487 | AZ72: 20367797 | BA72: 20510335 | BB72: 20619850 | BC72: 20757699 | BD72: 20915901 | BE72: 21001705 | BF72: 21087911 | BG72: 21179644 | BH72: 21279873 | BI72: 21375690 | BJ72: 21393841 | BK72: 21387394 | BL72: 21366770 | BM72: 21275854 | BN72: 21215974 | BO72: 21382265 | BP72: 21566931
A73: male | B73: 57 | C73: 257467 | D73: 260308 | E73: 264293 | F73: 268103 | G73: 268001 | H73: 264672 | I73: 250691 | J73: 267061 | K73: 294097 | L73: 305725 | M73: 309694 | N73: 313515 | O73: 387349 | P73: 360903 | Q73: 335989 | R73: 322545 | S73: 313059 | T73: 308782 | U73: 315146 | V73: 316474 | W73: 313523 | X73: 324078 | Y73: 334292 | Z73: 346863 | AA73: 354174 | AB73: 361955 | AC73: 375794 | AD73: 386962 | AE73: 392926 | AF73: 400615 | AG73: 404243 | AH73: 400740 | AJ73: 57 | AK73: 19741776 | AL73: 19774559 | AM73: 19817036 | AN73: 19879625 | AO73: 19931835 | AP73: 19979653 | AQ73: 20027384 | AR73: 20126849 | AS73: 20201134 | AT73: 20258688 | AU73: 20312382 | AV73: 20378391 | AW73: 20452211 | AX73: 20508467 | AY73: 20567476 | AZ73: 20690342 | BA73: 20823394 | BB73: 20928632 | BC73: 21072845 | BD73: 21232375 | BE73: 21315228 | BF73: 21411989 | BG73: 21513936 | BH73: 21626736 | BI73: 21729864 | BJ73: 21755796 | BK73: 21763188 | BL73: 21753732 | BM73: 21668780 | BN73: 21616589 | BO73: 21786508 | BP73: 21967671
A74: male | B74: 58 | C74: 248125 | D74: 254989 | E74: 257905 | F74: 262139 | G74: 266067 | H74: 265769 | I74: 262391 | J74: 249193 | K74: 264620 | L74: 291858 | M74: 303510 | N74: 306471 | O74: 310600 | P74: 385885 | Q74: 357834 | R74: 333094 | S74: 319871 | T74: 311206 | U74: 306648 | V74: 313535 | W74: 314595 | X74: 311719 | Y74: 322470 | Z74: 332684 | AA74: 345227 | AB74: 352483 | AC74: 360266 | AD74: 373571 | AE74: 383980 | AF74: 391000 | AG74: 398202 | AH74: 401516 | AJ74: 58 | AK74: 19989901 | AL74: 20029548 | AM74: 20074941 | AN74: 20141764 | AO74: 20197902 | AP74: 20245422 | AQ74: 20289775 | AR74: 20376042 | AS74: 20465754 | AT74: 20550546 | AU74: 20615892 | AV74: 20684862 | AW74: 20762811 | AX74: 20894352 | AY74: 20925310 | AZ74: 21023436 | BA74: 21143265 | BB74: 21239838 | BC74: 21379493 | BD74: 21545910 | BE74: 21629823 | BF74: 21723708 | BG74: 21836406 | BH74: 21959420 | BI74: 22075091 | BJ74: 22108279 | BK74: 22123454 | BL74: 22127303 | BM74: 22052760 | BN74: 22007589 | BO74: 22184710 | BP74: 22369187
A75: male | B75: 59 | C75: 246573 | D75: 245387 | E75: 252249 | F75: 255451 | G75: 259949 | H75: 263816 | I75: 263314 | J75: 260145 | K75: 247493 | L75: 262092 | M75: 289006 | N75: 301078 | O75: 303486 | P75: 307913 | Q75: 384002 | R75: 354190 | S75: 330051 | T75: 317593 | U75: 309190 | V75: 304309 | W75: 311432 | X75: 312648 | Y75: 309906 | Z75: 320699 | AA75: 330823 | AB75: 343295 | AC75: 350562 | AD75: 357981 | AE75: 370736 | AF75: 381711 | AG75: 388597 | AH75: 395372 | AJ75: 59 | AK75: 20236474 | AL75: 20274935 | AM75: 20327190 | AN75: 20397215 | AO75: 20457851 | AP75: 20509238 | AQ75: 20553089 | AR75: 20636187 | AS75: 20713247 | AT75: 20812638 | AU75: 20904898 | AV75: 20985940 | AW75: 21066297 | AX75: 21202265 | AY75: 21309312 | AZ75: 21377626 | BA75: 21473316 | BB75: 21557431 | BC75: 21688683 | BD75: 21850219 | BE75: 21941255 | BF75: 22036356 | BG75: 22146312 | BH75: 22280119 | BI75: 22405914 | BJ75: 22451574 | BK75: 22474016 | BL75: 22485284 | BM75: 22423496 | BN75: 22389300 | BO75: 22573307 | BP75: 22764559
A76: male | B76: 60 | C76: 251965 | D76: 243512 | E76: 242500 | F76: 249314 | G76: 252657 | H76: 257305 | I76: 261028 | J76: 260701 | K76: 257592 | L76: 245115 | M76: 259489 | N76: 286036 | O76: 298443 | P76: 300034 | Q76: 304158 | R76: 379685 | S76: 350980 | T76: 327495 | U76: 315565 | V76: 306833 | W76: 302033 | X76: 309179 | Y76: 310461 | Z76: 307767 | AA76: 318637 | AB76: 328542 | AC76: 341026 | AD76: 348126 | AE76: 355144 | AF76: 368404 | AG76: 379192 | AH76: 385524 | AJ76: 60 | AK76: 20488439 | AL76: 20518447 | AM76: 20569690 | AN76: 20646529 | AO76: 20710508 | AP76: 20766543 | AQ76: 20814117 | AR76: 20896888 | AS76: 20970839 | AT76: 21057753 | AU76: 21164387 | AV76: 21271976 | AW76: 21364740 | AX76: 21502299 | AY76: 21613470 | AZ76: 21757311 | BA76: 21824296 | BB76: 21884926 | BC76: 22004248 | BD76: 22157052 | BE76: 22243288 | BF76: 22345535 | BG76: 22456773 | BH76: 22587886 | BI76: 22724551 | BJ76: 22780116 | BK76: 22815042 | BL76: 22833410 | BM76: 22778640 | BN76: 22757704 | BO76: 22952499 | BP76: 23150083
A77: male | B77: 61 | C77: 253195 | D77: 248292 | E77: 240795 | F77: 239550 | G77: 246393 | H77: 249726 | I77: 254696 | J77: 258543 | K77: 258011 | L77: 254742 | M77: 242059 | N77: 256582 | O77: 282765 | P77: 295650 | Q77: 296256 | R77: 298977 | S77: 377626 | T77: 347736 | U77: 325086 | V77: 312732 | W77: 304453 | X77: 299608 | Y77: 306801 | Z77: 308159 | AA77: 305441 | AB77: 316311 | AC77: 326016 | AD77: 338455 | AE77: 345109 | AF77: 352704 | AG77: 365555 | AH77: 376008 | AJ77: 61 | AK77: 20741634 | AL77: 20766739 | AM77: 20810485 | AN77: 20886079 | AO77: 20956901 | AP77: 21016269 | AQ77: 21068813 | AR77: 21155431 | AS77: 21228850 | AT77: 21312495 | AU77: 21406446 | AV77: 21528558 | AW77: 21647505 | AX77: 21797949 | AY77: 21909726 | AZ77: 22056288 | BA77: 22201922 | BB77: 22232662 | BC77: 22329334 | BD77: 22469784 | BE77: 22547741 | BF77: 22645143 | BG77: 22763574 | BH77: 22896045 | BI77: 23029992 | BJ77: 23096427 | BK77: 23141058 | BL77: 23171865 | BM77: 23123749 | BN77: 23110408 | BO77: 23318054 | BP77: 23526091
A78: male | B78: 62 | C78: 247283 | D78: 248928 | E78: 244412 | F78: 237308 | G78: 236136 | H78: 243020 | I78: 246444 | J78: 251662 | K78: 255503 | L78: 254696 | M78: 251564 | N78: 238608 | O78: 253345 | P78: 279413 | Q78: 292677 | R78: 291305 | S78: 295633 | T78: 375483 | U78: 344496 | V78: 322062 | W78: 309929 | X78: 301712 | Y78: 297021 | Z78: 304212 | AA78: 305569 | AB78: 302786 | AC78: 313640 | AD78: 323147 | AE78: 335203 | AF78: 342389 | AG78: 349836 | AH78: 362163 | AJ78: 62 | AK78: 20988917 | AL78: 21015667 | AM78: 21054897 | AN78: 21123387 | AO78: 21193037 | AP78: 21259289 | AQ78: 21315257 | AR78: 21407093 | AS78: 21484353 | AT78: 21567191 | AU78: 21658010 | AV78: 21767166 | AW78: 21900850 | AX78: 22077362 | AY78: 22202403 | AZ78: 22347593 | BA78: 22497555 | BB78: 22608145 | BC78: 22673830 | BD78: 22791846 | BE78: 22857670 | BF78: 22946855 | BG78: 23060595 | BH78: 23200257 | BI78: 23335561 | BJ78: 23399213 | BK78: 23454698 | BL78: 23495012 | BM78: 23458952 | BN78: 23452797 | BO78: 23667890 | BP78: 23888254
A79: male | B79: 63 | C79: 240369 | D79: 242713 | E79: 244599 | F79: 240436 | G79: 233691 | H79: 232575 | I79: 239482 | J79: 243124 | K79: 248498 | L79: 252130 | M79: 251326 | N79: 247984 | O79: 234830 | P79: 250000 | Q79: 275676 | R79: 288381 | S79: 287979 | T79: 292423 | U79: 373340 | V79: 340526 | W79: 318841 | X79: 306840 | Y79: 298976 | Z79: 294186 | AA79: 301311 | AB79: 302653 | AC79: 299975 | AD79: 310601 | AE79: 319757 | AF79: 332127 | AG79: 339205 | AH79: 346261 | AJ79: 63 | AK79: 21229286 | AL79: 21258380 | AM79: 21299496 | AN79: 21363823 | AO79: 21426728 | AP79: 21491864 | AQ79: 21554739 | AR79: 21650217 | AS79: 21732851 | AT79: 21819321 | AU79: 21909336 | AV79: 22015150 | AW79: 22135680 | AX79: 22327362 | AY79: 22478079 | AZ79: 22635974 | BA79: 22785534 | BB79: 22900568 | BC79: 23047170 | BD79: 23132372 | BE79: 23176511 | BF79: 23253695 | BG79: 23359571 | BH79: 23494443 | BI79: 23636872 | BJ79: 23701866 | BK79: 23754673 | BL79: 23805613 | BM79: 23778709 | BN79: 23784924 | BO79: 24007095 | BP79: 24234515
